Workbook

Sheet Velkomst

Sheet Tabel 1 F
A1: ='[1]Tabel 1 F DATA'!G1 -> Tabel 1. Forsikrede medlemmer
A3: ='[1]Tabel 1 F DATA'!G2 -> Fyn
C5: ='[1]Tabel 1 F DATA'!I4 -> Mænd | E5: ='[1]Tabel 1 F DATA'!K4 -> Kvinder | G5: ='[1]Tabel 1 F DATA'!M4 -> I alt
A7: ='[1]Tabel 1 F DATA'!G6 -> Civ. ing. | C7: ='[1]Tabel 1 F DATA'!I6 -> 1196 | E7: ='[1]Tabel 1 F DATA'!K6 -> 318 | G7: ='[1]Tabel 1 F DATA'!M6 -> 1514
A8: ='[1]Tabel 1 F DATA'!G7 -> Diplom ing. | C8: ='[1]Tabel 1 F DATA'!I7 -> 2666 | E8: ='[1]Tabel 1 F DATA'!K7 -> 611 | G8: ='[1]Tabel 1 F DATA'!M7 -> 3277
A9: ='[1]Tabel 1 F DATA'!G8 -> Cand. Scient. Tek. | C9: ='[1]Tabel 1 F DATA'!I8 -> 660 | E9: ='[1]Tabel 1 F DATA'!K8 -> 633 | G9: ='[1]Tabel 1 F DATA'!M8 -> 1293
A10: ='[1]Tabel 1 F DATA'!G9 -> MA. Hum. | C10: ='[1]Tabel 1 F DATA'!I9 -> 1065 | E10: ='[1]Tabel 1 F DATA'!K9 -> 2301 | G10: ='[1]Tabel 1 F DATA'!M9 -> 3366
A11: ='[1]Tabel 1 F DATA'!G10 -> MA. Nat. | C11: ='[1]Tabel 1 F DATA'!I10 -> 602 | E11: ='[1]Tabel 1 F DATA'!K10 -> 593 | G11: ='[1]Tabel 1 F DATA'!M10 -> 1195
A12: ='[1]Tabel 1 F DATA'!G11 -> MA. Ph.d. | C12: ='[1]Tabel 1 F DATA'!I11 -> 85 | E12: ='[1]Tabel 1 F DATA'!K11 -> 72 | G12: ='[1]Tabel 1 F DATA'!M11 -> 157
A13: ='[1]Tabel 1 F DATA'!G12 -> MA. Samf. | C13: ='[1]Tabel 1 F DATA'!I12 -> 55 | E13: ='[1]Tabel 1 F DATA'!K12 -> 147 | G13: ='[1]Tabel 1 F DATA'!M12 -> 202
A14: ='[1]Tabel 1 F DATA'!G13 -> Øvrige Mag. | C14: ='[1]Tabel 1 F DATA'!I13 -> 76 | E14: ='[1]Tabel 1 F DATA'!K13 -> 148 | G14: ='[1]Tabel 1 F DATA'!M13 -> 224
A15: ='[1]Tabel 1 F DATA'!G14 -> Agronom | C15: ='[1]Tabel 1 F DATA'!I14 -> 79 | E15: ='[1]Tabel 1 F DATA'!K14 -> 64 | G15: ='[1]Tabel 1 F DATA'!M14 -> 143
A16: ='[1]Tabel 1 F DATA'!G15 -> Landsk. Arkt. | C16: ='[1]Tabel 1 F DATA'!I15 -> 8 | E16: ='[1]Tabel 1 F DATA'!K15 -> 24 | G16: ='[1]Tabel 1 F DATA'!M15 -> 32
A17: ='[1]Tabel 1 F DATA'!G16 -> Hortonom | C17: ='[1]Tabel 1 F DATA'!I16 -> 17 | E17: ='[1]Tabel 1 F DATA'!K16 -> 19 | G17: ='[1]Tabel 1 F DATA'!M16 -> 36
A18: ='[1]Tabel 1 F DATA'!G17 -> Forstkand. | C18: ='[1]Tabel 1 F DATA'!I17 -> 18 | E18: ='[1]Tabel 1 F DATA'!K17 -> 9 | G18: ='[1]Tabel 1 F DATA'!M17 -> 27
A19: ='[1]Tabel 1 F DATA'!G18 -> Jordbrugsakad. | C19: ='[1]Tabel 1 F DATA'!I18 -> 122 | E19: ='[1]Tabel 1 F DATA'!K18 -> 116 | G19: ='[1]Tabel 1 F DATA'!M18 -> 238
A20: ='[1]Tabel 1 F DATA'!G19 -> Mejeriing. | C20: ='[1]Tabel 1 F DATA'!I19 -> 8 | E20: ='[1]Tabel 1 F DATA'!K19 -> 7 | G20: ='[1]Tabel 1 F DATA'!M19 -> 15
A21: ='[1]Tabel 1 F DATA'!G20 -> Levn.m.kand. | C21: ='[1]Tabel 1 F DATA'!I20 -> 5 | E21: ='[1]Tabel 1 F DATA'!K20 -> 9 | G21: ='[1]Tabel 1 F DATA'!M20 -> 14
A22: ='[1]Tabel 1 F DATA'!G21 -> Dyrlæge | C22: ='[1]Tabel 1 F DATA'!I21 -> 20 | E22: ='[1]Tabel 1 F DATA'!K21 -> 122 | G22: ='[1]Tabel 1 F DATA'!M21 -> 142
A23: ='[1]Tabel 1 F DATA'!G22 -> Farmaceut | C23: ='[1]Tabel 1 F DATA'!I22 -> 75 | E23: ='[1]Tabel 1 F DATA'!K22 -> 215 | G23: ='[1]Tabel 1 F DATA'!M22 -> 290
A24: ='[1]Tabel 1 F DATA'!G23 -> Læge | C24: ='[1]Tabel 1 F DATA'!I23 -> 435 | E24: ='[1]Tabel 1 F DATA'!K23 -> 875 | G24: ='[1]Tabel 1 F DATA'!M23 -> 1310
A25: ='[1]Tabel 1 F DATA'!G24 -> Tandlæge | C25: ='[1]Tabel 1 F DATA'!I24 -> 17 | E25: ='[1]Tabel 1 F DATA'!K24 -> 94 | G25: ='[1]Tabel 1 F DATA'!M24 -> 111
A26: ='[1]Tabel 1 F DATA'!G25 -> Arkitekt | C26: ='[1]Tabel 1 F DATA'!I25 -> 75 | E26: ='[1]Tabel 1 F DATA'!K25 -> 69 | G26: ='[1]Tabel 1 F DATA'!M25 -> 144
A27: ='[1]Tabel 1 F DATA'!G26 -> Landinspek. | C27: ='[1]Tabel 1 F DATA'!I26 -> 46 | E27: ='[1]Tabel 1 F DATA'!K26 -> 18 | G27: ='[1]Tabel 1 F DATA'!M26 -> 64
A28: ='[1]Tabel 1 F DATA'!G27 -> Bibliotekar | C28: ='[1]Tabel 1 F DATA'!I27 -> 61 | E28: ='[1]Tabel 1 F DATA'!K27 -> 141 | G28: ='[1]Tabel 1 F DATA'!M27 -> 202
A29: ='[1]Tabel 1 F DATA'!G28 -> Musikudd. | C29: ='[1]Tabel 1 F DATA'!I28 -> 43 | E29: ='[1]Tabel 1 F DATA'!K28 -> 48 | G29: ='[1]Tabel 1 F DATA'!M28 -> 91
A30: ='[1]Tabel 1 F DATA'!G29 -> Teolog | C30: ='[1]Tabel 1 F DATA'!I29 -> 42 | E30: ='[1]Tabel 1 F DATA'!K29 -> 76 | G30: ='[1]Tabel 1 F DATA'!M29 -> 118
A31: ='[1]Tabel 1 F DATA'!G30 -> Psykolog | C31: ='[1]Tabel 1 F DATA'!I30 -> 126 | E31: ='[1]Tabel 1 F DATA'!K30 -> 444 | G31: ='[1]Tabel 1 F DATA'!M30 -> 570
A32: ='[1]Tabel 1 F DATA'!G31 -> Jurist | C32: ='[1]Tabel 1 F DATA'!I31 -> 220 | E32: ='[1]Tabel 1 F DATA'!K31 -> 411 | G32: ='[1]Tabel 1 F DATA'!M31 -> 631
A33: ='[1]Tabel 1 F DATA'!G32 -> Økonom | C33: ='[1]Tabel 1 F DATA'!I32 -> 319 | E33: ='[1]Tabel 1 F DATA'!K32 -> 276 | G33: ='[1]Tabel 1 F DATA'!M32 -> 595
A34: ='[1]Tabel 1 F DATA'!G33 -> Samf. Adm. | C34: ='[1]Tabel 1 F DATA'!I33 -> 577 | E34: ='[1]Tabel 1 F DATA'!K33 -> 938 | G34: ='[1]Tabel 1 F DATA'!M33 -> 1515
A35: ='[1]Tabel 1 F DATA'!G34 -> Cand. Merc. | C35: ='[1]Tabel 1 F DATA'!I34 -> 957 | E35: ='[1]Tabel 1 F DATA'!K34 -> 869 | G35: ='[1]Tabel 1 F DATA'!M34 -> 1826
A36: ='[1]Tabel 1 F DATA'!G35 -> HA | C36: ='[1]Tabel 1 F DATA'!I35 -> 237 | E36: ='[1]Tabel 1 F DATA'!K35 -> 174 | G36: ='[1]Tabel 1 F DATA'!M35 -> 411
A37: ='[1]Tabel 1 F DATA'!G36 -> HD | C37: ='[1]Tabel 1 F DATA'!I36 -> 156 | E37: ='[1]Tabel 1 F DATA'!K36 -> 136 | G37: ='[1]Tabel 1 F DATA'!M36 -> 292
A38: ='[1]Tabel 1 F DATA'!G37 -> Komm. og Sprog | C38: ='[1]Tabel 1 F DATA'!I37 -> 81 | E38: ='[1]Tabel 1 F DATA'!K37 -> 359 | G38: ='[1]Tabel 1 F DATA'!M37 -> 440
A39: ='[1]Tabel 1 F DATA'!G38 -> Bygningskonst. | C39: ='[1]Tabel 1 F DATA'!I38 -> 782 | E39: ='[1]Tabel 1 F DATA'!K38 -> 113 | G39: ='[1]Tabel 1 F DATA'!M38 -> 895
A40: ='[1]Tabel 1 F DATA'!G39 -> Cand. IT. | C40: ='[1]Tabel 1 F DATA'!I39 -> 103 | E40: ='[1]Tabel 1 F DATA'!K39 -> 86 | G40: ='[1]Tabel 1 F DATA'!M39 -> 189
A41: ='[1]Tabel 1 F DATA'!G40 -> Bac. Samf. | C41: ='[1]Tabel 1 F DATA'!I40 -> 31 | E41: ='[1]Tabel 1 F DATA'!K40 -> 41 | G41: ='[1]Tabel 1 F DATA'!M40 -> 72
A42: ='[1]Tabel 1 F DATA'!G41 -> Bac. Hum. | C42: ='[1]Tabel 1 F DATA'!I41 -> 114 | E42: ='[1]Tabel 1 F DATA'!K41 -> 222 | G42: ='[1]Tabel 1 F DATA'!M41 -> 336
A43: ='[1]Tabel 1 F DATA'!G42 -> Bac. Nat. | C43: ='[1]Tabel 1 F DATA'!I42 -> 176 | E43: ='[1]Tabel 1 F DATA'!K42 -> 62 | G43: ='[1]Tabel 1 F DATA'!M42 -> 238
A44: ='[1]Tabel 1 F DATA'!G43 -> Andre | C44: ='[1]Tabel 1 F DATA'!I43 -> 709 | E44: ='[1]Tabel 1 F DATA'!K43 -> 613 | G44: ='[1]Tabel 1 F DATA'!M43 -> 1322
A46: ='[1]Tabel 1 F DATA'!G45 -> Total | C46: ='[1]Tabel 1 F DATA'!I45 -> 11942 | E46: ='[1]Tabel 1 F DATA'!K45 -> 11357 | G46: ='[1]Tabel 1 F DATA'!M45 -> 23299
A48: ='[1]Tabel 1 F DATA'!G47 -> Ingeniører i alt | C48: ='[1]Tabel 1 F DATA'!I47 -> 3862 | E48: ='[1]Tabel 1 F DATA'!K47 -> 929 | G48: ='[1]Tabel 1 F DATA'!M47 -> 4791
A49: ='[1]Tabel 1 F DATA'!G48 -> Magistre i alt | C49: ='[1]Tabel 1 F DATA'!I48 -> 1883 | E49: ='[1]Tabel 1 F DATA'!K48 -> 3261 | G49: ='[1]Tabel 1 F DATA'!M48 -> 5144
A50: ='[1]Tabel 1 F DATA'!G49 -> DJØF'ere i alt | C50: ='[1]Tabel 1 F DATA'!I49 -> 2310 | E50: ='[1]Tabel 1 F DATA'!K49 -> 2668 | G50: ='[1]Tabel 1 F DATA'!M49 -> 4978
A57: ='[1]Tabel 1 F DATA'!G60 -> Middelfart
C59: ='[1]Tabel 1 F DATA'!I62 -> Mænd | E59: ='[1]Tabel 1 F DATA'!K62 -> Kvinder | G59: ='[1]Tabel 1 F DATA'!M62 -> I alt
A61: ='[1]Tabel 1 F DATA'!G64 -> Civ. ing. | C61: ='[1]Tabel 1 F DATA'!I64 -> 79 | E61: ='[1]Tabel 1 F DATA'!K64 -> 28 | G61: ='[1]Tabel 1 F DATA'!M64 -> 107
A62: ='[1]Tabel 1 F DATA'!G65 -> Diplom ing. | C62: ='[1]Tabel 1 F DATA'!I65 -> 243 | E62: ='[1]Tabel 1 F DATA'!K65 -> 55 | G62: ='[1]Tabel 1 F DATA'!M65 -> 298
A63: ='[1]Tabel 1 F DATA'!G66 -> Cand. Scient. Tek. | C63: ='[1]Tabel 1 F DATA'!I66 -> 33 | E63: ='[1]Tabel 1 F DATA'!K66 -> 31 | G63: ='[1]Tabel 1 F DATA'!M66 -> 64
A64: ='[1]Tabel 1 F DATA'!G67 -> MA. Hum. | C64: ='[1]Tabel 1 F DATA'!I67 -> 61 | E64: ='[1]Tabel 1 F DATA'!K67 -> 117 | G64: ='[1]Tabel 1 F DATA'!M67 -> 178
A65: ='[1]Tabel 1 F DATA'!G68 -> MA. Nat. | C65: ='[1]Tabel 1 F DATA'!I68 -> 29 | E65: ='[1]Tabel 1 F DATA'!K68 -> 44 | G65: ='[1]Tabel 1 F DATA'!M68 -> 73
A66: ='[1]Tabel 1 F DATA'!G69 -> MA. Ph.d. | C66: ='[1]Tabel 1 F DATA'!I69 -> 4 | E66: ='[1]Tabel 1 F DATA'!K69 -> 2 | G66: ='[1]Tabel 1 F DATA'!M69 -> 6
A67: ='[1]Tabel 1 F DATA'!G70 -> MA. Samf. | C67: ='[1]Tabel 1 F DATA'!I70 -> 2 | E67: ='[1]Tabel 1 F DATA'!K70 -> 19 | G67: ='[1]Tabel 1 F DATA'!M70 -> 21
A68: ='[1]Tabel 1 F DATA'!G71 -> Øvrige Mag. | C68: ='[1]Tabel 1 F DATA'!I71 -> 3 | E68: ='[1]Tabel 1 F DATA'!K71 -> 9 | G68: ='[1]Tabel 1 F DATA'!M71 -> 12
A69: ='[1]Tabel 1 F DATA'!G72 -> Agronom | C69: ='[1]Tabel 1 F DATA'!I72 -> 19 | E69: ='[1]Tabel 1 F DATA'!K72 -> 11 | G69: ='[1]Tabel 1 F DATA'!M72 -> 30
A70: ='[1]Tabel 1 F DATA'!G73 -> Landsk. Arkt. | C70: ='[1]Tabel 1 F DATA'!I73 -> 2 | E70: ='[1]Tabel 1 F DATA'!K73 -> 0 | G70: ='[1]Tabel 1 F DATA'!M73 -> 2
A71: ='[1]Tabel 1 F DATA'!G74 -> Hortonom | C71: ='[1]Tabel 1 F DATA'!I74 -> 1 | E71: ='[1]Tabel 1 F DATA'!K74 -> 3 | G71: ='[1]Tabel 1 F DATA'!M74 -> 4
A72: ='[1]Tabel 1 F DATA'!G75 -> Forstkand. | C72: ='[1]Tabel 1 F DATA'!I75 -> 1 | E72: ='[1]Tabel 1 F DATA'!K75 -> 1 | G72: ='[1]Tabel 1 F DATA'!M75 -> 2
A73: ='[1]Tabel 1 F DATA'!G76 -> Jordbrugsakad. | C73: ='[1]Tabel 1 F DATA'!I76 -> 23 | E73: ='[1]Tabel 1 F DATA'!K76 -> 15 | G73: ='[1]Tabel 1 F DATA'!M76 -> 38
A74: ='[1]Tabel 1 F DATA'!G77 -> Mejeriing. | C74: ='[1]Tabel 1 F DATA'!I77 -> 4 | E74: ='[1]Tabel 1 F DATA'!K77 -> 0 | G74: ='[1]Tabel 1 F DATA'!M77 -> 4
A75: ='[1]Tabel 1 F DATA'!G78 -> Levn.m.kand. | C75: ='[1]Tabel 1 F DATA'!I78 -> 1 | E75: ='[1]Tabel 1 F DATA'!K78 -> 1 | G75: ='[1]Tabel 1 F DATA'!M78 -> 2
A76: ='[1]Tabel 1 F DATA'!G79 -> Dyrlæge | C76: ='[1]Tabel 1 F DATA'!I79 -> 2 | E76: ='[1]Tabel 1 F DATA'!K79 -> 16 | G76: ='[1]Tabel 1 F DATA'!M79 -> 18
A77: ='[1]Tabel 1 F DATA'!G80 -> Farmaceut | C77: ='[1]Tabel 1 F DATA'!I80 -> 3 | E77: ='[1]Tabel 1 F DATA'!K80 -> 9 | G77: ='[1]Tabel 1 F DATA'!M80 -> 12
A78: ='[1]Tabel 1 F DATA'!G81 -> Læge | C78: ='[1]Tabel 1 F DATA'!I81 -> 24 | E78: ='[1]Tabel 1 F DATA'!K81 -> 85 | G78: ='[1]Tabel 1 F DATA'!M81 -> 109
A79: ='[1]Tabel 1 F DATA'!G82 -> Tandlæge | C79: ='[1]Tabel 1 F DATA'!I82 -> 1 | E79: ='[1]Tabel 1 F DATA'!K82 -> 10 | G79: ='[1]Tabel 1 F DATA'!M82 -> 11
A80: ='[1]Tabel 1 F DATA'!G83 -> Arkitekt | C80: ='[1]Tabel 1 F DATA'!I83 -> 6 | E80: ='[1]Tabel 1 F DATA'!K83 -> 8 | G80: ='[1]Tabel 1 F DATA'!M83 -> 14
A81: ='[1]Tabel 1 F DATA'!G84 -> Landinspek. | C81: ='[1]Tabel 1 F DATA'!I84 -> 9 | E81: ='[1]Tabel 1 F DATA'!K84 -> 4 | G81: ='[1]Tabel 1 F DATA'!M84 -> 13
A82: ='[1]Tabel 1 F DATA'!G85 -> Bibliotekar | C82: ='[1]Tabel 1 F DATA'!I85 -> 4 | E82: ='[1]Tabel 1 F DATA'!K85 -> 15 | G82: ='[1]Tabel 1 F DATA'!M85 -> 19
A83: ='[1]Tabel 1 F DATA'!G86 -> Musikudd. | C83: ='[1]Tabel 1 F DATA'!I86 -> 4 | E83: ='[1]Tabel 1 F DATA'!K86 -> 2 | G83: ='[1]Tabel 1 F DATA'!M86 -> 6
A84: ='[1]Tabel 1 F DATA'!G87 -> Teolog | C84: ='[1]Tabel 1 F DATA'!I87 -> 4 | E84: ='[1]Tabel 1 F DATA'!K87 -> 9 | G84: ='[1]Tabel 1 F DATA'!M87 -> 13
A85: ='[1]Tabel 1 F DATA'!G88 -> Psykolog | C85: ='[1]Tabel 1 F DATA'!I88 -> 9 | E85: ='[1]Tabel 1 F DATA'!K88 -> 39 | G85: ='[1]Tabel 1 F DATA'!M88 -> 48
A86: ='[1]Tabel 1 F DATA'!G89 -> Jurist | C86: ='[1]Tabel 1 F DATA'!I89 -> 12 | E86: ='[1]Tabel 1 F DATA'!K89 -> 31 | G86: ='[1]Tabel 1 F DATA'!M89 -> 43
A87: ='[1]Tabel 1 F DATA'!G90 -> Økonom | C87: ='[1]Tabel 1 F DATA'!I90 -> 25 | E87: ='[1]Tabel 1 F DATA'!K90 -> 24 | G87: ='[1]Tabel 1 F DATA'!M90 -> 49
A88: ='[1]Tabel 1 F DATA'!G91 -> Samf. Adm. | C88: ='[1]Tabel 1 F DATA'!I91 -> 34 | E88: ='[1]Tabel 1 F DATA'!K91 -> 61 | G88: ='[1]Tabel 1 F DATA'!M91 -> 95
A89: ='[1]Tabel 1 F DATA'!G92 -> Cand. Merc. | C89: ='[1]Tabel 1 F DATA'!I92 -> 84 | E89: ='[1]Tabel 1 F DATA'!K92 -> 65 | G89: ='[1]Tabel 1 F DATA'!M92 -> 149
A90: ='[1]Tabel 1 F DATA'!G93 -> HA | C90: ='[1]Tabel 1 F DATA'!I93 -> 25 | E90: ='[1]Tabel 1 F DATA'!K93 -> 10 | G90: ='[1]Tabel 1 F DATA'!M93 -> 35
A91: ='[1]Tabel 1 F DATA'!G94 -> HD | C91: ='[1]Tabel 1 F DATA'!I94 -> 9 | E91: ='[1]Tabel 1 F DATA'!K94 -> 13 | G91: ='[1]Tabel 1 F DATA'!M94 -> 22
A92: ='[1]Tabel 1 F DATA'!G95 -> Komm. og Sprog | C92: ='[1]Tabel 1 F DATA'!I95 -> 3 | E92: ='[1]Tabel 1 F DATA'!K95 -> 31 | G92: ='[1]Tabel 1 F DATA'!M95 -> 34
A93: ='[1]Tabel 1 F DATA'!G96 -> Bygningskonst. | C93: ='[1]Tabel 1 F DATA'!I96 -> 66 | E93: ='[1]Tabel 1 F DATA'!K96 -> 10 | G93: ='[1]Tabel 1 F DATA'!M96 -> 76
A94: ='[1]Tabel 1 F DATA'!G97 -> Cand. IT. | C94: ='[1]Tabel 1 F DATA'!I97 -> 6 | E94: ='[1]Tabel 1 F DATA'!K97 -> 6 | G94: ='[1]Tabel 1 F DATA'!M97 -> 12
A95: ='[1]Tabel 1 F DATA'!G98 -> Bac. Samf. | C95: ='[1]Tabel 1 F DATA'!I98 -> 1 | E95: ='[1]Tabel 1 F DATA'!K98 -> 4 | G95: ='[1]Tabel 1 F DATA'!M98 -> 5
A96: ='[1]Tabel 1 F DATA'!G99 -> Bac. Hum. | C96: ='[1]Tabel 1 F DATA'!I99 -> 3 | E96: ='[1]Tabel 1 F DATA'!K99 -> 12 | G96: ='[1]Tabel 1 F DATA'!M99 -> 15
A97: ='[1]Tabel 1 F DATA'!G100 -> Bac. Nat. | C97: ='[1]Tabel 1 F DATA'!I100 -> 7 | E97: ='[1]Tabel 1 F DATA'!K100 -> 4 | G97: ='[1]Tabel 1 F DATA'!M100 -> 11
A98: ='[1]Tabel 1 F DATA'!G101 -> Andre | C98: ='[1]Tabel 1 F DATA'!I101 -> 48 | E98: ='[1]Tabel 1 F DATA'!K101 -> 34 | G98: ='[1]Tabel 1 F DATA'!M101 -> 82
A100: ='[1]Tabel 1 F DATA'!G103 -> Total | C100: ='[1]Tabel 1 F DATA'!I103 -> 871 | E100: ='[1]Tabel 1 F DATA'!K103 -> 823 | G100: ='[1]Tabel 1 F DATA'!M103 -> 1694
A102: ='[1]Tabel 1 F DATA'!G105 -> Ingeniører i alt | C102: ='[1]Tabel 1 F DATA'!I105 -> 322 | E102: ='[1]Tabel 1 F DATA'!K105 -> 83 | G102: ='[1]Tabel 1 F DATA'!M105 -> 405
A103: ='[1]Tabel 1 F DATA'!G106 -> Magistre i alt | C103: ='[1]Tabel 1 F DATA'!I106 -> 99 | E103: ='[1]Tabel 1 F DATA'!K106 -> 191 | G103: ='[1]Tabel 1 F DATA'!M106 -> 290
A104: ='[1]Tabel 1 F DATA'!G107 -> DJØF'ere i alt | C104: ='[1]Tabel 1 F DATA'!I107 -> 180 | E104: ='[1]Tabel 1 F DATA'!K107 -> 191 | G104: ='[1]Tabel 1 F DATA'!M107 -> 371
A111: ='[1]Tabel 1 F DATA'!G115 -> Assens
C113: ='[1]Tabel 1 F DATA'!I117 -> Mænd | E113: ='[1]Tabel 1 F DATA'!K117 -> Kvinder | G113: ='[1]Tabel 1 F DATA'!M117 -> I alt
A115: ='[1]Tabel 1 F DATA'!G119 -> Civ. ing. | C115: ='[1]Tabel 1 F DATA'!I119 -> 59 | E115: ='[1]Tabel 1 F DATA'!K119 -> 15 | G115: ='[1]Tabel 1 F DATA'!M119 -> 74
A116: ='[1]Tabel 1 F DATA'!G120 -> Diplom ing. | C116: ='[1]Tabel 1 F DATA'!I120 -> 199 | E116: ='[1]Tabel 1 F DATA'!K120 -> 47 | G116: ='[1]Tabel 1 F DATA'!M120 -> 246
A117: ='[1]Tabel 1 F DATA'!G121 -> Cand. Scient. Tek. | C117: ='[1]Tabel 1 F DATA'!I121 -> 22 | E117: ='[1]Tabel 1 F DATA'!K121 -> 20 | G117: ='[1]Tabel 1 F DATA'!M121 -> 42
A118: ='[1]Tabel 1 F DATA'!G122 -> MA. Hum. | C118: ='[1]Tabel 1 F DATA'!I122 -> 43 | E118: ='[1]Tabel 1 F DATA'!K122 -> 116 | G118: ='[1]Tabel 1 F DATA'!M122 -> 159
A119: ='[1]Tabel 1 F DATA'!G123 -> MA. Nat. | C119: ='[1]Tabel 1 F DATA'!I123 -> 31 | E119: ='[1]Tabel 1 F DATA'!K123 -> 28 | G119: ='[1]Tabel 1 F DATA'!M123 -> 59
A120: ='[1]Tabel 1 F DATA'!G124 -> MA. Ph.d. | C120: ='[1]Tabel 1 F DATA'!I124 -> 2 | E120: ='[1]Tabel 1 F DATA'!K124 -> 2 | G120: ='[1]Tabel 1 F DATA'!M124 -> 4
A121: ='[1]Tabel 1 F DATA'!G125 -> MA. Samf. | C121: ='[1]Tabel 1 F DATA'!I125 -> 1 | E121: ='[1]Tabel 1 F DATA'!K125 -> 4 | G121: ='[1]Tabel 1 F DATA'!M125 -> 5
A122: ='[1]Tabel 1 F DATA'!G126 -> Øvrige Mag. | C122: ='[1]Tabel 1 F DATA'!I126 -> 2 | E122: ='[1]Tabel 1 F DATA'!K126 -> 2 | G122: ='[1]Tabel 1 F DATA'!M126 -> 4
A123: ='[1]Tabel 1 F DATA'!G127 -> Agronom | C123: ='[1]Tabel 1 F DATA'!I127 -> 8 | E123: ='[1]Tabel 1 F DATA'!K127 -> 9 | G123: ='[1]Tabel 1 F DATA'!M127 -> 17
A124: ='[1]Tabel 1 F DATA'!G128 -> Landsk. Arkt. | C124: ='[1]Tabel 1 F DATA'!I128 -> 1 | E124: ='[1]Tabel 1 F DATA'!K128 -> 6 | G124: ='[1]Tabel 1 F DATA'!M128 -> 7
A125: ='[1]Tabel 1 F DATA'!G129 -> Hortonom | C125: ='[1]Tabel 1 F DATA'!I129 -> 1 | E125: ='[1]Tabel 1 F DATA'!K129 -> 2 | G125: ='[1]Tabel 1 F DATA'!M129 -> 3
A126: ='[1]Tabel 1 F DATA'!G130 -> Forstkand. | C126: ='[1]Tabel 1 F DATA'!I130 -> 4 | E126: ='[1]Tabel 1 F DATA'!K130 -> 2 | G126: ='[1]Tabel 1 F DATA'!M130 -> 6
A127: ='[1]Tabel 1 F DATA'!G131 -> Jordbrugsakad. | C127: ='[1]Tabel 1 F DATA'!I131 -> 14 | E127: ='[1]Tabel 1 F DATA'!K131 -> 19 | G127: ='[1]Tabel 1 F DATA'!M131 -> 33
A128: ='[1]Tabel 1 F DATA'!G132 -> Mejeriing. | C128: ='[1]Tabel 1 F DATA'!I132 -> 1 | E128: ='[1]Tabel 1 F DATA'!K132 -> 0 | G128: ='[1]Tabel 1 F DATA'!M132 -> 1
A129: ='[1]Tabel 1 F DATA'!G133 -> Levn.m.kand. | C129: ='[1]Tabel 1 F DATA'!I133 -> 0 | E129: ='[1]Tabel 1 F DATA'!K133 -> 2 | G129: ='[1]Tabel 1 F DATA'!M133 -> 2
A130: ='[1]Tabel 1 F DATA'!G134 -> Dyrlæge | C130: ='[1]Tabel 1 F DATA'!I134 -> 3 | E130: ='[1]Tabel 1 F DATA'!K134 -> 15 | G130: ='[1]Tabel 1 F DATA'!M134 -> 18
A131: ='[1]Tabel 1 F DATA'!G135 -> Farmaceut | C131: ='[1]Tabel 1 F DATA'!I135 -> 0 | E131: ='[1]Tabel 1 F DATA'!K135 -> 13 | G131: ='[1]Tabel 1 F DATA'!M135 -> 13
A132: ='[1]Tabel 1 F DATA'!G136 -> Læge | C132: ='[1]Tabel 1 F DATA'!I136 -> 9 | E132: ='[1]Tabel 1 F DATA'!K136 -> 28 | G132: ='[1]Tabel 1 F DATA'!M136 -> 37
A133: ='[1]Tabel 1 F DATA'!G137 -> Tandlæge | C133: ='[1]Tabel 1 F DATA'!I137 -> 2 | E133: ='[1]Tabel 1 F DATA'!K137 -> 3 | G133: ='[1]Tabel 1 F DATA'!M137 -> 5
A134: ='[1]Tabel 1 F DATA'!G138 -> Arkitekt | C134: ='[1]Tabel 1 F DATA'!I138 -> 1 | E134: ='[1]Tabel 1 F DATA'!K138 -> 3 | G134: ='[1]Tabel 1 F DATA'!M138 -> 4
A135: ='[1]Tabel 1 F DATA'!G139 -> Landinspek. | C135: ='[1]Tabel 1 F DATA'!I139 -> 2 | E135: ='[1]Tabel 1 F DATA'!K139 -> 1 | G135: ='[1]Tabel 1 F DATA'!M139 -> 3
A136: ='[1]Tabel 1 F DATA'!G140 -> Bibliotekar | C136: ='[1]Tabel 1 F DATA'!I140 -> 5 | E136: ='[1]Tabel 1 F DATA'!K140 -> 11 | G136: ='[1]Tabel 1 F DATA'!M140 -> 16
A137: ='[1]Tabel 1 F DATA'!G141 -> Musikudd. | C137: ='[1]Tabel 1 F DATA'!I141 -> 3 | E137: ='[1]Tabel 1 F DATA'!K141 -> 8 | G137: ='[1]Tabel 1 F DATA'!M141 -> 11
A138: ='[1]Tabel 1 F DATA'!G142 -> Teolog | C138: ='[1]Tabel 1 F DATA'!I142 -> 4 | E138: ='[1]Tabel 1 F DATA'!K142 -> 8 | G138: ='[1]Tabel 1 F DATA'!M142 -> 12
A139: ='[1]Tabel 1 F DATA'!G143 -> Psykolog | C139: ='[1]Tabel 1 F DATA'!I143 -> 5 | E139: ='[1]Tabel 1 F DATA'!K143 -> 20 | G139: ='[1]Tabel 1 F DATA'!M143 -> 25
A140: ='[1]Tabel 1 F DATA'!G144 -> Jurist | C140: ='[1]Tabel 1 F DATA'!I144 -> 9 | E140: ='[1]Tabel 1 F DATA'!K144 -> 17 | G140: ='[1]Tabel 1 F DATA'!M144 -> 26
A141: ='[1]Tabel 1 F DATA'!G145 -> Økonom | C141: ='[1]Tabel 1 F DATA'!I145 -> 9 | E141: ='[1]Tabel 1 F DATA'!K145 -> 12 | G141: ='[1]Tabel 1 F DATA'!M145 -> 21
A142: ='[1]Tabel 1 F DATA'!G146 -> Samf. Adm. | C142: ='[1]Tabel 1 F DATA'!I146 -> 15 | E142: ='[1]Tabel 1 F DATA'!K146 -> 42 | G142: ='[1]Tabel 1 F DATA'!M146 -> 57
A143: ='[1]Tabel 1 F DATA'!G147 -> Cand. Merc. | C143: ='[1]Tabel 1 F DATA'!I147 -> 32 | E143: ='[1]Tabel 1 F DATA'!K147 -> 29 | G143: ='[1]Tabel 1 F DATA'!M147 -> 61
A144: ='[1]Tabel 1 F DATA'!G148 -> HA | C144: ='[1]Tabel 1 F DATA'!I148 -> 9 | E144: ='[1]Tabel 1 F DATA'!K148 -> 12 | G144: ='[1]Tabel 1 F DATA'!M148 -> 21
A145: ='[1]Tabel 1 F DATA'!G149 -> HD | C145: ='[1]Tabel 1 F DATA'!I149 -> 10 | E145: ='[1]Tabel 1 F DATA'!K149 -> 9 | G145: ='[1]Tabel 1 F DATA'!M149 -> 19
A146: ='[1]Tabel 1 F DATA'!G150 -> Komm. og Sprog | C146: ='[1]Tabel 1 F DATA'!I150 -> 2 | E146: ='[1]Tabel 1 F DATA'!K150 -> 19 | G146: ='[1]Tabel 1 F DATA'!M150 -> 21
A147: ='[1]Tabel 1 F DATA'!G151 -> Bygningskonst. | C147: ='[1]Tabel 1 F DATA'!I151 -> 52 | E147: ='[1]Tabel 1 F DATA'!K151 -> 6 | G147: ='[1]Tabel 1 F DATA'!M151 -> 58
A148: ='[1]Tabel 1 F DATA'!G152 -> Cand. IT. | C148: ='[1]Tabel 1 F DATA'!I152 -> 5 | E148: ='[1]Tabel 1 F DATA'!K152 -> 2 | G148: ='[1]Tabel 1 F DATA'!M152 -> 7
A149: ='[1]Tabel 1 F DATA'!G153 -> Bac. Samf. | C149: ='[1]Tabel 1 F DATA'!I153 -> 0 | E149: ='[1]Tabel 1 F DATA'!K153 -> 3 | G149: ='[1]Tabel 1 F DATA'!M153 -> 3
A150: ='[1]Tabel 1 F DATA'!G154 -> Bac. Hum. | C150: ='[1]Tabel 1 F DATA'!I154 -> 5 | E150: ='[1]Tabel 1 F DATA'!K154 -> 10 | G150: ='[1]Tabel 1 F DATA'!M154 -> 15
A151: ='[1]Tabel 1 F DATA'!G155 -> Bac. Nat. | C151: ='[1]Tabel 1 F DATA'!I155 -> 5 | E151: ='[1]Tabel 1 F DATA'!K155 -> 2 | G151: ='[1]Tabel 1 F DATA'!M155 -> 7
A152: ='[1]Tabel 1 F DATA'!G156 -> Andre | C152: ='[1]Tabel 1 F DATA'!I156 -> 52 | E152: ='[1]Tabel 1 F DATA'!K156 -> 22 | G152: ='[1]Tabel 1 F DATA'!M156 -> 74
A154: ='[1]Tabel 1 F DATA'!G158 -> Total | C154: ='[1]Tabel 1 F DATA'!I158 -> 613 | E154: ='[1]Tabel 1 F DATA'!K158 -> 550 | G154: ='[1]Tabel 1 F DATA'!M158 -> 1163
A156: ='[1]Tabel 1 F DATA'!G160 -> Ingeniører i alt | C156: ='[1]Tabel 1 F DATA'!I160 -> 258 | E156: ='[1]Tabel 1 F DATA'!K160 -> 62 | G156: ='[1]Tabel 1 F DATA'!M160 -> 320
A157: ='[1]Tabel 1 F DATA'!G161 -> Magistre i alt | C157: ='[1]Tabel 1 F DATA'!I161 -> 79 | E157: ='[1]Tabel 1 F DATA'!K161 -> 152 | G157: ='[1]Tabel 1 F DATA'!M161 -> 231
A158: ='[1]Tabel 1 F DATA'!G162 -> DJØF'ere i alt | C158: ='[1]Tabel 1 F DATA'!I162 -> 74 | E158: ='[1]Tabel 1 F DATA'!K162 -> 112 | G158: ='[1]Tabel 1 F DATA'!M162 -> 186
A165: ='[1]Tabel 1 F DATA'!G170 -> Faarborg-Midtfyn
C167: ='[1]Tabel 1 F DATA'!I172 -> Mænd | E167: ='[1]Tabel 1 F DATA'!K172 -> Kvinder | G167: ='[1]Tabel 1 F DATA'!M172 -> I alt
A169: ='[1]Tabel 1 F DATA'!G174 -> Civ. ing. | C169: ='[1]Tabel 1 F DATA'!I174 -> 72 | E169: ='[1]Tabel 1 F DATA'!K174 -> 14 | G169: ='[1]Tabel 1 F DATA'!M174 -> 86
A170: ='[1]Tabel 1 F DATA'!G175 -> Diplom ing. | C170: ='[1]Tabel 1 F DATA'!I175 -> 238 | E170: ='[1]Tabel 1 F DATA'!K175 -> 44 | G170: ='[1]Tabel 1 F DATA'!M175 -> 282
A171: ='[1]Tabel 1 F DATA'!G176 -> Cand. Scient. Tek. | C171: ='[1]Tabel 1 F DATA'!I176 -> 29 | E171: ='[1]Tabel 1 F DATA'!K176 -> 39 | G171: ='[1]Tabel 1 F DATA'!M176 -> 68
A172: ='[1]Tabel 1 F DATA'!G177 -> MA. Hum. | C172: ='[1]Tabel 1 F DATA'!I177 -> 64 | E172: ='[1]Tabel 1 F DATA'!K177 -> 123 | G172: ='[1]Tabel 1 F DATA'!M177 -> 187
A173: ='[1]Tabel 1 F DATA'!G178 -> MA. Nat. | C173: ='[1]Tabel 1 F DATA'!I178 -> 36 | E173: ='[1]Tabel 1 F DATA'!K178 -> 42 | G173: ='[1]Tabel 1 F DATA'!M178 -> 78
A174: ='[1]Tabel 1 F DATA'!G179 -> MA. Ph.d. | C174: ='[1]Tabel 1 F DATA'!I179 -> 5 | E174: ='[1]Tabel 1 F DATA'!K179 -> 3 | G174: ='[1]Tabel 1 F DATA'!M179 -> 8
A175: ='[1]Tabel 1 F DATA'!G180 -> MA. Samf. | C175: ='[1]Tabel 1 F DATA'!I180 -> 3 | E175: ='[1]Tabel 1 F DATA'!K180 -> 4 | G175: ='[1]Tabel 1 F DATA'!M180 -> 7
A176: ='[1]Tabel 1 F DATA'!G181 -> Øvrige Mag. | C176: ='[1]Tabel 1 F DATA'!I181 -> 7 | E176: ='[1]Tabel 1 F DATA'!K181 -> 9 | G176: ='[1]Tabel 1 F DATA'!M181 -> 16
A177: ='[1]Tabel 1 F DATA'!G182 -> Agronom | C177: ='[1]Tabel 1 F DATA'!I182 -> 10 | E177: ='[1]Tabel 1 F DATA'!K182 -> 14 | G177: ='[1]Tabel 1 F DATA'!M182 -> 24
A178: ='[1]Tabel 1 F DATA'!G183 -> Landsk. Arkt. | C178: ='[1]Tabel 1 F DATA'!I183 -> 1 | E178: ='[1]Tabel 1 F DATA'!K183 -> 5 | G178: ='[1]Tabel 1 F DATA'!M183 -> 6
A179: ='[1]Tabel 1 F DATA'!G184 -> Hortonom | C179: ='[1]Tabel 1 F DATA'!I184 -> 2 | E179: ='[1]Tabel 1 F DATA'!K184 -> 1 | G179: ='[1]Tabel 1 F DATA'!M184 -> 3
A180: ='[1]Tabel 1 F DATA'!G185 -> Forstkand. | C180: ='[1]Tabel 1 F DATA'!I185 -> 5 | E180: ='[1]Tabel 1 F DATA'!K185 -> 1 | G180: ='[1]Tabel 1 F DATA'!M185 -> 6
A181: ='[1]Tabel 1 F DATA'!G186 -> Jordbrugsakad. | C181: ='[1]Tabel 1 F DATA'!I186 -> 18 | E181: ='[1]Tabel 1 F DATA'!K186 -> 21 | G181: ='[1]Tabel 1 F DATA'!M186 -> 39
A182: ='[1]Tabel 1 F DATA'!G187 -> Mejeriing. | C182: ='[1]Tabel 1 F DATA'!I187 -> 1 | E182: ='[1]Tabel 1 F DATA'!K187 -> 2 | G182: ='[1]Tabel 1 F DATA'!M187 -> 3
A183: ='[1]Tabel 1 F DATA'!G188 -> Levn.m.kand. | C183: ='[1]Tabel 1 F DATA'!I188 -> 0 | E183: ='[1]Tabel 1 F DATA'!K188 -> 4 | G183: ='[1]Tabel 1 F DATA'!M188 -> 4
A184: ='[1]Tabel 1 F DATA'!G189 -> Dyrlæge | C184: ='[1]Tabel 1 F DATA'!I189 -> 0 | E184: ='[1]Tabel 1 F DATA'!K189 -> 16 | G184: ='[1]Tabel 1 F DATA'!M189 -> 16
A185: ='[1]Tabel 1 F DATA'!G190 -> Farmaceut | C185: ='[1]Tabel 1 F DATA'!I190 -> 1 | E185: ='[1]Tabel 1 F DATA'!K190 -> 17 | G185: ='[1]Tabel 1 F DATA'!M190 -> 18
A186: ='[1]Tabel 1 F DATA'!G191 -> Læge | C186: ='[1]Tabel 1 F DATA'!I191 -> 14 | E186: ='[1]Tabel 1 F DATA'!K191 -> 33 | G186: ='[1]Tabel 1 F DATA'!M191 -> 47
A187: ='[1]Tabel 1 F DATA'!G192 -> Tandlæge | C187: ='[1]Tabel 1 F DATA'!I192 -> 1 | E187: ='[1]Tabel 1 F DATA'!K192 -> 1 | G187: ='[1]Tabel 1 F DATA'!M192 -> 2
A188: ='[1]Tabel 1 F DATA'!G193 -> Arkitekt | C188: ='[1]Tabel 1 F DATA'!I193 -> 7 | E188: ='[1]Tabel 1 F DATA'!K193 -> 5 | G188: ='[1]Tabel 1 F DATA'!M193 -> 12
A189: ='[1]Tabel 1 F DATA'!G194 -> Landinspek. | C189: ='[1]Tabel 1 F DATA'!I194 -> 4 | E189: ='[1]Tabel 1 F DATA'!K194 -> 0 | G189: ='[1]Tabel 1 F DATA'!M194 -> 4
A190: ='[1]Tabel 1 F DATA'!G195 -> Bibliotekar | C190: ='[1]Tabel 1 F DATA'!I195 -> 1 | E190: ='[1]Tabel 1 F DATA'!K195 -> 11 | G190: ='[1]Tabel 1 F DATA'!M195 -> 12
A191: ='[1]Tabel 1 F DATA'!G196 -> Musikudd. | C191: ='[1]Tabel 1 F DATA'!I196 -> 4 | E191: ='[1]Tabel 1 F DATA'!K196 -> 4 | G191: ='[1]Tabel 1 F DATA'!M196 -> 8
A192: ='[1]Tabel 1 F DATA'!G197 -> Teolog | C192: ='[1]Tabel 1 F DATA'!I197 -> 5 | E192: ='[1]Tabel 1 F DATA'!K197 -> 10 | G192: ='[1]Tabel 1 F DATA'!M197 -> 15
A193: ='[1]Tabel 1 F DATA'!G198 -> Psykolog | C193: ='[1]Tabel 1 F DATA'!I198 -> 2 | E193: ='[1]Tabel 1 F DATA'!K198 -> 20 | G193: ='[1]Tabel 1 F DATA'!M198 -> 22
A194: ='[1]Tabel 1 F DATA'!G199 -> Jurist | C194: ='[1]Tabel 1 F DATA'!I199 -> 8 | E194: ='[1]Tabel 1 F DATA'!K199 -> 24 | G194: ='[1]Tabel 1 F DATA'!M199 -> 32
A195: ='[1]Tabel 1 F DATA'!G200 -> Økonom | C195: ='[1]Tabel 1 F DATA'!I200 -> 11 | E195: ='[1]Tabel 1 F DATA'!K200 -> 15 | G195: ='[1]Tabel 1 F DATA'!M200 -> 26
A196: ='[1]Tabel 1 F DATA'!G201 -> Samf. Adm. | C196: ='[1]Tabel 1 F DATA'!I201 -> 29 | E196: ='[1]Tabel 1 F DATA'!K201 -> 61 | G196: ='[1]Tabel 1 F DATA'!M201 -> 90
A197: ='[1]Tabel 1 F DATA'!G202 -> Cand. Merc. | C197: ='[1]Tabel 1 F DATA'!I202 -> 34 | E197: ='[1]Tabel 1 F DATA'!K202 -> 44 | G197: ='[1]Tabel 1 F DATA'!M202 -> 78
A198: ='[1]Tabel 1 F DATA'!G203 -> HA | C198: ='[1]Tabel 1 F DATA'!I203 -> 14 | E198: ='[1]Tabel 1 F DATA'!K203 -> 12 | G198: ='[1]Tabel 1 F DATA'!M203 -> 26
A199: ='[1]Tabel 1 F DATA'!G204 -> HD | C199: ='[1]Tabel 1 F DATA'!I204 -> 12 | E199: ='[1]Tabel 1 F DATA'!K204 -> 12 | G199: ='[1]Tabel 1 F DATA'!M204 -> 24
A200: ='[1]Tabel 1 F DATA'!G205 -> Komm. og Sprog | C200: ='[1]Tabel 1 F DATA'!I205 -> 4 | E200: ='[1]Tabel 1 F DATA'!K205 -> 12 | G200: ='[1]Tabel 1 F DATA'!M205 -> 16
A201: ='[1]Tabel 1 F DATA'!G206 -> Bygningskonst. | C201: ='[1]Tabel 1 F DATA'!I206 -> 61 | E201: ='[1]Tabel 1 F DATA'!K206 -> 8 | G201: ='[1]Tabel 1 F DATA'!M206 -> 69
A202: ='[1]Tabel 1 F DATA'!G207 -> Cand. IT. | C202: ='[1]Tabel 1 F DATA'!I207 -> 5 | E202: ='[1]Tabel 1 F DATA'!K207 -> 5 | G202: ='[1]Tabel 1 F DATA'!M207 -> 10
A203: ='[1]Tabel 1 F DATA'!G208 -> Bac. Samf. | C203: ='[1]Tabel 1 F DATA'!I208 -> 6 | E203: ='[1]Tabel 1 F DATA'!K208 -> 4 | G203: ='[1]Tabel 1 F DATA'!M208 -> 10
A204: ='[1]Tabel 1 F DATA'!G209 -> Bac. Hum. | C204: ='[1]Tabel 1 F DATA'!I209 -> 3 | E204: ='[1]Tabel 1 F DATA'!K209 -> 15 | G204: ='[1]Tabel 1 F DATA'!M209 -> 18
A205: ='[1]Tabel 1 F DATA'!G210 -> Bac. Nat. | C205: ='[1]Tabel 1 F DATA'!I210 -> 7 | E205: ='[1]Tabel 1 F DATA'!K210 -> 3 | G205: ='[1]Tabel 1 F DATA'!M210 -> 10
A206: ='[1]Tabel 1 F DATA'!G211 -> Andre | C206: ='[1]Tabel 1 F DATA'!I211 -> 57 | E206: ='[1]Tabel 1 F DATA'!K211 -> 39 | G206: ='[1]Tabel 1 F DATA'!M211 -> 96
A208: ='[1]Tabel 1 F DATA'!G213 -> Total | C208: ='[1]Tabel 1 F DATA'!I213 -> 763 | E208: ='[1]Tabel 1 F DATA'!K213 -> 676 | G208: ='[1]Tabel 1 F DATA'!M213 -> 1439
A210: ='[1]Tabel 1 F DATA'!G215 -> Ingeniører i alt | C210: ='[1]Tabel 1 F DATA'!I215 -> 310 | E210: ='[1]Tabel 1 F DATA'!K215 -> 58 | G210: ='[1]Tabel 1 F DATA'!M215 -> 368
A211: ='[1]Tabel 1 F DATA'!G216 -> Magistre i alt | C211: ='[1]Tabel 1 F DATA'!I216 -> 115 | E211: ='[1]Tabel 1 F DATA'!K216 -> 181 | G211: ='[1]Tabel 1 F DATA'!M216 -> 296
A212: ='[1]Tabel 1 F DATA'!G217 -> DJØF'ere i alt | C212: ='[1]Tabel 1 F DATA'!I217 -> 96 | E212: ='[1]Tabel 1 F DATA'!K217 -> 156 | G212: ='[1]Tabel 1 F DATA'!M217 -> 252
A219: ='[1]Tabel 1 F DATA'!G225 -> Kerteminde
C221: ='[1]Tabel 1 F DATA'!I227 -> Mænd | E221: ='[1]Tabel 1 F DATA'!K227 -> Kvinder | G221: ='[1]Tabel 1 F DATA'!M227 -> I alt
A223: ='[1]Tabel 1 F DATA'!G229 -> Civ. ing. | C223: ='[1]Tabel 1 F DATA'!I229 -> 21 | E223: ='[1]Tabel 1 F DATA'!K229 -> 10 | G223: ='[1]Tabel 1 F DATA'!M229 -> 31
A224: ='[1]Tabel 1 F DATA'!G230 -> Diplom ing. | C224: ='[1]Tabel 1 F DATA'!I230 -> 122 | E224: ='[1]Tabel 1 F DATA'!K230 -> 27 | G224: ='[1]Tabel 1 F DATA'!M230 -> 149
A225: ='[1]Tabel 1 F DATA'!G231 -> Cand. Scient. Tek. | C225: ='[1]Tabel 1 F DATA'!I231 -> 20 | E225: ='[1]Tabel 1 F DATA'!K231 -> 15 | G225: ='[1]Tabel 1 F DATA'!M231 -> 35
A226: ='[1]Tabel 1 F DATA'!G232 -> MA. Hum. | C226: ='[1]Tabel 1 F DATA'!I232 -> 25 | E226: ='[1]Tabel 1 F DATA'!K232 -> 72 | G226: ='[1]Tabel 1 F DATA'!M232 -> 97
A227: ='[1]Tabel 1 F DATA'!G233 -> MA. Nat. | C227: ='[1]Tabel 1 F DATA'!I233 -> 14 | E227: ='[1]Tabel 1 F DATA'!K233 -> 14 | G227: ='[1]Tabel 1 F DATA'!M233 -> 28
A228: ='[1]Tabel 1 F DATA'!G234 -> MA. Ph.d. | C228: ='[1]Tabel 1 F DATA'!I234 -> 4 | E228: ='[1]Tabel 1 F DATA'!K234 -> 3 | G228: ='[1]Tabel 1 F DATA'!M234 -> 7
A229: ='[1]Tabel 1 F DATA'!G235 -> MA. Samf. | C229: ='[1]Tabel 1 F DATA'!I235 -> 1 | E229: ='[1]Tabel 1 F DATA'!K235 -> 2 | G229: ='[1]Tabel 1 F DATA'!M235 -> 3
A230: ='[1]Tabel 1 F DATA'!G236 -> Øvrige Mag. | C230: ='[1]Tabel 1 F DATA'!I236 -> 2 | E230: ='[1]Tabel 1 F DATA'!K236 -> 6 | G230: ='[1]Tabel 1 F DATA'!M236 -> 8
A231: ='[1]Tabel 1 F DATA'!G237 -> Agronom | C231: ='[1]Tabel 1 F DATA'!I237 -> 1 | E231: ='[1]Tabel 1 F DATA'!K237 -> 2 | G231: ='[1]Tabel 1 F DATA'!M237 -> 3
A232: ='[1]Tabel 1 F DATA'!G238 -> Landsk. Arkt. | C232: ='[1]Tabel 1 F DATA'!I238 -> 1 | E232: ='[1]Tabel 1 F DATA'!K238 -> 1 | G232: ='[1]Tabel 1 F DATA'!M238 -> 2
A233: ='[1]Tabel 1 F DATA'!G239 -> Hortonom | C233: ='[1]Tabel 1 F DATA'!I239 -> 1 | E233: ='[1]Tabel 1 F DATA'!K239 -> 2 | G233: ='[1]Tabel 1 F DATA'!M239 -> 3
A234: ='[1]Tabel 1 F DATA'!G240 -> Forstkand. | C234: ='[1]Tabel 1 F DATA'!I240 -> 0 | E234: ='[1]Tabel 1 F DATA'!K240 -> 1 | G234: ='[1]Tabel 1 F DATA'!M240 -> 1
A235: ='[1]Tabel 1 F DATA'!G241 -> Jordbrugsakad. | C235: ='[1]Tabel 1 F DATA'!I241 -> 3 | E235: ='[1]Tabel 1 F DATA'!K241 -> 6 | G235: ='[1]Tabel 1 F DATA'!M241 -> 9
A236: ='[1]Tabel 1 F DATA'!G242 -> Mejeriing. | C236: ='[1]Tabel 1 F DATA'!I242 -> 0 | E236: ='[1]Tabel 1 F DATA'!K242 -> 0 | G236: ='[1]Tabel 1 F DATA'!M242 -> 0
A237: ='[1]Tabel 1 F DATA'!G243 -> Levn.m.kand. | C237: ='[1]Tabel 1 F DATA'!I243 -> 0 | E237: ='[1]Tabel 1 F DATA'!K243 -> 0 | G237: ='[1]Tabel 1 F DATA'!M243 -> 0
A238: ='[1]Tabel 1 F DATA'!G244 -> Dyrlæge | C238: ='[1]Tabel 1 F DATA'!I244 -> 0 | E238: ='[1]Tabel 1 F DATA'!K244 -> 2 | G238: ='[1]Tabel 1 F DATA'!M244 -> 2
A239: ='[1]Tabel 1 F DATA'!G245 -> Farmaceut | C239: ='[1]Tabel 1 F DATA'!I245 -> 1 | E239: ='[1]Tabel 1 F DATA'!K245 -> 4 | G239: ='[1]Tabel 1 F DATA'!M245 -> 5
A240: ='[1]Tabel 1 F DATA'!G246 -> Læge | C240: ='[1]Tabel 1 F DATA'!I246 -> 8 | E240: ='[1]Tabel 1 F DATA'!K246 -> 10 | G240: ='[1]Tabel 1 F DATA'!M246 -> 18
A241: ='[1]Tabel 1 F DATA'!G247 -> Tandlæge | C241: ='[1]Tabel 1 F DATA'!I247 -> 0 | E241: ='[1]Tabel 1 F DATA'!K247 -> 2 | G241: ='[1]Tabel 1 F DATA'!M247 -> 2
A242: ='[1]Tabel 1 F DATA'!G248 -> Arkitekt | C242: ='[1]Tabel 1 F DATA'!I248 -> 2 | E242: ='[1]Tabel 1 F DATA'!K248 -> 2 | G242: ='[1]Tabel 1 F DATA'!M248 -> 4
A243: ='[1]Tabel 1 F DATA'!G249 -> Landinspek. | C243: ='[1]Tabel 1 F DATA'!I249 -> 4 | E243: ='[1]Tabel 1 F DATA'!K249 -> 1 | G243: ='[1]Tabel 1 F DATA'!M249 -> 5
... 285 more rows

Sheet Tabel 2 F
A1: ='[1]Tabel 2 F DATA'!I1 -> Tabel 2. Antal bruttoledighedsberørte og gennemsnitlig antal ledige brutto
A3: ='[1]Tabel 2 F DATA'!I3 -> Fyn
C5: ='[1]Tabel 2 F DATA'!M5 -> Mænd | F5: ='[1]Tabel 2 F DATA'!P5 -> Kvinder | I5: ='[1]Tabel 2 F DATA'!S5 -> I alt
C6: ='[1]Tabel 2 F DATA'!M6 -> Ledigheds- berørte | D6: ='[1]Tabel 2 F DATA'!N6 -> Gns. brutto- ledighed | F6: ='[1]Tabel 2 F DATA'!P6 -> Ledigheds- berørte | G6: ='[1]Tabel 2 F DATA'!Q6 -> Gns. brutto- ledighed | I6: ='[1]Tabel 2 F DATA'!S6 -> Ledigheds- berørte | J6: ='[1]Tabel 2 F DATA'!T6 -> Gns. brutto- ledighed
A9: ='[1]Tabel 2 F DATA'!K9 -> Civ. ing. | C9: ='[1]Tabel 2 F DATA'!M9 -> 88 | D9: ='[1]Tabel 2 F DATA'!N9 -> 80.5875382 | F9: ='[1]Tabel 2 F DATA'!P9 -> 35 | G9: ='[1]Tabel 2 F DATA'!Q9 -> 30.14095927 | I9: ='[1]Tabel 2 F DATA'!S9 -> 123 | J9: ='[1]Tabel 2 F DATA'!T9 -> 110.7284975
A10: ='[1]Tabel 2 F DATA'!K10 -> Diplom ing. | C10: ='[1]Tabel 2 F DATA'!M10 -> 122 | D10: ='[1]Tabel 2 F DATA'!N10 -> 113.3050583 | F10: ='[1]Tabel 2 F DATA'!P10 -> 49 | G10: ='[1]Tabel 2 F DATA'!Q10 -> 41.47882492 | I10: ='[1]Tabel 2 F DATA'!S10 -> 171 | J10: ='[1]Tabel 2 F DATA'!T10 -> 154.7838832
A11: ='[1]Tabel 2 F DATA'!K11 -> Cand. Scient. Tek. | C11: ='[1]Tabel 2 F DATA'!M11 -> 81 | D11: ='[1]Tabel 2 F DATA'!N11 -> 72.13933762 | F11: ='[1]Tabel 2 F DATA'!P11 -> 71 | G11: ='[1]Tabel 2 F DATA'!Q11 -> 63.8320963 | I11: ='[1]Tabel 2 F DATA'!S11 -> 152 | J11: ='[1]Tabel 2 F DATA'!T11 -> 135.9714339
A12: ='[1]Tabel 2 F DATA'!K12 -> MA. Hum. | C12: ='[1]Tabel 2 F DATA'!M12 -> 143 | D12: ='[1]Tabel 2 F DATA'!N12 -> 128.4675357 | F12: ='[1]Tabel 2 F DATA'!P12 -> 309 | G12: ='[1]Tabel 2 F DATA'!Q12 -> 276.3699869 | I12: ='[1]Tabel 2 F DATA'!S12 -> 452 | J12: ='[1]Tabel 2 F DATA'!T12 -> 404.8375226
A13: ='[1]Tabel 2 F DATA'!K13 -> MA. Nat. | C13: ='[1]Tabel 2 F DATA'!M13 -> 38 | D13: ='[1]Tabel 2 F DATA'!N13 -> 34.78450695 | F13: ='[1]Tabel 2 F DATA'!P13 -> 35 | G13: ='[1]Tabel 2 F DATA'!Q13 -> 31.5100106 | I13: ='[1]Tabel 2 F DATA'!S13 -> 73 | J13: ='[1]Tabel 2 F DATA'!T13 -> 66.29451756
A14: ='[1]Tabel 2 F DATA'!K14 -> MA. Ph.d. | C14: ='[1]Tabel 2 F DATA'!M14 -> 3 | D14: ='[1]Tabel 2 F DATA'!N14 -> 2.899644483 | F14: ='[1]Tabel 2 F DATA'!P14 -> 6 | G14: ='[1]Tabel 2 F DATA'!Q14 -> 5.183059939 | I14: ='[1]Tabel 2 F DATA'!S14 -> 9 | J14: ='[1]Tabel 2 F DATA'!T14 -> 8.082704422
A15: ='[1]Tabel 2 F DATA'!K15 -> MA. Samf. | C15: ='[1]Tabel 2 F DATA'!M15 -> 8 | D15: ='[1]Tabel 2 F DATA'!N15 -> 7.566893283 | F15: ='[1]Tabel 2 F DATA'!P15 -> 19 | G15: ='[1]Tabel 2 F DATA'!Q15 -> 17.46772282 | I15: ='[1]Tabel 2 F DATA'!S15 -> 27 | J15: ='[1]Tabel 2 F DATA'!T15 -> 25.0346161
A16: ='[1]Tabel 2 F DATA'!K16 -> Øvrige Mag. | C16: ='[1]Tabel 2 F DATA'!M16 -> 6 | D16: ='[1]Tabel 2 F DATA'!N16 -> 5.06517807 | F16: ='[1]Tabel 2 F DATA'!P16 -> 19 | G16: ='[1]Tabel 2 F DATA'!Q16 -> 16.21904821 | I16: ='[1]Tabel 2 F DATA'!S16 -> 25 | J16: ='[1]Tabel 2 F DATA'!T16 -> 21.28422628
A17: ='[1]Tabel 2 F DATA'!K17 -> Agronom | C17: ='[1]Tabel 2 F DATA'!M17 -> 3 | D17: ='[1]Tabel 2 F DATA'!N17 -> 2.999438658 | F17: ='[1]Tabel 2 F DATA'!P17 -> 0 | G17: ='[1]Tabel 2 F DATA'!Q17 -> 0 | I17: ='[1]Tabel 2 F DATA'!S17 -> 3 | J17: ='[1]Tabel 2 F DATA'!T17 -> 2.999438658
A18: ='[1]Tabel 2 F DATA'!K18 -> Landsk. Arkt. | C18: ='[1]Tabel 2 F DATA'!M18 -> 0 | D18: ='[1]Tabel 2 F DATA'!N18 -> 0 | F18: ='[1]Tabel 2 F DATA'!P18 -> 0 | G18: ='[1]Tabel 2 F DATA'!Q18 -> 0 | I18: ='[1]Tabel 2 F DATA'!S18 -> 0 | J18: ='[1]Tabel 2 F DATA'!T18 -> 0
A19: ='[1]Tabel 2 F DATA'!K19 -> Hortonom | C19: ='[1]Tabel 2 F DATA'!M19 -> 1 | D19: ='[1]Tabel 2 F DATA'!N19 -> 0.3891972806 | F19: ='[1]Tabel 2 F DATA'!P19 -> 2 | G19: ='[1]Tabel 2 F DATA'!Q19 -> 1.999625772 | I19: ='[1]Tabel 2 F DATA'!S19 -> 3 | J19: ='[1]Tabel 2 F DATA'!T19 -> 2.388823052
A20: ='[1]Tabel 2 F DATA'!K20 -> Forstkand. | C20: ='[1]Tabel 2 F DATA'!M20 -> 3 | D20: ='[1]Tabel 2 F DATA'!N20 -> 2.986964386 | F20: ='[1]Tabel 2 F DATA'!P20 -> 2 | G20: ='[1]Tabel 2 F DATA'!Q20 -> 1.999625772 | I20: ='[1]Tabel 2 F DATA'!S20 -> 5 | J20: ='[1]Tabel 2 F DATA'!T20 -> 4.986590158
A21: ='[1]Tabel 2 F DATA'!K21 -> Jordbrugsakad. | C21: ='[1]Tabel 2 F DATA'!M21 -> 7 | D21: ='[1]Tabel 2 F DATA'!N21 -> 6.375600324 | F21: ='[1]Tabel 2 F DATA'!P21 -> 4 | G21: ='[1]Tabel 2 F DATA'!Q21 -> 3.999251544 | I21: ='[1]Tabel 2 F DATA'!S21 -> 11 | J21: ='[1]Tabel 2 F DATA'!T21 -> 10.37485187
A22: ='[1]Tabel 2 F DATA'!K22 -> Mejeriing. | C22: ='[1]Tabel 2 F DATA'!M22 -> 0 | D22: ='[1]Tabel 2 F DATA'!N22 -> 0 | F22: ='[1]Tabel 2 F DATA'!P22 -> 0 | G22: ='[1]Tabel 2 F DATA'!Q22 -> 0 | I22: ='[1]Tabel 2 F DATA'!S22 -> 0 | J22: ='[1]Tabel 2 F DATA'!T22 -> 0
A23: ='[1]Tabel 2 F DATA'!K23 -> Levn.m.kand. | C23: ='[1]Tabel 2 F DATA'!M23 -> 0 | D23: ='[1]Tabel 2 F DATA'!N23 -> 0 | F23: ='[1]Tabel 2 F DATA'!P23 -> 0 | G23: ='[1]Tabel 2 F DATA'!Q23 -> 0 | I23: ='[1]Tabel 2 F DATA'!S23 -> 0 | J23: ='[1]Tabel 2 F DATA'!T23 -> 0
A24: ='[1]Tabel 2 F DATA'!K24 -> Dyrlæge | C24: ='[1]Tabel 2 F DATA'!M24 -> 1 | D24: ='[1]Tabel 2 F DATA'!N24 -> 0.2900268197 | F24: ='[1]Tabel 2 F DATA'!P24 -> 5 | G24: ='[1]Tabel 2 F DATA'!Q24 -> 3.937503898 | I24: ='[1]Tabel 2 F DATA'!S24 -> 6 | J24: ='[1]Tabel 2 F DATA'!T24 -> 4.227530718
A25: ='[1]Tabel 2 F DATA'!K25 -> Farmaceut | C25: ='[1]Tabel 2 F DATA'!M25 -> 9 | D25: ='[1]Tabel 2 F DATA'!N25 -> 7.616166656 | F25: ='[1]Tabel 2 F DATA'!P25 -> 14 | G25: ='[1]Tabel 2 F DATA'!Q25 -> 12.77053577 | I25: ='[1]Tabel 2 F DATA'!S25 -> 23 | J25: ='[1]Tabel 2 F DATA'!T25 -> 20.38670243
A26: ='[1]Tabel 2 F DATA'!K26 -> Læge | C26: ='[1]Tabel 2 F DATA'!M26 -> 6 | D26: ='[1]Tabel 2 F DATA'!N26 -> 4.66038795 | F26: ='[1]Tabel 2 F DATA'!P26 -> 8 | G26: ='[1]Tabel 2 F DATA'!Q26 -> 5.551674671 | I26: ='[1]Tabel 2 F DATA'!S26 -> 14 | J26: ='[1]Tabel 2 F DATA'!T26 -> 10.21206262
A27: ='[1]Tabel 2 F DATA'!K27 -> Tandlæge | C27: ='[1]Tabel 2 F DATA'!M27 -> 0 | D27: ='[1]Tabel 2 F DATA'!N27 -> 0 | F27: ='[1]Tabel 2 F DATA'!P27 -> 0 | G27: ='[1]Tabel 2 F DATA'!Q27 -> 0 | I27: ='[1]Tabel 2 F DATA'!S27 -> 0 | J27: ='[1]Tabel 2 F DATA'!T27 -> 0
A28: ='[1]Tabel 2 F DATA'!K28 -> Arkitekt | C28: ='[1]Tabel 2 F DATA'!M28 -> 4 | D28: ='[1]Tabel 2 F DATA'!N28 -> 3.999251544 | F28: ='[1]Tabel 2 F DATA'!P28 -> 3 | G28: ='[1]Tabel 2 F DATA'!Q28 -> 2.755566644 | I28: ='[1]Tabel 2 F DATA'!S28 -> 7 | J28: ='[1]Tabel 2 F DATA'!T28 -> 6.754818187
A29: ='[1]Tabel 2 F DATA'!K29 -> Landinspek. | C29: ='[1]Tabel 2 F DATA'!M29 -> 0 | D29: ='[1]Tabel 2 F DATA'!N29 -> 0 | F29: ='[1]Tabel 2 F DATA'!P29 -> 0 | G29: ='[1]Tabel 2 F DATA'!Q29 -> 0 | I29: ='[1]Tabel 2 F DATA'!S29 -> 0 | J29: ='[1]Tabel 2 F DATA'!T29 -> 0
A30: ='[1]Tabel 2 F DATA'!K30 -> Bibliotekar | C30: ='[1]Tabel 2 F DATA'!M30 -> 6 | D30: ='[1]Tabel 2 F DATA'!N30 -> 5.593463482 | F30: ='[1]Tabel 2 F DATA'!P30 -> 5 | G30: ='[1]Tabel 2 F DATA'!Q30 -> 4.99906443 | I30: ='[1]Tabel 2 F DATA'!S30 -> 11 | J30: ='[1]Tabel 2 F DATA'!T30 -> 10.59252791
A31: ='[1]Tabel 2 F DATA'!K31 -> Musikudd. | C31: ='[1]Tabel 2 F DATA'!M31 -> 2 | D31: ='[1]Tabel 2 F DATA'!N31 -> 1.342855361 | F31: ='[1]Tabel 2 F DATA'!P31 -> 2 | G31: ='[1]Tabel 2 F DATA'!Q31 -> 1.246803468 | I31: ='[1]Tabel 2 F DATA'!S31 -> 4 | J31: ='[1]Tabel 2 F DATA'!T31 -> 2.589658829
A32: ='[1]Tabel 2 F DATA'!K32 -> Teolog | C32: ='[1]Tabel 2 F DATA'!M32 -> 1 | D32: ='[1]Tabel 2 F DATA'!N32 -> 0.9998128859 | F32: ='[1]Tabel 2 F DATA'!P32 -> 1 | G32: ='[1]Tabel 2 F DATA'!Q32 -> 0.9998128859 | I32: ='[1]Tabel 2 F DATA'!S32 -> 2 | J32: ='[1]Tabel 2 F DATA'!T32 -> 1.999625772
A33: ='[1]Tabel 2 F DATA'!K33 -> Psykolog | C33: ='[1]Tabel 2 F DATA'!M33 -> 8 | D33: ='[1]Tabel 2 F DATA'!N33 -> 6.511569887 | F33: ='[1]Tabel 2 F DATA'!P33 -> 20 | G33: ='[1]Tabel 2 F DATA'!Q33 -> 17.18330942 | I33: ='[1]Tabel 2 F DATA'!S33 -> 28 | J33: ='[1]Tabel 2 F DATA'!T33 -> 23.69487931
A34: ='[1]Tabel 2 F DATA'!K34 -> Jurist | C34: ='[1]Tabel 2 F DATA'!M34 -> 9 | D34: ='[1]Tabel 2 F DATA'!N34 -> 7.050458429 | F34: ='[1]Tabel 2 F DATA'!P34 -> 9 | G34: ='[1]Tabel 2 F DATA'!Q34 -> 7.576248986 | I34: ='[1]Tabel 2 F DATA'!S34 -> 18 | J34: ='[1]Tabel 2 F DATA'!T34 -> 14.62670742
A35: ='[1]Tabel 2 F DATA'!K35 -> Økonom | C35: ='[1]Tabel 2 F DATA'!M35 -> 10 | D35: ='[1]Tabel 2 F DATA'!N35 -> 9.167342356 | F35: ='[1]Tabel 2 F DATA'!P35 -> 5 | G35: ='[1]Tabel 2 F DATA'!Q35 -> 4.230649286 | I35: ='[1]Tabel 2 F DATA'!S35 -> 15 | J35: ='[1]Tabel 2 F DATA'!T35 -> 13.39799164
A36: ='[1]Tabel 2 F DATA'!K36 -> Samf. Adm. | C36: ='[1]Tabel 2 F DATA'!M36 -> 44 | D36: ='[1]Tabel 2 F DATA'!N36 -> 41.83496538 | F36: ='[1]Tabel 2 F DATA'!P36 -> 98 | G36: ='[1]Tabel 2 F DATA'!Q36 -> 90.32370735 | I36: ='[1]Tabel 2 F DATA'!S36 -> 142 | J36: ='[1]Tabel 2 F DATA'!T36 -> 132.1586727
A37: ='[1]Tabel 2 F DATA'!K37 -> Cand. Merc. | C37: ='[1]Tabel 2 F DATA'!M37 -> 65 | D37: ='[1]Tabel 2 F DATA'!N37 -> 57.73092996 | F37: ='[1]Tabel 2 F DATA'!P37 -> 71 | G37: ='[1]Tabel 2 F DATA'!Q37 -> 61.70959895 | I37: ='[1]Tabel 2 F DATA'!S37 -> 136 | J37: ='[1]Tabel 2 F DATA'!T37 -> 119.4405289
A38: ='[1]Tabel 2 F DATA'!K38 -> HA | C38: ='[1]Tabel 2 F DATA'!M38 -> 27 | D38: ='[1]Tabel 2 F DATA'!N38 -> 21.78818686 | F38: ='[1]Tabel 2 F DATA'!P38 -> 26 | G38: ='[1]Tabel 2 F DATA'!Q38 -> 22.71190669 | I38: ='[1]Tabel 2 F DATA'!S38 -> 53 | J38: ='[1]Tabel 2 F DATA'!T38 -> 44.50009356
A39: ='[1]Tabel 2 F DATA'!K39 -> HD | C39: ='[1]Tabel 2 F DATA'!M39 -> 9 | D39: ='[1]Tabel 2 F DATA'!N39 -> 8.42449947 | F39: ='[1]Tabel 2 F DATA'!P39 -> 11 | G39: ='[1]Tabel 2 F DATA'!Q39 -> 10.56258966 | I39: ='[1]Tabel 2 F DATA'!S39 -> 20 | J39: ='[1]Tabel 2 F DATA'!T39 -> 18.98708913
A40: ='[1]Tabel 2 F DATA'!K40 -> Komm. og Sprog | C40: ='[1]Tabel 2 F DATA'!M40 -> 10 | D40: ='[1]Tabel 2 F DATA'!N40 -> 8.824923595 | F40: ='[1]Tabel 2 F DATA'!P40 -> 42 | G40: ='[1]Tabel 2 F DATA'!Q40 -> 39.33886359 | I40: ='[1]Tabel 2 F DATA'!S40 -> 52 | J40: ='[1]Tabel 2 F DATA'!T40 -> 48.16378719
A41: ='[1]Tabel 2 F DATA'!K41 -> Bygningskonst. | C41: ='[1]Tabel 2 F DATA'!M41 -> 51 | D41: ='[1]Tabel 2 F DATA'!N41 -> 44.26651282 | F41: ='[1]Tabel 2 F DATA'!P41 -> 13 | G41: ='[1]Tabel 2 F DATA'!Q41 -> 12.12243498 | I41: ='[1]Tabel 2 F DATA'!S41 -> 64 | J41: ='[1]Tabel 2 F DATA'!T41 -> 56.3889478
A42: ='[1]Tabel 2 F DATA'!K42 -> Cand. IT. | C42: ='[1]Tabel 2 F DATA'!M42 -> 13 | D42: ='[1]Tabel 2 F DATA'!N42 -> 12.0239506 | F42: ='[1]Tabel 2 F DATA'!P42 -> 18 | G42: ='[1]Tabel 2 F DATA'!Q42 -> 15.79305183 | I42: ='[1]Tabel 2 F DATA'!S42 -> 31 | J42: ='[1]Tabel 2 F DATA'!T42 -> 27.81700243
A43: ='[1]Tabel 2 F DATA'!K43 -> Bac. Samf. | C43: ='[1]Tabel 2 F DATA'!M43 -> 4 | D43: ='[1]Tabel 2 F DATA'!N43 -> 3.122933949 | F43: ='[1]Tabel 2 F DATA'!P43 -> 6 | G43: ='[1]Tabel 2 F DATA'!Q43 -> 4.891785692 | I43: ='[1]Tabel 2 F DATA'!S43 -> 10 | J43: ='[1]Tabel 2 F DATA'!T43 -> 8.014719641
A44: ='[1]Tabel 2 F DATA'!K44 -> Bac. Hum. | C44: ='[1]Tabel 2 F DATA'!M44 -> 26 | D44: ='[1]Tabel 2 F DATA'!N44 -> 23.06305744 | F44: ='[1]Tabel 2 F DATA'!P44 -> 46 | G44: ='[1]Tabel 2 F DATA'!Q44 -> 38.32096301 | I44: ='[1]Tabel 2 F DATA'!S44 -> 72 | J44: ='[1]Tabel 2 F DATA'!T44 -> 61.38402046
A45: ='[1]Tabel 2 F DATA'!K45 -> Bac. Nat. | C45: ='[1]Tabel 2 F DATA'!M45 -> 41 | D45: ='[1]Tabel 2 F DATA'!N45 -> 35.1581114 | F45: ='[1]Tabel 2 F DATA'!P45 -> 19 | G45: ='[1]Tabel 2 F DATA'!Q45 -> 15.9383771 | I45: ='[1]Tabel 2 F DATA'!S45 -> 60 | J45: ='[1]Tabel 2 F DATA'!T45 -> 51.09648849
A46: ='[1]Tabel 2 F DATA'!K47 -> Andre | C46: ='[1]Tabel 2 F DATA'!M47 -> 54 | D46: ='[1]Tabel 2 F DATA'!N47 -> 44.61298572 | F46: ='[1]Tabel 2 F DATA'!P47 -> 68 | G46: ='[1]Tabel 2 F DATA'!Q47 -> 57.77708476 | I46: ='[1]Tabel 2 F DATA'!S47 -> 122 | J46: ='[1]Tabel 2 F DATA'!T47 -> 102.3900705
A48: ='[1]Tabel 2 F DATA'!K49 -> Total | C48: =SUM(C9:C46)-C21 -> 896 | D48: 799.2736855 | E48: 0 | F48: 1037 | G48: 916.9424936 | H48: 0 | I48: 1933 | J48: =SUM(J9:J46)-J21 -> 1716.216179
A50: ='[1]Tabel 2 F DATA'!K51 -> Ingeniører i alt | C50: ='[1]Tabel 2 F DATA'!M51 -> 210 | D50: ='[1]Tabel 2 F DATA'!N51 -> 193.8925965 | F50: ='[1]Tabel 2 F DATA'!P51 -> 84 | G50: ='[1]Tabel 2 F DATA'!Q51 -> 71.6197842 | I50: ='[1]Tabel 2 F DATA'!S51 -> 294 | J50: ='[1]Tabel 2 F DATA'!T51 -> 265.5123807
A51: ='[1]Tabel 2 F DATA'!K52 -> Magistre i alt | C51: ='[1]Tabel 2 F DATA'!M52 -> 198 | D51: ='[1]Tabel 2 F DATA'!N52 -> 178.7837585 | F51: ='[1]Tabel 2 F DATA'!P52 -> 388 | G51: ='[1]Tabel 2 F DATA'!Q52 -> 346.7498285 | I51: ='[1]Tabel 2 F DATA'!S52 -> 586 | J51: ='[1]Tabel 2 F DATA'!T52 -> 525.533587
A52: ='[1]Tabel 2 F DATA'!K53 -> DJØF'ere i alt | C52: ='[1]Tabel 2 F DATA'!M53 -> 155 | D52: ='[1]Tabel 2 F DATA'!N53 -> 137.571883 | F52: ='[1]Tabel 2 F DATA'!P53 -> 209 | G52: ='[1]Tabel 2 F DATA'!Q53 -> 186.5521113 | I52: ='[1]Tabel 2 F DATA'!S53 -> 364 | J52: ='[1]Tabel 2 F DATA'!T53 -> 324.1239943
A57: Middelfart
C59: ='[1]Tabel 2 F DATA'!M56 -> Mænd | F59: ='[1]Tabel 2 F DATA'!P56 -> Kvinder | I59: ='[1]Tabel 2 F DATA'!S56 -> I alt
C60: ='[1]Tabel 2 F DATA'!M57 -> Ledigheds- berørte | D60: ='[1]Tabel 2 F DATA'!N57 -> Gns. brutto- ledighed | F60: ='[1]Tabel 2 F DATA'!P57 -> Ledigheds- berørte | G60: ='[1]Tabel 2 F DATA'!Q57 -> Gns. brutto- ledighed | I60: ='[1]Tabel 2 F DATA'!S57 -> Ledigheds- berørte | J60: ='[1]Tabel 2 F DATA'!T57 -> Gns. brutto- ledighed
A63: ='[1]Tabel 2 F DATA'!K60 -> Civ. ing. | C63: ='[1]Tabel 2 F DATA'!M60 -> 0 | D63: ='[1]Tabel 2 F DATA'!N60 -> 0 | F63: ='[1]Tabel 2 F DATA'!P60 -> 3 | G63: ='[1]Tabel 2 F DATA'!Q60 -> 2.353271378 | I63: ='[1]Tabel 2 F DATA'!S60 -> 3 | J63: ='[1]Tabel 2 F DATA'!T60 -> 2.353271378
A64: ='[1]Tabel 2 F DATA'!K61 -> Diplom ing. | C64: ='[1]Tabel 2 F DATA'!M61 -> 6 | D64: ='[1]Tabel 2 F DATA'!N61 -> 5.998877316 | F64: ='[1]Tabel 2 F DATA'!P61 -> 3 | G64: ='[1]Tabel 2 F DATA'!Q61 -> 2.307116572 | I64: ='[1]Tabel 2 F DATA'!S61 -> 9 | J64: ='[1]Tabel 2 F DATA'!T61 -> 8.305993888
A65: ='[1]Tabel 2 F DATA'!K62 -> Cand. Scient. Tek. | C65: ='[1]Tabel 2 F DATA'!M62 -> 2 | D65: ='[1]Tabel 2 F DATA'!N62 -> 1.95596582 | F65: ='[1]Tabel 2 F DATA'!P62 -> 0 | G65: ='[1]Tabel 2 F DATA'!Q62 -> 0 | I65: ='[1]Tabel 2 F DATA'!S62 -> 2 | J65: ='[1]Tabel 2 F DATA'!T62 -> 1.95596582
A66: ='[1]Tabel 2 F DATA'!K63 -> MA. Hum. | C66: ='[1]Tabel 2 F DATA'!M63 -> 4 | D66: ='[1]Tabel 2 F DATA'!N63 -> 3.52086322 | F66: ='[1]Tabel 2 F DATA'!P63 -> 10 | G66: ='[1]Tabel 2 F DATA'!Q63 -> 8.119503524 | I66: ='[1]Tabel 2 F DATA'!S63 -> 14 | J66: ='[1]Tabel 2 F DATA'!T63 -> 11.64036674
A67: ='[1]Tabel 2 F DATA'!K64 -> MA. Nat. | C67: ='[1]Tabel 2 F DATA'!M64 -> 0 | D67: ='[1]Tabel 2 F DATA'!N64 -> 0 | F67: ='[1]Tabel 2 F DATA'!P64 -> 2 | G67: ='[1]Tabel 2 F DATA'!Q64 -> 1.999625772 | I67: ='[1]Tabel 2 F DATA'!S64 -> 2 | J67: ='[1]Tabel 2 F DATA'!T64 -> 1.999625772
A68: ='[1]Tabel 2 F DATA'!K65 -> MA. Ph.d. | C68: ='[1]Tabel 2 F DATA'!M65 -> 1 | D68: ='[1]Tabel 2 F DATA'!N65 -> 0.9000187114 | F68: ='[1]Tabel 2 F DATA'!P65 -> 1 | G68: ='[1]Tabel 2 F DATA'!Q65 -> 0.3998004117 | I68: ='[1]Tabel 2 F DATA'!S65 -> 2 | J68: ='[1]Tabel 2 F DATA'!T65 -> 1.299819123
A69: ='[1]Tabel 2 F DATA'!K66 -> MA. Samf. | C69: ='[1]Tabel 2 F DATA'!M66 -> 0 | D69: ='[1]Tabel 2 F DATA'!N66 -> 0 | F69: ='[1]Tabel 2 F DATA'!P66 -> 2 | G69: ='[1]Tabel 2 F DATA'!Q66 -> 1.999625772 | I69: ='[1]Tabel 2 F DATA'!S66 -> 2 | J69: ='[1]Tabel 2 F DATA'!T66 -> 1.999625772
A70: ='[1]Tabel 2 F DATA'!K67 -> Øvrige Mag. | C70: ='[1]Tabel 2 F DATA'!M67 -> 0 | D70: ='[1]Tabel 2 F DATA'!N67 -> 0 | F70: ='[1]Tabel 2 F DATA'!P67 -> 0 | G70: ='[1]Tabel 2 F DATA'!Q67 -> 0 | I70: ='[1]Tabel 2 F DATA'!S67 -> 0 | J70: ='[1]Tabel 2 F DATA'!T67 -> 0
A71: ='[1]Tabel 2 F DATA'!K68 -> Agronom | C71: ='[1]Tabel 2 F DATA'!M68 -> 0 | D71: ='[1]Tabel 2 F DATA'!N68 -> 0 | F71: ='[1]Tabel 2 F DATA'!P68 -> 0 | G71: ='[1]Tabel 2 F DATA'!Q68 -> 0 | I71: ='[1]Tabel 2 F DATA'!S68 -> 0 | J71: ='[1]Tabel 2 F DATA'!T68 -> 0
A72: ='[1]Tabel 2 F DATA'!K69 -> Landsk. Arkt. | C72: ='[1]Tabel 2 F DATA'!M69 -> 0 | D72: ='[1]Tabel 2 F DATA'!N69 -> 0 | F72: ='[1]Tabel 2 F DATA'!P69 -> 0 | G72: ='[1]Tabel 2 F DATA'!Q69 -> 0 | I72: ='[1]Tabel 2 F DATA'!S69 -> 0 | J72: ='[1]Tabel 2 F DATA'!T69 -> 0
A73: ='[1]Tabel 2 F DATA'!K70 -> Hortonom | C73: ='[1]Tabel 2 F DATA'!M70 -> 0 | D73: ='[1]Tabel 2 F DATA'!N70 -> 0 | F73: ='[1]Tabel 2 F DATA'!P70 -> 0 | G73: ='[1]Tabel 2 F DATA'!Q70 -> 0 | I73: ='[1]Tabel 2 F DATA'!S70 -> 0 | J73: ='[1]Tabel 2 F DATA'!T70 -> 0
A74: ='[1]Tabel 2 F DATA'!K71 -> Forstkand. | C74: ='[1]Tabel 2 F DATA'!M71 -> 1 | D74: ='[1]Tabel 2 F DATA'!N71 -> 0.9998128859 | F74: ='[1]Tabel 2 F DATA'!P71 -> 0 | G74: ='[1]Tabel 2 F DATA'!Q71 -> 0 | I74: ='[1]Tabel 2 F DATA'!S71 -> 1 | J74: ='[1]Tabel 2 F DATA'!T71 -> 0.9998128859
A75: ='[1]Tabel 2 F DATA'!K72 -> Jordbrugsakad. | C75: ='[1]Tabel 2 F DATA'!M72 -> 1 | D75: ='[1]Tabel 2 F DATA'!N72 -> 0.9998128859 | F75: ='[1]Tabel 2 F DATA'!P72 -> 0 | G75: ='[1]Tabel 2 F DATA'!Q72 -> 0 | I75: ='[1]Tabel 2 F DATA'!S72 -> 1 | J75: ='[1]Tabel 2 F DATA'!T72 -> 0.9998128859
A76: ='[1]Tabel 2 F DATA'!K73 -> Mejeriing. | C76: ='[1]Tabel 2 F DATA'!M73 -> 0 | D76: ='[1]Tabel 2 F DATA'!N73 -> 0 | F76: ='[1]Tabel 2 F DATA'!P73 -> 0 | G76: ='[1]Tabel 2 F DATA'!Q73 -> 0 | I76: ='[1]Tabel 2 F DATA'!S73 -> 0 | J76: ='[1]Tabel 2 F DATA'!T73 -> 0
A77: ='[1]Tabel 2 F DATA'!K74 -> Levn.m.kand. | C77: ='[1]Tabel 2 F DATA'!M74 -> 0 | D77: ='[1]Tabel 2 F DATA'!N74 -> 0 | F77: ='[1]Tabel 2 F DATA'!P74 -> 0 | G77: ='[1]Tabel 2 F DATA'!Q74 -> 0 | I77: ='[1]Tabel 2 F DATA'!S74 -> 0 | J77: ='[1]Tabel 2 F DATA'!T74 -> 0
A78: ='[1]Tabel 2 F DATA'!K75 -> Dyrlæge | C78: ='[1]Tabel 2 F DATA'!M75 -> 0 | D78: ='[1]Tabel 2 F DATA'!N75 -> 0 | F78: ='[1]Tabel 2 F DATA'!P75 -> 1 | G78: ='[1]Tabel 2 F DATA'!Q75 -> 0.9536580802 | I78: ='[1]Tabel 2 F DATA'!S75 -> 1 | J78: ='[1]Tabel 2 F DATA'!T75 -> 0.9536580802
A79: ='[1]Tabel 2 F DATA'!K76 -> Farmaceut | C79: ='[1]Tabel 2 F DATA'!M76 -> 0 | D79: ='[1]Tabel 2 F DATA'!N76 -> 0 | F79: ='[1]Tabel 2 F DATA'!P76 -> 0 | G79: ='[1]Tabel 2 F DATA'!Q76 -> 0 | I79: ='[1]Tabel 2 F DATA'!S76 -> 0 | J79: ='[1]Tabel 2 F DATA'!T76 -> 0
A80: ='[1]Tabel 2 F DATA'!K77 -> Læge | C80: ='[1]Tabel 2 F DATA'!M77 -> 0 | D80: ='[1]Tabel 2 F DATA'!N77 -> 0 | F80: ='[1]Tabel 2 F DATA'!P77 -> 1 | G80: ='[1]Tabel 2 F DATA'!Q77 -> 0.9998128859 | I80: ='[1]Tabel 2 F DATA'!S77 -> 1 | J80: ='[1]Tabel 2 F DATA'!T77 -> 0.9998128859
A81: ='[1]Tabel 2 F DATA'!K78 -> Tandlæge | C81: ='[1]Tabel 2 F DATA'!M78 -> 0 | D81: ='[1]Tabel 2 F DATA'!N78 -> 0 | F81: ='[1]Tabel 2 F DATA'!P78 -> 0 | G81: ='[1]Tabel 2 F DATA'!Q78 -> 0 | I81: ='[1]Tabel 2 F DATA'!S78 -> 0 | J81: ='[1]Tabel 2 F DATA'!T78 -> 0
A82: ='[1]Tabel 2 F DATA'!K79 -> Arkitekt | C82: ='[1]Tabel 2 F DATA'!M79 -> 0 | D82: ='[1]Tabel 2 F DATA'!N79 -> 0 | F82: ='[1]Tabel 2 F DATA'!P79 -> 0 | G82: ='[1]Tabel 2 F DATA'!Q79 -> 0 | I82: ='[1]Tabel 2 F DATA'!S79 -> 0 | J82: ='[1]Tabel 2 F DATA'!T79 -> 0
A83: ='[1]Tabel 2 F DATA'!K80 -> Landinspek. | C83: ='[1]Tabel 2 F DATA'!M80 -> 0 | D83: ='[1]Tabel 2 F DATA'!N80 -> 0 | F83: ='[1]Tabel 2 F DATA'!P80 -> 0 | G83: ='[1]Tabel 2 F DATA'!Q80 -> 0 | I83: ='[1]Tabel 2 F DATA'!S80 -> 0 | J83: ='[1]Tabel 2 F DATA'!T80 -> 0
A84: ='[1]Tabel 2 F DATA'!K81 -> Bibliotekar | C84: ='[1]Tabel 2 F DATA'!M81 -> 1 | D84: ='[1]Tabel 2 F DATA'!N81 -> 0.9998128859 | F84: ='[1]Tabel 2 F DATA'!P81 -> 1 | G84: ='[1]Tabel 2 F DATA'!Q81 -> 0.9998128859 | I84: ='[1]Tabel 2 F DATA'!S81 -> 2 | J84: ='[1]Tabel 2 F DATA'!T81 -> 1.999625772
A85: ='[1]Tabel 2 F DATA'!K82 -> Musikudd. | C85: ='[1]Tabel 2 F DATA'!M82 -> 0 | D85: ='[1]Tabel 2 F DATA'!N82 -> 0 | F85: ='[1]Tabel 2 F DATA'!P82 -> 0 | G85: ='[1]Tabel 2 F DATA'!Q82 -> 0 | I85: ='[1]Tabel 2 F DATA'!S82 -> 0 | J85: ='[1]Tabel 2 F DATA'!T82 -> 0
A86: ='[1]Tabel 2 F DATA'!K83 -> Teolog | C86: ='[1]Tabel 2 F DATA'!M83 -> 0 | D86: ='[1]Tabel 2 F DATA'!N83 -> 0 | F86: ='[1]Tabel 2 F DATA'!P83 -> 0 | G86: ='[1]Tabel 2 F DATA'!Q83 -> 0 | I86: ='[1]Tabel 2 F DATA'!S83 -> 0 | J86: ='[1]Tabel 2 F DATA'!T83 -> 0
A87: ='[1]Tabel 2 F DATA'!K84 -> Psykolog | C87: ='[1]Tabel 2 F DATA'!M84 -> 0 | D87: ='[1]Tabel 2 F DATA'!N84 -> 0 | F87: ='[1]Tabel 2 F DATA'!P84 -> 0 | G87: ='[1]Tabel 2 F DATA'!Q84 -> 0 | I87: ='[1]Tabel 2 F DATA'!S84 -> 0 | J87: ='[1]Tabel 2 F DATA'!T84 -> 0
A88: ='[1]Tabel 2 F DATA'!K85 -> Jurist | C88: ='[1]Tabel 2 F DATA'!M85 -> 0 | D88: ='[1]Tabel 2 F DATA'!N85 -> 0 | F88: ='[1]Tabel 2 F DATA'!P85 -> 1 | G88: ='[1]Tabel 2 F DATA'!Q85 -> 0.4921100231 | I88: ='[1]Tabel 2 F DATA'!S85 -> 1 | J88: ='[1]Tabel 2 F DATA'!T85 -> 0.4921100231
A89: ='[1]Tabel 2 F DATA'!K86 -> Økonom | C89: ='[1]Tabel 2 F DATA'!M86 -> 0 | D89: ='[1]Tabel 2 F DATA'!N86 -> 0 | F89: ='[1]Tabel 2 F DATA'!P86 -> 0 | G89: ='[1]Tabel 2 F DATA'!Q86 -> 0 | I89: ='[1]Tabel 2 F DATA'!S86 -> 0 | J89: ='[1]Tabel 2 F DATA'!T86 -> 0
A90: ='[1]Tabel 2 F DATA'!K87 -> Samf. Adm. | C90: ='[1]Tabel 2 F DATA'!M87 -> 1 | D90: ='[1]Tabel 2 F DATA'!N87 -> 0.9998128859 | F90: ='[1]Tabel 2 F DATA'!P87 -> 2 | G90: ='[1]Tabel 2 F DATA'!Q87 -> 1.307303686 | I90: ='[1]Tabel 2 F DATA'!S87 -> 3 | J90: ='[1]Tabel 2 F DATA'!T87 -> 2.307116572
A91: ='[1]Tabel 2 F DATA'!K88 -> Cand. Merc. | C91: ='[1]Tabel 2 F DATA'!M88 -> 1 | D91: ='[1]Tabel 2 F DATA'!N88 -> 0.9998128859 | F91: ='[1]Tabel 2 F DATA'!P88 -> 2 | G91: ='[1]Tabel 2 F DATA'!Q88 -> 1.317283104 | I91: ='[1]Tabel 2 F DATA'!S88 -> 3 | J91: ='[1]Tabel 2 F DATA'!T88 -> 2.31709599
A92: ='[1]Tabel 2 F DATA'!K89 -> HA | C92: ='[1]Tabel 2 F DATA'!M89 -> 1 | D92: ='[1]Tabel 2 F DATA'!N89 -> 0.9998128859 | F92: ='[1]Tabel 2 F DATA'!P89 -> 1 | G92: ='[1]Tabel 2 F DATA'!Q89 -> 0.9998128859 | I92: ='[1]Tabel 2 F DATA'!S89 -> 2 | J92: ='[1]Tabel 2 F DATA'!T89 -> 1.999625772
A93: ='[1]Tabel 2 F DATA'!K90 -> HD | C93: ='[1]Tabel 2 F DATA'!M90 -> 0 | D93: ='[1]Tabel 2 F DATA'!N90 -> 0 | F93: ='[1]Tabel 2 F DATA'!P90 -> 0 | G93: ='[1]Tabel 2 F DATA'!Q90 -> 0 | I93: ='[1]Tabel 2 F DATA'!S90 -> 0 | J93: ='[1]Tabel 2 F DATA'!T90 -> 0
A94: ='[1]Tabel 2 F DATA'!K91 -> Komm. og Sprog | C94: ='[1]Tabel 2 F DATA'!M91 -> 0 | D94: ='[1]Tabel 2 F DATA'!N91 -> 0 | F94: ='[1]Tabel 2 F DATA'!P91 -> 0 | G94: ='[1]Tabel 2 F DATA'!Q91 -> 0 | I94: ='[1]Tabel 2 F DATA'!S91 -> 0 | J94: ='[1]Tabel 2 F DATA'!T91 -> 0
A95: ='[1]Tabel 2 F DATA'!K92 -> Bygningskonst | C95: ='[1]Tabel 2 F DATA'!M92 -> 4 | D95: ='[1]Tabel 2 F DATA'!N92 -> 2.938439469 | F95: ='[1]Tabel 2 F DATA'!P92 -> 0 | G95: ='[1]Tabel 2 F DATA'!Q92 -> 0 | I95: ='[1]Tabel 2 F DATA'!S92 -> 4 | J95: ='[1]Tabel 2 F DATA'!T92 -> 2.938439469
A96: ='[1]Tabel 2 F DATA'!K93 -> Cand. IT. | C96: ='[1]Tabel 2 F DATA'!M93 -> 2 | D96: ='[1]Tabel 2 F DATA'!N93 -> 1.999625772 | F96: ='[1]Tabel 2 F DATA'!P93 -> 1 | G96: ='[1]Tabel 2 F DATA'!Q93 -> 0.1577995385 | I96: ='[1]Tabel 2 F DATA'!S93 -> 3 | J96: ='[1]Tabel 2 F DATA'!T93 -> 2.15742531
A97: ='[1]Tabel 2 F DATA'!K94 -> Bac. Samf. | C97: ='[1]Tabel 2 F DATA'!M94 -> 0 | D97: ='[1]Tabel 2 F DATA'!N94 -> 0 | F97: ='[1]Tabel 2 F DATA'!P94 -> 0 | G97: ='[1]Tabel 2 F DATA'!Q94 -> 0 | I97: ='[1]Tabel 2 F DATA'!S94 -> 0 | J97: ='[1]Tabel 2 F DATA'!T94 -> 0
A98: ='[1]Tabel 2 F DATA'!K95 -> Bac. Hum. | C98: ='[1]Tabel 2 F DATA'!M95 -> 0 | D98: ='[1]Tabel 2 F DATA'!N95 -> 0 | F98: ='[1]Tabel 2 F DATA'!P95 -> 2 | G98: ='[1]Tabel 2 F DATA'!Q95 -> 1.861161355 | I98: ='[1]Tabel 2 F DATA'!S95 -> 2 | J98: ='[1]Tabel 2 F DATA'!T95 -> 1.861161355
A99: ='[1]Tabel 2 F DATA'!K96 -> Bac. Nat. | C99: ='[1]Tabel 2 F DATA'!M96 -> 0 | D99: ='[1]Tabel 2 F DATA'!N96 -> 0 | F99: ='[1]Tabel 2 F DATA'!P96 -> 0 | G99: ='[1]Tabel 2 F DATA'!Q96 -> 0 | I99: ='[1]Tabel 2 F DATA'!S96 -> 0 | J99: ='[1]Tabel 2 F DATA'!T96 -> 0
A100: ='[1]Tabel 2 F DATA'!K98 -> Andre | C100: ='[1]Tabel 2 F DATA'!M99 -> 0 | D100: ='[1]Tabel 2 F DATA'!N99 -> 0 | F100: ='[1]Tabel 2 F DATA'!P99 -> 0 | G100: ='[1]Tabel 2 F DATA'!Q99 -> 0 | I100: ='[1]Tabel 2 F DATA'!S99 -> 0 | J100: ='[1]Tabel 2 F DATA'!T99 -> 0
A102: ='[1]Tabel 2 F DATA'!K100 -> Total | C102: ='[1]Tabel 2 F DATA'!M100 -> 27 | D102: ='[1]Tabel 2 F DATA'!N100 -> 24.80084825 | F102: ='[1]Tabel 2 F DATA'!P100 -> 35 | G102: ='[1]Tabel 2 F DATA'!Q100 -> 28.24050396 | I102: ='[1]Tabel 2 F DATA'!S100 -> 62 | J102: ='[1]Tabel 2 F DATA'!T100 -> 53.04135221
A104: ='[1]Tabel 2 F DATA'!K102 -> Ingeniører i alt | C104: ='[1]Tabel 2 F DATA'!M102 -> 6 | D104: ='[1]Tabel 2 F DATA'!N102 -> 5.998877316 | F104: ='[1]Tabel 2 F DATA'!P102 -> 6 | G104: ='[1]Tabel 2 F DATA'!Q102 -> 4.66038795 | I104: ='[1]Tabel 2 F DATA'!S102 -> 12 | J104: ='[1]Tabel 2 F DATA'!T102 -> 10.65926527
A105: ='[1]Tabel 2 F DATA'!K103 -> Magistre i alt | C105: ='[1]Tabel 2 F DATA'!M103 -> 5 | D105: ='[1]Tabel 2 F DATA'!N103 -> 4.420881931 | F105: ='[1]Tabel 2 F DATA'!P103 -> 15 | G105: ='[1]Tabel 2 F DATA'!Q103 -> 12.51855548 | I105: ='[1]Tabel 2 F DATA'!S103 -> 20 | J105: ='[1]Tabel 2 F DATA'!T103 -> 16.93943741
A106: ='[1]Tabel 2 F DATA'!K104 -> DJØF'ere i alt | C106: ='[1]Tabel 2 F DATA'!M104 -> 3 | D106: ='[1]Tabel 2 F DATA'!N104 -> 2.999438658 | F106: ='[1]Tabel 2 F DATA'!P104 -> 6 | G106: ='[1]Tabel 2 F DATA'!Q104 -> 4.116509699 | I106: ='[1]Tabel 2 F DATA'!S104 -> 9 | J106: ='[1]Tabel 2 F DATA'!T104 -> 7.115948357
A111: ='[1]Tabel 2 F DATA'!I107 -> Assens
C113: ='[1]Tabel 2 F DATA'!M109 -> Mænd | F113: ='[1]Tabel 2 F DATA'!P109 -> Kvinder | I113: ='[1]Tabel 2 F DATA'!S109 -> I alt
C114: ='[1]Tabel 2 F DATA'!M110 -> Ledigheds- berørte | D114: ='[1]Tabel 2 F DATA'!N110 -> Gns. brutto- ledighed | F114: ='[1]Tabel 2 F DATA'!P110 -> Ledigheds- berørte | G114: ='[1]Tabel 2 F DATA'!Q110 -> Gns. brutto- ledighed | I114: ='[1]Tabel 2 F DATA'!S110 -> Ledigheds- berørte | J114: ='[1]Tabel 2 F DATA'!T110 -> Gns. brutto- ledighed
A117: ='[1]Tabel 2 F DATA'!K113 -> Civ. ing. | C117: ='[1]Tabel 2 F DATA'!M113 -> 0 | D117: ='[1]Tabel 2 F DATA'!N113 -> 0 | F117: ='[1]Tabel 2 F DATA'!P113 -> 1 | G117: ='[1]Tabel 2 F DATA'!Q113 -> 0.9998128859 | I117: ='[1]Tabel 2 F DATA'!S113 -> 1 | J117: ='[1]Tabel 2 F DATA'!T113 -> 0.9998128859
A118: ='[1]Tabel 2 F DATA'!K114 -> Diplom ing. | C118: ='[1]Tabel 2 F DATA'!M114 -> 8 | D118: ='[1]Tabel 2 F DATA'!N114 -> 6.235264766 | F118: ='[1]Tabel 2 F DATA'!P114 -> 2 | G118: ='[1]Tabel 2 F DATA'!Q114 -> 1.403979293 | I118: ='[1]Tabel 2 F DATA'!S114 -> 10 | J118: ='[1]Tabel 2 F DATA'!T114 -> 7.639244059
A119: ='[1]Tabel 2 F DATA'!K115 -> Cand. Scient. Tek. | C119: ='[1]Tabel 2 F DATA'!M115 -> 0 | D119: ='[1]Tabel 2 F DATA'!N115 -> 0 | F119: ='[1]Tabel 2 F DATA'!P115 -> 3 | G119: ='[1]Tabel 2 F DATA'!Q115 -> 2.999438658 | I119: ='[1]Tabel 2 F DATA'!S115 -> 3 | J119: ='[1]Tabel 2 F DATA'!T115 -> 2.999438658
A120: ='[1]Tabel 2 F DATA'!K116 -> MA. Hum. | C120: ='[1]Tabel 2 F DATA'!M116 -> 2 | D120: ='[1]Tabel 2 F DATA'!N116 -> 1.999625772 | F120: ='[1]Tabel 2 F DATA'!P116 -> 14 | G120: ='[1]Tabel 2 F DATA'!Q116 -> 11.74702177 | I120: ='[1]Tabel 2 F DATA'!S116 -> 16 | J120: ='[1]Tabel 2 F DATA'!T116 -> 13.74664754
A121: ='[1]Tabel 2 F DATA'!K117 -> MA. Nat. | C121: ='[1]Tabel 2 F DATA'!M117 -> 0 | D121: ='[1]Tabel 2 F DATA'!N117 -> 0 | F121: ='[1]Tabel 2 F DATA'!P117 -> 3 | G121: ='[1]Tabel 2 F DATA'!Q117 -> 2.446828416 | I121: ='[1]Tabel 2 F DATA'!S117 -> 3 | J121: ='[1]Tabel 2 F DATA'!T117 -> 2.446828416
A122: ='[1]Tabel 2 F DATA'!K118 -> MA. Ph.d. | C122: ='[1]Tabel 2 F DATA'!M118 -> 0 | D122: ='[1]Tabel 2 F DATA'!N118 -> 0 | F122: ='[1]Tabel 2 F DATA'!P118 -> 0 | G122: ='[1]Tabel 2 F DATA'!Q118 -> 0 | I122: ='[1]Tabel 2 F DATA'!S118 -> 0 | J122: ='[1]Tabel 2 F DATA'!T118 -> 0
A123: ='[1]Tabel 2 F DATA'!K119 -> MA. Samf. | C123: ='[1]Tabel 2 F DATA'!M119 -> 0 | D123: ='[1]Tabel 2 F DATA'!N119 -> 0 | F123: ='[1]Tabel 2 F DATA'!P119 -> 1 | G123: ='[1]Tabel 2 F DATA'!Q119 -> 0.7334871827 | I123: ='[1]Tabel 2 F DATA'!S119 -> 1 | J123: ='[1]Tabel 2 F DATA'!T119 -> 0.7334871827
A124: ='[1]Tabel 2 F DATA'!K120 -> Øvrige Mag. | C124: ='[1]Tabel 2 F DATA'!M120 -> 0 | D124: ='[1]Tabel 2 F DATA'!N120 -> 0 | F124: ='[1]Tabel 2 F DATA'!P120 -> 0 | G124: ='[1]Tabel 2 F DATA'!Q120 -> 0 | I124: ='[1]Tabel 2 F DATA'!S120 -> 0 | J124: ='[1]Tabel 2 F DATA'!T120 -> 0
A125: ='[1]Tabel 2 F DATA'!K121 -> Agronom | C125: ='[1]Tabel 2 F DATA'!M121 -> 0 | D125: ='[1]Tabel 2 F DATA'!N121 -> 0 | F125: ='[1]Tabel 2 F DATA'!P121 -> 0 | G125: ='[1]Tabel 2 F DATA'!Q121 -> 0 | I125: ='[1]Tabel 2 F DATA'!S121 -> 0 | J125: ='[1]Tabel 2 F DATA'!T121 -> 0
A126: ='[1]Tabel 2 F DATA'!K122 -> Landsk. Arkt. | C126: ='[1]Tabel 2 F DATA'!M122 -> 0 | D126: ='[1]Tabel 2 F DATA'!N122 -> 0 | F126: ='[1]Tabel 2 F DATA'!P122 -> 0 | G126: ='[1]Tabel 2 F DATA'!Q122 -> 0 | I126: ='[1]Tabel 2 F DATA'!S122 -> 0 | J126: ='[1]Tabel 2 F DATA'!T122 -> 0
A127: ='[1]Tabel 2 F DATA'!K123 -> Hortonom | C127: ='[1]Tabel 2 F DATA'!M123 -> 0 | D127: ='[1]Tabel 2 F DATA'!N123 -> 0 | F127: ='[1]Tabel 2 F DATA'!P123 -> 0 | G127: ='[1]Tabel 2 F DATA'!Q123 -> 0 | I127: ='[1]Tabel 2 F DATA'!S123 -> 0 | J127: ='[1]Tabel 2 F DATA'!T123 -> 0
A128: ='[1]Tabel 2 F DATA'!K124 -> Forstkand. | C128: ='[1]Tabel 2 F DATA'!M124 -> 0 | D128: ='[1]Tabel 2 F DATA'!N124 -> 0 | F128: ='[1]Tabel 2 F DATA'!P124 -> 0 | G128: ='[1]Tabel 2 F DATA'!Q124 -> 0 | I128: ='[1]Tabel 2 F DATA'!S124 -> 0 | J128: ='[1]Tabel 2 F DATA'!T124 -> 0
A129: ='[1]Tabel 2 F DATA'!K125 -> Jordbrugsakad. | C129: ='[1]Tabel 2 F DATA'!M125 -> 0 | D129: ='[1]Tabel 2 F DATA'!N125 -> 0 | F129: ='[1]Tabel 2 F DATA'!P125 -> 0 | G129: ='[1]Tabel 2 F DATA'!Q125 -> 0 | I129: ='[1]Tabel 2 F DATA'!S125 -> 0 | J129: ='[1]Tabel 2 F DATA'!T125 -> 0
A130: ='[1]Tabel 2 F DATA'!K126 -> Mejeriing. | C130: ='[1]Tabel 2 F DATA'!M126 -> 0 | D130: ='[1]Tabel 2 F DATA'!N126 -> 0 | F130: ='[1]Tabel 2 F DATA'!P126 -> 0 | G130: ='[1]Tabel 2 F DATA'!Q126 -> 0 | I130: ='[1]Tabel 2 F DATA'!S126 -> 0 | J130: ='[1]Tabel 2 F DATA'!T126 -> 0
A131: ='[1]Tabel 2 F DATA'!K127 -> Levn.m.kand. | C131: ='[1]Tabel 2 F DATA'!M127 -> 0 | D131: ='[1]Tabel 2 F DATA'!N127 -> 0 | F131: ='[1]Tabel 2 F DATA'!P127 -> 0 | G131: ='[1]Tabel 2 F DATA'!Q127 -> 0 | I131: ='[1]Tabel 2 F DATA'!S127 -> 0 | J131: ='[1]Tabel 2 F DATA'!T127 -> 0
A132: ='[1]Tabel 2 F DATA'!K128 -> Dyrlæge | C132: ='[1]Tabel 2 F DATA'!M128 -> 0 | D132: ='[1]Tabel 2 F DATA'!N128 -> 0 | F132: ='[1]Tabel 2 F DATA'!P128 -> 0 | G132: ='[1]Tabel 2 F DATA'!Q128 -> 0 | I132: ='[1]Tabel 2 F DATA'!S128 -> 0 | J132: ='[1]Tabel 2 F DATA'!T128 -> 0
A133: ='[1]Tabel 2 F DATA'!K129 -> Farmaceut | C133: ='[1]Tabel 2 F DATA'!M129 -> 0 | D133: ='[1]Tabel 2 F DATA'!N129 -> 0 | F133: ='[1]Tabel 2 F DATA'!P129 -> 0 | G133: ='[1]Tabel 2 F DATA'!Q129 -> 0 | I133: ='[1]Tabel 2 F DATA'!S129 -> 0 | J133: ='[1]Tabel 2 F DATA'!T129 -> 0
A134: ='[1]Tabel 2 F DATA'!K130 -> Læge | C134: ='[1]Tabel 2 F DATA'!M130 -> 0 | D134: ='[1]Tabel 2 F DATA'!N130 -> 0 | F134: ='[1]Tabel 2 F DATA'!P130 -> 0 | G134: ='[1]Tabel 2 F DATA'!Q130 -> 0 | I134: ='[1]Tabel 2 F DATA'!S130 -> 0 | J134: ='[1]Tabel 2 F DATA'!T130 -> 0
A135: ='[1]Tabel 2 F DATA'!K131 -> Tandlæge | C135: ='[1]Tabel 2 F DATA'!M131 -> 0 | D135: ='[1]Tabel 2 F DATA'!N131 -> 0 | F135: ='[1]Tabel 2 F DATA'!P131 -> 0 | G135: ='[1]Tabel 2 F DATA'!Q131 -> 0 | I135: ='[1]Tabel 2 F DATA'!S131 -> 0 | J135: ='[1]Tabel 2 F DATA'!T131 -> 0
A136: ='[1]Tabel 2 F DATA'!K132 -> Arkitekt | C136: ='[1]Tabel 2 F DATA'!M132 -> 0 | D136: ='[1]Tabel 2 F DATA'!N132 -> 0 | F136: ='[1]Tabel 2 F DATA'!P132 -> 0 | G136: ='[1]Tabel 2 F DATA'!Q132 -> 0 | I136: ='[1]Tabel 2 F DATA'!S132 -> 0 | J136: ='[1]Tabel 2 F DATA'!T132 -> 0
A137: ='[1]Tabel 2 F DATA'!K133 -> Landinspek. | C137: ='[1]Tabel 2 F DATA'!M133 -> 0 | D137: ='[1]Tabel 2 F DATA'!N133 -> 0 | F137: ='[1]Tabel 2 F DATA'!P133 -> 0 | G137: ='[1]Tabel 2 F DATA'!Q133 -> 0 | I137: ='[1]Tabel 2 F DATA'!S133 -> 0 | J137: ='[1]Tabel 2 F DATA'!T133 -> 0
A138: ='[1]Tabel 2 F DATA'!K134 -> Bibliotekar | C138: ='[1]Tabel 2 F DATA'!M134 -> 1 | D138: ='[1]Tabel 2 F DATA'!N134 -> 0.594399052 | F138: ='[1]Tabel 2 F DATA'!P134 -> 0 | G138: ='[1]Tabel 2 F DATA'!Q134 -> 0 | I138: ='[1]Tabel 2 F DATA'!S134 -> 1 | J138: ='[1]Tabel 2 F DATA'!T134 -> 0.594399052
A139: ='[1]Tabel 2 F DATA'!K135 -> Musikudd. | C139: ='[1]Tabel 2 F DATA'!M135 -> 0 | D139: ='[1]Tabel 2 F DATA'!N135 -> 0 | F139: ='[1]Tabel 2 F DATA'!P135 -> 1 | G139: ='[1]Tabel 2 F DATA'!Q135 -> 0.5002182998 | I139: ='[1]Tabel 2 F DATA'!S135 -> 1 | J139: ='[1]Tabel 2 F DATA'!T135 -> 0.5002182998
A140: ='[1]Tabel 2 F DATA'!K136 -> Teolog | C140: ='[1]Tabel 2 F DATA'!M136 -> 0 | D140: ='[1]Tabel 2 F DATA'!N136 -> 0 | F140: ='[1]Tabel 2 F DATA'!P136 -> 1 | G140: ='[1]Tabel 2 F DATA'!Q136 -> 0.9998128859 | I140: ='[1]Tabel 2 F DATA'!S136 -> 1 | J140: ='[1]Tabel 2 F DATA'!T136 -> 0.9998128859
A141: ='[1]Tabel 2 F DATA'!K137 -> Psykolog | C141: ='[1]Tabel 2 F DATA'!M137 -> 0 | D141: ='[1]Tabel 2 F DATA'!N137 -> 0 | F141: ='[1]Tabel 2 F DATA'!P137 -> 0 | G141: ='[1]Tabel 2 F DATA'!Q137 -> 0 | I141: ='[1]Tabel 2 F DATA'!S137 -> 0 | J141: ='[1]Tabel 2 F DATA'!T137 -> 0
A142: ='[1]Tabel 2 F DATA'!K138 -> Jurist | C142: ='[1]Tabel 2 F DATA'!M138 -> 0 | D142: ='[1]Tabel 2 F DATA'!N138 -> 0 | F142: ='[1]Tabel 2 F DATA'!P138 -> 0 | G142: ='[1]Tabel 2 F DATA'!Q138 -> 0 | I142: ='[1]Tabel 2 F DATA'!S138 -> 0 | J142: ='[1]Tabel 2 F DATA'!T138 -> 0
A143: ='[1]Tabel 2 F DATA'!K139 -> Økonom | C143: ='[1]Tabel 2 F DATA'!M139 -> 1 | D143: ='[1]Tabel 2 F DATA'!N139 -> 0.9998128859 | F143: ='[1]Tabel 2 F DATA'!P139 -> 0 | G143: ='[1]Tabel 2 F DATA'!Q139 -> 0 | I143: ='[1]Tabel 2 F DATA'!S139 -> 1 | J143: ='[1]Tabel 2 F DATA'!T139 -> 0.9998128859
A144: ='[1]Tabel 2 F DATA'!K140 -> Samf. Adm. | C144: ='[1]Tabel 2 F DATA'!M140 -> 0 | D144: ='[1]Tabel 2 F DATA'!N140 -> 0 | F144: ='[1]Tabel 2 F DATA'!P140 -> 1 | G144: ='[1]Tabel 2 F DATA'!Q140 -> 0.9998128859 | I144: ='[1]Tabel 2 F DATA'!S140 -> 1 | J144: ='[1]Tabel 2 F DATA'!T140 -> 0.9998128859
A145: ='[1]Tabel 2 F DATA'!K141 -> Cand. Merc. | C145: ='[1]Tabel 2 F DATA'!M141 -> 1 | D145: ='[1]Tabel 2 F DATA'!N141 -> 0.6068733238 | F145: ='[1]Tabel 2 F DATA'!P141 -> 2 | G145: ='[1]Tabel 2 F DATA'!Q141 -> 1.768851743 | I145: ='[1]Tabel 2 F DATA'!S141 -> 3 | J145: ='[1]Tabel 2 F DATA'!T141 -> 2.375725067
A146: ='[1]Tabel 2 F DATA'!K142 -> HA | C146: ='[1]Tabel 2 F DATA'!M142 -> 0 | D146: ='[1]Tabel 2 F DATA'!N142 -> 0 | F146: ='[1]Tabel 2 F DATA'!P142 -> 1 | G146: ='[1]Tabel 2 F DATA'!Q142 -> 0.9998128859 | I146: ='[1]Tabel 2 F DATA'!S142 -> 1 | J146: ='[1]Tabel 2 F DATA'!T142 -> 0.9998128859
A147: ='[1]Tabel 2 F DATA'!K143 -> HD | C147: ='[1]Tabel 2 F DATA'!M143 -> 0 | D147: ='[1]Tabel 2 F DATA'!N143 -> 0 | F147: ='[1]Tabel 2 F DATA'!P143 -> 1 | G147: ='[1]Tabel 2 F DATA'!Q143 -> 0.9998128859 | I147: ='[1]Tabel 2 F DATA'!S143 -> 1 | J147: ='[1]Tabel 2 F DATA'!T143 -> 0.9998128859
A148: ='[1]Tabel 2 F DATA'!K144 -> Komm. og Sprog | C148: ='[1]Tabel 2 F DATA'!M144 -> 0 | D148: ='[1]Tabel 2 F DATA'!N144 -> 0 | F148: ='[1]Tabel 2 F DATA'!P144 -> 3 | G148: ='[1]Tabel 2 F DATA'!Q144 -> 2.993201522 | I148: ='[1]Tabel 2 F DATA'!S144 -> 3 | J148: ='[1]Tabel 2 F DATA'!T144 -> 2.993201522
A149: ='[1]Tabel 2 F DATA'!K145 -> Bygningskonst. | C149: ='[1]Tabel 2 F DATA'!M145 -> 2 | D149: ='[1]Tabel 2 F DATA'!N145 -> 1.438345912 | F149: ='[1]Tabel 2 F DATA'!P145 -> 0 | G149: ='[1]Tabel 2 F DATA'!Q145 -> 0 | I149: ='[1]Tabel 2 F DATA'!S145 -> 2 | J149: ='[1]Tabel 2 F DATA'!T145 -> 1.438345912
A150: ='[1]Tabel 2 F DATA'!K146 -> Cand. IT. | C150: ='[1]Tabel 2 F DATA'!M146 -> 0 | D150: ='[1]Tabel 2 F DATA'!N146 -> 0 | F150: ='[1]Tabel 2 F DATA'!P146 -> 0 | G150: ='[1]Tabel 2 F DATA'!Q146 -> 0 | I150: ='[1]Tabel 2 F DATA'!S146 -> 0 | J150: ='[1]Tabel 2 F DATA'!T146 -> 0
A151: ='[1]Tabel 2 F DATA'!K147 -> Bac. Samf. | C151: ='[1]Tabel 2 F DATA'!M147 -> 0 | D151: ='[1]Tabel 2 F DATA'!N147 -> 0 | F151: ='[1]Tabel 2 F DATA'!P147 -> 0 | G151: ='[1]Tabel 2 F DATA'!Q147 -> 0 | I151: ='[1]Tabel 2 F DATA'!S147 -> 0 | J151: ='[1]Tabel 2 F DATA'!T147 -> 0
A152: ='[1]Tabel 2 F DATA'!K148 -> Bac. Hum. | C152: ='[1]Tabel 2 F DATA'!M148 -> 2 | D152: ='[1]Tabel 2 F DATA'!N148 -> 1.828104534 | F152: ='[1]Tabel 2 F DATA'!P148 -> 2 | G152: ='[1]Tabel 2 F DATA'!Q148 -> 1.934135845 | I152: ='[1]Tabel 2 F DATA'!S148 -> 4 | J152: ='[1]Tabel 2 F DATA'!T148 -> 3.762240379
A153: ='[1]Tabel 2 F DATA'!K149 -> Bac. Nat. | C153: ='[1]Tabel 2 F DATA'!M149 -> 1 | D153: ='[1]Tabel 2 F DATA'!N149 -> 0.9998128859 | F153: ='[1]Tabel 2 F DATA'!P149 -> 1 | G153: ='[1]Tabel 2 F DATA'!Q149 -> 0.9998128859 | I153: ='[1]Tabel 2 F DATA'!S149 -> 2 | J153: ='[1]Tabel 2 F DATA'!T149 -> 1.999625772
A154: ='[1]Tabel 2 F DATA'!K151 -> Andre | C154: ='[1]Tabel 2 F DATA'!M151 -> 2 | D154: ='[1]Tabel 2 F DATA'!N151 -> 1.999625772 | F154: ='[1]Tabel 2 F DATA'!P151 -> 3 | G154: ='[1]Tabel 2 F DATA'!Q151 -> 1.66406786 | I154: ='[1]Tabel 2 F DATA'!S151 -> 5 | J154: ='[1]Tabel 2 F DATA'!T151 -> 3.663693632
A156: ='[1]Tabel 2 F DATA'!K153 -> Total | C156: ='[1]Tabel 2 F DATA'!M153 -> 20 | D156: ='[1]Tabel 2 F DATA'!N153 -> 16.7018649 | F156: ='[1]Tabel 2 F DATA'!P153 -> 40 | G156: ='[1]Tabel 2 F DATA'!Q153 -> 34.1901079 | I156: ='[1]Tabel 2 F DATA'!S153 -> 60 | J156: ='[1]Tabel 2 F DATA'!T153 -> 50.89197281
A158: ='[1]Tabel 2 F DATA'!K155 -> Ingeniører i alt | C158: ='[1]Tabel 2 F DATA'!M155 -> 8 | D158: ='[1]Tabel 2 F DATA'!N155 -> 6.235264766 | F158: ='[1]Tabel 2 F DATA'!P155 -> 3 | G158: ='[1]Tabel 2 F DATA'!Q155 -> 2.403792179 | I158: ='[1]Tabel 2 F DATA'!S155 -> 11 | J158: ='[1]Tabel 2 F DATA'!T155 -> 8.639056945
A159: ='[1]Tabel 2 F DATA'!K156 -> Magistre i alt | C159: ='[1]Tabel 2 F DATA'!M156 -> 2 | D159: ='[1]Tabel 2 F DATA'!N156 -> 1.999625772 | F159: ='[1]Tabel 2 F DATA'!P156 -> 18 | G159: ='[1]Tabel 2 F DATA'!Q156 -> 14.92733737 | I159: ='[1]Tabel 2 F DATA'!S156 -> 20 | J159: ='[1]Tabel 2 F DATA'!T156 -> 16.92696314
A160: ='[1]Tabel 2 F DATA'!K157 -> DJØF'ere i alt | C160: ='[1]Tabel 2 F DATA'!M157 -> 2 | D160: ='[1]Tabel 2 F DATA'!N157 -> 1.60668621 | F160: ='[1]Tabel 2 F DATA'!P157 -> 4 | G160: ='[1]Tabel 2 F DATA'!Q157 -> 3.768477515 | I160: ='[1]Tabel 2 F DATA'!S157 -> 6 | J160: ='[1]Tabel 2 F DATA'!T157 -> 5.375163725
A165: ='[1]Tabel 2 F DATA'!I160 -> Faaborg-Midtfyn
C167: ='[1]Tabel 2 F DATA'!M162 -> Mænd | F167: ='[1]Tabel 2 F DATA'!P162 -> Kvinder | I167: ='[1]Tabel 2 F DATA'!S162 -> I alt
C168: ='[1]Tabel 2 F DATA'!M163 -> Ledigheds- berørte | D168: ='[1]Tabel 2 F DATA'!N163 -> Gns. brutto- ledighed | F168: ='[1]Tabel 2 F DATA'!P163 -> Ledigheds- berørte | G168: ='[1]Tabel 2 F DATA'!Q163 -> Gns. brutto- ledighed | I168: ='[1]Tabel 2 F DATA'!S163 -> Ledigheds- berørte | J168: ='[1]Tabel 2 F DATA'!T163 -> Gns. brutto- ledighed
A171: ='[1]Tabel 2 F DATA'!K166 -> Civ. ing. | C171: ='[1]Tabel 2 F DATA'!M166 -> 3 | D171: ='[1]Tabel 2 F DATA'!N166 -> 2.986964386 | F171: ='[1]Tabel 2 F DATA'!P166 -> 3 | G171: ='[1]Tabel 2 F DATA'!Q166 -> 2.168652155 | I171: ='[1]Tabel 2 F DATA'!S166 -> 6 | J171: ='[1]Tabel 2 F DATA'!T166 -> 5.155616541
A172: ='[1]Tabel 2 F DATA'!K167 -> Diplom ing. | C172: ='[1]Tabel 2 F DATA'!M167 -> 6 | D172: ='[1]Tabel 2 F DATA'!N167 -> 5.130667997 | F172: ='[1]Tabel 2 F DATA'!P167 -> 0 | G172: ='[1]Tabel 2 F DATA'!Q167 -> 0 | I172: ='[1]Tabel 2 F DATA'!S167 -> 6 | J172: ='[1]Tabel 2 F DATA'!T167 -> 5.130667997
A173: ='[1]Tabel 2 F DATA'!K168 -> Cand. Scient. Tek. | C173: ='[1]Tabel 2 F DATA'!M168 -> 2 | D173: ='[1]Tabel 2 F DATA'!N168 -> 1.600449074 | F173: ='[1]Tabel 2 F DATA'!P168 -> 5 | G173: ='[1]Tabel 2 F DATA'!Q168 -> 4.562464916 | I173: ='[1]Tabel 2 F DATA'!S168 -> 7 | J173: ='[1]Tabel 2 F DATA'!T168 -> 6.16291399
A174: ='[1]Tabel 2 F DATA'!K169 -> MA. Hum. | C174: ='[1]Tabel 2 F DATA'!M169 -> 3 | D174: ='[1]Tabel 2 F DATA'!N169 -> 2.999438658 | F174: ='[1]Tabel 2 F DATA'!P169 -> 10 | G174: ='[1]Tabel 2 F DATA'!Q169 -> 9.28085823 | I174: ='[1]Tabel 2 F DATA'!S169 -> 13 | J174: ='[1]Tabel 2 F DATA'!T169 -> 12.28029689
A175: ='[1]Tabel 2 F DATA'!K170 -> MA. Nat. | C175: ='[1]Tabel 2 F DATA'!M170 -> 3 | D175: ='[1]Tabel 2 F DATA'!N170 -> 2.312106281 | F175: ='[1]Tabel 2 F DATA'!P170 -> 2 | G175: ='[1]Tabel 2 F DATA'!Q170 -> 1.949728685 | I175: ='[1]Tabel 2 F DATA'!S170 -> 5 | J175: ='[1]Tabel 2 F DATA'!T170 -> 4.261834965
A176: ='[1]Tabel 2 F DATA'!K171 -> MA. Ph.d. | C176: ='[1]Tabel 2 F DATA'!M171 -> 1 | D176: ='[1]Tabel 2 F DATA'!N171 -> 0.9998128859 | F176: ='[1]Tabel 2 F DATA'!P171 -> 0 | G176: ='[1]Tabel 2 F DATA'!Q171 -> 0 | I176: ='[1]Tabel 2 F DATA'!S171 -> 1 | J176: ='[1]Tabel 2 F DATA'!T171 -> 0.9998128859
A177: ='[1]Tabel 2 F DATA'!K172 -> MA. Samf. | C177: ='[1]Tabel 2 F DATA'!M172 -> 1 | D177: ='[1]Tabel 2 F DATA'!N172 -> 0.9998128859 | F177: ='[1]Tabel 2 F DATA'!P172 -> 1 | G177: ='[1]Tabel 2 F DATA'!Q172 -> 0.9998128859 | I177: ='[1]Tabel 2 F DATA'!S172 -> 2 | J177: ='[1]Tabel 2 F DATA'!T172 -> 1.999625772
A178: ='[1]Tabel 2 F DATA'!K173 -> Øvrige Mag. | C178: ='[1]Tabel 2 F DATA'!M173 -> 2 | D178: ='[1]Tabel 2 F DATA'!N173 -> 1.861161355 | F178: ='[1]Tabel 2 F DATA'!P173 -> 2 | G178: ='[1]Tabel 2 F DATA'!Q173 -> 1.460737229 | I178: ='[1]Tabel 2 F DATA'!S173 -> 4 | J178: ='[1]Tabel 2 F DATA'!T173 -> 3.321898584
A179: ='[1]Tabel 2 F DATA'!K174 -> Agronom | C179: ='[1]Tabel 2 F DATA'!M174 -> 0 | D179: ='[1]Tabel 2 F DATA'!N174 -> 0 | F179: ='[1]Tabel 2 F DATA'!P174 -> 0 | G179: ='[1]Tabel 2 F DATA'!Q174 -> 0 | I179: ='[1]Tabel 2 F DATA'!S174 -> 0 | J179: ='[1]Tabel 2 F DATA'!T174 -> 0
A180: ='[1]Tabel 2 F DATA'!K175 -> Landsk. Arkt. | C180: ='[1]Tabel 2 F DATA'!M175 -> 0 | D180: ='[1]Tabel 2 F DATA'!N175 -> 0 | F180: ='[1]Tabel 2 F DATA'!P175 -> 0 | G180: ='[1]Tabel 2 F DATA'!Q175 -> 0 | I180: ='[1]Tabel 2 F DATA'!S175 -> 0 | J180: ='[1]Tabel 2 F DATA'!T175 -> 0
A181: ='[1]Tabel 2 F DATA'!K176 -> Hortonom | C181: ='[1]Tabel 2 F DATA'!M176 -> 0 | D181: ='[1]Tabel 2 F DATA'!N176 -> 0 | F181: ='[1]Tabel 2 F DATA'!P176 -> 1 | G181: ='[1]Tabel 2 F DATA'!Q176 -> 0.9998128859 | I181: ='[1]Tabel 2 F DATA'!S176 -> 1 | J181: ='[1]Tabel 2 F DATA'!T176 -> 0.9998128859
A182: ='[1]Tabel 2 F DATA'!K177 -> Forstkand. | C182: ='[1]Tabel 2 F DATA'!M177 -> 1 | D182: ='[1]Tabel 2 F DATA'!N177 -> 0.9998128859 | F182: ='[1]Tabel 2 F DATA'!P177 -> 0 | G182: ='[1]Tabel 2 F DATA'!Q177 -> 0 | I182: ='[1]Tabel 2 F DATA'!S177 -> 1 | J182: ='[1]Tabel 2 F DATA'!T177 -> 0.9998128859
A183: ='[1]Tabel 2 F DATA'!K178 -> Jordbrugsakad. | C183: ='[1]Tabel 2 F DATA'!M178 -> 1 | D183: ='[1]Tabel 2 F DATA'!N178 -> 0.9998128859 | F183: ='[1]Tabel 2 F DATA'!P178 -> 1 | G183: ='[1]Tabel 2 F DATA'!Q178 -> 0.9998128859 | I183: ='[1]Tabel 2 F DATA'!S178 -> 2 | J183: ='[1]Tabel 2 F DATA'!T178 -> 1.999625772
A184: ='[1]Tabel 2 F DATA'!K179 -> Mejeriing. | C184: ='[1]Tabel 2 F DATA'!M179 -> 0 | D184: ='[1]Tabel 2 F DATA'!N179 -> 0 | F184: ='[1]Tabel 2 F DATA'!P179 -> 0 | G184: ='[1]Tabel 2 F DATA'!Q179 -> 0 | I184: ='[1]Tabel 2 F DATA'!S179 -> 0 | J184: ='[1]Tabel 2 F DATA'!T179 -> 0
A185: ='[1]Tabel 2 F DATA'!K180 -> Levn.m.kand. | C185: ='[1]Tabel 2 F DATA'!M180 -> 0 | D185: ='[1]Tabel 2 F DATA'!N180 -> 0 | F185: ='[1]Tabel 2 F DATA'!P180 -> 0 | G185: ='[1]Tabel 2 F DATA'!Q180 -> 0 | I185: ='[1]Tabel 2 F DATA'!S180 -> 0 | J185: ='[1]Tabel 2 F DATA'!T180 -> 0
A186: ='[1]Tabel 2 F DATA'!K181 -> Dyrlæge | C186: ='[1]Tabel 2 F DATA'!M181 -> 0 | D186: ='[1]Tabel 2 F DATA'!N181 -> 0 | F186: ='[1]Tabel 2 F DATA'!P181 -> 0 | G186: ='[1]Tabel 2 F DATA'!Q181 -> 0 | I186: ='[1]Tabel 2 F DATA'!S181 -> 0 | J186: ='[1]Tabel 2 F DATA'!T181 -> 0
A187: ='[1]Tabel 2 F DATA'!K182 -> Farmaceut | C187: ='[1]Tabel 2 F DATA'!M182 -> 0 | D187: ='[1]Tabel 2 F DATA'!N182 -> 0 | F187: ='[1]Tabel 2 F DATA'!P182 -> 0 | G187: ='[1]Tabel 2 F DATA'!Q182 -> 0 | I187: ='[1]Tabel 2 F DATA'!S182 -> 0 | J187: ='[1]Tabel 2 F DATA'!T182 -> 0
A188: ='[1]Tabel 2 F DATA'!K183 -> Læge | C188: ='[1]Tabel 2 F DATA'!M183 -> 0 | D188: ='[1]Tabel 2 F DATA'!N183 -> 0 | F188: ='[1]Tabel 2 F DATA'!P183 -> 0 | G188: ='[1]Tabel 2 F DATA'!Q183 -> 0 | I188: ='[1]Tabel 2 F DATA'!S183 -> 0 | J188: ='[1]Tabel 2 F DATA'!T183 -> 0
A189: ='[1]Tabel 2 F DATA'!K184 -> Tandlæge | C189: ='[1]Tabel 2 F DATA'!M184 -> 0 | D189: ='[1]Tabel 2 F DATA'!N184 -> 0 | F189: ='[1]Tabel 2 F DATA'!P184 -> 0 | G189: ='[1]Tabel 2 F DATA'!Q184 -> 0 | I189: ='[1]Tabel 2 F DATA'!S184 -> 0 | J189: ='[1]Tabel 2 F DATA'!T184 -> 0
A190: ='[1]Tabel 2 F DATA'!K185 -> Arkitekt | C190: ='[1]Tabel 2 F DATA'!M185 -> 1 | D190: ='[1]Tabel 2 F DATA'!N185 -> 0.9998128859 | F190: ='[1]Tabel 2 F DATA'!P185 -> 0 | G190: ='[1]Tabel 2 F DATA'!Q185 -> 0 | I190: ='[1]Tabel 2 F DATA'!S185 -> 1 | J190: ='[1]Tabel 2 F DATA'!T185 -> 0.9998128859
A191: ='[1]Tabel 2 F DATA'!K186 -> Landinspek. | C191: ='[1]Tabel 2 F DATA'!M186 -> 0 | D191: ='[1]Tabel 2 F DATA'!N186 -> 0 | F191: ='[1]Tabel 2 F DATA'!P186 -> 0 | G191: ='[1]Tabel 2 F DATA'!Q186 -> 0 | I191: ='[1]Tabel 2 F DATA'!S186 -> 0 | J191: ='[1]Tabel 2 F DATA'!T186 -> 0
A192: ='[1]Tabel 2 F DATA'!K187 -> Bibliotekar | C192: ='[1]Tabel 2 F DATA'!M187 -> 0 | D192: ='[1]Tabel 2 F DATA'!N187 -> 0 | F192: ='[1]Tabel 2 F DATA'!P187 -> 0 | G192: ='[1]Tabel 2 F DATA'!Q187 -> 0 | I192: ='[1]Tabel 2 F DATA'!S187 -> 0 | J192: ='[1]Tabel 2 F DATA'!T187 -> 0
A193: ='[1]Tabel 2 F DATA'!K188 -> Musikudd. | C193: ='[1]Tabel 2 F DATA'!M188 -> 1 | D193: ='[1]Tabel 2 F DATA'!N188 -> 0.3567641739 | F193: ='[1]Tabel 2 F DATA'!P188 -> 0 | G193: ='[1]Tabel 2 F DATA'!Q188 -> 0 | I193: ='[1]Tabel 2 F DATA'!S188 -> 1 | J193: ='[1]Tabel 2 F DATA'!T188 -> 0.3567641739
A194: ='[1]Tabel 2 F DATA'!K189 -> Teolog | C194: ='[1]Tabel 2 F DATA'!M189 -> 0 | D194: ='[1]Tabel 2 F DATA'!N189 -> 0 | F194: ='[1]Tabel 2 F DATA'!P189 -> 0 | G194: ='[1]Tabel 2 F DATA'!Q189 -> 0 | I194: ='[1]Tabel 2 F DATA'!S189 -> 0 | J194: ='[1]Tabel 2 F DATA'!T189 -> 0
A195: ='[1]Tabel 2 F DATA'!K190 -> Psykolog | C195: ='[1]Tabel 2 F DATA'!M190 -> 0 | D195: ='[1]Tabel 2 F DATA'!N190 -> 0 | F195: ='[1]Tabel 2 F DATA'!P190 -> 2 | G195: ='[1]Tabel 2 F DATA'!Q190 -> 0.6149816004 | I195: ='[1]Tabel 2 F DATA'!S190 -> 2 | J195: ='[1]Tabel 2 F DATA'!T190 -> 0.6149816004
A196: ='[1]Tabel 2 F DATA'!K191 -> Jurist | C196: ='[1]Tabel 2 F DATA'!M191 -> 0 | D196: ='[1]Tabel 2 F DATA'!N191 -> 0 | F196: ='[1]Tabel 2 F DATA'!P191 -> 1 | G196: ='[1]Tabel 2 F DATA'!Q191 -> 0.9998128859 | I196: ='[1]Tabel 2 F DATA'!S191 -> 1 | J196: ='[1]Tabel 2 F DATA'!T191 -> 0.9998128859
A197: ='[1]Tabel 2 F DATA'!K192 -> Økonom | C197: ='[1]Tabel 2 F DATA'!M192 -> 0 | D197: ='[1]Tabel 2 F DATA'!N192 -> 0 | F197: ='[1]Tabel 2 F DATA'!P192 -> 0 | G197: ='[1]Tabel 2 F DATA'!Q192 -> 0 | I197: ='[1]Tabel 2 F DATA'!S192 -> 0 | J197: ='[1]Tabel 2 F DATA'!T192 -> 0
A198: ='[1]Tabel 2 F DATA'!K193 -> Samf. Adm. | C198: ='[1]Tabel 2 F DATA'!M193 -> 3 | D198: ='[1]Tabel 2 F DATA'!N193 -> 2.805463731 | F198: ='[1]Tabel 2 F DATA'!P193 -> 6 | G198: ='[1]Tabel 2 F DATA'!Q193 -> 5.533586977 | I198: ='[1]Tabel 2 F DATA'!S193 -> 9 | J198: ='[1]Tabel 2 F DATA'!T193 -> 8.339050708
A199: ='[1]Tabel 2 F DATA'!K194 -> Cand. Merc. | C199: ='[1]Tabel 2 F DATA'!M194 -> 1 | D199: ='[1]Tabel 2 F DATA'!N194 -> 0.9998128859 | F199: ='[1]Tabel 2 F DATA'!P194 -> 4 | G199: ='[1]Tabel 2 F DATA'!Q194 -> 3.006299507 | I199: ='[1]Tabel 2 F DATA'!S194 -> 5 | J199: ='[1]Tabel 2 F DATA'!T194 -> 4.006112393
A200: ='[1]Tabel 2 F DATA'!K195 -> HA | C200: ='[1]Tabel 2 F DATA'!M195 -> 2 | D200: ='[1]Tabel 2 F DATA'!N195 -> 1.500654899 | F200: ='[1]Tabel 2 F DATA'!P195 -> 1 | G200: ='[1]Tabel 2 F DATA'!Q195 -> 0.9075032745 | I200: ='[1]Tabel 2 F DATA'!S195 -> 3 | J200: ='[1]Tabel 2 F DATA'!T195 -> 2.408158174
A201: ='[1]Tabel 2 F DATA'!K196 -> HD | C201: ='[1]Tabel 2 F DATA'!M196 -> 1 | D201: ='[1]Tabel 2 F DATA'!N196 -> 0.9998128859 | F201: ='[1]Tabel 2 F DATA'!P196 -> 0 | G201: ='[1]Tabel 2 F DATA'!Q196 -> 0 | I201: ='[1]Tabel 2 F DATA'!S196 -> 1 | J201: ='[1]Tabel 2 F DATA'!T196 -> 0.9998128859
A202: ='[1]Tabel 2 F DATA'!K197 -> Komm. og Sprog | C202: ='[1]Tabel 2 F DATA'!M197 -> 0 | D202: ='[1]Tabel 2 F DATA'!N197 -> 0 | F202: ='[1]Tabel 2 F DATA'!P197 -> 3 | G202: ='[1]Tabel 2 F DATA'!Q197 -> 2.999438658 | I202: ='[1]Tabel 2 F DATA'!S197 -> 3 | J202: ='[1]Tabel 2 F DATA'!T197 -> 2.999438658
A203: ='[1]Tabel 2 F DATA'!K198 -> Bygningskonst. | C203: ='[1]Tabel 2 F DATA'!M198 -> 4 | D203: ='[1]Tabel 2 F DATA'!N198 -> 2.82423751 | F203: ='[1]Tabel 2 F DATA'!P198 -> 1 | G203: ='[1]Tabel 2 F DATA'!Q198 -> 1 | I203: ='[1]Tabel 2 F DATA'!S198 -> 5 | J203: ='[1]Tabel 2 F DATA'!T198 -> 3.82423751
A204: ='[1]Tabel 2 F DATA'!K199 -> Cand. IT. | C204: ='[1]Tabel 2 F DATA'!M199 -> 1 | D204: ='[1]Tabel 2 F DATA'!N199 -> 0.9998128859 | F204: ='[1]Tabel 2 F DATA'!P199 -> 1 | G204: ='[1]Tabel 2 F DATA'!Q199 -> 0.9998128859 | I204: ='[1]Tabel 2 F DATA'!S199 -> 2 | J204: ='[1]Tabel 2 F DATA'!T199 -> 1.999625772
A205: ='[1]Tabel 2 F DATA'!K200 -> Bac. Samf. | C205: ='[1]Tabel 2 F DATA'!M200 -> 0 | D205: ='[1]Tabel 2 F DATA'!N200 -> 0 | F205: ='[1]Tabel 2 F DATA'!P200 -> 0 | G205: ='[1]Tabel 2 F DATA'!Q200 -> 0 | I205: ='[1]Tabel 2 F DATA'!S200 -> 0 | J205: ='[1]Tabel 2 F DATA'!T200 -> 0
A206: ='[1]Tabel 2 F DATA'!K201 -> Bac. Hum. | C206: ='[1]Tabel 2 F DATA'!M201 -> 0 | D206: ='[1]Tabel 2 F DATA'!N201 -> 0 | F206: ='[1]Tabel 2 F DATA'!P201 -> 2 | G206: ='[1]Tabel 2 F DATA'!Q201 -> 1.999625772 | I206: ='[1]Tabel 2 F DATA'!S201 -> 2 | J206: ='[1]Tabel 2 F DATA'!T201 -> 1.999625772
A207: ='[1]Tabel 2 F DATA'!K202 -> Bac. Nat. | C207: ='[1]Tabel 2 F DATA'!M202 -> 3 | D207: ='[1]Tabel 2 F DATA'!N202 -> 1.86552735 | F207: ='[1]Tabel 2 F DATA'!P202 -> 2 | G207: ='[1]Tabel 2 F DATA'!Q202 -> 1.718954656 | I207: ='[1]Tabel 2 F DATA'!S202 -> 5 | J207: ='[1]Tabel 2 F DATA'!T202 -> 3.584482006
A208: ='[1]Tabel 2 F DATA'!K204 -> Andre | C208: ='[1]Tabel 2 F DATA'!M204 -> 4 | D208: ='[1]Tabel 2 F DATA'!N204 -> 2.4231273 | F208: ='[1]Tabel 2 F DATA'!P204 -> 4 | G208: ='[1]Tabel 2 F DATA'!Q204 -> 2.634566207 | I208: ='[1]Tabel 2 F DATA'!S204 -> 8 | J208: ='[1]Tabel 2 F DATA'!T204 -> 5.057693507
A210: ='[1]Tabel 2 F DATA'!K206 -> Total | C210: ='[1]Tabel 2 F DATA'!M206 -> 43 | D210: ='[1]Tabel 2 F DATA'!N206 -> 35.66525292 | F210: ='[1]Tabel 2 F DATA'!P206 -> 51 | G210: ='[1]Tabel 2 F DATA'!Q206 -> 43.83664941 | I210: ='[1]Tabel 2 F DATA'!S206 -> 94 | J210: ='[1]Tabel 2 F DATA'!T206 -> 79.50190233
A212: ='[1]Tabel 2 F DATA'!K208 -> Ingeniører i alt | C212: ='[1]Tabel 2 F DATA'!M208 -> 9 | D212: ='[1]Tabel 2 F DATA'!N208 -> 8.117632383 | F212: ='[1]Tabel 2 F DATA'!P208 -> 3 | G212: ='[1]Tabel 2 F DATA'!Q208 -> 2.168652155 | I212: ='[1]Tabel 2 F DATA'!S208 -> 12 | J212: ='[1]Tabel 2 F DATA'!T208 -> 10.28628454
A213: ='[1]Tabel 2 F DATA'!K209 -> Magistre i alt | C213: ='[1]Tabel 2 F DATA'!M209 -> 10 | D213: ='[1]Tabel 2 F DATA'!N209 -> 9.172332065 | F213: ='[1]Tabel 2 F DATA'!P209 -> 15 | G213: ='[1]Tabel 2 F DATA'!Q209 -> 13.69113703 | I213: ='[1]Tabel 2 F DATA'!S209 -> 25 | J213: ='[1]Tabel 2 F DATA'!T209 -> 22.86346909
A214: ='[1]Tabel 2 F DATA'!K210 -> DJØF'ere i alt | C214: ='[1]Tabel 2 F DATA'!M210 -> 6 | D214: ='[1]Tabel 2 F DATA'!N210 -> 5.305931516 | F214: ='[1]Tabel 2 F DATA'!P210 -> 12 | G214: ='[1]Tabel 2 F DATA'!Q210 -> 10.44720264 | I214: ='[1]Tabel 2 F DATA'!S210 -> 18 | J214: ='[1]Tabel 2 F DATA'!T210 -> 15.75313416
A219: ='[1]Tabel 2 F DATA'!I213 -> Kerteminde
C221: ='[1]Tabel 2 F DATA'!M215 -> Mænd | F221: ='[1]Tabel 2 F DATA'!P215 -> Kvinder | I221: ='[1]Tabel 2 F DATA'!S215 -> I alt
C222: ='[1]Tabel 2 F DATA'!M216 -> Ledigheds- berørte | D222: ='[1]Tabel 2 F DATA'!N216 -> Gns. brutto- ledighed | F222: ='[1]Tabel 2 F DATA'!P216 -> Ledigheds- berørte | G222: ='[1]Tabel 2 F DATA'!Q216 -> Gns. brutto- ledighed | I222: ='[1]Tabel 2 F DATA'!S216 -> Ledigheds- berørte | J222: ='[1]Tabel 2 F DATA'!T216 -> Gns. brutto- ledighed
A225: ='[1]Tabel 2 F DATA'!K219 -> Civ. ing. | C225: ='[1]Tabel 2 F DATA'!M219 -> 1 | D225: ='[1]Tabel 2 F DATA'!N219 -> 0.9998128859 | F225: ='[1]Tabel 2 F DATA'!P219 -> 0 | G225: ='[1]Tabel 2 F DATA'!Q219 -> 0 | I225: ='[1]Tabel 2 F DATA'!S219 -> 1 | J225: ='[1]Tabel 2 F DATA'!T219 -> 0.9998128859
A226: ='[1]Tabel 2 F DATA'!K220 -> Diplom ing. | C226: ='[1]Tabel 2 F DATA'!M220 -> 5 | D226: ='[1]Tabel 2 F DATA'!N220 -> 4.256845257 | F226: ='[1]Tabel 2 F DATA'!P220 -> 3 | G226: ='[1]Tabel 2 F DATA'!Q220 -> 2.999438658 | I226: ='[1]Tabel 2 F DATA'!S220 -> 8 | J226: ='[1]Tabel 2 F DATA'!T220 -> 7.256283914
A227: ='[1]Tabel 2 F DATA'!K221 -> Cand. Scient. Tek. | C227: ='[1]Tabel 2 F DATA'!M221 -> 2 | D227: ='[1]Tabel 2 F DATA'!N221 -> 1.999625772 | F227: ='[1]Tabel 2 F DATA'!P221 -> 0 | G227: ='[1]Tabel 2 F DATA'!Q221 -> 0 | I227: ='[1]Tabel 2 F DATA'!S221 -> 2 | J227: ='[1]Tabel 2 F DATA'!T221 -> 1.999625772
A228: ='[1]Tabel 2 F DATA'!K222 -> MA. Hum. | C228: ='[1]Tabel 2 F DATA'!M222 -> 2 | D228: ='[1]Tabel 2 F DATA'!N222 -> 1.258654026 | F228: ='[1]Tabel 2 F DATA'!P222 -> 5 | G228: ='[1]Tabel 2 F DATA'!Q222 -> 4.258716397 | I228: ='[1]Tabel 2 F DATA'!S222 -> 7 | J228: ='[1]Tabel 2 F DATA'!T222 -> 5.517370424
A229: ='[1]Tabel 2 F DATA'!K223 -> MA. Nat. | C229: ='[1]Tabel 2 F DATA'!M223 -> 1 | D229: ='[1]Tabel 2 F DATA'!N223 -> 0.9998128859 | F229: ='[1]Tabel 2 F DATA'!P223 -> 1 | G229: ='[1]Tabel 2 F DATA'!Q223 -> 0.3998004117 | I229: ='[1]Tabel 2 F DATA'!S223 -> 2 | J229: ='[1]Tabel 2 F DATA'!T223 -> 1.399613298
A230: ='[1]Tabel 2 F DATA'!K224 -> MA. Ph.d. | C230: ='[1]Tabel 2 F DATA'!M224 -> 0 | D230: ='[1]Tabel 2 F DATA'!N224 -> 0 | F230: ='[1]Tabel 2 F DATA'!P224 -> 0 | G230: ='[1]Tabel 2 F DATA'!Q224 -> 0 | I230: ='[1]Tabel 2 F DATA'!S224 -> 0 | J230: ='[1]Tabel 2 F DATA'!T224 -> 0
A231: ='[1]Tabel 2 F DATA'!K225 -> MA. Samf. | C231: ='[1]Tabel 2 F DATA'!M225 -> 0 | D231: ='[1]Tabel 2 F DATA'!N225 -> 0 | F231: ='[1]Tabel 2 F DATA'!P225 -> 0 | G231: ='[1]Tabel 2 F DATA'!Q225 -> 0 | I231: ='[1]Tabel 2 F DATA'!S225 -> 0 | J231: ='[1]Tabel 2 F DATA'!T225 -> 0
A232: ='[1]Tabel 2 F DATA'!K226 -> Øvrige Mag. | C232: ='[1]Tabel 2 F DATA'!M226 -> 1 | D232: ='[1]Tabel 2 F DATA'!N226 -> 0.9998128859 | F232: ='[1]Tabel 2 F DATA'!P226 -> 2 | G232: ='[1]Tabel 2 F DATA'!Q226 -> 1.3079274 | I232: ='[1]Tabel 2 F DATA'!S226 -> 3 | J232: ='[1]Tabel 2 F DATA'!T226 -> 2.307740286
A233: ='[1]Tabel 2 F DATA'!K227 -> Agronom | C233: ='[1]Tabel 2 F DATA'!M227 -> 0 | D233: ='[1]Tabel 2 F DATA'!N227 -> 0 | F233: ='[1]Tabel 2 F DATA'!P227 -> 0 | G233: ='[1]Tabel 2 F DATA'!Q227 -> 0 | I233: ='[1]Tabel 2 F DATA'!S227 -> 0 | J233: ='[1]Tabel 2 F DATA'!T227 -> 0
A234: ='[1]Tabel 2 F DATA'!K228 -> Landsk. Arkt. | C234: ='[1]Tabel 2 F DATA'!M228 -> 0 | D234: ='[1]Tabel 2 F DATA'!N228 -> 0 | F234: ='[1]Tabel 2 F DATA'!P228 -> 0 | G234: ='[1]Tabel 2 F DATA'!Q228 -> 0 | I234: ='[1]Tabel 2 F DATA'!S228 -> 0 | J234: ='[1]Tabel 2 F DATA'!T228 -> 0
A235: ='[1]Tabel 2 F DATA'!K229 -> Hortonom | C235: ='[1]Tabel 2 F DATA'!M229 -> 0 | D235: ='[1]Tabel 2 F DATA'!N229 -> 0 | F235: ='[1]Tabel 2 F DATA'!P229 -> 0 | G235: ='[1]Tabel 2 F DATA'!Q229 -> 0 | I235: ='[1]Tabel 2 F DATA'!S229 -> 0 | J235: ='[1]Tabel 2 F DATA'!T229 -> 0
A236: ='[1]Tabel 2 F DATA'!K230 -> Forstkand. | C236: ='[1]Tabel 2 F DATA'!M230 -> 0 | D236: ='[1]Tabel 2 F DATA'!N230 -> 0 | F236: ='[1]Tabel 2 F DATA'!P230 -> 0 | G236: ='[1]Tabel 2 F DATA'!Q230 -> 0 | I236: ='[1]Tabel 2 F DATA'!S230 -> 0 | J236: ='[1]Tabel 2 F DATA'!T230 -> 0
A237: ='[1]Tabel 2 F DATA'!K231 -> Jordbrugsakad. | C237: ='[1]Tabel 2 F DATA'!M231 -> 0 | D237: ='[1]Tabel 2 F DATA'!N231 -> 0 | F237: ='[1]Tabel 2 F DATA'!P231 -> 0 | G237: ='[1]Tabel 2 F DATA'!Q231 -> 0 | I237: ='[1]Tabel 2 F DATA'!S231 -> 0 | J237: ='[1]Tabel 2 F DATA'!T231 -> 0
A238: ='[1]Tabel 2 F DATA'!K232 -> Mejeriing. | C238: ='[1]Tabel 2 F DATA'!M232 -> 0 | D238: ='[1]Tabel 2 F DATA'!N232 -> 0 | F238: ='[1]Tabel 2 F DATA'!P232 -> 0 | G238: ='[1]Tabel 2 F DATA'!Q232 -> 0 | I238: ='[1]Tabel 2 F DATA'!S232 -> 0 | J238: ='[1]Tabel 2 F DATA'!T232 -> 0
A239: ='[1]Tabel 2 F DATA'!K233 -> Levn.m.kand. | C239: ='[1]Tabel 2 F DATA'!M233 -> 0 | D239: ='[1]Tabel 2 F DATA'!N233 -> 0 | F239: ='[1]Tabel 2 F DATA'!P233 -> 0 | G239: ='[1]Tabel 2 F DATA'!Q233 -> 0 | I239: ='[1]Tabel 2 F DATA'!S233 -> 0 | J239: ='[1]Tabel 2 F DATA'!T233 -> 0
A240: ='[1]Tabel 2 F DATA'!K234 -> Dyrlæge | C240: ='[1]Tabel 2 F DATA'!M234 -> 0 | D240: ='[1]Tabel 2 F DATA'!N234 -> 0 | F240: ='[1]Tabel 2 F DATA'!P234 -> 0 | G240: ='[1]Tabel 2 F DATA'!Q234 -> 0 | I240: ='[1]Tabel 2 F DATA'!S234 -> 0 | J240: ='[1]Tabel 2 F DATA'!T234 -> 0
... 296 more rows

Sheet Tabel 3 F
A1: Tabel 3. Ledige i procent af forsikrede
A3: Fyn
C5: Mænd | F5: Kvinder | I5: I alt
C6: Ledigheds- berørte | D6: Gns. brutto- ledighed | F6: Ledigheds- berørte | G6: Gns. brutto- ledighed | I6: Ledigheds- berørte | J6: Gns. brutto- ledighed
A9: Civ. ing. | C9: =IF(OR('Tabel 1 F'!C7<5,'Tabel 2 F'!C9<0.5),"-",IFERROR('Tabel 2 F'!C9/'Tabel 1 F'!C7*100,"-")) -> 7.357859532 | D9: =IF(OR('Tabel 1 F'!C7<5,'Tabel 2 F'!D9<0.5),"-",IFERROR('Tabel 2 F'!D9/'Tabel 1 F'!C7*100,"-")) -> 6.738088478 | F9: =IF(OR('Tabel 1 F'!E7<5,'Tabel 2 F'!F9<0.5),"-",IFERROR('Tabel 2 F'!F9/'Tabel 1 F'!E7*100,"-")) -> 11.00628931 | G9: =IF(OR('Tabel 1 F'!E7<5,'Tabel 2 F'!G9<0.5),"-",IFERROR('Tabel 2 F'!G9/'Tabel 1 F'!E7*100,"-")) -> 9.478289079 | I9: =IF(OR('Tabel 1 F'!G7<5,'Tabel 2 F'!I9<0.5),"-",IFERROR('Tabel 2 F'!I9/'Tabel 1 F'!G7*100,"-")) -> 8.124174373 | J9: =IF(OR('Tabel 1 F'!G7<5,'Tabel 2 F'!J9<0.5),"-",IFERROR('Tabel 2 F'!J9/'Tabel 1 F'!G7*100,"-")) -> 7.313639199
A10: Diplom ing. | C10: =IF(OR('Tabel 1 F'!C8<5,'Tabel 2 F'!C10<0.5),"-",IFERROR('Tabel 2 F'!C10/'Tabel 1 F'!C8*100,"-")) -> 4.576144036 | D10: =IF(OR('Tabel 1 F'!C8<5,'Tabel 2 F'!D10<0.5),"-",IFERROR('Tabel 2 F'!D10/'Tabel 1 F'!C8*100,"-")) -> 4.250002187 | F10: =IF(OR('Tabel 1 F'!E8<5,'Tabel 2 F'!F10<0.5),"-",IFERROR('Tabel 2 F'!F10/'Tabel 1 F'!E8*100,"-")) -> 8.019639935 | G10: =IF(OR('Tabel 1 F'!E8<5,'Tabel 2 F'!G10<0.5),"-",IFERROR('Tabel 2 F'!G10/'Tabel 1 F'!E8*100,"-")) -> 6.788678384 | I10: =IF(OR('Tabel 1 F'!G8<5,'Tabel 2 F'!I10<0.5),"-",IFERROR('Tabel 2 F'!I10/'Tabel 1 F'!G8*100,"-")) -> 5.218187366 | J10: =IF(OR('Tabel 1 F'!G8<5,'Tabel 2 F'!J10<0.5),"-",IFERROR('Tabel 2 F'!J10/'Tabel 1 F'!G8*100,"-")) -> 4.723340959
A11: Cand. Scient. Tek. | C11: =IF(OR('Tabel 1 F'!C9<5,'Tabel 2 F'!C11<0.5),"-",IFERROR('Tabel 2 F'!C11/'Tabel 1 F'!C9*100,"-")) -> 12.27272727 | D11: =IF(OR('Tabel 1 F'!C9<5,'Tabel 2 F'!D11<0.5),"-",IFERROR('Tabel 2 F'!D11/'Tabel 1 F'!C9*100,"-")) -> 10.93020267 | F11: =IF(OR('Tabel 1 F'!E9<5,'Tabel 2 F'!F11<0.5),"-",IFERROR('Tabel 2 F'!F11/'Tabel 1 F'!E9*100,"-")) -> 11.2164297 | G11: =IF(OR('Tabel 1 F'!E9<5,'Tabel 2 F'!G11<0.5),"-",IFERROR('Tabel 2 F'!G11/'Tabel 1 F'!E9*100,"-")) -> 10.08405945 | I11: =IF(OR('Tabel 1 F'!G9<5,'Tabel 2 F'!I11<0.5),"-",IFERROR('Tabel 2 F'!I11/'Tabel 1 F'!G9*100,"-")) -> 11.75560712 | J11: =IF(OR('Tabel 1 F'!G9<5,'Tabel 2 F'!J11<0.5),"-",IFERROR('Tabel 2 F'!J11/'Tabel 1 F'!G9*100,"-")) -> 10.5159655
A12: MA. Hum. | C12: =IF(OR('Tabel 1 F'!C10<5,'Tabel 2 F'!C12<0.5),"-",IFERROR('Tabel 2 F'!C12/'Tabel 1 F'!C10*100,"-")) -> 13.42723005 | D12: =IF(OR('Tabel 1 F'!C10<5,'Tabel 2 F'!D12<0.5),"-",IFERROR('Tabel 2 F'!D12/'Tabel 1 F'!C10*100,"-")) -> 12.06267941 | F12: =IF(OR('Tabel 1 F'!E10<5,'Tabel 2 F'!F12<0.5),"-",IFERROR('Tabel 2 F'!F12/'Tabel 1 F'!E10*100,"-")) -> 13.42894394 | G12: =IF(OR('Tabel 1 F'!E10<5,'Tabel 2 F'!G12<0.5),"-",IFERROR('Tabel 2 F'!G12/'Tabel 1 F'!E10*100,"-")) -> 12.01086427 | I12: =IF(OR('Tabel 1 F'!G10<5,'Tabel 2 F'!I12<0.5),"-",IFERROR('Tabel 2 F'!I12/'Tabel 1 F'!G10*100,"-")) -> 13.42840166 | J12: =IF(OR('Tabel 1 F'!G10<5,'Tabel 2 F'!J12<0.5),"-",IFERROR('Tabel 2 F'!J12/'Tabel 1 F'!G10*100,"-")) -> 12.02725854
A13: MA. Nat. | C13: =IF(OR('Tabel 1 F'!C11<5,'Tabel 2 F'!C13<0.5),"-",IFERROR('Tabel 2 F'!C13/'Tabel 1 F'!C11*100,"-")) -> 6.312292359 | D13: =IF(OR('Tabel 1 F'!C11<5,'Tabel 2 F'!D13<0.5),"-",IFERROR('Tabel 2 F'!D13/'Tabel 1 F'!C11*100,"-")) -> 5.778157301 | F13: =IF(OR('Tabel 1 F'!E11<5,'Tabel 2 F'!F13<0.5),"-",IFERROR('Tabel 2 F'!F13/'Tabel 1 F'!E11*100,"-")) -> 5.902192243 | G13: =IF(OR('Tabel 1 F'!E11<5,'Tabel 2 F'!G13<0.5),"-",IFERROR('Tabel 2 F'!G13/'Tabel 1 F'!E11*100,"-")) -> 5.313661147 | I13: =IF(OR('Tabel 1 F'!G11<5,'Tabel 2 F'!I13<0.5),"-",IFERROR('Tabel 2 F'!I13/'Tabel 1 F'!G11*100,"-")) -> 6.108786611 | J13: =IF(OR('Tabel 1 F'!G11<5,'Tabel 2 F'!J13<0.5),"-",IFERROR('Tabel 2 F'!J13/'Tabel 1 F'!G11*100,"-")) -> 5.547658373
A14: MA. Ph.d. | C14: =IF(OR('Tabel 1 F'!C12<5,'Tabel 2 F'!C14<0.5),"-",IFERROR('Tabel 2 F'!C14/'Tabel 1 F'!C12*100,"-")) -> 3.529411765 | D14: =IF(OR('Tabel 1 F'!C12<5,'Tabel 2 F'!D14<0.5),"-",IFERROR('Tabel 2 F'!D14/'Tabel 1 F'!C12*100,"-")) -> 3.411346451 | F14: =IF(OR('Tabel 1 F'!E12<5,'Tabel 2 F'!F14<0.5),"-",IFERROR('Tabel 2 F'!F14/'Tabel 1 F'!E12*100,"-")) -> 8.333333333 | G14: =IF(OR('Tabel 1 F'!E12<5,'Tabel 2 F'!G14<0.5),"-",IFERROR('Tabel 2 F'!G14/'Tabel 1 F'!E12*100,"-")) -> 7.19869436 | I14: =IF(OR('Tabel 1 F'!G12<5,'Tabel 2 F'!I14<0.5),"-",IFERROR('Tabel 2 F'!I14/'Tabel 1 F'!G12*100,"-")) -> 5.732484076 | J14: =IF(OR('Tabel 1 F'!G12<5,'Tabel 2 F'!J14<0.5),"-",IFERROR('Tabel 2 F'!J14/'Tabel 1 F'!G12*100,"-")) -> 5.148219377
A15: MA. Samf. | C15: =IF(OR('Tabel 1 F'!C13<5,'Tabel 2 F'!C15<0.5),"-",IFERROR('Tabel 2 F'!C15/'Tabel 1 F'!C13*100,"-")) -> 14.54545455 | D15: =IF(OR('Tabel 1 F'!C13<5,'Tabel 2 F'!D15<0.5),"-",IFERROR('Tabel 2 F'!D15/'Tabel 1 F'!C13*100,"-")) -> 13.75798779 | F15: =IF(OR('Tabel 1 F'!E13<5,'Tabel 2 F'!F15<0.5),"-",IFERROR('Tabel 2 F'!F15/'Tabel 1 F'!E13*100,"-")) -> 12.92517007 | G15: =IF(OR('Tabel 1 F'!E13<5,'Tabel 2 F'!G15<0.5),"-",IFERROR('Tabel 2 F'!G15/'Tabel 1 F'!E13*100,"-")) -> 11.88280464 | I15: =IF(OR('Tabel 1 F'!G13<5,'Tabel 2 F'!I15<0.5),"-",IFERROR('Tabel 2 F'!I15/'Tabel 1 F'!G13*100,"-")) -> 13.36633663 | J15: =IF(OR('Tabel 1 F'!G13<5,'Tabel 2 F'!J15<0.5),"-",IFERROR('Tabel 2 F'!J15/'Tabel 1 F'!G13*100,"-")) -> 12.39337431
A16: Øvrige Mag. | C16: =IF(OR('Tabel 1 F'!C14<5,'Tabel 2 F'!C16<0.5),"-",IFERROR('Tabel 2 F'!C16/'Tabel 1 F'!C14*100,"-")) -> 7.894736842 | D16: =IF(OR('Tabel 1 F'!C14<5,'Tabel 2 F'!D16<0.5),"-",IFERROR('Tabel 2 F'!D16/'Tabel 1 F'!C14*100,"-")) -> 6.664707987 | F16: =IF(OR('Tabel 1 F'!E14<5,'Tabel 2 F'!F16<0.5),"-",IFERROR('Tabel 2 F'!F16/'Tabel 1 F'!E14*100,"-")) -> 12.83783784 | G16: =IF(OR('Tabel 1 F'!E14<5,'Tabel 2 F'!G16<0.5),"-",IFERROR('Tabel 2 F'!G16/'Tabel 1 F'!E14*100,"-")) -> 10.95881636 | I16: =IF(OR('Tabel 1 F'!G14<5,'Tabel 2 F'!I16<0.5),"-",IFERROR('Tabel 2 F'!I16/'Tabel 1 F'!G14*100,"-")) -> 11.16071429 | J16: =IF(OR('Tabel 1 F'!G14<5,'Tabel 2 F'!J16<0.5),"-",IFERROR('Tabel 2 F'!J16/'Tabel 1 F'!G14*100,"-")) -> 9.501886734
A17: Agronom | C17: =IF(OR('Tabel 1 F'!C15<5,'Tabel 2 F'!C17<0.5),"-",IFERROR('Tabel 2 F'!C17/'Tabel 1 F'!C15*100,"-")) -> 3.797468354 | D17: =IF(OR('Tabel 1 F'!C15<5,'Tabel 2 F'!D17<0.5),"-",IFERROR('Tabel 2 F'!D17/'Tabel 1 F'!C15*100,"-")) -> 3.796757795 | F17: =IF(OR('Tabel 1 F'!E15<5,'Tabel 2 F'!F17<0.5),"-",IFERROR('Tabel 2 F'!F17/'Tabel 1 F'!E15*100,"-")) -> - | G17: =IF(OR('Tabel 1 F'!E15<5,'Tabel 2 F'!G17<0.5),"-",IFERROR('Tabel 2 F'!G17/'Tabel 1 F'!E15*100,"-")) -> - | I17: =IF(OR('Tabel 1 F'!G15<5,'Tabel 2 F'!I17<0.5),"-",IFERROR('Tabel 2 F'!I17/'Tabel 1 F'!G15*100,"-")) -> 2.097902098 | J17: =IF(OR('Tabel 1 F'!G15<5,'Tabel 2 F'!J17<0.5),"-",IFERROR('Tabel 2 F'!J17/'Tabel 1 F'!G15*100,"-")) -> 2.097509551
A18: Landsk. Arkt. | C18: =IF(OR('Tabel 1 F'!C16<5,'Tabel 2 F'!C18<0.5),"-",IFERROR('Tabel 2 F'!C18/'Tabel 1 F'!C16*100,"-")) -> - | D18: =IF(OR('Tabel 1 F'!C16<5,'Tabel 2 F'!D18<0.5),"-",IFERROR('Tabel 2 F'!D18/'Tabel 1 F'!C16*100,"-")) -> - | F18: =IF(OR('Tabel 1 F'!E16<5,'Tabel 2 F'!F18<0.5),"-",IFERROR('Tabel 2 F'!F18/'Tabel 1 F'!E16*100,"-")) -> - | G18: =IF(OR('Tabel 1 F'!E16<5,'Tabel 2 F'!G18<0.5),"-",IFERROR('Tabel 2 F'!G18/'Tabel 1 F'!E16*100,"-")) -> - | I18: =IF(OR('Tabel 1 F'!G16<5,'Tabel 2 F'!I18<0.5),"-",IFERROR('Tabel 2 F'!I18/'Tabel 1 F'!G16*100,"-")) -> - | J18: =IF(OR('Tabel 1 F'!G16<5,'Tabel 2 F'!J18<0.5),"-",IFERROR('Tabel 2 F'!J18/'Tabel 1 F'!G16*100,"-")) -> -
A19: Hortonom | C19: =IF(OR('Tabel 1 F'!C17<5,'Tabel 2 F'!C19<0.5),"-",IFERROR('Tabel 2 F'!C19/'Tabel 1 F'!C17*100,"-")) -> 5.882352941 | D19: =IF(OR('Tabel 1 F'!C17<5,'Tabel 2 F'!D19<0.5),"-",IFERROR('Tabel 2 F'!D19/'Tabel 1 F'!C17*100,"-")) -> - | F19: =IF(OR('Tabel 1 F'!E17<5,'Tabel 2 F'!F19<0.5),"-",IFERROR('Tabel 2 F'!F19/'Tabel 1 F'!E17*100,"-")) -> 10.52631579 | G19: =IF(OR('Tabel 1 F'!E17<5,'Tabel 2 F'!G19<0.5),"-",IFERROR('Tabel 2 F'!G19/'Tabel 1 F'!E17*100,"-")) -> 10.52434617 | I19: =IF(OR('Tabel 1 F'!G17<5,'Tabel 2 F'!I19<0.5),"-",IFERROR('Tabel 2 F'!I19/'Tabel 1 F'!G17*100,"-")) -> 8.333333333 | J19: =IF(OR('Tabel 1 F'!G17<5,'Tabel 2 F'!J19<0.5),"-",IFERROR('Tabel 2 F'!J19/'Tabel 1 F'!G17*100,"-")) -> 6.63561959
A20: Forstkand. | C20: =IF(OR('Tabel 1 F'!C18<5,'Tabel 2 F'!C20<0.5),"-",IFERROR('Tabel 2 F'!C20/'Tabel 1 F'!C18*100,"-")) -> 16.66666667 | D20: =IF(OR('Tabel 1 F'!C18<5,'Tabel 2 F'!D20<0.5),"-",IFERROR('Tabel 2 F'!D20/'Tabel 1 F'!C18*100,"-")) -> 16.59424659 | F20: =IF(OR('Tabel 1 F'!E18<5,'Tabel 2 F'!F20<0.5),"-",IFERROR('Tabel 2 F'!F20/'Tabel 1 F'!E18*100,"-")) -> 22.22222222 | G20: =IF(OR('Tabel 1 F'!E18<5,'Tabel 2 F'!G20<0.5),"-",IFERROR('Tabel 2 F'!G20/'Tabel 1 F'!E18*100,"-")) -> 22.21806413 | I20: =IF(OR('Tabel 1 F'!G18<5,'Tabel 2 F'!I20<0.5),"-",IFERROR('Tabel 2 F'!I20/'Tabel 1 F'!G18*100,"-")) -> 18.51851852 | J20: =IF(OR('Tabel 1 F'!G18<5,'Tabel 2 F'!J20<0.5),"-",IFERROR('Tabel 2 F'!J20/'Tabel 1 F'!G18*100,"-")) -> 18.46885244
A21: Jordbrugsakad. | C21: =IF(OR('Tabel 1 F'!C19<5,'Tabel 2 F'!C21<0.5),"-",IFERROR('Tabel 2 F'!C21/'Tabel 1 F'!C19*100,"-")) -> 5.737704918 | D21: =IF(OR('Tabel 1 F'!C19<5,'Tabel 2 F'!D21<0.5),"-",IFERROR('Tabel 2 F'!D21/'Tabel 1 F'!C19*100,"-")) -> 5.225901905 | F21: =IF(OR('Tabel 1 F'!E19<5,'Tabel 2 F'!F21<0.5),"-",IFERROR('Tabel 2 F'!F21/'Tabel 1 F'!E19*100,"-")) -> 3.448275862 | G21: =IF(OR('Tabel 1 F'!E19<5,'Tabel 2 F'!G21<0.5),"-",IFERROR('Tabel 2 F'!G21/'Tabel 1 F'!E19*100,"-")) -> 3.447630641 | I21: =IF(OR('Tabel 1 F'!G19<5,'Tabel 2 F'!I21<0.5),"-",IFERROR('Tabel 2 F'!I21/'Tabel 1 F'!G19*100,"-")) -> 4.621848739 | J21: =IF(OR('Tabel 1 F'!G19<5,'Tabel 2 F'!J21<0.5),"-",IFERROR('Tabel 2 F'!J21/'Tabel 1 F'!G19*100,"-")) -> 4.359181457
A22: Mejeriing. | C22: =IF(OR('Tabel 1 F'!C20<5,'Tabel 2 F'!C22<0.5),"-",IFERROR('Tabel 2 F'!C22/'Tabel 1 F'!C20*100,"-")) -> - | D22: =IF(OR('Tabel 1 F'!C20<5,'Tabel 2 F'!D22<0.5),"-",IFERROR('Tabel 2 F'!D22/'Tabel 1 F'!C20*100,"-")) -> - | F22: =IF(OR('Tabel 1 F'!E20<5,'Tabel 2 F'!F22<0.5),"-",IFERROR('Tabel 2 F'!F22/'Tabel 1 F'!E20*100,"-")) -> - | G22: =IF(OR('Tabel 1 F'!E20<5,'Tabel 2 F'!G22<0.5),"-",IFERROR('Tabel 2 F'!G22/'Tabel 1 F'!E20*100,"-")) -> - | I22: =IF(OR('Tabel 1 F'!G20<5,'Tabel 2 F'!I22<0.5),"-",IFERROR('Tabel 2 F'!I22/'Tabel 1 F'!G20*100,"-")) -> - | J22: =IF(OR('Tabel 1 F'!G20<5,'Tabel 2 F'!J22<0.5),"-",IFERROR('Tabel 2 F'!J22/'Tabel 1 F'!G20*100,"-")) -> -
A23: Levn.m.kand. | C23: =IF(OR('Tabel 1 F'!C21<5,'Tabel 2 F'!C23<0.5),"-",IFERROR('Tabel 2 F'!C23/'Tabel 1 F'!C21*100,"-")) -> - | D23: =IF(OR('Tabel 1 F'!C21<5,'Tabel 2 F'!D23<0.5),"-",IFERROR('Tabel 2 F'!D23/'Tabel 1 F'!C21*100,"-")) -> - | F23: =IF(OR('Tabel 1 F'!E21<5,'Tabel 2 F'!F23<0.5),"-",IFERROR('Tabel 2 F'!F23/'Tabel 1 F'!E21*100,"-")) -> - | G23: =IF(OR('Tabel 1 F'!E21<5,'Tabel 2 F'!G23<0.5),"-",IFERROR('Tabel 2 F'!G23/'Tabel 1 F'!E21*100,"-")) -> - | I23: =IF(OR('Tabel 1 F'!G21<5,'Tabel 2 F'!I23<0.5),"-",IFERROR('Tabel 2 F'!I23/'Tabel 1 F'!G21*100,"-")) -> - | J23: =IF(OR('Tabel 1 F'!G21<5,'Tabel 2 F'!J23<0.5),"-",IFERROR('Tabel 2 F'!J23/'Tabel 1 F'!G21*100,"-")) -> -
A24: Dyrlæge | C24: =IF(OR('Tabel 1 F'!C22<5,'Tabel 2 F'!C24<0.5),"-",IFERROR('Tabel 2 F'!C24/'Tabel 1 F'!C22*100,"-")) -> 5 | D24: =IF(OR('Tabel 1 F'!C22<5,'Tabel 2 F'!D24<0.5),"-",IFERROR('Tabel 2 F'!D24/'Tabel 1 F'!C22*100,"-")) -> - | F24: =IF(OR('Tabel 1 F'!E22<5,'Tabel 2 F'!F24<0.5),"-",IFERROR('Tabel 2 F'!F24/'Tabel 1 F'!E22*100,"-")) -> 4.098360656 | G24: =IF(OR('Tabel 1 F'!E22<5,'Tabel 2 F'!G24<0.5),"-",IFERROR('Tabel 2 F'!G24/'Tabel 1 F'!E22*100,"-")) -> 3.227462212 | I24: =IF(OR('Tabel 1 F'!G22<5,'Tabel 2 F'!I24<0.5),"-",IFERROR('Tabel 2 F'!I24/'Tabel 1 F'!G22*100,"-")) -> 4.225352113 | J24: =IF(OR('Tabel 1 F'!G22<5,'Tabel 2 F'!J24<0.5),"-",IFERROR('Tabel 2 F'!J24/'Tabel 1 F'!G22*100,"-")) -> 2.977134308
A25: Farmaceut | C25: =IF(OR('Tabel 1 F'!C23<5,'Tabel 2 F'!C25<0.5),"-",IFERROR('Tabel 2 F'!C25/'Tabel 1 F'!C23*100,"-")) -> 12 | D25: =IF(OR('Tabel 1 F'!C23<5,'Tabel 2 F'!D25<0.5),"-",IFERROR('Tabel 2 F'!D25/'Tabel 1 F'!C23*100,"-")) -> 10.15488888 | F25: =IF(OR('Tabel 1 F'!E23<5,'Tabel 2 F'!F25<0.5),"-",IFERROR('Tabel 2 F'!F25/'Tabel 1 F'!E23*100,"-")) -> 6.511627907 | G25: =IF(OR('Tabel 1 F'!E23<5,'Tabel 2 F'!G25<0.5),"-",IFERROR('Tabel 2 F'!G25/'Tabel 1 F'!E23*100,"-")) -> 5.939784079 | I25: =IF(OR('Tabel 1 F'!G23<5,'Tabel 2 F'!I25<0.5),"-",IFERROR('Tabel 2 F'!I25/'Tabel 1 F'!G23*100,"-")) -> 7.931034483 | J25: =IF(OR('Tabel 1 F'!G23<5,'Tabel 2 F'!J25<0.5),"-",IFERROR('Tabel 2 F'!J25/'Tabel 1 F'!G23*100,"-")) -> 7.029897388
A26: Læge | C26: =IF(OR('Tabel 1 F'!C24<5,'Tabel 2 F'!C26<0.5),"-",IFERROR('Tabel 2 F'!C26/'Tabel 1 F'!C24*100,"-")) -> 1.379310345 | D26: =IF(OR('Tabel 1 F'!C24<5,'Tabel 2 F'!D26<0.5),"-",IFERROR('Tabel 2 F'!D26/'Tabel 1 F'!C24*100,"-")) -> 1.071353552 | F26: =IF(OR('Tabel 1 F'!E24<5,'Tabel 2 F'!F26<0.5),"-",IFERROR('Tabel 2 F'!F26/'Tabel 1 F'!E24*100,"-")) -> 0.9142857143 | G26: =IF(OR('Tabel 1 F'!E24<5,'Tabel 2 F'!G26<0.5),"-",IFERROR('Tabel 2 F'!G26/'Tabel 1 F'!E24*100,"-")) -> 0.6344771053 | I26: =IF(OR('Tabel 1 F'!G24<5,'Tabel 2 F'!I26<0.5),"-",IFERROR('Tabel 2 F'!I26/'Tabel 1 F'!G24*100,"-")) -> 1.06870229 | J26: =IF(OR('Tabel 1 F'!G24<5,'Tabel 2 F'!J26<0.5),"-",IFERROR('Tabel 2 F'!J26/'Tabel 1 F'!G24*100,"-")) -> 0.7795467649
A27: Tandlæge | C27: =IF(OR('Tabel 1 F'!C25<5,'Tabel 2 F'!C27<0.5),"-",IFERROR('Tabel 2 F'!C27/'Tabel 1 F'!C25*100,"-")) -> - | D27: =IF(OR('Tabel 1 F'!C25<5,'Tabel 2 F'!D27<0.5),"-",IFERROR('Tabel 2 F'!D27/'Tabel 1 F'!C25*100,"-")) -> - | F27: =IF(OR('Tabel 1 F'!E25<5,'Tabel 2 F'!F27<0.5),"-",IFERROR('Tabel 2 F'!F27/'Tabel 1 F'!E25*100,"-")) -> - | G27: =IF(OR('Tabel 1 F'!E25<5,'Tabel 2 F'!G27<0.5),"-",IFERROR('Tabel 2 F'!G27/'Tabel 1 F'!E25*100,"-")) -> - | I27: =IF(OR('Tabel 1 F'!G25<5,'Tabel 2 F'!I27<0.5),"-",IFERROR('Tabel 2 F'!I27/'Tabel 1 F'!G25*100,"-")) -> - | J27: =IF(OR('Tabel 1 F'!G25<5,'Tabel 2 F'!J27<0.5),"-",IFERROR('Tabel 2 F'!J27/'Tabel 1 F'!G25*100,"-")) -> -
A28: Arkitekt | C28: =IF(OR('Tabel 1 F'!C26<5,'Tabel 2 F'!C28<0.5),"-",IFERROR('Tabel 2 F'!C28/'Tabel 1 F'!C26*100,"-")) -> 5.333333333 | D28: =IF(OR('Tabel 1 F'!C26<5,'Tabel 2 F'!D28<0.5),"-",IFERROR('Tabel 2 F'!D28/'Tabel 1 F'!C26*100,"-")) -> 5.332335392 | F28: =IF(OR('Tabel 1 F'!E26<5,'Tabel 2 F'!F28<0.5),"-",IFERROR('Tabel 2 F'!F28/'Tabel 1 F'!E26*100,"-")) -> 4.347826087 | G28: =IF(OR('Tabel 1 F'!E26<5,'Tabel 2 F'!G28<0.5),"-",IFERROR('Tabel 2 F'!G28/'Tabel 1 F'!E26*100,"-")) -> 3.993574846 | I28: =IF(OR('Tabel 1 F'!G26<5,'Tabel 2 F'!I28<0.5),"-",IFERROR('Tabel 2 F'!I28/'Tabel 1 F'!G26*100,"-")) -> 4.861111111 | J28: =IF(OR('Tabel 1 F'!G26<5,'Tabel 2 F'!J28<0.5),"-",IFERROR('Tabel 2 F'!J28/'Tabel 1 F'!G26*100,"-")) -> 4.690845964
A29: Landinspek. | C29: =IF(OR('Tabel 1 F'!C27<5,'Tabel 2 F'!C29<0.5),"-",IFERROR('Tabel 2 F'!C29/'Tabel 1 F'!C27*100,"-")) -> - | D29: =IF(OR('Tabel 1 F'!C27<5,'Tabel 2 F'!D29<0.5),"-",IFERROR('Tabel 2 F'!D29/'Tabel 1 F'!C27*100,"-")) -> - | F29: =IF(OR('Tabel 1 F'!E27<5,'Tabel 2 F'!F29<0.5),"-",IFERROR('Tabel 2 F'!F29/'Tabel 1 F'!E27*100,"-")) -> - | G29: =IF(OR('Tabel 1 F'!E27<5,'Tabel 2 F'!G29<0.5),"-",IFERROR('Tabel 2 F'!G29/'Tabel 1 F'!E27*100,"-")) -> - | I29: =IF(OR('Tabel 1 F'!G27<5,'Tabel 2 F'!I29<0.5),"-",IFERROR('Tabel 2 F'!I29/'Tabel 1 F'!G27*100,"-")) -> - | J29: =IF(OR('Tabel 1 F'!G27<5,'Tabel 2 F'!J29<0.5),"-",IFERROR('Tabel 2 F'!J29/'Tabel 1 F'!G27*100,"-")) -> -
A30: Bibliotekar | C30: =IF(OR('Tabel 1 F'!C28<5,'Tabel 2 F'!C30<0.5),"-",IFERROR('Tabel 2 F'!C30/'Tabel 1 F'!C28*100,"-")) -> 9.836065574 | D30: =IF(OR('Tabel 1 F'!C28<5,'Tabel 2 F'!D30<0.5),"-",IFERROR('Tabel 2 F'!D30/'Tabel 1 F'!C28*100,"-")) -> 9.169612265 | F30: =IF(OR('Tabel 1 F'!E28<5,'Tabel 2 F'!F30<0.5),"-",IFERROR('Tabel 2 F'!F30/'Tabel 1 F'!E28*100,"-")) -> 3.546099291 | G30: =IF(OR('Tabel 1 F'!E28<5,'Tabel 2 F'!G30<0.5),"-",IFERROR('Tabel 2 F'!G30/'Tabel 1 F'!E28*100,"-")) -> 3.545435766 | I30: =IF(OR('Tabel 1 F'!G28<5,'Tabel 2 F'!I30<0.5),"-",IFERROR('Tabel 2 F'!I30/'Tabel 1 F'!G28*100,"-")) -> 5.445544554 | J30: =IF(OR('Tabel 1 F'!G28<5,'Tabel 2 F'!J30<0.5),"-",IFERROR('Tabel 2 F'!J30/'Tabel 1 F'!G28*100,"-")) -> 5.243825699
A31: Musikudd. | C31: =IF(OR('Tabel 1 F'!C29<5,'Tabel 2 F'!C31<0.5),"-",IFERROR('Tabel 2 F'!C31/'Tabel 1 F'!C29*100,"-")) -> 4.651162791 | D31: =IF(OR('Tabel 1 F'!C29<5,'Tabel 2 F'!D31<0.5),"-",IFERROR('Tabel 2 F'!D31/'Tabel 1 F'!C29*100,"-")) -> 3.122919444 | F31: =IF(OR('Tabel 1 F'!E29<5,'Tabel 2 F'!F31<0.5),"-",IFERROR('Tabel 2 F'!F31/'Tabel 1 F'!E29*100,"-")) -> 4.166666667 | G31: =IF(OR('Tabel 1 F'!E29<5,'Tabel 2 F'!G31<0.5),"-",IFERROR('Tabel 2 F'!G31/'Tabel 1 F'!E29*100,"-")) -> 2.597507225 | I31: =IF(OR('Tabel 1 F'!G29<5,'Tabel 2 F'!I31<0.5),"-",IFERROR('Tabel 2 F'!I31/'Tabel 1 F'!G29*100,"-")) -> 4.395604396 | J31: =IF(OR('Tabel 1 F'!G29<5,'Tabel 2 F'!J31<0.5),"-",IFERROR('Tabel 2 F'!J31/'Tabel 1 F'!G29*100,"-")) -> 2.845778933
A32: Teolog | C32: =IF(OR('Tabel 1 F'!C30<5,'Tabel 2 F'!C32<0.5),"-",IFERROR('Tabel 2 F'!C32/'Tabel 1 F'!C30*100,"-")) -> 2.380952381 | D32: =IF(OR('Tabel 1 F'!C30<5,'Tabel 2 F'!D32<0.5),"-",IFERROR('Tabel 2 F'!D32/'Tabel 1 F'!C30*100,"-")) -> 2.380506871 | F32: =IF(OR('Tabel 1 F'!E30<5,'Tabel 2 F'!F32<0.5),"-",IFERROR('Tabel 2 F'!F32/'Tabel 1 F'!E30*100,"-")) -> 1.315789474 | G32: =IF(OR('Tabel 1 F'!E30<5,'Tabel 2 F'!G32<0.5),"-",IFERROR('Tabel 2 F'!G32/'Tabel 1 F'!E30*100,"-")) -> 1.315543271 | I32: =IF(OR('Tabel 1 F'!G30<5,'Tabel 2 F'!I32<0.5),"-",IFERROR('Tabel 2 F'!I32/'Tabel 1 F'!G30*100,"-")) -> 1.694915254 | J32: =IF(OR('Tabel 1 F'!G30<5,'Tabel 2 F'!J32<0.5),"-",IFERROR('Tabel 2 F'!J32/'Tabel 1 F'!G30*100,"-")) -> 1.694598112
A33: Psykolog | C33: =IF(OR('Tabel 1 F'!C31<5,'Tabel 2 F'!C33<0.5),"-",IFERROR('Tabel 2 F'!C33/'Tabel 1 F'!C31*100,"-")) -> 6.349206349 | D33: =IF(OR('Tabel 1 F'!C31<5,'Tabel 2 F'!D33<0.5),"-",IFERROR('Tabel 2 F'!D33/'Tabel 1 F'!C31*100,"-")) -> 5.167912609 | F33: =IF(OR('Tabel 1 F'!E31<5,'Tabel 2 F'!F33<0.5),"-",IFERROR('Tabel 2 F'!F33/'Tabel 1 F'!E31*100,"-")) -> 4.504504505 | G33: =IF(OR('Tabel 1 F'!E31<5,'Tabel 2 F'!G33<0.5),"-",IFERROR('Tabel 2 F'!G33/'Tabel 1 F'!E31*100,"-")) -> 3.870114735 | I33: =IF(OR('Tabel 1 F'!G31<5,'Tabel 2 F'!I33<0.5),"-",IFERROR('Tabel 2 F'!I33/'Tabel 1 F'!G31*100,"-")) -> 4.912280702 | J33: =IF(OR('Tabel 1 F'!G31<5,'Tabel 2 F'!J33<0.5),"-",IFERROR('Tabel 2 F'!J33/'Tabel 1 F'!G31*100,"-")) -> 4.15699637
A34: Jurist | C34: =IF(OR('Tabel 1 F'!C32<5,'Tabel 2 F'!C34<0.5),"-",IFERROR('Tabel 2 F'!C34/'Tabel 1 F'!C32*100,"-")) -> 4.090909091 | D34: =IF(OR('Tabel 1 F'!C32<5,'Tabel 2 F'!D34<0.5),"-",IFERROR('Tabel 2 F'!D34/'Tabel 1 F'!C32*100,"-")) -> 3.204753832 | F34: =IF(OR('Tabel 1 F'!E32<5,'Tabel 2 F'!F34<0.5),"-",IFERROR('Tabel 2 F'!F34/'Tabel 1 F'!E32*100,"-")) -> 2.189781022 | G34: =IF(OR('Tabel 1 F'!E32<5,'Tabel 2 F'!G34<0.5),"-",IFERROR('Tabel 2 F'!G34/'Tabel 1 F'!E32*100,"-")) -> 1.843369583 | I34: =IF(OR('Tabel 1 F'!G32<5,'Tabel 2 F'!I34<0.5),"-",IFERROR('Tabel 2 F'!I34/'Tabel 1 F'!G32*100,"-")) -> 2.852614897 | J34: =IF(OR('Tabel 1 F'!G32<5,'Tabel 2 F'!J34<0.5),"-",IFERROR('Tabel 2 F'!J34/'Tabel 1 F'!G32*100,"-")) -> 2.318020193
A35: Økonom | C35: =IF(OR('Tabel 1 F'!C33<5,'Tabel 2 F'!C35<0.5),"-",IFERROR('Tabel 2 F'!C35/'Tabel 1 F'!C33*100,"-")) -> 3.134796238 | D35: =IF(OR('Tabel 1 F'!C33<5,'Tabel 2 F'!D35<0.5),"-",IFERROR('Tabel 2 F'!D35/'Tabel 1 F'!C33*100,"-")) -> 2.873775033 | F35: =IF(OR('Tabel 1 F'!E33<5,'Tabel 2 F'!F35<0.5),"-",IFERROR('Tabel 2 F'!F35/'Tabel 1 F'!E33*100,"-")) -> 1.811594203 | G35: =IF(OR('Tabel 1 F'!E33<5,'Tabel 2 F'!G35<0.5),"-",IFERROR('Tabel 2 F'!G35/'Tabel 1 F'!E33*100,"-")) -> 1.532843944 | I35: =IF(OR('Tabel 1 F'!G33<5,'Tabel 2 F'!I35<0.5),"-",IFERROR('Tabel 2 F'!I35/'Tabel 1 F'!G33*100,"-")) -> 2.521008403 | J35: =IF(OR('Tabel 1 F'!G33<5,'Tabel 2 F'!J35<0.5),"-",IFERROR('Tabel 2 F'!J35/'Tabel 1 F'!G33*100,"-")) -> 2.251763301
A36: Samf. Adm. | C36: =IF(OR('Tabel 1 F'!C34<5,'Tabel 2 F'!C36<0.5),"-",IFERROR('Tabel 2 F'!C36/'Tabel 1 F'!C34*100,"-")) -> 7.625649913 | D36: =IF(OR('Tabel 1 F'!C34<5,'Tabel 2 F'!D36<0.5),"-",IFERROR('Tabel 2 F'!D36/'Tabel 1 F'!C34*100,"-")) -> 7.250427276 | F36: =IF(OR('Tabel 1 F'!E34<5,'Tabel 2 F'!F36<0.5),"-",IFERROR('Tabel 2 F'!F36/'Tabel 1 F'!E34*100,"-")) -> 10.44776119 | G36: =IF(OR('Tabel 1 F'!E34<5,'Tabel 2 F'!G36<0.5),"-",IFERROR('Tabel 2 F'!G36/'Tabel 1 F'!E34*100,"-")) -> 9.629393108 | I36: =IF(OR('Tabel 1 F'!G34<5,'Tabel 2 F'!I36<0.5),"-",IFERROR('Tabel 2 F'!I36/'Tabel 1 F'!G34*100,"-")) -> 9.372937294 | J36: =IF(OR('Tabel 1 F'!G34<5,'Tabel 2 F'!J36<0.5),"-",IFERROR('Tabel 2 F'!J36/'Tabel 1 F'!G34*100,"-")) -> 8.723344735
A37: Cand. Merc. | C37: =IF(OR('Tabel 1 F'!C35<5,'Tabel 2 F'!C37<0.5),"-",IFERROR('Tabel 2 F'!C37/'Tabel 1 F'!C35*100,"-")) -> 6.792058516 | D37: =IF(OR('Tabel 1 F'!C35<5,'Tabel 2 F'!D37<0.5),"-",IFERROR('Tabel 2 F'!D37/'Tabel 1 F'!C35*100,"-")) -> 6.032490069 | F37: =IF(OR('Tabel 1 F'!E35<5,'Tabel 2 F'!F37<0.5),"-",IFERROR('Tabel 2 F'!F37/'Tabel 1 F'!E35*100,"-")) -> 8.170310702 | G37: =IF(OR('Tabel 1 F'!E35<5,'Tabel 2 F'!G37<0.5),"-",IFERROR('Tabel 2 F'!G37/'Tabel 1 F'!E35*100,"-")) -> 7.101219672 | I37: =IF(OR('Tabel 1 F'!G35<5,'Tabel 2 F'!I37<0.5),"-",IFERROR('Tabel 2 F'!I37/'Tabel 1 F'!G35*100,"-")) -> 7.447973713 | J37: =IF(OR('Tabel 1 F'!G35<5,'Tabel 2 F'!J37<0.5),"-",IFERROR('Tabel 2 F'!J37/'Tabel 1 F'!G35*100,"-")) -> 6.54110235
A38: HA | C38: =IF(OR('Tabel 1 F'!C36<5,'Tabel 2 F'!C38<0.5),"-",IFERROR('Tabel 2 F'!C38/'Tabel 1 F'!C36*100,"-")) -> 11.39240506 | D38: =IF(OR('Tabel 1 F'!C36<5,'Tabel 2 F'!D38<0.5),"-",IFERROR('Tabel 2 F'!D38/'Tabel 1 F'!C36*100,"-")) -> 9.193327791 | F38: =IF(OR('Tabel 1 F'!E36<5,'Tabel 2 F'!F38<0.5),"-",IFERROR('Tabel 2 F'!F38/'Tabel 1 F'!E36*100,"-")) -> 14.94252874 | G38: =IF(OR('Tabel 1 F'!E36<5,'Tabel 2 F'!G38<0.5),"-",IFERROR('Tabel 2 F'!G38/'Tabel 1 F'!E36*100,"-")) -> 13.05281994 | I38: =IF(OR('Tabel 1 F'!G36<5,'Tabel 2 F'!I38<0.5),"-",IFERROR('Tabel 2 F'!I38/'Tabel 1 F'!G36*100,"-")) -> 12.89537713 | J38: =IF(OR('Tabel 1 F'!G36<5,'Tabel 2 F'!J38<0.5),"-",IFERROR('Tabel 2 F'!J38/'Tabel 1 F'!G36*100,"-")) -> 10.82727337
A39: HD | C39: =IF(OR('Tabel 1 F'!C37<5,'Tabel 2 F'!C39<0.5),"-",IFERROR('Tabel 2 F'!C39/'Tabel 1 F'!C37*100,"-")) -> 5.769230769 | D39: =IF(OR('Tabel 1 F'!C37<5,'Tabel 2 F'!D39<0.5),"-",IFERROR('Tabel 2 F'!D39/'Tabel 1 F'!C37*100,"-")) -> 5.400320173 | F39: =IF(OR('Tabel 1 F'!E37<5,'Tabel 2 F'!F39<0.5),"-",IFERROR('Tabel 2 F'!F39/'Tabel 1 F'!E37*100,"-")) -> 8.088235294 | G39: =IF(OR('Tabel 1 F'!E37<5,'Tabel 2 F'!G39<0.5),"-",IFERROR('Tabel 2 F'!G39/'Tabel 1 F'!E37*100,"-")) -> 7.766610043 | I39: =IF(OR('Tabel 1 F'!G37<5,'Tabel 2 F'!I39<0.5),"-",IFERROR('Tabel 2 F'!I39/'Tabel 1 F'!G37*100,"-")) -> 6.849315068 | J39: =IF(OR('Tabel 1 F'!G37<5,'Tabel 2 F'!J39<0.5),"-",IFERROR('Tabel 2 F'!J39/'Tabel 1 F'!G37*100,"-")) -> 6.502427784
A40: Komm. og Sprog | C40: =IF(OR('Tabel 1 F'!C38<5,'Tabel 2 F'!C40<0.5),"-",IFERROR('Tabel 2 F'!C40/'Tabel 1 F'!C38*100,"-")) -> 12.34567901 | D40: =IF(OR('Tabel 1 F'!C38<5,'Tabel 2 F'!D40<0.5),"-",IFERROR('Tabel 2 F'!D40/'Tabel 1 F'!C38*100,"-")) -> 10.8949674 | F40: =IF(OR('Tabel 1 F'!E38<5,'Tabel 2 F'!F40<0.5),"-",IFERROR('Tabel 2 F'!F40/'Tabel 1 F'!E38*100,"-")) -> 11.69916435 | G40: =IF(OR('Tabel 1 F'!E38<5,'Tabel 2 F'!G40<0.5),"-",IFERROR('Tabel 2 F'!G40/'Tabel 1 F'!E38*100,"-")) -> 10.95790072 | I40: =IF(OR('Tabel 1 F'!G38<5,'Tabel 2 F'!I40<0.5),"-",IFERROR('Tabel 2 F'!I40/'Tabel 1 F'!G38*100,"-")) -> 11.81818182 | J40: =IF(OR('Tabel 1 F'!G38<5,'Tabel 2 F'!J40<0.5),"-",IFERROR('Tabel 2 F'!J40/'Tabel 1 F'!G38*100,"-")) -> 10.94631527
A41: Bygningskonst. | C41: =IF(OR('Tabel 1 F'!C39<5,'Tabel 2 F'!C41<0.5),"-",IFERROR('Tabel 2 F'!C41/'Tabel 1 F'!C39*100,"-")) -> 6.52173913 | D41: =IF(OR('Tabel 1 F'!C39<5,'Tabel 2 F'!D41<0.5),"-",IFERROR('Tabel 2 F'!D41/'Tabel 1 F'!C39*100,"-")) -> 5.660679388 | F41: =IF(OR('Tabel 1 F'!E39<5,'Tabel 2 F'!F41<0.5),"-",IFERROR('Tabel 2 F'!F41/'Tabel 1 F'!E39*100,"-")) -> 11.50442478 | G41: =IF(OR('Tabel 1 F'!E39<5,'Tabel 2 F'!G41<0.5),"-",IFERROR('Tabel 2 F'!G41/'Tabel 1 F'!E39*100,"-")) -> 10.72781856 | I41: =IF(OR('Tabel 1 F'!G39<5,'Tabel 2 F'!I41<0.5),"-",IFERROR('Tabel 2 F'!I41/'Tabel 1 F'!G39*100,"-")) -> 7.150837989 | J41: =IF(OR('Tabel 1 F'!G39<5,'Tabel 2 F'!J41<0.5),"-",IFERROR('Tabel 2 F'!J41/'Tabel 1 F'!G39*100,"-")) -> 6.300441094
A42: Cand. IT. | C42: =IF(OR('Tabel 1 F'!C40<5,'Tabel 2 F'!C42<0.5),"-",IFERROR('Tabel 2 F'!C42/'Tabel 1 F'!C40*100,"-")) -> 12.62135922 | D42: =IF(OR('Tabel 1 F'!C40<5,'Tabel 2 F'!D42<0.5),"-",IFERROR('Tabel 2 F'!D42/'Tabel 1 F'!C40*100,"-")) -> 11.67373845 | F42: =IF(OR('Tabel 1 F'!E40<5,'Tabel 2 F'!F42<0.5),"-",IFERROR('Tabel 2 F'!F42/'Tabel 1 F'!E40*100,"-")) -> 20.93023256 | G42: =IF(OR('Tabel 1 F'!E40<5,'Tabel 2 F'!G42<0.5),"-",IFERROR('Tabel 2 F'!G42/'Tabel 1 F'!E40*100,"-")) -> 18.36401376 | I42: =IF(OR('Tabel 1 F'!G40<5,'Tabel 2 F'!I42<0.5),"-",IFERROR('Tabel 2 F'!I42/'Tabel 1 F'!G40*100,"-")) -> 16.4021164 | J42: =IF(OR('Tabel 1 F'!G40<5,'Tabel 2 F'!J42<0.5),"-",IFERROR('Tabel 2 F'!J42/'Tabel 1 F'!G40*100,"-")) -> 14.71799071
A43: Bac. Samf. | C43: =IF(OR('Tabel 1 F'!C41<5,'Tabel 2 F'!C43<0.5),"-",IFERROR('Tabel 2 F'!C43/'Tabel 1 F'!C41*100,"-")) -> 12.90322581 | D43: =IF(OR('Tabel 1 F'!C41<5,'Tabel 2 F'!D43<0.5),"-",IFERROR('Tabel 2 F'!D43/'Tabel 1 F'!C41*100,"-")) -> 10.07398048 | F43: =IF(OR('Tabel 1 F'!E41<5,'Tabel 2 F'!F43<0.5),"-",IFERROR('Tabel 2 F'!F43/'Tabel 1 F'!E41*100,"-")) -> 14.63414634 | G43: =IF(OR('Tabel 1 F'!E41<5,'Tabel 2 F'!G43<0.5),"-",IFERROR('Tabel 2 F'!G43/'Tabel 1 F'!E41*100,"-")) -> 11.93118461 | I43: =IF(OR('Tabel 1 F'!G41<5,'Tabel 2 F'!I43<0.5),"-",IFERROR('Tabel 2 F'!I43/'Tabel 1 F'!G41*100,"-")) -> 13.88888889 | J43: =IF(OR('Tabel 1 F'!G41<5,'Tabel 2 F'!J43<0.5),"-",IFERROR('Tabel 2 F'!J43/'Tabel 1 F'!G41*100,"-")) -> 11.13155506
A44: Bac. Hum. | C44: =IF(OR('Tabel 1 F'!C42<5,'Tabel 2 F'!C44<0.5),"-",IFERROR('Tabel 2 F'!C44/'Tabel 1 F'!C42*100,"-")) -> 22.80701754 | D44: =IF(OR('Tabel 1 F'!C42<5,'Tabel 2 F'!D44<0.5),"-",IFERROR('Tabel 2 F'!D44/'Tabel 1 F'!C42*100,"-")) -> 20.23075214 | F44: =IF(OR('Tabel 1 F'!E42<5,'Tabel 2 F'!F44<0.5),"-",IFERROR('Tabel 2 F'!F44/'Tabel 1 F'!E42*100,"-")) -> 20.72072072 | G44: =IF(OR('Tabel 1 F'!E42<5,'Tabel 2 F'!G44<0.5),"-",IFERROR('Tabel 2 F'!G44/'Tabel 1 F'!E42*100,"-")) -> 17.26169505 | I44: =IF(OR('Tabel 1 F'!G42<5,'Tabel 2 F'!I44<0.5),"-",IFERROR('Tabel 2 F'!I44/'Tabel 1 F'!G42*100,"-")) -> 21.42857143 | J44: =IF(OR('Tabel 1 F'!G42<5,'Tabel 2 F'!J44<0.5),"-",IFERROR('Tabel 2 F'!J44/'Tabel 1 F'!G42*100,"-")) -> 18.26905371
A45: Bac. Nat. | C45: =IF(OR('Tabel 1 F'!C43<5,'Tabel 2 F'!C45<0.5),"-",IFERROR('Tabel 2 F'!C45/'Tabel 1 F'!C43*100,"-")) -> 23.29545455 | D45: =IF(OR('Tabel 1 F'!C43<5,'Tabel 2 F'!D45<0.5),"-",IFERROR('Tabel 2 F'!D45/'Tabel 1 F'!C43*100,"-")) -> 19.97619966 | F45: =IF(OR('Tabel 1 F'!E43<5,'Tabel 2 F'!F45<0.5),"-",IFERROR('Tabel 2 F'!F45/'Tabel 1 F'!E43*100,"-")) -> 30.64516129 | G45: =IF(OR('Tabel 1 F'!E43<5,'Tabel 2 F'!G45<0.5),"-",IFERROR('Tabel 2 F'!G45/'Tabel 1 F'!E43*100,"-")) -> 25.70705983 | I45: =IF(OR('Tabel 1 F'!G43<5,'Tabel 2 F'!I45<0.5),"-",IFERROR('Tabel 2 F'!I45/'Tabel 1 F'!G43*100,"-")) -> 25.21008403 | J45: =IF(OR('Tabel 1 F'!G43<5,'Tabel 2 F'!J45<0.5),"-",IFERROR('Tabel 2 F'!J45/'Tabel 1 F'!G43*100,"-")) -> 21.46911281
A46: Andre | C46: =IF(OR('Tabel 1 F'!C44<5,'Tabel 2 F'!C46<0.5),"-",IFERROR('Tabel 2 F'!C46/'Tabel 1 F'!C44*100,"-")) -> 7.616361072 | D46: =IF(OR('Tabel 1 F'!C44<5,'Tabel 2 F'!D46<0.5),"-",IFERROR('Tabel 2 F'!D46/'Tabel 1 F'!C44*100,"-")) -> 6.292381624 | F46: =IF(OR('Tabel 1 F'!E44<5,'Tabel 2 F'!F46<0.5),"-",IFERROR('Tabel 2 F'!F46/'Tabel 1 F'!E44*100,"-")) -> 11.09298532 | G46: =IF(OR('Tabel 1 F'!E44<5,'Tabel 2 F'!G46<0.5),"-",IFERROR('Tabel 2 F'!G46/'Tabel 1 F'!E44*100,"-")) -> 9.425299309 | I46: =IF(OR('Tabel 1 F'!G44<5,'Tabel 2 F'!I46<0.5),"-",IFERROR('Tabel 2 F'!I46/'Tabel 1 F'!G44*100,"-")) -> 9.228441755 | J46: =IF(OR('Tabel 1 F'!G44<5,'Tabel 2 F'!J46<0.5),"-",IFERROR('Tabel 2 F'!J46/'Tabel 1 F'!G44*100,"-")) -> 7.745088539
A48: Total | C48: =IF(OR('Tabel 1 F'!C46<5,'Tabel 2 F'!C48<0.5),"-",IFERROR('Tabel 2 F'!C48/'Tabel 1 F'!C46*100,"-")) -> 7.502930832 | D48: =IF(OR('Tabel 1 F'!C46<5,'Tabel 2 F'!D48<0.5),"-",IFERROR('Tabel 2 F'!D48/'Tabel 1 F'!C46*100,"-")) -> 6.692963369 | F48: =IF(OR('Tabel 1 F'!E46<5,'Tabel 2 F'!F48<0.5),"-",IFERROR('Tabel 2 F'!F48/'Tabel 1 F'!E46*100,"-")) -> 9.130932465 | G48: =IF(OR('Tabel 1 F'!E46<5,'Tabel 2 F'!G48<0.5),"-",IFERROR('Tabel 2 F'!G48/'Tabel 1 F'!E46*100,"-")) -> 8.073809048 | I48: =IF(OR('Tabel 1 F'!G46<5,'Tabel 2 F'!I48<0.5),"-",IFERROR('Tabel 2 F'!I48/'Tabel 1 F'!G46*100,"-")) -> 8.296493412 | J48: =IF(OR('Tabel 1 F'!G46<5,'Tabel 2 F'!J48<0.5),"-",IFERROR('Tabel 2 F'!J48/'Tabel 1 F'!G46*100,"-")) -> 7.366050814
A50: Ingeniører i alt | C50: =IF(OR('Tabel 1 F'!C48<5,'Tabel 2 F'!C50<0.5),"-",IFERROR('Tabel 2 F'!C50/'Tabel 1 F'!C48*100,"-")) -> 5.4375971 | D50: =IF(OR('Tabel 1 F'!C48<5,'Tabel 2 F'!D50<0.5),"-",IFERROR('Tabel 2 F'!D50/'Tabel 1 F'!C48*100,"-")) -> 5.020522955 | F50: =IF(OR('Tabel 1 F'!E48<5,'Tabel 2 F'!F50<0.5),"-",IFERROR('Tabel 2 F'!F50/'Tabel 1 F'!E48*100,"-")) -> 9.041980624 | G50: =IF(OR('Tabel 1 F'!E48<5,'Tabel 2 F'!G50<0.5),"-",IFERROR('Tabel 2 F'!G50/'Tabel 1 F'!E48*100,"-")) -> 7.709341679 | I50: =IF(OR('Tabel 1 F'!G48<5,'Tabel 2 F'!I50<0.5),"-",IFERROR('Tabel 2 F'!I50/'Tabel 1 F'!G48*100,"-")) -> 6.136505949 | J50: =IF(OR('Tabel 1 F'!G48<5,'Tabel 2 F'!J50<0.5),"-",IFERROR('Tabel 2 F'!J50/'Tabel 1 F'!G48*100,"-")) -> 5.541898992
A51: Magistre i alt | C51: =IF(OR('Tabel 1 F'!C49<5,'Tabel 2 F'!C51<0.5),"-",IFERROR('Tabel 2 F'!C51/'Tabel 1 F'!C49*100,"-")) -> 10.51513542 | D51: =IF(OR('Tabel 1 F'!C49<5,'Tabel 2 F'!D51<0.5),"-",IFERROR('Tabel 2 F'!D51/'Tabel 1 F'!C49*100,"-")) -> 9.494623393 | F51: =IF(OR('Tabel 1 F'!E49<5,'Tabel 2 F'!F51<0.5),"-",IFERROR('Tabel 2 F'!F51/'Tabel 1 F'!E49*100,"-")) -> 11.89819074 | G51: =IF(OR('Tabel 1 F'!E49<5,'Tabel 2 F'!G51<0.5),"-",IFERROR('Tabel 2 F'!G51/'Tabel 1 F'!E49*100,"-")) -> 10.63323608 | I51: =IF(OR('Tabel 1 F'!G49<5,'Tabel 2 F'!I51<0.5),"-",IFERROR('Tabel 2 F'!I51/'Tabel 1 F'!G49*100,"-")) -> 11.39191291 | J51: =IF(OR('Tabel 1 F'!G49<5,'Tabel 2 F'!J51<0.5),"-",IFERROR('Tabel 2 F'!J51/'Tabel 1 F'!G49*100,"-")) -> 10.21643832
A52: DJØF'ere i alt | C52: =IF(OR('Tabel 1 F'!C50<5,'Tabel 2 F'!C52<0.5),"-",IFERROR('Tabel 2 F'!C52/'Tabel 1 F'!C50*100,"-")) -> 6.70995671 | D52: =IF(OR('Tabel 1 F'!C50<5,'Tabel 2 F'!D52<0.5),"-",IFERROR('Tabel 2 F'!D52/'Tabel 1 F'!C50*100,"-")) -> 5.95549277 | F52: =IF(OR('Tabel 1 F'!E50<5,'Tabel 2 F'!F52<0.5),"-",IFERROR('Tabel 2 F'!F52/'Tabel 1 F'!E50*100,"-")) -> 7.833583208 | G52: =IF(OR('Tabel 1 F'!E50<5,'Tabel 2 F'!G52<0.5),"-",IFERROR('Tabel 2 F'!G52/'Tabel 1 F'!E50*100,"-")) -> 6.992208069 | I52: =IF(OR('Tabel 1 F'!G50<5,'Tabel 2 F'!I52<0.5),"-",IFERROR('Tabel 2 F'!I52/'Tabel 1 F'!G50*100,"-")) -> 7.312173564 | J52: =IF(OR('Tabel 1 F'!G50<5,'Tabel 2 F'!J52<0.5),"-",IFERROR('Tabel 2 F'!J52/'Tabel 1 F'!G50*100,"-")) -> 6.511128852
A57: Middelfart
C59: Mænd | F59: Kvinder | I59: I alt
C60: Ledigheds- berørte | D60: Gns. brutto- ledighed | F60: Ledigheds- berørte | G60: Gns. brutto- ledighed | I60: Ledigheds- berørte | J60: Gns. brutto- ledighed
A63: Civ. ing. | C63: =IF(OR('Tabel 1 F'!C61<5,'Tabel 2 F'!C63<0.5),"-",IFERROR('Tabel 2 F'!C63/'Tabel 1 F'!C61*100,"-")) -> - | D63: =IF(OR('Tabel 1 F'!C61<5,'Tabel 2 F'!D63<0.5),"-",IFERROR('Tabel 2 F'!D63/'Tabel 1 F'!C61*100,"-")) -> - | F63: =IF(OR('Tabel 1 F'!E61<5,'Tabel 2 F'!F63<0.5),"-",IFERROR('Tabel 2 F'!F63/'Tabel 1 F'!E61*100,"-")) -> 10.71428571 | G63: =IF(OR('Tabel 1 F'!E61<5,'Tabel 2 F'!G63<0.5),"-",IFERROR('Tabel 2 F'!G63/'Tabel 1 F'!E61*100,"-")) -> 8.404540635 | I63: =IF(OR('Tabel 1 F'!G61<5,'Tabel 2 F'!I63<0.5),"-",IFERROR('Tabel 2 F'!I63/'Tabel 1 F'!G61*100,"-")) -> 2.803738318 | J63: =IF(OR('Tabel 1 F'!G61<5,'Tabel 2 F'!J63<0.5),"-",IFERROR('Tabel 2 F'!J63/'Tabel 1 F'!G61*100,"-")) -> 2.199319045
A64: Diplom ing. | C64: =IF(OR('Tabel 1 F'!C62<5,'Tabel 2 F'!C64<0.5),"-",IFERROR('Tabel 2 F'!C64/'Tabel 1 F'!C62*100,"-")) -> 2.469135802 | D64: =IF(OR('Tabel 1 F'!C62<5,'Tabel 2 F'!D64<0.5),"-",IFERROR('Tabel 2 F'!D64/'Tabel 1 F'!C62*100,"-")) -> 2.468673792 | F64: =IF(OR('Tabel 1 F'!E62<5,'Tabel 2 F'!F64<0.5),"-",IFERROR('Tabel 2 F'!F64/'Tabel 1 F'!E62*100,"-")) -> 5.454545455 | G64: =IF(OR('Tabel 1 F'!E62<5,'Tabel 2 F'!G64<0.5),"-",IFERROR('Tabel 2 F'!G64/'Tabel 1 F'!E62*100,"-")) -> 4.194757404 | I64: =IF(OR('Tabel 1 F'!G62<5,'Tabel 2 F'!I64<0.5),"-",IFERROR('Tabel 2 F'!I64/'Tabel 1 F'!G62*100,"-")) -> 3.020134228 | J64: =IF(OR('Tabel 1 F'!G62<5,'Tabel 2 F'!J64<0.5),"-",IFERROR('Tabel 2 F'!J64/'Tabel 1 F'!G62*100,"-")) -> 2.787246271
A65: Cand. Scient. Tek. | C65: =IF(OR('Tabel 1 F'!C63<5,'Tabel 2 F'!C65<0.5),"-",IFERROR('Tabel 2 F'!C65/'Tabel 1 F'!C63*100,"-")) -> 6.060606061 | D65: =IF(OR('Tabel 1 F'!C63<5,'Tabel 2 F'!D65<0.5),"-",IFERROR('Tabel 2 F'!D65/'Tabel 1 F'!C63*100,"-")) -> 5.927169153 | F65: =IF(OR('Tabel 1 F'!E63<5,'Tabel 2 F'!F65<0.5),"-",IFERROR('Tabel 2 F'!F65/'Tabel 1 F'!E63*100,"-")) -> - | G65: =IF(OR('Tabel 1 F'!E63<5,'Tabel 2 F'!G65<0.5),"-",IFERROR('Tabel 2 F'!G65/'Tabel 1 F'!E63*100,"-")) -> - | I65: =IF(OR('Tabel 1 F'!G63<5,'Tabel 2 F'!I65<0.5),"-",IFERROR('Tabel 2 F'!I65/'Tabel 1 F'!G63*100,"-")) -> 3.125 | J65: =IF(OR('Tabel 1 F'!G63<5,'Tabel 2 F'!J65<0.5),"-",IFERROR('Tabel 2 F'!J65/'Tabel 1 F'!G63*100,"-")) -> 3.056196595
A66: MA. Hum. | C66: =IF(OR('Tabel 1 F'!C64<5,'Tabel 2 F'!C66<0.5),"-",IFERROR('Tabel 2 F'!C66/'Tabel 1 F'!C64*100,"-")) -> 6.557377049 | D66: =IF(OR('Tabel 1 F'!C64<5,'Tabel 2 F'!D66<0.5),"-",IFERROR('Tabel 2 F'!D66/'Tabel 1 F'!C64*100,"-")) -> 5.771906917 | F66: =IF(OR('Tabel 1 F'!E64<5,'Tabel 2 F'!F66<0.5),"-",IFERROR('Tabel 2 F'!F66/'Tabel 1 F'!E64*100,"-")) -> 8.547008547 | G66: =IF(OR('Tabel 1 F'!E64<5,'Tabel 2 F'!G66<0.5),"-",IFERROR('Tabel 2 F'!G66/'Tabel 1 F'!E64*100,"-")) -> 6.939746602 | I66: =IF(OR('Tabel 1 F'!G64<5,'Tabel 2 F'!I66<0.5),"-",IFERROR('Tabel 2 F'!I66/'Tabel 1 F'!G64*100,"-")) -> 7.865168539 | J66: =IF(OR('Tabel 1 F'!G64<5,'Tabel 2 F'!J66<0.5),"-",IFERROR('Tabel 2 F'!J66/'Tabel 1 F'!G64*100,"-")) -> 6.539531878
A67: MA. Nat. | C67: =IF(OR('Tabel 1 F'!C65<5,'Tabel 2 F'!C67<0.5),"-",IFERROR('Tabel 2 F'!C67/'Tabel 1 F'!C65*100,"-")) -> - | D67: =IF(OR('Tabel 1 F'!C65<5,'Tabel 2 F'!D67<0.5),"-",IFERROR('Tabel 2 F'!D67/'Tabel 1 F'!C65*100,"-")) -> - | F67: =IF(OR('Tabel 1 F'!E65<5,'Tabel 2 F'!F67<0.5),"-",IFERROR('Tabel 2 F'!F67/'Tabel 1 F'!E65*100,"-")) -> 4.545454545 | G67: =IF(OR('Tabel 1 F'!E65<5,'Tabel 2 F'!G67<0.5),"-",IFERROR('Tabel 2 F'!G67/'Tabel 1 F'!E65*100,"-")) -> 4.544604027 | I67: =IF(OR('Tabel 1 F'!G65<5,'Tabel 2 F'!I67<0.5),"-",IFERROR('Tabel 2 F'!I67/'Tabel 1 F'!G65*100,"-")) -> 2.739726027 | J67: =IF(OR('Tabel 1 F'!G65<5,'Tabel 2 F'!J67<0.5),"-",IFERROR('Tabel 2 F'!J67/'Tabel 1 F'!G65*100,"-")) -> 2.739213386
A68: MA. Ph.d. | C68: =IF(OR('Tabel 1 F'!C66<5,'Tabel 2 F'!C68<0.5),"-",IFERROR('Tabel 2 F'!C68/'Tabel 1 F'!C66*100,"-")) -> - | D68: =IF(OR('Tabel 1 F'!C66<5,'Tabel 2 F'!D68<0.5),"-",IFERROR('Tabel 2 F'!D68/'Tabel 1 F'!C66*100,"-")) -> - | F68: =IF(OR('Tabel 1 F'!E66<5,'Tabel 2 F'!F68<0.5),"-",IFERROR('Tabel 2 F'!F68/'Tabel 1 F'!E66*100,"-")) -> - | G68: =IF(OR('Tabel 1 F'!E66<5,'Tabel 2 F'!G68<0.5),"-",IFERROR('Tabel 2 F'!G68/'Tabel 1 F'!E66*100,"-")) -> - | I68: =IF(OR('Tabel 1 F'!G66<5,'Tabel 2 F'!I68<0.5),"-",IFERROR('Tabel 2 F'!I68/'Tabel 1 F'!G66*100,"-")) -> 33.33333333 | J68: =IF(OR('Tabel 1 F'!G66<5,'Tabel 2 F'!J68<0.5),"-",IFERROR('Tabel 2 F'!J68/'Tabel 1 F'!G66*100,"-")) -> 21.66365205
A69: MA. Samf. | C69: =IF(OR('Tabel 1 F'!C67<5,'Tabel 2 F'!C69<0.5),"-",IFERROR('Tabel 2 F'!C69/'Tabel 1 F'!C67*100,"-")) -> - | D69: =IF(OR('Tabel 1 F'!C67<5,'Tabel 2 F'!D69<0.5),"-",IFERROR('Tabel 2 F'!D69/'Tabel 1 F'!C67*100,"-")) -> - | F69: =IF(OR('Tabel 1 F'!E67<5,'Tabel 2 F'!F69<0.5),"-",IFERROR('Tabel 2 F'!F69/'Tabel 1 F'!E67*100,"-")) -> 10.52631579 | G69: =IF(OR('Tabel 1 F'!E67<5,'Tabel 2 F'!G69<0.5),"-",IFERROR('Tabel 2 F'!G69/'Tabel 1 F'!E67*100,"-")) -> 10.52434617 | I69: =IF(OR('Tabel 1 F'!G67<5,'Tabel 2 F'!I69<0.5),"-",IFERROR('Tabel 2 F'!I69/'Tabel 1 F'!G67*100,"-")) -> 9.523809524 | J69: =IF(OR('Tabel 1 F'!G67<5,'Tabel 2 F'!J69<0.5),"-",IFERROR('Tabel 2 F'!J69/'Tabel 1 F'!G67*100,"-")) -> 9.522027485
A70: Øvrige Mag. | C70: =IF(OR('Tabel 1 F'!C68<5,'Tabel 2 F'!C70<0.5),"-",IFERROR('Tabel 2 F'!C70/'Tabel 1 F'!C68*100,"-")) -> - | D70: =IF(OR('Tabel 1 F'!C68<5,'Tabel 2 F'!D70<0.5),"-",IFERROR('Tabel 2 F'!D70/'Tabel 1 F'!C68*100,"-")) -> - | F70: =IF(OR('Tabel 1 F'!E68<5,'Tabel 2 F'!F70<0.5),"-",IFERROR('Tabel 2 F'!F70/'Tabel 1 F'!E68*100,"-")) -> - | G70: =IF(OR('Tabel 1 F'!E68<5,'Tabel 2 F'!G70<0.5),"-",IFERROR('Tabel 2 F'!G70/'Tabel 1 F'!E68*100,"-")) -> - | I70: =IF(OR('Tabel 1 F'!G68<5,'Tabel 2 F'!I70<0.5),"-",IFERROR('Tabel 2 F'!I70/'Tabel 1 F'!G68*100,"-")) -> - | J70: =IF(OR('Tabel 1 F'!G68<5,'Tabel 2 F'!J70<0.5),"-",IFERROR('Tabel 2 F'!J70/'Tabel 1 F'!G68*100,"-")) -> -
A71: Agronom | C71: =IF(OR('Tabel 1 F'!C69<5,'Tabel 2 F'!C71<0.5),"-",IFERROR('Tabel 2 F'!C71/'Tabel 1 F'!C69*100,"-")) -> - | D71: =IF(OR('Tabel 1 F'!C69<5,'Tabel 2 F'!D71<0.5),"-",IFERROR('Tabel 2 F'!D71/'Tabel 1 F'!C69*100,"-")) -> - | F71: =IF(OR('Tabel 1 F'!E69<5,'Tabel 2 F'!F71<0.5),"-",IFERROR('Tabel 2 F'!F71/'Tabel 1 F'!E69*100,"-")) -> - | G71: =IF(OR('Tabel 1 F'!E69<5,'Tabel 2 F'!G71<0.5),"-",IFERROR('Tabel 2 F'!G71/'Tabel 1 F'!E69*100,"-")) -> - | I71: =IF(OR('Tabel 1 F'!G69<5,'Tabel 2 F'!I71<0.5),"-",IFERROR('Tabel 2 F'!I71/'Tabel 1 F'!G69*100,"-")) -> - | J71: =IF(OR('Tabel 1 F'!G69<5,'Tabel 2 F'!J71<0.5),"-",IFERROR('Tabel 2 F'!J71/'Tabel 1 F'!G69*100,"-")) -> -
A72: Landsk. Arkt. | C72: =IF(OR('Tabel 1 F'!C70<5,'Tabel 2 F'!C72<0.5),"-",IFERROR('Tabel 2 F'!C72/'Tabel 1 F'!C70*100,"-")) -> - | D72: =IF(OR('Tabel 1 F'!C70<5,'Tabel 2 F'!D72<0.5),"-",IFERROR('Tabel 2 F'!D72/'Tabel 1 F'!C70*100,"-")) -> - | F72: =IF(OR('Tabel 1 F'!E70<5,'Tabel 2 F'!F72<0.5),"-",IFERROR('Tabel 2 F'!F72/'Tabel 1 F'!E70*100,"-")) -> - | G72: =IF(OR('Tabel 1 F'!E70<5,'Tabel 2 F'!G72<0.5),"-",IFERROR('Tabel 2 F'!G72/'Tabel 1 F'!E70*100,"-")) -> - | I72: =IF(OR('Tabel 1 F'!G70<5,'Tabel 2 F'!I72<0.5),"-",IFERROR('Tabel 2 F'!I72/'Tabel 1 F'!G70*100,"-")) -> - | J72: =IF(OR('Tabel 1 F'!G70<5,'Tabel 2 F'!J72<0.5),"-",IFERROR('Tabel 2 F'!J72/'Tabel 1 F'!G70*100,"-")) -> -
A73: Hortonom | C73: =IF(OR('Tabel 1 F'!C71<5,'Tabel 2 F'!C73<0.5),"-",IFERROR('Tabel 2 F'!C73/'Tabel 1 F'!C71*100,"-")) -> - | D73: =IF(OR('Tabel 1 F'!C71<5,'Tabel 2 F'!D73<0.5),"-",IFERROR('Tabel 2 F'!D73/'Tabel 1 F'!C71*100,"-")) -> - | F73: =IF(OR('Tabel 1 F'!E71<5,'Tabel 2 F'!F73<0.5),"-",IFERROR('Tabel 2 F'!F73/'Tabel 1 F'!E71*100,"-")) -> - | G73: =IF(OR('Tabel 1 F'!E71<5,'Tabel 2 F'!G73<0.5),"-",IFERROR('Tabel 2 F'!G73/'Tabel 1 F'!E71*100,"-")) -> - | I73: =IF(OR('Tabel 1 F'!G71<5,'Tabel 2 F'!I73<0.5),"-",IFERROR('Tabel 2 F'!I73/'Tabel 1 F'!G71*100,"-")) -> - | J73: =IF(OR('Tabel 1 F'!G71<5,'Tabel 2 F'!J73<0.5),"-",IFERROR('Tabel 2 F'!J73/'Tabel 1 F'!G71*100,"-")) -> -
A74: Forstkand. | C74: =IF(OR('Tabel 1 F'!C72<5,'Tabel 2 F'!C74<0.5),"-",IFERROR('Tabel 2 F'!C74/'Tabel 1 F'!C72*100,"-")) -> - | D74: =IF(OR('Tabel 1 F'!C72<5,'Tabel 2 F'!D74<0.5),"-",IFERROR('Tabel 2 F'!D74/'Tabel 1 F'!C72*100,"-")) -> - | F74: =IF(OR('Tabel 1 F'!E72<5,'Tabel 2 F'!F74<0.5),"-",IFERROR('Tabel 2 F'!F74/'Tabel 1 F'!E72*100,"-")) -> - | G74: =IF(OR('Tabel 1 F'!E72<5,'Tabel 2 F'!G74<0.5),"-",IFERROR('Tabel 2 F'!G74/'Tabel 1 F'!E72*100,"-")) -> - | I74: =IF(OR('Tabel 1 F'!G72<5,'Tabel 2 F'!I74<0.5),"-",IFERROR('Tabel 2 F'!I74/'Tabel 1 F'!G72*100,"-")) -> - | J74: =IF(OR('Tabel 1 F'!G72<5,'Tabel 2 F'!J74<0.5),"-",IFERROR('Tabel 2 F'!J74/'Tabel 1 F'!G72*100,"-")) -> -
A75: Jordbrugsakad. | C75: =IF(OR('Tabel 1 F'!C73<5,'Tabel 2 F'!C75<0.5),"-",IFERROR('Tabel 2 F'!C75/'Tabel 1 F'!C73*100,"-")) -> 4.347826087 | D75: =IF(OR('Tabel 1 F'!C73<5,'Tabel 2 F'!D75<0.5),"-",IFERROR('Tabel 2 F'!D75/'Tabel 1 F'!C73*100,"-")) -> 4.347012547 | F75: =IF(OR('Tabel 1 F'!E73<5,'Tabel 2 F'!F75<0.5),"-",IFERROR('Tabel 2 F'!F75/'Tabel 1 F'!E73*100,"-")) -> - | G75: =IF(OR('Tabel 1 F'!E73<5,'Tabel 2 F'!G75<0.5),"-",IFERROR('Tabel 2 F'!G75/'Tabel 1 F'!E73*100,"-")) -> - | I75: =IF(OR('Tabel 1 F'!G73<5,'Tabel 2 F'!I75<0.5),"-",IFERROR('Tabel 2 F'!I75/'Tabel 1 F'!G73*100,"-")) -> 2.631578947 | J75: =IF(OR('Tabel 1 F'!G73<5,'Tabel 2 F'!J75<0.5),"-",IFERROR('Tabel 2 F'!J75/'Tabel 1 F'!G73*100,"-")) -> 2.631086542
A76: Mejeriing. | C76: =IF(OR('Tabel 1 F'!C74<5,'Tabel 2 F'!C76<0.5),"-",IFERROR('Tabel 2 F'!C76/'Tabel 1 F'!C74*100,"-")) -> - | D76: =IF(OR('Tabel 1 F'!C74<5,'Tabel 2 F'!D76<0.5),"-",IFERROR('Tabel 2 F'!D76/'Tabel 1 F'!C74*100,"-")) -> - | F76: =IF(OR('Tabel 1 F'!E74<5,'Tabel 2 F'!F76<0.5),"-",IFERROR('Tabel 2 F'!F76/'Tabel 1 F'!E74*100,"-")) -> - | G76: =IF(OR('Tabel 1 F'!E74<5,'Tabel 2 F'!G76<0.5),"-",IFERROR('Tabel 2 F'!G76/'Tabel 1 F'!E74*100,"-")) -> - | I76: =IF(OR('Tabel 1 F'!G74<5,'Tabel 2 F'!I76<0.5),"-",IFERROR('Tabel 2 F'!I76/'Tabel 1 F'!G74*100,"-")) -> - | J76: =IF(OR('Tabel 1 F'!G74<5,'Tabel 2 F'!J76<0.5),"-",IFERROR('Tabel 2 F'!J76/'Tabel 1 F'!G74*100,"-")) -> -
A77: Levn.m.kand. | C77: =IF(OR('Tabel 1 F'!C75<5,'Tabel 2 F'!C77<0.5),"-",IFERROR('Tabel 2 F'!C77/'Tabel 1 F'!C75*100,"-")) -> - | D77: =IF(OR('Tabel 1 F'!C75<5,'Tabel 2 F'!D77<0.5),"-",IFERROR('Tabel 2 F'!D77/'Tabel 1 F'!C75*100,"-")) -> - | F77: =IF(OR('Tabel 1 F'!E75<5,'Tabel 2 F'!F77<0.5),"-",IFERROR('Tabel 2 F'!F77/'Tabel 1 F'!E75*100,"-")) -> - | G77: =IF(OR('Tabel 1 F'!E75<5,'Tabel 2 F'!G77<0.5),"-",IFERROR('Tabel 2 F'!G77/'Tabel 1 F'!E75*100,"-")) -> - | I77: =IF(OR('Tabel 1 F'!G75<5,'Tabel 2 F'!I77<0.5),"-",IFERROR('Tabel 2 F'!I77/'Tabel 1 F'!G75*100,"-")) -> - | J77: =IF(OR('Tabel 1 F'!G75<5,'Tabel 2 F'!J77<0.5),"-",IFERROR('Tabel 2 F'!J77/'Tabel 1 F'!G75*100,"-")) -> -
A78: Dyrlæge | C78: =IF(OR('Tabel 1 F'!C76<5,'Tabel 2 F'!C78<0.5),"-",IFERROR('Tabel 2 F'!C78/'Tabel 1 F'!C76*100,"-")) -> - | D78: =IF(OR('Tabel 1 F'!C76<5,'Tabel 2 F'!D78<0.5),"-",IFERROR('Tabel 2 F'!D78/'Tabel 1 F'!C76*100,"-")) -> - | F78: =IF(OR('Tabel 1 F'!E76<5,'Tabel 2 F'!F78<0.5),"-",IFERROR('Tabel 2 F'!F78/'Tabel 1 F'!E76*100,"-")) -> 6.25 | G78: =IF(OR('Tabel 1 F'!E76<5,'Tabel 2 F'!G78<0.5),"-",IFERROR('Tabel 2 F'!G78/'Tabel 1 F'!E76*100,"-")) -> 5.960363001 | I78: =IF(OR('Tabel 1 F'!G76<5,'Tabel 2 F'!I78<0.5),"-",IFERROR('Tabel 2 F'!I78/'Tabel 1 F'!G76*100,"-")) -> 5.555555556 | J78: =IF(OR('Tabel 1 F'!G76<5,'Tabel 2 F'!J78<0.5),"-",IFERROR('Tabel 2 F'!J78/'Tabel 1 F'!G76*100,"-")) -> 5.298100446
A79: Farmaceut | C79: =IF(OR('Tabel 1 F'!C77<5,'Tabel 2 F'!C79<0.5),"-",IFERROR('Tabel 2 F'!C79/'Tabel 1 F'!C77*100,"-")) -> - | D79: =IF(OR('Tabel 1 F'!C77<5,'Tabel 2 F'!D79<0.5),"-",IFERROR('Tabel 2 F'!D79/'Tabel 1 F'!C77*100,"-")) -> - | F79: =IF(OR('Tabel 1 F'!E77<5,'Tabel 2 F'!F79<0.5),"-",IFERROR('Tabel 2 F'!F79/'Tabel 1 F'!E77*100,"-")) -> - | G79: =IF(OR('Tabel 1 F'!E77<5,'Tabel 2 F'!G79<0.5),"-",IFERROR('Tabel 2 F'!G79/'Tabel 1 F'!E77*100,"-")) -> - | I79: =IF(OR('Tabel 1 F'!G77<5,'Tabel 2 F'!I79<0.5),"-",IFERROR('Tabel 2 F'!I79/'Tabel 1 F'!G77*100,"-")) -> - | J79: =IF(OR('Tabel 1 F'!G77<5,'Tabel 2 F'!J79<0.5),"-",IFERROR('Tabel 2 F'!J79/'Tabel 1 F'!G77*100,"-")) -> -
A80: Læge | C80: =IF(OR('Tabel 1 F'!C78<5,'Tabel 2 F'!C80<0.5),"-",IFERROR('Tabel 2 F'!C80/'Tabel 1 F'!C78*100,"-")) -> - | D80: =IF(OR('Tabel 1 F'!C78<5,'Tabel 2 F'!D80<0.5),"-",IFERROR('Tabel 2 F'!D80/'Tabel 1 F'!C78*100,"-")) -> - | F80: =IF(OR('Tabel 1 F'!E78<5,'Tabel 2 F'!F80<0.5),"-",IFERROR('Tabel 2 F'!F80/'Tabel 1 F'!E78*100,"-")) -> 1.176470588 | G80: =IF(OR('Tabel 1 F'!E78<5,'Tabel 2 F'!G80<0.5),"-",IFERROR('Tabel 2 F'!G80/'Tabel 1 F'!E78*100,"-")) -> 1.176250454 | I80: =IF(OR('Tabel 1 F'!G78<5,'Tabel 2 F'!I80<0.5),"-",IFERROR('Tabel 2 F'!I80/'Tabel 1 F'!G78*100,"-")) -> 0.9174311927 | J80: =IF(OR('Tabel 1 F'!G78<5,'Tabel 2 F'!J80<0.5),"-",IFERROR('Tabel 2 F'!J80/'Tabel 1 F'!G78*100,"-")) -> 0.9172595284
A81: Tandlæge | C81: =IF(OR('Tabel 1 F'!C79<5,'Tabel 2 F'!C81<0.5),"-",IFERROR('Tabel 2 F'!C81/'Tabel 1 F'!C79*100,"-")) -> - | D81: =IF(OR('Tabel 1 F'!C79<5,'Tabel 2 F'!D81<0.5),"-",IFERROR('Tabel 2 F'!D81/'Tabel 1 F'!C79*100,"-")) -> - | F81: =IF(OR('Tabel 1 F'!E79<5,'Tabel 2 F'!F81<0.5),"-",IFERROR('Tabel 2 F'!F81/'Tabel 1 F'!E79*100,"-")) -> - | G81: =IF(OR('Tabel 1 F'!E79<5,'Tabel 2 F'!G81<0.5),"-",IFERROR('Tabel 2 F'!G81/'Tabel 1 F'!E79*100,"-")) -> - | I81: =IF(OR('Tabel 1 F'!G79<5,'Tabel 2 F'!I81<0.5),"-",IFERROR('Tabel 2 F'!I81/'Tabel 1 F'!G79*100,"-")) -> - | J81: =IF(OR('Tabel 1 F'!G79<5,'Tabel 2 F'!J81<0.5),"-",IFERROR('Tabel 2 F'!J81/'Tabel 1 F'!G79*100,"-")) -> -
A82: Arkitekt | C82: =IF(OR('Tabel 1 F'!C80<5,'Tabel 2 F'!C82<0.5),"-",IFERROR('Tabel 2 F'!C82/'Tabel 1 F'!C80*100,"-")) -> - | D82: =IF(OR('Tabel 1 F'!C80<5,'Tabel 2 F'!D82<0.5),"-",IFERROR('Tabel 2 F'!D82/'Tabel 1 F'!C80*100,"-")) -> - | F82: =IF(OR('Tabel 1 F'!E80<5,'Tabel 2 F'!F82<0.5),"-",IFERROR('Tabel 2 F'!F82/'Tabel 1 F'!E80*100,"-")) -> - | G82: =IF(OR('Tabel 1 F'!E80<5,'Tabel 2 F'!G82<0.5),"-",IFERROR('Tabel 2 F'!G82/'Tabel 1 F'!E80*100,"-")) -> - | I82: =IF(OR('Tabel 1 F'!G80<5,'Tabel 2 F'!I82<0.5),"-",IFERROR('Tabel 2 F'!I82/'Tabel 1 F'!G80*100,"-")) -> - | J82: =IF(OR('Tabel 1 F'!G80<5,'Tabel 2 F'!J82<0.5),"-",IFERROR('Tabel 2 F'!J82/'Tabel 1 F'!G80*100,"-")) -> -
A83: Landinspek. | C83: =IF(OR('Tabel 1 F'!C81<5,'Tabel 2 F'!C83<0.5),"-",IFERROR('Tabel 2 F'!C83/'Tabel 1 F'!C81*100,"-")) -> - | D83: =IF(OR('Tabel 1 F'!C81<5,'Tabel 2 F'!D83<0.5),"-",IFERROR('Tabel 2 F'!D83/'Tabel 1 F'!C81*100,"-")) -> - | F83: =IF(OR('Tabel 1 F'!E81<5,'Tabel 2 F'!F83<0.5),"-",IFERROR('Tabel 2 F'!F83/'Tabel 1 F'!E81*100,"-")) -> - | G83: =IF(OR('Tabel 1 F'!E81<5,'Tabel 2 F'!G83<0.5),"-",IFERROR('Tabel 2 F'!G83/'Tabel 1 F'!E81*100,"-")) -> - | I83: =IF(OR('Tabel 1 F'!G81<5,'Tabel 2 F'!I83<0.5),"-",IFERROR('Tabel 2 F'!I83/'Tabel 1 F'!G81*100,"-")) -> - | J83: =IF(OR('Tabel 1 F'!G81<5,'Tabel 2 F'!J83<0.5),"-",IFERROR('Tabel 2 F'!J83/'Tabel 1 F'!G81*100,"-")) -> -
A84: Bibliotekar | C84: =IF(OR('Tabel 1 F'!C82<5,'Tabel 2 F'!C84<0.5),"-",IFERROR('Tabel 2 F'!C84/'Tabel 1 F'!C82*100,"-")) -> - | D84: =IF(OR('Tabel 1 F'!C82<5,'Tabel 2 F'!D84<0.5),"-",IFERROR('Tabel 2 F'!D84/'Tabel 1 F'!C82*100,"-")) -> - | F84: =IF(OR('Tabel 1 F'!E82<5,'Tabel 2 F'!F84<0.5),"-",IFERROR('Tabel 2 F'!F84/'Tabel 1 F'!E82*100,"-")) -> 6.666666667 | G84: =IF(OR('Tabel 1 F'!E82<5,'Tabel 2 F'!G84<0.5),"-",IFERROR('Tabel 2 F'!G84/'Tabel 1 F'!E82*100,"-")) -> 6.665419239 | I84: =IF(OR('Tabel 1 F'!G82<5,'Tabel 2 F'!I84<0.5),"-",IFERROR('Tabel 2 F'!I84/'Tabel 1 F'!G82*100,"-")) -> 10.52631579 | J84: =IF(OR('Tabel 1 F'!G82<5,'Tabel 2 F'!J84<0.5),"-",IFERROR('Tabel 2 F'!J84/'Tabel 1 F'!G82*100,"-")) -> 10.52434617
A85: Musikudd. | C85: =IF(OR('Tabel 1 F'!C83<5,'Tabel 2 F'!C85<0.5),"-",IFERROR('Tabel 2 F'!C85/'Tabel 1 F'!C83*100,"-")) -> - | D85: =IF(OR('Tabel 1 F'!C83<5,'Tabel 2 F'!D85<0.5),"-",IFERROR('Tabel 2 F'!D85/'Tabel 1 F'!C83*100,"-")) -> - | F85: =IF(OR('Tabel 1 F'!E83<5,'Tabel 2 F'!F85<0.5),"-",IFERROR('Tabel 2 F'!F85/'Tabel 1 F'!E83*100,"-")) -> - | G85: =IF(OR('Tabel 1 F'!E83<5,'Tabel 2 F'!G85<0.5),"-",IFERROR('Tabel 2 F'!G85/'Tabel 1 F'!E83*100,"-")) -> - | I85: =IF(OR('Tabel 1 F'!G83<5,'Tabel 2 F'!I85<0.5),"-",IFERROR('Tabel 2 F'!I85/'Tabel 1 F'!G83*100,"-")) -> - | J85: =IF(OR('Tabel 1 F'!G83<5,'Tabel 2 F'!J85<0.5),"-",IFERROR('Tabel 2 F'!J85/'Tabel 1 F'!G83*100,"-")) -> -
A86: Teolog | C86: =IF(OR('Tabel 1 F'!C84<5,'Tabel 2 F'!C86<0.5),"-",IFERROR('Tabel 2 F'!C86/'Tabel 1 F'!C84*100,"-")) -> - | D86: =IF(OR('Tabel 1 F'!C84<5,'Tabel 2 F'!D86<0.5),"-",IFERROR('Tabel 2 F'!D86/'Tabel 1 F'!C84*100,"-")) -> - | F86: =IF(OR('Tabel 1 F'!E84<5,'Tabel 2 F'!F86<0.5),"-",IFERROR('Tabel 2 F'!F86/'Tabel 1 F'!E84*100,"-")) -> - | G86: =IF(OR('Tabel 1 F'!E84<5,'Tabel 2 F'!G86<0.5),"-",IFERROR('Tabel 2 F'!G86/'Tabel 1 F'!E84*100,"-")) -> - | I86: =IF(OR('Tabel 1 F'!G84<5,'Tabel 2 F'!I86<0.5),"-",IFERROR('Tabel 2 F'!I86/'Tabel 1 F'!G84*100,"-")) -> - | J86: =IF(OR('Tabel 1 F'!G84<5,'Tabel 2 F'!J86<0.5),"-",IFERROR('Tabel 2 F'!J86/'Tabel 1 F'!G84*100,"-")) -> -
A87: Psykolog | C87: =IF(OR('Tabel 1 F'!C85<5,'Tabel 2 F'!C87<0.5),"-",IFERROR('Tabel 2 F'!C87/'Tabel 1 F'!C85*100,"-")) -> - | D87: =IF(OR('Tabel 1 F'!C85<5,'Tabel 2 F'!D87<0.5),"-",IFERROR('Tabel 2 F'!D87/'Tabel 1 F'!C85*100,"-")) -> - | F87: =IF(OR('Tabel 1 F'!E85<5,'Tabel 2 F'!F87<0.5),"-",IFERROR('Tabel 2 F'!F87/'Tabel 1 F'!E85*100,"-")) -> - | G87: =IF(OR('Tabel 1 F'!E85<5,'Tabel 2 F'!G87<0.5),"-",IFERROR('Tabel 2 F'!G87/'Tabel 1 F'!E85*100,"-")) -> - | I87: =IF(OR('Tabel 1 F'!G85<5,'Tabel 2 F'!I87<0.5),"-",IFERROR('Tabel 2 F'!I87/'Tabel 1 F'!G85*100,"-")) -> - | J87: =IF(OR('Tabel 1 F'!G85<5,'Tabel 2 F'!J87<0.5),"-",IFERROR('Tabel 2 F'!J87/'Tabel 1 F'!G85*100,"-")) -> -
A88: Jurist | C88: =IF(OR('Tabel 1 F'!C86<5,'Tabel 2 F'!C88<0.5),"-",IFERROR('Tabel 2 F'!C88/'Tabel 1 F'!C86*100,"-")) -> - | D88: =IF(OR('Tabel 1 F'!C86<5,'Tabel 2 F'!D88<0.5),"-",IFERROR('Tabel 2 F'!D88/'Tabel 1 F'!C86*100,"-")) -> - | F88: =IF(OR('Tabel 1 F'!E86<5,'Tabel 2 F'!F88<0.5),"-",IFERROR('Tabel 2 F'!F88/'Tabel 1 F'!E86*100,"-")) -> 3.225806452 | G88: =IF(OR('Tabel 1 F'!E86<5,'Tabel 2 F'!G88<0.5),"-",IFERROR('Tabel 2 F'!G88/'Tabel 1 F'!E86*100,"-")) -> - | I88: =IF(OR('Tabel 1 F'!G86<5,'Tabel 2 F'!I88<0.5),"-",IFERROR('Tabel 2 F'!I88/'Tabel 1 F'!G86*100,"-")) -> 2.325581395 | J88: =IF(OR('Tabel 1 F'!G86<5,'Tabel 2 F'!J88<0.5),"-",IFERROR('Tabel 2 F'!J88/'Tabel 1 F'!G86*100,"-")) -> -
A89: Økonom | C89: =IF(OR('Tabel 1 F'!C87<5,'Tabel 2 F'!C89<0.5),"-",IFERROR('Tabel 2 F'!C89/'Tabel 1 F'!C87*100,"-")) -> - | D89: =IF(OR('Tabel 1 F'!C87<5,'Tabel 2 F'!D89<0.5),"-",IFERROR('Tabel 2 F'!D89/'Tabel 1 F'!C87*100,"-")) -> - | F89: =IF(OR('Tabel 1 F'!E87<5,'Tabel 2 F'!F89<0.5),"-",IFERROR('Tabel 2 F'!F89/'Tabel 1 F'!E87*100,"-")) -> - | G89: =IF(OR('Tabel 1 F'!E87<5,'Tabel 2 F'!G89<0.5),"-",IFERROR('Tabel 2 F'!G89/'Tabel 1 F'!E87*100,"-")) -> - | I89: =IF(OR('Tabel 1 F'!G87<5,'Tabel 2 F'!I89<0.5),"-",IFERROR('Tabel 2 F'!I89/'Tabel 1 F'!G87*100,"-")) -> - | J89: =IF(OR('Tabel 1 F'!G87<5,'Tabel 2 F'!J89<0.5),"-",IFERROR('Tabel 2 F'!J89/'Tabel 1 F'!G87*100,"-")) -> -
A90: Samf. Adm. | C90: =IF(OR('Tabel 1 F'!C88<5,'Tabel 2 F'!C90<0.5),"-",IFERROR('Tabel 2 F'!C90/'Tabel 1 F'!C88*100,"-")) -> 2.941176471 | D90: =IF(OR('Tabel 1 F'!C88<5,'Tabel 2 F'!D90<0.5),"-",IFERROR('Tabel 2 F'!D90/'Tabel 1 F'!C88*100,"-")) -> 2.940626135 | F90: =IF(OR('Tabel 1 F'!E88<5,'Tabel 2 F'!F90<0.5),"-",IFERROR('Tabel 2 F'!F90/'Tabel 1 F'!E88*100,"-")) -> 3.278688525 | G90: =IF(OR('Tabel 1 F'!E88<5,'Tabel 2 F'!G90<0.5),"-",IFERROR('Tabel 2 F'!G90/'Tabel 1 F'!E88*100,"-")) -> 2.143120797 | I90: =IF(OR('Tabel 1 F'!G88<5,'Tabel 2 F'!I90<0.5),"-",IFERROR('Tabel 2 F'!I90/'Tabel 1 F'!G88*100,"-")) -> 3.157894737 | J90: =IF(OR('Tabel 1 F'!G88<5,'Tabel 2 F'!J90<0.5),"-",IFERROR('Tabel 2 F'!J90/'Tabel 1 F'!G88*100,"-")) -> 2.42854376
A91: Cand. Merc. | C91: =IF(OR('Tabel 1 F'!C89<5,'Tabel 2 F'!C91<0.5),"-",IFERROR('Tabel 2 F'!C91/'Tabel 1 F'!C89*100,"-")) -> 1.19047619 | D91: =IF(OR('Tabel 1 F'!C89<5,'Tabel 2 F'!D91<0.5),"-",IFERROR('Tabel 2 F'!D91/'Tabel 1 F'!C89*100,"-")) -> 1.190253436 | F91: =IF(OR('Tabel 1 F'!E89<5,'Tabel 2 F'!F91<0.5),"-",IFERROR('Tabel 2 F'!F91/'Tabel 1 F'!E89*100,"-")) -> 3.076923077 | G91: =IF(OR('Tabel 1 F'!E89<5,'Tabel 2 F'!G91<0.5),"-",IFERROR('Tabel 2 F'!G91/'Tabel 1 F'!E89*100,"-")) -> 2.02658939 | I91: =IF(OR('Tabel 1 F'!G89<5,'Tabel 2 F'!I91<0.5),"-",IFERROR('Tabel 2 F'!I91/'Tabel 1 F'!G89*100,"-")) -> 2.013422819 | J91: =IF(OR('Tabel 1 F'!G89<5,'Tabel 2 F'!J91<0.5),"-",IFERROR('Tabel 2 F'!J91/'Tabel 1 F'!G89*100,"-")) -> 1.55509798
A92: HA | C92: =IF(OR('Tabel 1 F'!C90<5,'Tabel 2 F'!C92<0.5),"-",IFERROR('Tabel 2 F'!C92/'Tabel 1 F'!C90*100,"-")) -> 4 | D92: =IF(OR('Tabel 1 F'!C90<5,'Tabel 2 F'!D92<0.5),"-",IFERROR('Tabel 2 F'!D92/'Tabel 1 F'!C90*100,"-")) -> 3.999251544 | F92: =IF(OR('Tabel 1 F'!E90<5,'Tabel 2 F'!F92<0.5),"-",IFERROR('Tabel 2 F'!F92/'Tabel 1 F'!E90*100,"-")) -> 10 | G92: =IF(OR('Tabel 1 F'!E90<5,'Tabel 2 F'!G92<0.5),"-",IFERROR('Tabel 2 F'!G92/'Tabel 1 F'!E90*100,"-")) -> 9.998128859 | I92: =IF(OR('Tabel 1 F'!G90<5,'Tabel 2 F'!I92<0.5),"-",IFERROR('Tabel 2 F'!I92/'Tabel 1 F'!G90*100,"-")) -> 5.714285714 | J92: =IF(OR('Tabel 1 F'!G90<5,'Tabel 2 F'!J92<0.5),"-",IFERROR('Tabel 2 F'!J92/'Tabel 1 F'!G90*100,"-")) -> 5.713216491
A93: HD | C93: =IF(OR('Tabel 1 F'!C91<5,'Tabel 2 F'!C93<0.5),"-",IFERROR('Tabel 2 F'!C93/'Tabel 1 F'!C91*100,"-")) -> - | D93: =IF(OR('Tabel 1 F'!C91<5,'Tabel 2 F'!D93<0.5),"-",IFERROR('Tabel 2 F'!D93/'Tabel 1 F'!C91*100,"-")) -> - | F93: =IF(OR('Tabel 1 F'!E91<5,'Tabel 2 F'!F93<0.5),"-",IFERROR('Tabel 2 F'!F93/'Tabel 1 F'!E91*100,"-")) -> - | G93: =IF(OR('Tabel 1 F'!E91<5,'Tabel 2 F'!G93<0.5),"-",IFERROR('Tabel 2 F'!G93/'Tabel 1 F'!E91*100,"-")) -> - | I93: =IF(OR('Tabel 1 F'!G91<5,'Tabel 2 F'!I93<0.5),"-",IFERROR('Tabel 2 F'!I93/'Tabel 1 F'!G91*100,"-")) -> - | J93: =IF(OR('Tabel 1 F'!G91<5,'Tabel 2 F'!J93<0.5),"-",IFERROR('Tabel 2 F'!J93/'Tabel 1 F'!G91*100,"-")) -> -
A94: Komm. og Sprog | C94: =IF(OR('Tabel 1 F'!C92<5,'Tabel 2 F'!C94<0.5),"-",IFERROR('Tabel 2 F'!C94/'Tabel 1 F'!C92*100,"-")) -> - | D94: =IF(OR('Tabel 1 F'!C92<5,'Tabel 2 F'!D94<0.5),"-",IFERROR('Tabel 2 F'!D94/'Tabel 1 F'!C92*100,"-")) -> - | F94: =IF(OR('Tabel 1 F'!E92<5,'Tabel 2 F'!F94<0.5),"-",IFERROR('Tabel 2 F'!F94/'Tabel 1 F'!E92*100,"-")) -> - | G94: =IF(OR('Tabel 1 F'!E92<5,'Tabel 2 F'!G94<0.5),"-",IFERROR('Tabel 2 F'!G94/'Tabel 1 F'!E92*100,"-")) -> - | I94: =IF(OR('Tabel 1 F'!G92<5,'Tabel 2 F'!I94<0.5),"-",IFERROR('Tabel 2 F'!I94/'Tabel 1 F'!G92*100,"-")) -> - | J94: =IF(OR('Tabel 1 F'!G92<5,'Tabel 2 F'!J94<0.5),"-",IFERROR('Tabel 2 F'!J94/'Tabel 1 F'!G92*100,"-")) -> -
A95: Bygningskonst. | C95: =IF(OR('Tabel 1 F'!C93<5,'Tabel 2 F'!C95<0.5),"-",IFERROR('Tabel 2 F'!C95/'Tabel 1 F'!C93*100,"-")) -> 6.060606061 | D95: =IF(OR('Tabel 1 F'!C93<5,'Tabel 2 F'!D95<0.5),"-",IFERROR('Tabel 2 F'!D95/'Tabel 1 F'!C93*100,"-")) -> 4.452181013 | F95: =IF(OR('Tabel 1 F'!E93<5,'Tabel 2 F'!F95<0.5),"-",IFERROR('Tabel 2 F'!F95/'Tabel 1 F'!E93*100,"-")) -> - | G95: =IF(OR('Tabel 1 F'!E93<5,'Tabel 2 F'!G95<0.5),"-",IFERROR('Tabel 2 F'!G95/'Tabel 1 F'!E93*100,"-")) -> - | I95: =IF(OR('Tabel 1 F'!G93<5,'Tabel 2 F'!I95<0.5),"-",IFERROR('Tabel 2 F'!I95/'Tabel 1 F'!G93*100,"-")) -> 5.263157895 | J95: =IF(OR('Tabel 1 F'!G93<5,'Tabel 2 F'!J95<0.5),"-",IFERROR('Tabel 2 F'!J95/'Tabel 1 F'!G93*100,"-")) -> 3.866367722
A96: Cand. IT. | C96: =IF(OR('Tabel 1 F'!C94<5,'Tabel 2 F'!C96<0.5),"-",IFERROR('Tabel 2 F'!C96/'Tabel 1 F'!C94*100,"-")) -> 33.33333333 | D96: =IF(OR('Tabel 1 F'!C94<5,'Tabel 2 F'!D96<0.5),"-",IFERROR('Tabel 2 F'!D96/'Tabel 1 F'!C94*100,"-")) -> 33.3270962 | F96: =IF(OR('Tabel 1 F'!E94<5,'Tabel 2 F'!F96<0.5),"-",IFERROR('Tabel 2 F'!F96/'Tabel 1 F'!E94*100,"-")) -> 16.66666667 | G96: =IF(OR('Tabel 1 F'!E94<5,'Tabel 2 F'!G96<0.5),"-",IFERROR('Tabel 2 F'!G96/'Tabel 1 F'!E94*100,"-")) -> - | I96: =IF(OR('Tabel 1 F'!G94<5,'Tabel 2 F'!I96<0.5),"-",IFERROR('Tabel 2 F'!I96/'Tabel 1 F'!G94*100,"-")) -> 25 | J96: =IF(OR('Tabel 1 F'!G94<5,'Tabel 2 F'!J96<0.5),"-",IFERROR('Tabel 2 F'!J96/'Tabel 1 F'!G94*100,"-")) -> 17.97854425
A97: Bac. Samf. | C97: =IF(OR('Tabel 1 F'!C95<5,'Tabel 2 F'!C97<0.5),"-",IFERROR('Tabel 2 F'!C97/'Tabel 1 F'!C95*100,"-")) -> - | D97: =IF(OR('Tabel 1 F'!C95<5,'Tabel 2 F'!D97<0.5),"-",IFERROR('Tabel 2 F'!D97/'Tabel 1 F'!C95*100,"-")) -> - | F97: =IF(OR('Tabel 1 F'!E95<5,'Tabel 2 F'!F97<0.5),"-",IFERROR('Tabel 2 F'!F97/'Tabel 1 F'!E95*100,"-")) -> - | G97: =IF(OR('Tabel 1 F'!E95<5,'Tabel 2 F'!G97<0.5),"-",IFERROR('Tabel 2 F'!G97/'Tabel 1 F'!E95*100,"-")) -> - | I97: =IF(OR('Tabel 1 F'!G95<5,'Tabel 2 F'!I97<0.5),"-",IFERROR('Tabel 2 F'!I97/'Tabel 1 F'!G95*100,"-")) -> - | J97: =IF(OR('Tabel 1 F'!G95<5,'Tabel 2 F'!J97<0.5),"-",IFERROR('Tabel 2 F'!J97/'Tabel 1 F'!G95*100,"-")) -> -
A98: Bac. Hum. | C98: =IF(OR('Tabel 1 F'!C96<5,'Tabel 2 F'!C98<0.5),"-",IFERROR('Tabel 2 F'!C98/'Tabel 1 F'!C96*100,"-")) -> - | D98: =IF(OR('Tabel 1 F'!C96<5,'Tabel 2 F'!D98<0.5),"-",IFERROR('Tabel 2 F'!D98/'Tabel 1 F'!C96*100,"-")) -> - | F98: =IF(OR('Tabel 1 F'!E96<5,'Tabel 2 F'!F98<0.5),"-",IFERROR('Tabel 2 F'!F98/'Tabel 1 F'!E96*100,"-")) -> 16.66666667 | G98: =IF(OR('Tabel 1 F'!E96<5,'Tabel 2 F'!G98<0.5),"-",IFERROR('Tabel 2 F'!G98/'Tabel 1 F'!E96*100,"-")) -> 15.50967796 | I98: =IF(OR('Tabel 1 F'!G96<5,'Tabel 2 F'!I98<0.5),"-",IFERROR('Tabel 2 F'!I98/'Tabel 1 F'!G96*100,"-")) -> 13.33333333 | J98: =IF(OR('Tabel 1 F'!G96<5,'Tabel 2 F'!J98<0.5),"-",IFERROR('Tabel 2 F'!J98/'Tabel 1 F'!G96*100,"-")) -> 12.40774236
A99: Bac. Nat. | C99: =IF(OR('Tabel 1 F'!C97<5,'Tabel 2 F'!C99<0.5),"-",IFERROR('Tabel 2 F'!C99/'Tabel 1 F'!C97*100,"-")) -> - | D99: =IF(OR('Tabel 1 F'!C97<5,'Tabel 2 F'!D99<0.5),"-",IFERROR('Tabel 2 F'!D99/'Tabel 1 F'!C97*100,"-")) -> - | F99: =IF(OR('Tabel 1 F'!E97<5,'Tabel 2 F'!F99<0.5),"-",IFERROR('Tabel 2 F'!F99/'Tabel 1 F'!E97*100,"-")) -> - | G99: =IF(OR('Tabel 1 F'!E97<5,'Tabel 2 F'!G99<0.5),"-",IFERROR('Tabel 2 F'!G99/'Tabel 1 F'!E97*100,"-")) -> - | I99: =IF(OR('Tabel 1 F'!G97<5,'Tabel 2 F'!I99<0.5),"-",IFERROR('Tabel 2 F'!I99/'Tabel 1 F'!G97*100,"-")) -> - | J99: =IF(OR('Tabel 1 F'!G97<5,'Tabel 2 F'!J99<0.5),"-",IFERROR('Tabel 2 F'!J99/'Tabel 1 F'!G97*100,"-")) -> -
A100: Andre | C100: =IF(OR('Tabel 1 F'!C98<5,'Tabel 2 F'!C100<0.5),"-",IFERROR('Tabel 2 F'!C100/'Tabel 1 F'!C98*100,"-")) -> - | D100: =IF(OR('Tabel 1 F'!C98<5,'Tabel 2 F'!D100<0.5),"-",IFERROR('Tabel 2 F'!D100/'Tabel 1 F'!C98*100,"-")) -> - | F100: =IF(OR('Tabel 1 F'!E98<5,'Tabel 2 F'!F100<0.5),"-",IFERROR('Tabel 2 F'!F100/'Tabel 1 F'!E98*100,"-")) -> - | G100: =IF(OR('Tabel 1 F'!E98<5,'Tabel 2 F'!G100<0.5),"-",IFERROR('Tabel 2 F'!G100/'Tabel 1 F'!E98*100,"-")) -> - | I100: =IF(OR('Tabel 1 F'!G98<5,'Tabel 2 F'!I100<0.5),"-",IFERROR('Tabel 2 F'!I100/'Tabel 1 F'!G98*100,"-")) -> - | J100: =IF(OR('Tabel 1 F'!G98<5,'Tabel 2 F'!J100<0.5),"-",IFERROR('Tabel 2 F'!J100/'Tabel 1 F'!G98*100,"-")) -> -
A102: Total | C102: =IF(OR('Tabel 1 F'!C100<5,'Tabel 2 F'!C102<0.5),"-",IFERROR('Tabel 2 F'!C102/'Tabel 1 F'!C100*100,"-")) -> 3.099885189 | D102: =IF(OR('Tabel 1 F'!C100<5,'Tabel 2 F'!D102<0.5),"-",IFERROR('Tabel 2 F'!D102/'Tabel 1 F'!C100*100,"-")) -> 2.84739934 | F102: =IF(OR('Tabel 1 F'!E100<5,'Tabel 2 F'!F102<0.5),"-",IFERROR('Tabel 2 F'!F102/'Tabel 1 F'!E100*100,"-")) -> 4.2527339 | G102: =IF(OR('Tabel 1 F'!E100<5,'Tabel 2 F'!G102<0.5),"-",IFERROR('Tabel 2 F'!G102/'Tabel 1 F'!E100*100,"-")) -> 3.431409959 | I102: =IF(OR('Tabel 1 F'!G100<5,'Tabel 2 F'!I102<0.5),"-",IFERROR('Tabel 2 F'!I102/'Tabel 1 F'!G100*100,"-")) -> 3.659976387 | J102: =IF(OR('Tabel 1 F'!G100<5,'Tabel 2 F'!J102<0.5),"-",IFERROR('Tabel 2 F'!J102/'Tabel 1 F'!G100*100,"-")) -> 3.131130591
A104: Ingeniører i alt | C104: =IF(OR('Tabel 1 F'!C102<5,'Tabel 2 F'!C104<0.5),"-",IFERROR('Tabel 2 F'!C104/'Tabel 1 F'!C102*100,"-")) -> 1.863354037 | D104: =IF(OR('Tabel 1 F'!C102<5,'Tabel 2 F'!D104<0.5),"-",IFERROR('Tabel 2 F'!D104/'Tabel 1 F'!C102*100,"-")) -> 1.863005377 | F104: =IF(OR('Tabel 1 F'!E102<5,'Tabel 2 F'!F104<0.5),"-",IFERROR('Tabel 2 F'!F104/'Tabel 1 F'!E102*100,"-")) -> 7.228915663 | G104: =IF(OR('Tabel 1 F'!E102<5,'Tabel 2 F'!G104<0.5),"-",IFERROR('Tabel 2 F'!G104/'Tabel 1 F'!E102*100,"-")) -> 5.614925241 | I104: =IF(OR('Tabel 1 F'!G102<5,'Tabel 2 F'!I104<0.5),"-",IFERROR('Tabel 2 F'!I104/'Tabel 1 F'!G102*100,"-")) -> 2.962962963 | J104: =IF(OR('Tabel 1 F'!G102<5,'Tabel 2 F'!J104<0.5),"-",IFERROR('Tabel 2 F'!J104/'Tabel 1 F'!G102*100,"-")) -> 2.631917349
A105: Magistre i alt | C105: =IF(OR('Tabel 1 F'!C103<5,'Tabel 2 F'!C105<0.5),"-",IFERROR('Tabel 2 F'!C105/'Tabel 1 F'!C103*100,"-")) -> 5.050505051 | D105: =IF(OR('Tabel 1 F'!C103<5,'Tabel 2 F'!D105<0.5),"-",IFERROR('Tabel 2 F'!D105/'Tabel 1 F'!C103*100,"-")) -> 4.465537304 | F105: =IF(OR('Tabel 1 F'!E103<5,'Tabel 2 F'!F105<0.5),"-",IFERROR('Tabel 2 F'!F105/'Tabel 1 F'!E103*100,"-")) -> 7.853403141 | G105: =IF(OR('Tabel 1 F'!E103<5,'Tabel 2 F'!G105<0.5),"-",IFERROR('Tabel 2 F'!G105/'Tabel 1 F'!E103*100,"-")) -> 6.554217528 | I105: =IF(OR('Tabel 1 F'!G103<5,'Tabel 2 F'!I105<0.5),"-",IFERROR('Tabel 2 F'!I105/'Tabel 1 F'!G103*100,"-")) -> 6.896551724 | J105: =IF(OR('Tabel 1 F'!G103<5,'Tabel 2 F'!J105<0.5),"-",IFERROR('Tabel 2 F'!J105/'Tabel 1 F'!G103*100,"-")) -> 5.841185314
A106: DJØF'ere i alt | C106: =IF(OR('Tabel 1 F'!C104<5,'Tabel 2 F'!C106<0.5),"-",IFERROR('Tabel 2 F'!C106/'Tabel 1 F'!C104*100,"-")) -> 1.666666667 | D106: =IF(OR('Tabel 1 F'!C104<5,'Tabel 2 F'!D106<0.5),"-",IFERROR('Tabel 2 F'!D106/'Tabel 1 F'!C104*100,"-")) -> 1.66635481 | F106: =IF(OR('Tabel 1 F'!E104<5,'Tabel 2 F'!F106<0.5),"-",IFERROR('Tabel 2 F'!F106/'Tabel 1 F'!E104*100,"-")) -> 3.141361257 | G106: =IF(OR('Tabel 1 F'!E104<5,'Tabel 2 F'!G106<0.5),"-",IFERROR('Tabel 2 F'!G106/'Tabel 1 F'!E104*100,"-")) -> 2.15524068 | I106: =IF(OR('Tabel 1 F'!G104<5,'Tabel 2 F'!I106<0.5),"-",IFERROR('Tabel 2 F'!I106/'Tabel 1 F'!G104*100,"-")) -> 2.425876011 | J106: =IF(OR('Tabel 1 F'!G104<5,'Tabel 2 F'!J106<0.5),"-",IFERROR('Tabel 2 F'!J106/'Tabel 1 F'!G104*100,"-")) -> 1.918045379
A111: Assens
C113: Mænd | F113: Kvinder | I113: I alt
C114: Ledigheds- berørte | D114: Gns. brutto- ledighed | F114: Ledigheds- berørte | G114: Gns. brutto- ledighed | I114: Ledigheds- berørte | J114: Gns. brutto- ledighed
A117: Civ. ing. | C117: =IF(OR('Tabel 1 F'!C115<5,'Tabel 2 F'!C117<0.5),"-",IFERROR('Tabel 2 F'!C117/'Tabel 1 F'!C115*100,"-")) -> - | D117: =IF(OR('Tabel 1 F'!C115<5,'Tabel 2 F'!D117<0.5),"-",IFERROR('Tabel 2 F'!D117/'Tabel 1 F'!C115*100,"-")) -> - | F117: =IF(OR('Tabel 1 F'!E115<5,'Tabel 2 F'!F117<0.5),"-",IFERROR('Tabel 2 F'!F117/'Tabel 1 F'!E115*100,"-")) -> 6.666666667 | G117: =IF(OR('Tabel 1 F'!E115<5,'Tabel 2 F'!G117<0.5),"-",IFERROR('Tabel 2 F'!G117/'Tabel 1 F'!E115*100,"-")) -> 6.665419239 | I117: =IF(OR('Tabel 1 F'!G115<5,'Tabel 2 F'!I117<0.5),"-",IFERROR('Tabel 2 F'!I117/'Tabel 1 F'!G115*100,"-")) -> 1.351351351 | J117: =IF(OR('Tabel 1 F'!G115<5,'Tabel 2 F'!J117<0.5),"-",IFERROR('Tabel 2 F'!J117/'Tabel 1 F'!G115*100,"-")) -> 1.351098494
A118: Diplom ing. | C118: =IF(OR('Tabel 1 F'!C116<5,'Tabel 2 F'!C118<0.5),"-",IFERROR('Tabel 2 F'!C118/'Tabel 1 F'!C116*100,"-")) -> 4.020100503 | D118: =IF(OR('Tabel 1 F'!C116<5,'Tabel 2 F'!D118<0.5),"-",IFERROR('Tabel 2 F'!D118/'Tabel 1 F'!C116*100,"-")) -> 3.133298878 | F118: =IF(OR('Tabel 1 F'!E116<5,'Tabel 2 F'!F118<0.5),"-",IFERROR('Tabel 2 F'!F118/'Tabel 1 F'!E116*100,"-")) -> 4.255319149 | G118: =IF(OR('Tabel 1 F'!E116<5,'Tabel 2 F'!G118<0.5),"-",IFERROR('Tabel 2 F'!G118/'Tabel 1 F'!E116*100,"-")) -> 2.987189984 | I118: =IF(OR('Tabel 1 F'!G116<5,'Tabel 2 F'!I118<0.5),"-",IFERROR('Tabel 2 F'!I118/'Tabel 1 F'!G116*100,"-")) -> 4.06504065 | J118: =IF(OR('Tabel 1 F'!G116<5,'Tabel 2 F'!J118<0.5),"-",IFERROR('Tabel 2 F'!J118/'Tabel 1 F'!G116*100,"-")) -> 3.105383764
A119: Cand. Scient. Tek. | C119: =IF(OR('Tabel 1 F'!C117<5,'Tabel 2 F'!C119<0.5),"-",IFERROR('Tabel 2 F'!C119/'Tabel 1 F'!C117*100,"-")) -> - | D119: =IF(OR('Tabel 1 F'!C117<5,'Tabel 2 F'!D119<0.5),"-",IFERROR('Tabel 2 F'!D119/'Tabel 1 F'!C117*100,"-")) -> - | F119: =IF(OR('Tabel 1 F'!E117<5,'Tabel 2 F'!F119<0.5),"-",IFERROR('Tabel 2 F'!F119/'Tabel 1 F'!E117*100,"-")) -> 15 | G119: =IF(OR('Tabel 1 F'!E117<5,'Tabel 2 F'!G119<0.5),"-",IFERROR('Tabel 2 F'!G119/'Tabel 1 F'!E117*100,"-")) -> 14.99719329 | I119: =IF(OR('Tabel 1 F'!G117<5,'Tabel 2 F'!I119<0.5),"-",IFERROR('Tabel 2 F'!I119/'Tabel 1 F'!G117*100,"-")) -> 7.142857143 | J119: =IF(OR('Tabel 1 F'!G117<5,'Tabel 2 F'!J119<0.5),"-",IFERROR('Tabel 2 F'!J119/'Tabel 1 F'!G117*100,"-")) -> 7.141520614
A120: MA. Hum. | C120: =IF(OR('Tabel 1 F'!C118<5,'Tabel 2 F'!C120<0.5),"-",IFERROR('Tabel 2 F'!C120/'Tabel 1 F'!C118*100,"-")) -> 4.651162791 | D120: =IF(OR('Tabel 1 F'!C118<5,'Tabel 2 F'!D120<0.5),"-",IFERROR('Tabel 2 F'!D120/'Tabel 1 F'!C118*100,"-")) -> 4.650292493 | F120: =IF(OR('Tabel 1 F'!E118<5,'Tabel 2 F'!F120<0.5),"-",IFERROR('Tabel 2 F'!F120/'Tabel 1 F'!E118*100,"-")) -> 12.06896552 | G120: =IF(OR('Tabel 1 F'!E118<5,'Tabel 2 F'!G120<0.5),"-",IFERROR('Tabel 2 F'!G120/'Tabel 1 F'!E118*100,"-")) -> 10.1267429 | I120: =IF(OR('Tabel 1 F'!G118<5,'Tabel 2 F'!I120<0.5),"-",IFERROR('Tabel 2 F'!I120/'Tabel 1 F'!G118*100,"-")) -> 10.06289308 | J120: =IF(OR('Tabel 1 F'!G118<5,'Tabel 2 F'!J120<0.5),"-",IFERROR('Tabel 2 F'!J120/'Tabel 1 F'!G118*100,"-")) -> 8.645690276
A121: MA. Nat. | C121: =IF(OR('Tabel 1 F'!C119<5,'Tabel 2 F'!C121<0.5),"-",IFERROR('Tabel 2 F'!C121/'Tabel 1 F'!C119*100,"-")) -> - | D121: =IF(OR('Tabel 1 F'!C119<5,'Tabel 2 F'!D121<0.5),"-",IFERROR('Tabel 2 F'!D121/'Tabel 1 F'!C119*100,"-")) -> - | F121: =IF(OR('Tabel 1 F'!E119<5,'Tabel 2 F'!F121<0.5),"-",IFERROR('Tabel 2 F'!F121/'Tabel 1 F'!E119*100,"-")) -> 10.71428571 | G121: =IF(OR('Tabel 1 F'!E119<5,'Tabel 2 F'!G121<0.5),"-",IFERROR('Tabel 2 F'!G121/'Tabel 1 F'!E119*100,"-")) -> 8.738672916 | I121: =IF(OR('Tabel 1 F'!G119<5,'Tabel 2 F'!I121<0.5),"-",IFERROR('Tabel 2 F'!I121/'Tabel 1 F'!G119*100,"-")) -> 5.084745763 | J121: =IF(OR('Tabel 1 F'!G119<5,'Tabel 2 F'!J121<0.5),"-",IFERROR('Tabel 2 F'!J121/'Tabel 1 F'!G119*100,"-")) -> 4.147166807
A122: MA. Ph.d. | C122: =IF(OR('Tabel 1 F'!C120<5,'Tabel 2 F'!C122<0.5),"-",IFERROR('Tabel 2 F'!C122/'Tabel 1 F'!C120*100,"-")) -> - | D122: =IF(OR('Tabel 1 F'!C120<5,'Tabel 2 F'!D122<0.5),"-",IFERROR('Tabel 2 F'!D122/'Tabel 1 F'!C120*100,"-")) -> - | F122: =IF(OR('Tabel 1 F'!E120<5,'Tabel 2 F'!F122<0.5),"-",IFERROR('Tabel 2 F'!F122/'Tabel 1 F'!E120*100,"-")) -> - | G122: =IF(OR('Tabel 1 F'!E120<5,'Tabel 2 F'!G122<0.5),"-",IFERROR('Tabel 2 F'!G122/'Tabel 1 F'!E120*100,"-")) -> - | I122: =IF(OR('Tabel 1 F'!G120<5,'Tabel 2 F'!I122<0.5),"-",IFERROR('Tabel 2 F'!I122/'Tabel 1 F'!G120*100,"-")) -> - | J122: =IF(OR('Tabel 1 F'!G120<5,'Tabel 2 F'!J122<0.5),"-",IFERROR('Tabel 2 F'!J122/'Tabel 1 F'!G120*100,"-")) -> -
A123: MA. Samf. | C123: =IF(OR('Tabel 1 F'!C121<5,'Tabel 2 F'!C123<0.5),"-",IFERROR('Tabel 2 F'!C123/'Tabel 1 F'!C121*100,"-")) -> - | D123: =IF(OR('Tabel 1 F'!C121<5,'Tabel 2 F'!D123<0.5),"-",IFERROR('Tabel 2 F'!D123/'Tabel 1 F'!C121*100,"-")) -> - | F123: =IF(OR('Tabel 1 F'!E121<5,'Tabel 2 F'!F123<0.5),"-",IFERROR('Tabel 2 F'!F123/'Tabel 1 F'!E121*100,"-")) -> - | G123: =IF(OR('Tabel 1 F'!E121<5,'Tabel 2 F'!G123<0.5),"-",IFERROR('Tabel 2 F'!G123/'Tabel 1 F'!E121*100,"-")) -> - | I123: =IF(OR('Tabel 1 F'!G121<5,'Tabel 2 F'!I123<0.5),"-",IFERROR('Tabel 2 F'!I123/'Tabel 1 F'!G121*100,"-")) -> 20 | J123: =IF(OR('Tabel 1 F'!G121<5,'Tabel 2 F'!J123<0.5),"-",IFERROR('Tabel 2 F'!J123/'Tabel 1 F'!G121*100,"-")) -> 14.66974365
A124: Øvrige Mag. | C124: =IF(OR('Tabel 1 F'!C122<5,'Tabel 2 F'!C124<0.5),"-",IFERROR('Tabel 2 F'!C124/'Tabel 1 F'!C122*100,"-")) -> - | D124: =IF(OR('Tabel 1 F'!C122<5,'Tabel 2 F'!D124<0.5),"-",IFERROR('Tabel 2 F'!D124/'Tabel 1 F'!C122*100,"-")) -> - | F124: =IF(OR('Tabel 1 F'!E122<5,'Tabel 2 F'!F124<0.5),"-",IFERROR('Tabel 2 F'!F124/'Tabel 1 F'!E122*100,"-")) -> - | G124: =IF(OR('Tabel 1 F'!E122<5,'Tabel 2 F'!G124<0.5),"-",IFERROR('Tabel 2 F'!G124/'Tabel 1 F'!E122*100,"-")) -> - | I124: =IF(OR('Tabel 1 F'!G122<5,'Tabel 2 F'!I124<0.5),"-",IFERROR('Tabel 2 F'!I124/'Tabel 1 F'!G122*100,"-")) -> - | J124: =IF(OR('Tabel 1 F'!G122<5,'Tabel 2 F'!J124<0.5),"-",IFERROR('Tabel 2 F'!J124/'Tabel 1 F'!G122*100,"-")) -> -
A125: Agronom | C125: =IF(OR('Tabel 1 F'!C123<5,'Tabel 2 F'!C125<0.5),"-",IFERROR('Tabel 2 F'!C125/'Tabel 1 F'!C123*100,"-")) -> - | D125: =IF(OR('Tabel 1 F'!C123<5,'Tabel 2 F'!D125<0.5),"-",IFERROR('Tabel 2 F'!D125/'Tabel 1 F'!C123*100,"-")) -> - | F125: =IF(OR('Tabel 1 F'!E123<5,'Tabel 2 F'!F125<0.5),"-",IFERROR('Tabel 2 F'!F125/'Tabel 1 F'!E123*100,"-")) -> - | G125: =IF(OR('Tabel 1 F'!E123<5,'Tabel 2 F'!G125<0.5),"-",IFERROR('Tabel 2 F'!G125/'Tabel 1 F'!E123*100,"-")) -> - | I125: =IF(OR('Tabel 1 F'!G123<5,'Tabel 2 F'!I125<0.5),"-",IFERROR('Tabel 2 F'!I125/'Tabel 1 F'!G123*100,"-")) -> - | J125: =IF(OR('Tabel 1 F'!G123<5,'Tabel 2 F'!J125<0.5),"-",IFERROR('Tabel 2 F'!J125/'Tabel 1 F'!G123*100,"-")) -> -
A126: Landsk. Arkt. | C126: =IF(OR('Tabel 1 F'!C124<5,'Tabel 2 F'!C126<0.5),"-",IFERROR('Tabel 2 F'!C126/'Tabel 1 F'!C124*100,"-")) -> - | D126: =IF(OR('Tabel 1 F'!C124<5,'Tabel 2 F'!D126<0.5),"-",IFERROR('Tabel 2 F'!D126/'Tabel 1 F'!C124*100,"-")) -> - | F126: =IF(OR('Tabel 1 F'!E124<5,'Tabel 2 F'!F126<0.5),"-",IFERROR('Tabel 2 F'!F126/'Tabel 1 F'!E124*100,"-")) -> - | G126: =IF(OR('Tabel 1 F'!E124<5,'Tabel 2 F'!G126<0.5),"-",IFERROR('Tabel 2 F'!G126/'Tabel 1 F'!E124*100,"-")) -> - | I126: =IF(OR('Tabel 1 F'!G124<5,'Tabel 2 F'!I126<0.5),"-",IFERROR('Tabel 2 F'!I126/'Tabel 1 F'!G124*100,"-")) -> - | J126: =IF(OR('Tabel 1 F'!G124<5,'Tabel 2 F'!J126<0.5),"-",IFERROR('Tabel 2 F'!J126/'Tabel 1 F'!G124*100,"-")) -> -
A127: Hortonom | C127: =IF(OR('Tabel 1 F'!C125<5,'Tabel 2 F'!C127<0.5),"-",IFERROR('Tabel 2 F'!C127/'Tabel 1 F'!C125*100,"-")) -> - | D127: =IF(OR('Tabel 1 F'!C125<5,'Tabel 2 F'!D127<0.5),"-",IFERROR('Tabel 2 F'!D127/'Tabel 1 F'!C125*100,"-")) -> - | F127: =IF(OR('Tabel 1 F'!E125<5,'Tabel 2 F'!F127<0.5),"-",IFERROR('Tabel 2 F'!F127/'Tabel 1 F'!E125*100,"-")) -> - | G127: =IF(OR('Tabel 1 F'!E125<5,'Tabel 2 F'!G127<0.5),"-",IFERROR('Tabel 2 F'!G127/'Tabel 1 F'!E125*100,"-")) -> - | I127: =IF(OR('Tabel 1 F'!G125<5,'Tabel 2 F'!I127<0.5),"-",IFERROR('Tabel 2 F'!I127/'Tabel 1 F'!G125*100,"-")) -> - | J127: =IF(OR('Tabel 1 F'!G125<5,'Tabel 2 F'!J127<0.5),"-",IFERROR('Tabel 2 F'!J127/'Tabel 1 F'!G125*100,"-")) -> -
A128: Forstkand. | C128: =IF(OR('Tabel 1 F'!C126<5,'Tabel 2 F'!C128<0.5),"-",IFERROR('Tabel 2 F'!C128/'Tabel 1 F'!C126*100,"-")) -> - | D128: =IF(OR('Tabel 1 F'!C126<5,'Tabel 2 F'!D128<0.5),"-",IFERROR('Tabel 2 F'!D128/'Tabel 1 F'!C126*100,"-")) -> - | F128: =IF(OR('Tabel 1 F'!E126<5,'Tabel 2 F'!F128<0.5),"-",IFERROR('Tabel 2 F'!F128/'Tabel 1 F'!E126*100,"-")) -> - | G128: =IF(OR('Tabel 1 F'!E126<5,'Tabel 2 F'!G128<0.5),"-",IFERROR('Tabel 2 F'!G128/'Tabel 1 F'!E126*100,"-")) -> - | I128: =IF(OR('Tabel 1 F'!G126<5,'Tabel 2 F'!I128<0.5),"-",IFERROR('Tabel 2 F'!I128/'Tabel 1 F'!G126*100,"-")) -> - | J128: =IF(OR('Tabel 1 F'!G126<5,'Tabel 2 F'!J128<0.5),"-",IFERROR('Tabel 2 F'!J128/'Tabel 1 F'!G126*100,"-")) -> -
A129: Jordbrugsakad. | C129: =IF(OR('Tabel 1 F'!C127<5,'Tabel 2 F'!C129<0.5),"-",IFERROR('Tabel 2 F'!C129/'Tabel 1 F'!C127*100,"-")) -> - | D129: =IF(OR('Tabel 1 F'!C127<5,'Tabel 2 F'!D129<0.5),"-",IFERROR('Tabel 2 F'!D129/'Tabel 1 F'!C127*100,"-")) -> - | F129: =IF(OR('Tabel 1 F'!E127<5,'Tabel 2 F'!F129<0.5),"-",IFERROR('Tabel 2 F'!F129/'Tabel 1 F'!E127*100,"-")) -> - | G129: =IF(OR('Tabel 1 F'!E127<5,'Tabel 2 F'!G129<0.5),"-",IFERROR('Tabel 2 F'!G129/'Tabel 1 F'!E127*100,"-")) -> - | I129: =IF(OR('Tabel 1 F'!G127<5,'Tabel 2 F'!I129<0.5),"-",IFERROR('Tabel 2 F'!I129/'Tabel 1 F'!G127*100,"-")) -> - | J129: =IF(OR('Tabel 1 F'!G127<5,'Tabel 2 F'!J129<0.5),"-",IFERROR('Tabel 2 F'!J129/'Tabel 1 F'!G127*100,"-")) -> -
A130: Mejeriing. | C130: =IF(OR('Tabel 1 F'!C128<5,'Tabel 2 F'!C130<0.5),"-",IFERROR('Tabel 2 F'!C130/'Tabel 1 F'!C128*100,"-")) -> - | D130: =IF(OR('Tabel 1 F'!C128<5,'Tabel 2 F'!D130<0.5),"-",IFERROR('Tabel 2 F'!D130/'Tabel 1 F'!C128*100,"-")) -> - | F130: =IF(OR('Tabel 1 F'!E128<5,'Tabel 2 F'!F130<0.5),"-",IFERROR('Tabel 2 F'!F130/'Tabel 1 F'!E128*100,"-")) -> - | G130: =IF(OR('Tabel 1 F'!E128<5,'Tabel 2 F'!G130<0.5),"-",IFERROR('Tabel 2 F'!G130/'Tabel 1 F'!E128*100,"-")) -> - | I130: =IF(OR('Tabel 1 F'!G128<5,'Tabel 2 F'!I130<0.5),"-",IFERROR('Tabel 2 F'!I130/'Tabel 1 F'!G128*100,"-")) -> - | J130: =IF(OR('Tabel 1 F'!G128<5,'Tabel 2 F'!J130<0.5),"-",IFERROR('Tabel 2 F'!J130/'Tabel 1 F'!G128*100,"-")) -> -
A131: Levn.m.kand. | C131: =IF(OR('Tabel 1 F'!C129<5,'Tabel 2 F'!C131<0.5),"-",IFERROR('Tabel 2 F'!C131/'Tabel 1 F'!C129*100,"-")) -> - | D131: =IF(OR('Tabel 1 F'!C129<5,'Tabel 2 F'!D131<0.5),"-",IFERROR('Tabel 2 F'!D131/'Tabel 1 F'!C129*100,"-")) -> - | F131: =IF(OR('Tabel 1 F'!E129<5,'Tabel 2 F'!F131<0.5),"-",IFERROR('Tabel 2 F'!F131/'Tabel 1 F'!E129*100,"-")) -> - | G131: =IF(OR('Tabel 1 F'!E129<5,'Tabel 2 F'!G131<0.5),"-",IFERROR('Tabel 2 F'!G131/'Tabel 1 F'!E129*100,"-")) -> - | I131: =IF(OR('Tabel 1 F'!G129<5,'Tabel 2 F'!I131<0.5),"-",IFERROR('Tabel 2 F'!I131/'Tabel 1 F'!G129*100,"-")) -> - | J131: =IF(OR('Tabel 1 F'!G129<5,'Tabel 2 F'!J131<0.5),"-",IFERROR('Tabel 2 F'!J131/'Tabel 1 F'!G129*100,"-")) -> -
A132: Dyrlæge | C132: =IF(OR('Tabel 1 F'!C130<5,'Tabel 2 F'!C132<0.5),"-",IFERROR('Tabel 2 F'!C132/'Tabel 1 F'!C130*100,"-")) -> - | D132: =IF(OR('Tabel 1 F'!C130<5,'Tabel 2 F'!D132<0.5),"-",IFERROR('Tabel 2 F'!D132/'Tabel 1 F'!C130*100,"-")) -> - | F132: =IF(OR('Tabel 1 F'!E130<5,'Tabel 2 F'!F132<0.5),"-",IFERROR('Tabel 2 F'!F132/'Tabel 1 F'!E130*100,"-")) -> - | G132: =IF(OR('Tabel 1 F'!E130<5,'Tabel 2 F'!G132<0.5),"-",IFERROR('Tabel 2 F'!G132/'Tabel 1 F'!E130*100,"-")) -> - | I132: =IF(OR('Tabel 1 F'!G130<5,'Tabel 2 F'!I132<0.5),"-",IFERROR('Tabel 2 F'!I132/'Tabel 1 F'!G130*100,"-")) -> - | J132: =IF(OR('Tabel 1 F'!G130<5,'Tabel 2 F'!J132<0.5),"-",IFERROR('Tabel 2 F'!J132/'Tabel 1 F'!G130*100,"-")) -> -
A133: Farmaceut | C133: =IF(OR('Tabel 1 F'!C131<5,'Tabel 2 F'!C133<0.5),"-",IFERROR('Tabel 2 F'!C133/'Tabel 1 F'!C131*100,"-")) -> - | D133: =IF(OR('Tabel 1 F'!C131<5,'Tabel 2 F'!D133<0.5),"-",IFERROR('Tabel 2 F'!D133/'Tabel 1 F'!C131*100,"-")) -> - | F133: =IF(OR('Tabel 1 F'!E131<5,'Tabel 2 F'!F133<0.5),"-",IFERROR('Tabel 2 F'!F133/'Tabel 1 F'!E131*100,"-")) -> - | G133: =IF(OR('Tabel 1 F'!E131<5,'Tabel 2 F'!G133<0.5),"-",IFERROR('Tabel 2 F'!G133/'Tabel 1 F'!E131*100,"-")) -> - | I133: =IF(OR('Tabel 1 F'!G131<5,'Tabel 2 F'!I133<0.5),"-",IFERROR('Tabel 2 F'!I133/'Tabel 1 F'!G131*100,"-")) -> - | J133: =IF(OR('Tabel 1 F'!G131<5,'Tabel 2 F'!J133<0.5),"-",IFERROR('Tabel 2 F'!J133/'Tabel 1 F'!G131*100,"-")) -> -
A134: Læge | C134: =IF(OR('Tabel 1 F'!C132<5,'Tabel 2 F'!C134<0.5),"-",IFERROR('Tabel 2 F'!C134/'Tabel 1 F'!C132*100,"-")) -> - | D134: =IF(OR('Tabel 1 F'!C132<5,'Tabel 2 F'!D134<0.5),"-",IFERROR('Tabel 2 F'!D134/'Tabel 1 F'!C132*100,"-")) -> - | F134: =IF(OR('Tabel 1 F'!E132<5,'Tabel 2 F'!F134<0.5),"-",IFERROR('Tabel 2 F'!F134/'Tabel 1 F'!E132*100,"-")) -> - | G134: =IF(OR('Tabel 1 F'!E132<5,'Tabel 2 F'!G134<0.5),"-",IFERROR('Tabel 2 F'!G134/'Tabel 1 F'!E132*100,"-")) -> - | I134: =IF(OR('Tabel 1 F'!G132<5,'Tabel 2 F'!I134<0.5),"-",IFERROR('Tabel 2 F'!I134/'Tabel 1 F'!G132*100,"-")) -> - | J134: =IF(OR('Tabel 1 F'!G132<5,'Tabel 2 F'!J134<0.5),"-",IFERROR('Tabel 2 F'!J134/'Tabel 1 F'!G132*100,"-")) -> -
A135: Tandlæge | C135: =IF(OR('Tabel 1 F'!C133<5,'Tabel 2 F'!C135<0.5),"-",IFERROR('Tabel 2 F'!C135/'Tabel 1 F'!C133*100,"-")) -> - | D135: =IF(OR('Tabel 1 F'!C133<5,'Tabel 2 F'!D135<0.5),"-",IFERROR('Tabel 2 F'!D135/'Tabel 1 F'!C133*100,"-")) -> - | F135: =IF(OR('Tabel 1 F'!E133<5,'Tabel 2 F'!F135<0.5),"-",IFERROR('Tabel 2 F'!F135/'Tabel 1 F'!E133*100,"-")) -> - | G135: =IF(OR('Tabel 1 F'!E133<5,'Tabel 2 F'!G135<0.5),"-",IFERROR('Tabel 2 F'!G135/'Tabel 1 F'!E133*100,"-")) -> - | I135: =IF(OR('Tabel 1 F'!G133<5,'Tabel 2 F'!I135<0.5),"-",IFERROR('Tabel 2 F'!I135/'Tabel 1 F'!G133*100,"-")) -> - | J135: =IF(OR('Tabel 1 F'!G133<5,'Tabel 2 F'!J135<0.5),"-",IFERROR('Tabel 2 F'!J135/'Tabel 1 F'!G133*100,"-")) -> -
A136: Arkitekt | C136: =IF(OR('Tabel 1 F'!C134<5,'Tabel 2 F'!C136<0.5),"-",IFERROR('Tabel 2 F'!C136/'Tabel 1 F'!C134*100,"-")) -> - | D136: =IF(OR('Tabel 1 F'!C134<5,'Tabel 2 F'!D136<0.5),"-",IFERROR('Tabel 2 F'!D136/'Tabel 1 F'!C134*100,"-")) -> - | F136: =IF(OR('Tabel 1 F'!E134<5,'Tabel 2 F'!F136<0.5),"-",IFERROR('Tabel 2 F'!F136/'Tabel 1 F'!E134*100,"-")) -> - | G136: =IF(OR('Tabel 1 F'!E134<5,'Tabel 2 F'!G136<0.5),"-",IFERROR('Tabel 2 F'!G136/'Tabel 1 F'!E134*100,"-")) -> - | I136: =IF(OR('Tabel 1 F'!G134<5,'Tabel 2 F'!I136<0.5),"-",IFERROR('Tabel 2 F'!I136/'Tabel 1 F'!G134*100,"-")) -> - | J136: =IF(OR('Tabel 1 F'!G134<5,'Tabel 2 F'!J136<0.5),"-",IFERROR('Tabel 2 F'!J136/'Tabel 1 F'!G134*100,"-")) -> -
A137: Landinspek. | C137: =IF(OR('Tabel 1 F'!C135<5,'Tabel 2 F'!C137<0.5),"-",IFERROR('Tabel 2 F'!C137/'Tabel 1 F'!C135*100,"-")) -> - | D137: =IF(OR('Tabel 1 F'!C135<5,'Tabel 2 F'!D137<0.5),"-",IFERROR('Tabel 2 F'!D137/'Tabel 1 F'!C135*100,"-")) -> - | F137: =IF(OR('Tabel 1 F'!E135<5,'Tabel 2 F'!F137<0.5),"-",IFERROR('Tabel 2 F'!F137/'Tabel 1 F'!E135*100,"-")) -> - | G137: =IF(OR('Tabel 1 F'!E135<5,'Tabel 2 F'!G137<0.5),"-",IFERROR('Tabel 2 F'!G137/'Tabel 1 F'!E135*100,"-")) -> - | I137: =IF(OR('Tabel 1 F'!G135<5,'Tabel 2 F'!I137<0.5),"-",IFERROR('Tabel 2 F'!I137/'Tabel 1 F'!G135*100,"-")) -> - | J137: =IF(OR('Tabel 1 F'!G135<5,'Tabel 2 F'!J137<0.5),"-",IFERROR('Tabel 2 F'!J137/'Tabel 1 F'!G135*100,"-")) -> -
A138: Bibliotekar | C138: =IF(OR('Tabel 1 F'!C136<5,'Tabel 2 F'!C138<0.5),"-",IFERROR('Tabel 2 F'!C138/'Tabel 1 F'!C136*100,"-")) -> 20 | D138: =IF(OR('Tabel 1 F'!C136<5,'Tabel 2 F'!D138<0.5),"-",IFERROR('Tabel 2 F'!D138/'Tabel 1 F'!C136*100,"-")) -> 11.88798104 | F138: =IF(OR('Tabel 1 F'!E136<5,'Tabel 2 F'!F138<0.5),"-",IFERROR('Tabel 2 F'!F138/'Tabel 1 F'!E136*100,"-")) -> - | G138: =IF(OR('Tabel 1 F'!E136<5,'Tabel 2 F'!G138<0.5),"-",IFERROR('Tabel 2 F'!G138/'Tabel 1 F'!E136*100,"-")) -> - | I138: =IF(OR('Tabel 1 F'!G136<5,'Tabel 2 F'!I138<0.5),"-",IFERROR('Tabel 2 F'!I138/'Tabel 1 F'!G136*100,"-")) -> 6.25 | J138: =IF(OR('Tabel 1 F'!G136<5,'Tabel 2 F'!J138<0.5),"-",IFERROR('Tabel 2 F'!J138/'Tabel 1 F'!G136*100,"-")) -> 3.714994075
A139: Musikudd. | C139: =IF(OR('Tabel 1 F'!C137<5,'Tabel 2 F'!C139<0.5),"-",IFERROR('Tabel 2 F'!C139/'Tabel 1 F'!C137*100,"-")) -> - | D139: =IF(OR('Tabel 1 F'!C137<5,'Tabel 2 F'!D139<0.5),"-",IFERROR('Tabel 2 F'!D139/'Tabel 1 F'!C137*100,"-")) -> - | F139: =IF(OR('Tabel 1 F'!E137<5,'Tabel 2 F'!F139<0.5),"-",IFERROR('Tabel 2 F'!F139/'Tabel 1 F'!E137*100,"-")) -> 12.5 | G139: =IF(OR('Tabel 1 F'!E137<5,'Tabel 2 F'!G139<0.5),"-",IFERROR('Tabel 2 F'!G139/'Tabel 1 F'!E137*100,"-")) -> 6.252728747 | I139: =IF(OR('Tabel 1 F'!G137<5,'Tabel 2 F'!I139<0.5),"-",IFERROR('Tabel 2 F'!I139/'Tabel 1 F'!G137*100,"-")) -> 9.090909091 | J139: =IF(OR('Tabel 1 F'!G137<5,'Tabel 2 F'!J139<0.5),"-",IFERROR('Tabel 2 F'!J139/'Tabel 1 F'!G137*100,"-")) -> 4.547439089
A140: Teolog | C140: =IF(OR('Tabel 1 F'!C138<5,'Tabel 2 F'!C140<0.5),"-",IFERROR('Tabel 2 F'!C140/'Tabel 1 F'!C138*100,"-")) -> - | D140: =IF(OR('Tabel 1 F'!C138<5,'Tabel 2 F'!D140<0.5),"-",IFERROR('Tabel 2 F'!D140/'Tabel 1 F'!C138*100,"-")) -> - | F140: =IF(OR('Tabel 1 F'!E138<5,'Tabel 2 F'!F140<0.5),"-",IFERROR('Tabel 2 F'!F140/'Tabel 1 F'!E138*100,"-")) -> 12.5 | G140: =IF(OR('Tabel 1 F'!E138<5,'Tabel 2 F'!G140<0.5),"-",IFERROR('Tabel 2 F'!G140/'Tabel 1 F'!E138*100,"-")) -> 12.49766107 | I140: =IF(OR('Tabel 1 F'!G138<5,'Tabel 2 F'!I140<0.5),"-",IFERROR('Tabel 2 F'!I140/'Tabel 1 F'!G138*100,"-")) -> 8.333333333 | J140: =IF(OR('Tabel 1 F'!G138<5,'Tabel 2 F'!J140<0.5),"-",IFERROR('Tabel 2 F'!J140/'Tabel 1 F'!G138*100,"-")) -> 8.331774049
A141: Psykolog | C141: =IF(OR('Tabel 1 F'!C139<5,'Tabel 2 F'!C141<0.5),"-",IFERROR('Tabel 2 F'!C141/'Tabel 1 F'!C139*100,"-")) -> - | D141: =IF(OR('Tabel 1 F'!C139<5,'Tabel 2 F'!D141<0.5),"-",IFERROR('Tabel 2 F'!D141/'Tabel 1 F'!C139*100,"-")) -> - | F141: =IF(OR('Tabel 1 F'!E139<5,'Tabel 2 F'!F141<0.5),"-",IFERROR('Tabel 2 F'!F141/'Tabel 1 F'!E139*100,"-")) -> - | G141: =IF(OR('Tabel 1 F'!E139<5,'Tabel 2 F'!G141<0.5),"-",IFERROR('Tabel 2 F'!G141/'Tabel 1 F'!E139*100,"-")) -> - | I141: =IF(OR('Tabel 1 F'!G139<5,'Tabel 2 F'!I141<0.5),"-",IFERROR('Tabel 2 F'!I141/'Tabel 1 F'!G139*100,"-")) -> - | J141: =IF(OR('Tabel 1 F'!G139<5,'Tabel 2 F'!J141<0.5),"-",IFERROR('Tabel 2 F'!J141/'Tabel 1 F'!G139*100,"-")) -> -
A142: Jurist | C142: =IF(OR('Tabel 1 F'!C140<5,'Tabel 2 F'!C142<0.5),"-",IFERROR('Tabel 2 F'!C142/'Tabel 1 F'!C140*100,"-")) -> - | D142: =IF(OR('Tabel 1 F'!C140<5,'Tabel 2 F'!D142<0.5),"-",IFERROR('Tabel 2 F'!D142/'Tabel 1 F'!C140*100,"-")) -> - | F142: =IF(OR('Tabel 1 F'!E140<5,'Tabel 2 F'!F142<0.5),"-",IFERROR('Tabel 2 F'!F142/'Tabel 1 F'!E140*100,"-")) -> - | G142: =IF(OR('Tabel 1 F'!E140<5,'Tabel 2 F'!G142<0.5),"-",IFERROR('Tabel 2 F'!G142/'Tabel 1 F'!E140*100,"-")) -> - | I142: =IF(OR('Tabel 1 F'!G140<5,'Tabel 2 F'!I142<0.5),"-",IFERROR('Tabel 2 F'!I142/'Tabel 1 F'!G140*100,"-")) -> - | J142: =IF(OR('Tabel 1 F'!G140<5,'Tabel 2 F'!J142<0.5),"-",IFERROR('Tabel 2 F'!J142/'Tabel 1 F'!G140*100,"-")) -> -
A143: Økonom | C143: =IF(OR('Tabel 1 F'!C141<5,'Tabel 2 F'!C143<0.5),"-",IFERROR('Tabel 2 F'!C143/'Tabel 1 F'!C141*100,"-")) -> 11.11111111 | D143: =IF(OR('Tabel 1 F'!C141<5,'Tabel 2 F'!D143<0.5),"-",IFERROR('Tabel 2 F'!D143/'Tabel 1 F'!C141*100,"-")) -> 11.10903207 | F143: =IF(OR('Tabel 1 F'!E141<5,'Tabel 2 F'!F143<0.5),"-",IFERROR('Tabel 2 F'!F143/'Tabel 1 F'!E141*100,"-")) -> - | G143: =IF(OR('Tabel 1 F'!E141<5,'Tabel 2 F'!G143<0.5),"-",IFERROR('Tabel 2 F'!G143/'Tabel 1 F'!E141*100,"-")) -> - | I143: =IF(OR('Tabel 1 F'!G141<5,'Tabel 2 F'!I143<0.5),"-",IFERROR('Tabel 2 F'!I143/'Tabel 1 F'!G141*100,"-")) -> 4.761904762 | J143: =IF(OR('Tabel 1 F'!G141<5,'Tabel 2 F'!J143<0.5),"-",IFERROR('Tabel 2 F'!J143/'Tabel 1 F'!G141*100,"-")) -> 4.761013742
A144: Samf. Adm. | C144: =IF(OR('Tabel 1 F'!C142<5,'Tabel 2 F'!C144<0.5),"-",IFERROR('Tabel 2 F'!C144/'Tabel 1 F'!C142*100,"-")) -> - | D144: =IF(OR('Tabel 1 F'!C142<5,'Tabel 2 F'!D144<0.5),"-",IFERROR('Tabel 2 F'!D144/'Tabel 1 F'!C142*100,"-")) -> - | F144: =IF(OR('Tabel 1 F'!E142<5,'Tabel 2 F'!F144<0.5),"-",IFERROR('Tabel 2 F'!F144/'Tabel 1 F'!E142*100,"-")) -> 2.380952381 | G144: =IF(OR('Tabel 1 F'!E142<5,'Tabel 2 F'!G144<0.5),"-",IFERROR('Tabel 2 F'!G144/'Tabel 1 F'!E142*100,"-")) -> 2.380506871 | I144: =IF(OR('Tabel 1 F'!G142<5,'Tabel 2 F'!I144<0.5),"-",IFERROR('Tabel 2 F'!I144/'Tabel 1 F'!G142*100,"-")) -> 1.754385965 | J144: =IF(OR('Tabel 1 F'!G142<5,'Tabel 2 F'!J144<0.5),"-",IFERROR('Tabel 2 F'!J144/'Tabel 1 F'!G142*100,"-")) -> 1.754057695
A145: Cand. Merc. | C145: =IF(OR('Tabel 1 F'!C143<5,'Tabel 2 F'!C145<0.5),"-",IFERROR('Tabel 2 F'!C145/'Tabel 1 F'!C143*100,"-")) -> 3.125 | D145: =IF(OR('Tabel 1 F'!C143<5,'Tabel 2 F'!D145<0.5),"-",IFERROR('Tabel 2 F'!D145/'Tabel 1 F'!C143*100,"-")) -> 1.896479137 | F145: =IF(OR('Tabel 1 F'!E143<5,'Tabel 2 F'!F145<0.5),"-",IFERROR('Tabel 2 F'!F145/'Tabel 1 F'!E143*100,"-")) -> 6.896551724 | G145: =IF(OR('Tabel 1 F'!E143<5,'Tabel 2 F'!G145<0.5),"-",IFERROR('Tabel 2 F'!G145/'Tabel 1 F'!E143*100,"-")) -> 6.09948877 | I145: =IF(OR('Tabel 1 F'!G143<5,'Tabel 2 F'!I145<0.5),"-",IFERROR('Tabel 2 F'!I145/'Tabel 1 F'!G143*100,"-")) -> 4.918032787 | J145: =IF(OR('Tabel 1 F'!G143<5,'Tabel 2 F'!J145<0.5),"-",IFERROR('Tabel 2 F'!J145/'Tabel 1 F'!G143*100,"-")) -> 3.894631257
A146: HA | C146: =IF(OR('Tabel 1 F'!C144<5,'Tabel 2 F'!C146<0.5),"-",IFERROR('Tabel 2 F'!C146/'Tabel 1 F'!C144*100,"-")) -> - | D146: =IF(OR('Tabel 1 F'!C144<5,'Tabel 2 F'!D146<0.5),"-",IFERROR('Tabel 2 F'!D146/'Tabel 1 F'!C144*100,"-")) -> - | F146: =IF(OR('Tabel 1 F'!E144<5,'Tabel 2 F'!F146<0.5),"-",IFERROR('Tabel 2 F'!F146/'Tabel 1 F'!E144*100,"-")) -> 8.333333333 | G146: =IF(OR('Tabel 1 F'!E144<5,'Tabel 2 F'!G146<0.5),"-",IFERROR('Tabel 2 F'!G146/'Tabel 1 F'!E144*100,"-")) -> 8.331774049 | I146: =IF(OR('Tabel 1 F'!G144<5,'Tabel 2 F'!I146<0.5),"-",IFERROR('Tabel 2 F'!I146/'Tabel 1 F'!G144*100,"-")) -> 4.761904762 | J146: =IF(OR('Tabel 1 F'!G144<5,'Tabel 2 F'!J146<0.5),"-",IFERROR('Tabel 2 F'!J146/'Tabel 1 F'!G144*100,"-")) -> 4.761013742
A147: HD | C147: =IF(OR('Tabel 1 F'!C145<5,'Tabel 2 F'!C147<0.5),"-",IFERROR('Tabel 2 F'!C147/'Tabel 1 F'!C145*100,"-")) -> - | D147: =IF(OR('Tabel 1 F'!C145<5,'Tabel 2 F'!D147<0.5),"-",IFERROR('Tabel 2 F'!D147/'Tabel 1 F'!C145*100,"-")) -> - | F147: =IF(OR('Tabel 1 F'!E145<5,'Tabel 2 F'!F147<0.5),"-",IFERROR('Tabel 2 F'!F147/'Tabel 1 F'!E145*100,"-")) -> 11.11111111 | G147: =IF(OR('Tabel 1 F'!E145<5,'Tabel 2 F'!G147<0.5),"-",IFERROR('Tabel 2 F'!G147/'Tabel 1 F'!E145*100,"-")) -> 11.10903207 | I147: =IF(OR('Tabel 1 F'!G145<5,'Tabel 2 F'!I147<0.5),"-",IFERROR('Tabel 2 F'!I147/'Tabel 1 F'!G145*100,"-")) -> 5.263157895 | J147: =IF(OR('Tabel 1 F'!G145<5,'Tabel 2 F'!J147<0.5),"-",IFERROR('Tabel 2 F'!J147/'Tabel 1 F'!G145*100,"-")) -> 5.262173084
A148: Komm. og Sprog | C148: =IF(OR('Tabel 1 F'!C146<5,'Tabel 2 F'!C148<0.5),"-",IFERROR('Tabel 2 F'!C148/'Tabel 1 F'!C146*100,"-")) -> - | D148: =IF(OR('Tabel 1 F'!C146<5,'Tabel 2 F'!D148<0.5),"-",IFERROR('Tabel 2 F'!D148/'Tabel 1 F'!C146*100,"-")) -> - | F148: =IF(OR('Tabel 1 F'!E146<5,'Tabel 2 F'!F148<0.5),"-",IFERROR('Tabel 2 F'!F148/'Tabel 1 F'!E146*100,"-")) -> 15.78947368 | G148: =IF(OR('Tabel 1 F'!E146<5,'Tabel 2 F'!G148<0.5),"-",IFERROR('Tabel 2 F'!G148/'Tabel 1 F'!E146*100,"-")) -> 15.75369222 | I148: =IF(OR('Tabel 1 F'!G146<5,'Tabel 2 F'!I148<0.5),"-",IFERROR('Tabel 2 F'!I148/'Tabel 1 F'!G146*100,"-")) -> 14.28571429 | J148: =IF(OR('Tabel 1 F'!G146<5,'Tabel 2 F'!J148<0.5),"-",IFERROR('Tabel 2 F'!J148/'Tabel 1 F'!G146*100,"-")) -> 14.25334058
A149: Bygningskonst. | C149: =IF(OR('Tabel 1 F'!C147<5,'Tabel 2 F'!C149<0.5),"-",IFERROR('Tabel 2 F'!C149/'Tabel 1 F'!C147*100,"-")) -> 3.846153846 | D149: =IF(OR('Tabel 1 F'!C147<5,'Tabel 2 F'!D149<0.5),"-",IFERROR('Tabel 2 F'!D149/'Tabel 1 F'!C147*100,"-")) -> 2.76604983 | F149: =IF(OR('Tabel 1 F'!E147<5,'Tabel 2 F'!F149<0.5),"-",IFERROR('Tabel 2 F'!F149/'Tabel 1 F'!E147*100,"-")) -> - | G149: =IF(OR('Tabel 1 F'!E147<5,'Tabel 2 F'!G149<0.5),"-",IFERROR('Tabel 2 F'!G149/'Tabel 1 F'!E147*100,"-")) -> - | I149: =IF(OR('Tabel 1 F'!G147<5,'Tabel 2 F'!I149<0.5),"-",IFERROR('Tabel 2 F'!I149/'Tabel 1 F'!G147*100,"-")) -> 3.448275862 | J149: =IF(OR('Tabel 1 F'!G147<5,'Tabel 2 F'!J149<0.5),"-",IFERROR('Tabel 2 F'!J149/'Tabel 1 F'!G147*100,"-")) -> 2.479906744
A150: Cand. IT. | C150: =IF(OR('Tabel 1 F'!C148<5,'Tabel 2 F'!C150<0.5),"-",IFERROR('Tabel 2 F'!C150/'Tabel 1 F'!C148*100,"-")) -> - | D150: =IF(OR('Tabel 1 F'!C148<5,'Tabel 2 F'!D150<0.5),"-",IFERROR('Tabel 2 F'!D150/'Tabel 1 F'!C148*100,"-")) -> - | F150: =IF(OR('Tabel 1 F'!E148<5,'Tabel 2 F'!F150<0.5),"-",IFERROR('Tabel 2 F'!F150/'Tabel 1 F'!E148*100,"-")) -> - | G150: =IF(OR('Tabel 1 F'!E148<5,'Tabel 2 F'!G150<0.5),"-",IFERROR('Tabel 2 F'!G150/'Tabel 1 F'!E148*100,"-")) -> - | I150: =IF(OR('Tabel 1 F'!G148<5,'Tabel 2 F'!I150<0.5),"-",IFERROR('Tabel 2 F'!I150/'Tabel 1 F'!G148*100,"-")) -> - | J150: =IF(OR('Tabel 1 F'!G148<5,'Tabel 2 F'!J150<0.5),"-",IFERROR('Tabel 2 F'!J150/'Tabel 1 F'!G148*100,"-")) -> -
A151: Bac. Samf. | C151: =IF(OR('Tabel 1 F'!C149<5,'Tabel 2 F'!C151<0.5),"-",IFERROR('Tabel 2 F'!C151/'Tabel 1 F'!C149*100,"-")) -> - | D151: =IF(OR('Tabel 1 F'!C149<5,'Tabel 2 F'!D151<0.5),"-",IFERROR('Tabel 2 F'!D151/'Tabel 1 F'!C149*100,"-")) -> - | F151: =IF(OR('Tabel 1 F'!E149<5,'Tabel 2 F'!F151<0.5),"-",IFERROR('Tabel 2 F'!F151/'Tabel 1 F'!E149*100,"-")) -> - | G151: =IF(OR('Tabel 1 F'!E149<5,'Tabel 2 F'!G151<0.5),"-",IFERROR('Tabel 2 F'!G151/'Tabel 1 F'!E149*100,"-")) -> - | I151: =IF(OR('Tabel 1 F'!G149<5,'Tabel 2 F'!I151<0.5),"-",IFERROR('Tabel 2 F'!I151/'Tabel 1 F'!G149*100,"-")) -> - | J151: =IF(OR('Tabel 1 F'!G149<5,'Tabel 2 F'!J151<0.5),"-",IFERROR('Tabel 2 F'!J151/'Tabel 1 F'!G149*100,"-")) -> -
A152: Bac. Hum. | C152: =IF(OR('Tabel 1 F'!C150<5,'Tabel 2 F'!C152<0.5),"-",IFERROR('Tabel 2 F'!C152/'Tabel 1 F'!C150*100,"-")) -> 40 | D152: =IF(OR('Tabel 1 F'!C150<5,'Tabel 2 F'!D152<0.5),"-",IFERROR('Tabel 2 F'!D152/'Tabel 1 F'!C150*100,"-")) -> 36.56209069 | F152: =IF(OR('Tabel 1 F'!E150<5,'Tabel 2 F'!F152<0.5),"-",IFERROR('Tabel 2 F'!F152/'Tabel 1 F'!E150*100,"-")) -> 20 | G152: =IF(OR('Tabel 1 F'!E150<5,'Tabel 2 F'!G152<0.5),"-",IFERROR('Tabel 2 F'!G152/'Tabel 1 F'!E150*100,"-")) -> 19.34135845 | I152: =IF(OR('Tabel 1 F'!G150<5,'Tabel 2 F'!I152<0.5),"-",IFERROR('Tabel 2 F'!I152/'Tabel 1 F'!G150*100,"-")) -> 26.66666667 | J152: =IF(OR('Tabel 1 F'!G150<5,'Tabel 2 F'!J152<0.5),"-",IFERROR('Tabel 2 F'!J152/'Tabel 1 F'!G150*100,"-")) -> 25.08160253
A153: Bac. Nat. | C153: =IF(OR('Tabel 1 F'!C151<5,'Tabel 2 F'!C153<0.5),"-",IFERROR('Tabel 2 F'!C153/'Tabel 1 F'!C151*100,"-")) -> 20 | D153: =IF(OR('Tabel 1 F'!C151<5,'Tabel 2 F'!D153<0.5),"-",IFERROR('Tabel 2 F'!D153/'Tabel 1 F'!C151*100,"-")) -> 19.99625772 | F153: =IF(OR('Tabel 1 F'!E151<5,'Tabel 2 F'!F153<0.5),"-",IFERROR('Tabel 2 F'!F153/'Tabel 1 F'!E151*100,"-")) -> - | G153: =IF(OR('Tabel 1 F'!E151<5,'Tabel 2 F'!G153<0.5),"-",IFERROR('Tabel 2 F'!G153/'Tabel 1 F'!E151*100,"-")) -> - | I153: =IF(OR('Tabel 1 F'!G151<5,'Tabel 2 F'!I153<0.5),"-",IFERROR('Tabel 2 F'!I153/'Tabel 1 F'!G151*100,"-")) -> 28.57142857 | J153: =IF(OR('Tabel 1 F'!G151<5,'Tabel 2 F'!J153<0.5),"-",IFERROR('Tabel 2 F'!J153/'Tabel 1 F'!G151*100,"-")) -> 28.56608245
A154: Andre | C154: =IF(OR('Tabel 1 F'!C152<5,'Tabel 2 F'!C154<0.5),"-",IFERROR('Tabel 2 F'!C154/'Tabel 1 F'!C152*100,"-")) -> 3.846153846 | D154: =IF(OR('Tabel 1 F'!C152<5,'Tabel 2 F'!D154<0.5),"-",IFERROR('Tabel 2 F'!D154/'Tabel 1 F'!C152*100,"-")) -> 3.845434177 | F154: =IF(OR('Tabel 1 F'!E152<5,'Tabel 2 F'!F154<0.5),"-",IFERROR('Tabel 2 F'!F154/'Tabel 1 F'!E152*100,"-")) -> 13.63636364 | G154: =IF(OR('Tabel 1 F'!E152<5,'Tabel 2 F'!G154<0.5),"-",IFERROR('Tabel 2 F'!G154/'Tabel 1 F'!E152*100,"-")) -> 7.563944818 | I154: =IF(OR('Tabel 1 F'!G152<5,'Tabel 2 F'!I154<0.5),"-",IFERROR('Tabel 2 F'!I154/'Tabel 1 F'!G152*100,"-")) -> 6.756756757 | J154: =IF(OR('Tabel 1 F'!G152<5,'Tabel 2 F'!J154<0.5),"-",IFERROR('Tabel 2 F'!J154/'Tabel 1 F'!G152*100,"-")) -> 4.95093734
A156: Total | C156: =IF(OR('Tabel 1 F'!C154<5,'Tabel 2 F'!C156<0.5),"-",IFERROR('Tabel 2 F'!C156/'Tabel 1 F'!C154*100,"-")) -> 3.262642741 | D156: =IF(OR('Tabel 1 F'!C154<5,'Tabel 2 F'!D156<0.5),"-",IFERROR('Tabel 2 F'!D156/'Tabel 1 F'!C154*100,"-")) -> 2.724610914 | F156: =IF(OR('Tabel 1 F'!E154<5,'Tabel 2 F'!F156<0.5),"-",IFERROR('Tabel 2 F'!F156/'Tabel 1 F'!E154*100,"-")) -> 7.272727273 | G156: =IF(OR('Tabel 1 F'!E154<5,'Tabel 2 F'!G156<0.5),"-",IFERROR('Tabel 2 F'!G156/'Tabel 1 F'!E154*100,"-")) -> 6.216383255 | I156: =IF(OR('Tabel 1 F'!G154<5,'Tabel 2 F'!I156<0.5),"-",IFERROR('Tabel 2 F'!I156/'Tabel 1 F'!G154*100,"-")) -> 5.159071367 | J156: =IF(OR('Tabel 1 F'!G154<5,'Tabel 2 F'!J156<0.5),"-",IFERROR('Tabel 2 F'!J156/'Tabel 1 F'!G154*100,"-")) -> 4.375921995
A158: Ingeniører i alt | C158: =IF(OR('Tabel 1 F'!C156<5,'Tabel 2 F'!C158<0.5),"-",IFERROR('Tabel 2 F'!C158/'Tabel 1 F'!C156*100,"-")) -> 3.100775194 | D158: =IF(OR('Tabel 1 F'!C156<5,'Tabel 2 F'!D158<0.5),"-",IFERROR('Tabel 2 F'!D158/'Tabel 1 F'!C156*100,"-")) -> 2.416769289 | F158: =IF(OR('Tabel 1 F'!E156<5,'Tabel 2 F'!F158<0.5),"-",IFERROR('Tabel 2 F'!F158/'Tabel 1 F'!E156*100,"-")) -> 4.838709677 | G158: =IF(OR('Tabel 1 F'!E156<5,'Tabel 2 F'!G158<0.5),"-",IFERROR('Tabel 2 F'!G158/'Tabel 1 F'!E156*100,"-")) -> 3.877084159 | I158: =IF(OR('Tabel 1 F'!G156<5,'Tabel 2 F'!I158<0.5),"-",IFERROR('Tabel 2 F'!I158/'Tabel 1 F'!G156*100,"-")) -> 3.4375 | J158: =IF(OR('Tabel 1 F'!G156<5,'Tabel 2 F'!J158<0.5),"-",IFERROR('Tabel 2 F'!J158/'Tabel 1 F'!G156*100,"-")) -> 2.699705295
A159: Magistre i alt | C159: =IF(OR('Tabel 1 F'!C157<5,'Tabel 2 F'!C159<0.5),"-",IFERROR('Tabel 2 F'!C159/'Tabel 1 F'!C157*100,"-")) -> 2.53164557 | D159: =IF(OR('Tabel 1 F'!C157<5,'Tabel 2 F'!D159<0.5),"-",IFERROR('Tabel 2 F'!D159/'Tabel 1 F'!C157*100,"-")) -> 2.531171863 | F159: =IF(OR('Tabel 1 F'!E157<5,'Tabel 2 F'!F159<0.5),"-",IFERROR('Tabel 2 F'!F159/'Tabel 1 F'!E157*100,"-")) -> 11.84210526 | G159: =IF(OR('Tabel 1 F'!E157<5,'Tabel 2 F'!G159<0.5),"-",IFERROR('Tabel 2 F'!G159/'Tabel 1 F'!E157*100,"-")) -> 9.820616689 | I159: =IF(OR('Tabel 1 F'!G157<5,'Tabel 2 F'!I159<0.5),"-",IFERROR('Tabel 2 F'!I159/'Tabel 1 F'!G157*100,"-")) -> 8.658008658 | J159: =IF(OR('Tabel 1 F'!G157<5,'Tabel 2 F'!J159<0.5),"-",IFERROR('Tabel 2 F'!J159/'Tabel 1 F'!G157*100,"-")) -> 7.32768967
A160: DJØF'ere i alt | C160: =IF(OR('Tabel 1 F'!C158<5,'Tabel 2 F'!C160<0.5),"-",IFERROR('Tabel 2 F'!C160/'Tabel 1 F'!C158*100,"-")) -> 2.702702703 | D160: =IF(OR('Tabel 1 F'!C158<5,'Tabel 2 F'!D160<0.5),"-",IFERROR('Tabel 2 F'!D160/'Tabel 1 F'!C158*100,"-")) -> 2.171197581 | F160: =IF(OR('Tabel 1 F'!E158<5,'Tabel 2 F'!F160<0.5),"-",IFERROR('Tabel 2 F'!F160/'Tabel 1 F'!E158*100,"-")) -> 3.571428571 | G160: =IF(OR('Tabel 1 F'!E158<5,'Tabel 2 F'!G160<0.5),"-",IFERROR('Tabel 2 F'!G160/'Tabel 1 F'!E158*100,"-")) -> 3.364712067 | I160: =IF(OR('Tabel 1 F'!G158<5,'Tabel 2 F'!I160<0.5),"-",IFERROR('Tabel 2 F'!I160/'Tabel 1 F'!G158*100,"-")) -> 3.225806452 | J160: =IF(OR('Tabel 1 F'!G158<5,'Tabel 2 F'!J160<0.5),"-",IFERROR('Tabel 2 F'!J160/'Tabel 1 F'!G158*100,"-")) -> 2.88987297
A165: Faaborg-Midtfyn
C167: Mænd | F167: Kvinder | I167: I alt
C168: Ledigheds- berørte | D168: Gns. brutto- ledighed | F168: Ledigheds- berørte | G168: Gns. brutto- ledighed | I168: Ledigheds- berørte | J168: Gns. brutto- ledighed
A171: Civ. ing. | C171: =IF(OR('Tabel 1 F'!C169<5,'Tabel 2 F'!C171<0.5),"-",IFERROR('Tabel 2 F'!C171/'Tabel 1 F'!C169*100,"-")) -> 4.166666667 | D171: =IF(OR('Tabel 1 F'!C169<5,'Tabel 2 F'!D171<0.5),"-",IFERROR('Tabel 2 F'!D171/'Tabel 1 F'!C169*100,"-")) -> 4.148561647 | F171: =IF(OR('Tabel 1 F'!E169<5,'Tabel 2 F'!F171<0.5),"-",IFERROR('Tabel 2 F'!F171/'Tabel 1 F'!E169*100,"-")) -> 21.42857143 | G171: =IF(OR('Tabel 1 F'!E169<5,'Tabel 2 F'!G171<0.5),"-",IFERROR('Tabel 2 F'!G171/'Tabel 1 F'!E169*100,"-")) -> 15.49037254 | I171: =IF(OR('Tabel 1 F'!G169<5,'Tabel 2 F'!I171<0.5),"-",IFERROR('Tabel 2 F'!I171/'Tabel 1 F'!G169*100,"-")) -> 6.976744186 | J171: =IF(OR('Tabel 1 F'!G169<5,'Tabel 2 F'!J171<0.5),"-",IFERROR('Tabel 2 F'!J171/'Tabel 1 F'!G169*100,"-")) -> 5.994902955
A172: Diplom ing. | C172: =IF(OR('Tabel 1 F'!C170<5,'Tabel 2 F'!C172<0.5),"-",IFERROR('Tabel 2 F'!C172/'Tabel 1 F'!C170*100,"-")) -> 2.521008403 | D172: =IF(OR('Tabel 1 F'!C170<5,'Tabel 2 F'!D172<0.5),"-",IFERROR('Tabel 2 F'!D172/'Tabel 1 F'!C170*100,"-")) -> 2.155742856 | F172: =IF(OR('Tabel 1 F'!E170<5,'Tabel 2 F'!F172<0.5),"-",IFERROR('Tabel 2 F'!F172/'Tabel 1 F'!E170*100,"-")) -> - | G172: =IF(OR('Tabel 1 F'!E170<5,'Tabel 2 F'!G172<0.5),"-",IFERROR('Tabel 2 F'!G172/'Tabel 1 F'!E170*100,"-")) -> - | I172: =IF(OR('Tabel 1 F'!G170<5,'Tabel 2 F'!I172<0.5),"-",IFERROR('Tabel 2 F'!I172/'Tabel 1 F'!G170*100,"-")) -> 2.127659574 | J172: =IF(OR('Tabel 1 F'!G170<5,'Tabel 2 F'!J172<0.5),"-",IFERROR('Tabel 2 F'!J172/'Tabel 1 F'!G170*100,"-")) -> 1.819385815
A173: Cand. Scient. Tek. | C173: =IF(OR('Tabel 1 F'!C171<5,'Tabel 2 F'!C173<0.5),"-",IFERROR('Tabel 2 F'!C173/'Tabel 1 F'!C171*100,"-")) -> 6.896551724 | D173: =IF(OR('Tabel 1 F'!C171<5,'Tabel 2 F'!D173<0.5),"-",IFERROR('Tabel 2 F'!D173/'Tabel 1 F'!C171*100,"-")) -> 5.51878991 | F173: =IF(OR('Tabel 1 F'!E171<5,'Tabel 2 F'!F173<0.5),"-",IFERROR('Tabel 2 F'!F173/'Tabel 1 F'!E171*100,"-")) -> 12.82051282 | G173: =IF(OR('Tabel 1 F'!E171<5,'Tabel 2 F'!G173<0.5),"-",IFERROR('Tabel 2 F'!G173/'Tabel 1 F'!E171*100,"-")) -> 11.69862799 | I173: =IF(OR('Tabel 1 F'!G171<5,'Tabel 2 F'!I173<0.5),"-",IFERROR('Tabel 2 F'!I173/'Tabel 1 F'!G171*100,"-")) -> 10.29411765 | J173: =IF(OR('Tabel 1 F'!G171<5,'Tabel 2 F'!J173<0.5),"-",IFERROR('Tabel 2 F'!J173/'Tabel 1 F'!G171*100,"-")) -> 9.063108809
A174: MA. Hum. | C174: =IF(OR('Tabel 1 F'!C172<5,'Tabel 2 F'!C174<0.5),"-",IFERROR('Tabel 2 F'!C174/'Tabel 1 F'!C172*100,"-")) -> 4.6875 | D174: =IF(OR('Tabel 1 F'!C172<5,'Tabel 2 F'!D174<0.5),"-",IFERROR('Tabel 2 F'!D174/'Tabel 1 F'!C172*100,"-")) -> 4.686622903 | F174: =IF(OR('Tabel 1 F'!E172<5,'Tabel 2 F'!F174<0.5),"-",IFERROR('Tabel 2 F'!F174/'Tabel 1 F'!E172*100,"-")) -> 8.130081301 | G174: =IF(OR('Tabel 1 F'!E172<5,'Tabel 2 F'!G174<0.5),"-",IFERROR('Tabel 2 F'!G174/'Tabel 1 F'!E172*100,"-")) -> 7.545413195 | I174: =IF(OR('Tabel 1 F'!G172<5,'Tabel 2 F'!I174<0.5),"-",IFERROR('Tabel 2 F'!I174/'Tabel 1 F'!G172*100,"-")) -> 6.951871658 | J174: =IF(OR('Tabel 1 F'!G172<5,'Tabel 2 F'!J174<0.5),"-",IFERROR('Tabel 2 F'!J174/'Tabel 1 F'!G172*100,"-")) -> 6.567003683
A175: MA. Nat. | C175: =IF(OR('Tabel 1 F'!C173<5,'Tabel 2 F'!C175<0.5),"-",IFERROR('Tabel 2 F'!C175/'Tabel 1 F'!C173*100,"-")) -> 8.333333333 | D175: =IF(OR('Tabel 1 F'!C173<5,'Tabel 2 F'!D175<0.5),"-",IFERROR('Tabel 2 F'!D175/'Tabel 1 F'!C173*100,"-")) -> 6.422517447 | F175: =IF(OR('Tabel 1 F'!E173<5,'Tabel 2 F'!F175<0.5),"-",IFERROR('Tabel 2 F'!F175/'Tabel 1 F'!E173*100,"-")) -> 4.761904762 | G175: =IF(OR('Tabel 1 F'!E173<5,'Tabel 2 F'!G175<0.5),"-",IFERROR('Tabel 2 F'!G175/'Tabel 1 F'!E173*100,"-")) -> 4.642211154 | I175: =IF(OR('Tabel 1 F'!G173<5,'Tabel 2 F'!I175<0.5),"-",IFERROR('Tabel 2 F'!I175/'Tabel 1 F'!G173*100,"-")) -> 6.41025641 | J175: =IF(OR('Tabel 1 F'!G173<5,'Tabel 2 F'!J175<0.5),"-",IFERROR('Tabel 2 F'!J175/'Tabel 1 F'!G173*100,"-")) -> 5.463890981
A176: MA. Ph.d. | C176: =IF(OR('Tabel 1 F'!C174<5,'Tabel 2 F'!C176<0.5),"-",IFERROR('Tabel 2 F'!C176/'Tabel 1 F'!C174*100,"-")) -> 20 | D176: =IF(OR('Tabel 1 F'!C174<5,'Tabel 2 F'!D176<0.5),"-",IFERROR('Tabel 2 F'!D176/'Tabel 1 F'!C174*100,"-")) -> 19.99625772 | F176: =IF(OR('Tabel 1 F'!E174<5,'Tabel 2 F'!F176<0.5),"-",IFERROR('Tabel 2 F'!F176/'Tabel 1 F'!E174*100,"-")) -> - | G176: =IF(OR('Tabel 1 F'!E174<5,'Tabel 2 F'!G176<0.5),"-",IFERROR('Tabel 2 F'!G176/'Tabel 1 F'!E174*100,"-")) -> - | I176: =IF(OR('Tabel 1 F'!G174<5,'Tabel 2 F'!I176<0.5),"-",IFERROR('Tabel 2 F'!I176/'Tabel 1 F'!G174*100,"-")) -> 12.5 | J176: =IF(OR('Tabel 1 F'!G174<5,'Tabel 2 F'!J176<0.5),"-",IFERROR('Tabel 2 F'!J176/'Tabel 1 F'!G174*100,"-")) -> 12.49766107
A177: MA. Samf. | C177: =IF(OR('Tabel 1 F'!C175<5,'Tabel 2 F'!C177<0.5),"-",IFERROR('Tabel 2 F'!C177/'Tabel 1 F'!C175*100,"-")) -> - | D177: =IF(OR('Tabel 1 F'!C175<5,'Tabel 2 F'!D177<0.5),"-",IFERROR('Tabel 2 F'!D177/'Tabel 1 F'!C175*100,"-")) -> - | F177: =IF(OR('Tabel 1 F'!E175<5,'Tabel 2 F'!F177<0.5),"-",IFERROR('Tabel 2 F'!F177/'Tabel 1 F'!E175*100,"-")) -> - | G177: =IF(OR('Tabel 1 F'!E175<5,'Tabel 2 F'!G177<0.5),"-",IFERROR('Tabel 2 F'!G177/'Tabel 1 F'!E175*100,"-")) -> - | I177: =IF(OR('Tabel 1 F'!G175<5,'Tabel 2 F'!I177<0.5),"-",IFERROR('Tabel 2 F'!I177/'Tabel 1 F'!G175*100,"-")) -> 28.57142857 | J177: =IF(OR('Tabel 1 F'!G175<5,'Tabel 2 F'!J177<0.5),"-",IFERROR('Tabel 2 F'!J177/'Tabel 1 F'!G175*100,"-")) -> 28.56608245
A178: Øvrige Mag. | C178: =IF(OR('Tabel 1 F'!C176<5,'Tabel 2 F'!C178<0.5),"-",IFERROR('Tabel 2 F'!C178/'Tabel 1 F'!C176*100,"-")) -> 28.57142857 | D178: =IF(OR('Tabel 1 F'!C176<5,'Tabel 2 F'!D178<0.5),"-",IFERROR('Tabel 2 F'!D178/'Tabel 1 F'!C176*100,"-")) -> 26.58801935 | F178: =IF(OR('Tabel 1 F'!E176<5,'Tabel 2 F'!F178<0.5),"-",IFERROR('Tabel 2 F'!F178/'Tabel 1 F'!E176*100,"-")) -> 22.22222222 | G178: =IF(OR('Tabel 1 F'!E176<5,'Tabel 2 F'!G178<0.5),"-",IFERROR('Tabel 2 F'!G178/'Tabel 1 F'!E176*100,"-")) -> 16.23041366 | I178: =IF(OR('Tabel 1 F'!G176<5,'Tabel 2 F'!I178<0.5),"-",IFERROR('Tabel 2 F'!I178/'Tabel 1 F'!G176*100,"-")) -> 25 | J178: =IF(OR('Tabel 1 F'!G176<5,'Tabel 2 F'!J178<0.5),"-",IFERROR('Tabel 2 F'!J178/'Tabel 1 F'!G176*100,"-")) -> 20.76186615
A179: Agronom | C179: =IF(OR('Tabel 1 F'!C177<5,'Tabel 2 F'!C179<0.5),"-",IFERROR('Tabel 2 F'!C179/'Tabel 1 F'!C177*100,"-")) -> - | D179: =IF(OR('Tabel 1 F'!C177<5,'Tabel 2 F'!D179<0.5),"-",IFERROR('Tabel 2 F'!D179/'Tabel 1 F'!C177*100,"-")) -> - | F179: =IF(OR('Tabel 1 F'!E177<5,'Tabel 2 F'!F179<0.5),"-",IFERROR('Tabel 2 F'!F179/'Tabel 1 F'!E177*100,"-")) -> - | G179: =IF(OR('Tabel 1 F'!E177<5,'Tabel 2 F'!G179<0.5),"-",IFERROR('Tabel 2 F'!G179/'Tabel 1 F'!E177*100,"-")) -> - | I179: =IF(OR('Tabel 1 F'!G177<5,'Tabel 2 F'!I179<0.5),"-",IFERROR('Tabel 2 F'!I179/'Tabel 1 F'!G177*100,"-")) -> - | J179: =IF(OR('Tabel 1 F'!G177<5,'Tabel 2 F'!J179<0.5),"-",IFERROR('Tabel 2 F'!J179/'Tabel 1 F'!G177*100,"-")) -> -
A180: Landsk. Arkt. | C180: =IF(OR('Tabel 1 F'!C178<5,'Tabel 2 F'!C180<0.5),"-",IFERROR('Tabel 2 F'!C180/'Tabel 1 F'!C178*100,"-")) -> - | D180: =IF(OR('Tabel 1 F'!C178<5,'Tabel 2 F'!D180<0.5),"-",IFERROR('Tabel 2 F'!D180/'Tabel 1 F'!C178*100,"-")) -> - | F180: =IF(OR('Tabel 1 F'!E178<5,'Tabel 2 F'!F180<0.5),"-",IFERROR('Tabel 2 F'!F180/'Tabel 1 F'!E178*100,"-")) -> - | G180: =IF(OR('Tabel 1 F'!E178<5,'Tabel 2 F'!G180<0.5),"-",IFERROR('Tabel 2 F'!G180/'Tabel 1 F'!E178*100,"-")) -> - | I180: =IF(OR('Tabel 1 F'!G178<5,'Tabel 2 F'!I180<0.5),"-",IFERROR('Tabel 2 F'!I180/'Tabel 1 F'!G178*100,"-")) -> - | J180: =IF(OR('Tabel 1 F'!G178<5,'Tabel 2 F'!J180<0.5),"-",IFERROR('Tabel 2 F'!J180/'Tabel 1 F'!G178*100,"-")) -> -
A181: Hortonom | C181: =IF(OR('Tabel 1 F'!C179<5,'Tabel 2 F'!C181<0.5),"-",IFERROR('Tabel 2 F'!C181/'Tabel 1 F'!C179*100,"-")) -> - | D181: =IF(OR('Tabel 1 F'!C179<5,'Tabel 2 F'!D181<0.5),"-",IFERROR('Tabel 2 F'!D181/'Tabel 1 F'!C179*100,"-")) -> - | F181: =IF(OR('Tabel 1 F'!E179<5,'Tabel 2 F'!F181<0.5),"-",IFERROR('Tabel 2 F'!F181/'Tabel 1 F'!E179*100,"-")) -> - | G181: =IF(OR('Tabel 1 F'!E179<5,'Tabel 2 F'!G181<0.5),"-",IFERROR('Tabel 2 F'!G181/'Tabel 1 F'!E179*100,"-")) -> - | I181: =IF(OR('Tabel 1 F'!G179<5,'Tabel 2 F'!I181<0.5),"-",IFERROR('Tabel 2 F'!I181/'Tabel 1 F'!G179*100,"-")) -> - | J181: =IF(OR('Tabel 1 F'!G179<5,'Tabel 2 F'!J181<0.5),"-",IFERROR('Tabel 2 F'!J181/'Tabel 1 F'!G179*100,"-")) -> -
A182: Forstkand. | C182: =IF(OR('Tabel 1 F'!C180<5,'Tabel 2 F'!C182<0.5),"-",IFERROR('Tabel 2 F'!C182/'Tabel 1 F'!C180*100,"-")) -> 20 | D182: =IF(OR('Tabel 1 F'!C180<5,'Tabel 2 F'!D182<0.5),"-",IFERROR('Tabel 2 F'!D182/'Tabel 1 F'!C180*100,"-")) -> 19.99625772 | F182: =IF(OR('Tabel 1 F'!E180<5,'Tabel 2 F'!F182<0.5),"-",IFERROR('Tabel 2 F'!F182/'Tabel 1 F'!E180*100,"-")) -> - | G182: =IF(OR('Tabel 1 F'!E180<5,'Tabel 2 F'!G182<0.5),"-",IFERROR('Tabel 2 F'!G182/'Tabel 1 F'!E180*100,"-")) -> - | I182: =IF(OR('Tabel 1 F'!G180<5,'Tabel 2 F'!I182<0.5),"-",IFERROR('Tabel 2 F'!I182/'Tabel 1 F'!G180*100,"-")) -> 16.66666667 | J182: =IF(OR('Tabel 1 F'!G180<5,'Tabel 2 F'!J182<0.5),"-",IFERROR('Tabel 2 F'!J182/'Tabel 1 F'!G180*100,"-")) -> 16.6635481
A183: Jordbrugsakad. | C183: =IF(OR('Tabel 1 F'!C181<5,'Tabel 2 F'!C183<0.5),"-",IFERROR('Tabel 2 F'!C183/'Tabel 1 F'!C181*100,"-")) -> 5.555555556 | D183: =IF(OR('Tabel 1 F'!C181<5,'Tabel 2 F'!D183<0.5),"-",IFERROR('Tabel 2 F'!D183/'Tabel 1 F'!C181*100,"-")) -> 5.554516033 | F183: =IF(OR('Tabel 1 F'!E181<5,'Tabel 2 F'!F183<0.5),"-",IFERROR('Tabel 2 F'!F183/'Tabel 1 F'!E181*100,"-")) -> 4.761904762 | G183: =IF(OR('Tabel 1 F'!E181<5,'Tabel 2 F'!G183<0.5),"-",IFERROR('Tabel 2 F'!G183/'Tabel 1 F'!E181*100,"-")) -> 4.761013742 | I183: =IF(OR('Tabel 1 F'!G181<5,'Tabel 2 F'!I183<0.5),"-",IFERROR('Tabel 2 F'!I183/'Tabel 1 F'!G181*100,"-")) -> 5.128205128 | J183: =IF(OR('Tabel 1 F'!G181<5,'Tabel 2 F'!J183<0.5),"-",IFERROR('Tabel 2 F'!J183/'Tabel 1 F'!G181*100,"-")) -> 5.127245569
A184: Mejeriing. | C184: =IF(OR('Tabel 1 F'!C182<5,'Tabel 2 F'!C184<0.5),"-",IFERROR('Tabel 2 F'!C184/'Tabel 1 F'!C182*100,"-")) -> - | D184: =IF(OR('Tabel 1 F'!C182<5,'Tabel 2 F'!D184<0.5),"-",IFERROR('Tabel 2 F'!D184/'Tabel 1 F'!C182*100,"-")) -> - | F184: =IF(OR('Tabel 1 F'!E182<5,'Tabel 2 F'!F184<0.5),"-",IFERROR('Tabel 2 F'!F184/'Tabel 1 F'!E182*100,"-")) -> - | G184: =IF(OR('Tabel 1 F'!E182<5,'Tabel 2 F'!G184<0.5),"-",IFERROR('Tabel 2 F'!G184/'Tabel 1 F'!E182*100,"-")) -> - | I184: =IF(OR('Tabel 1 F'!G182<5,'Tabel 2 F'!I184<0.5),"-",IFERROR('Tabel 2 F'!I184/'Tabel 1 F'!G182*100,"-")) -> - | J184: =IF(OR('Tabel 1 F'!G182<5,'Tabel 2 F'!J184<0.5),"-",IFERROR('Tabel 2 F'!J184/'Tabel 1 F'!G182*100,"-")) -> -
A185: Levn.m.kand. | C185: =IF(OR('Tabel 1 F'!C183<5,'Tabel 2 F'!C185<0.5),"-",IFERROR('Tabel 2 F'!C185/'Tabel 1 F'!C183*100,"-")) -> - | D185: =IF(OR('Tabel 1 F'!C183<5,'Tabel 2 F'!D185<0.5),"-",IFERROR('Tabel 2 F'!D185/'Tabel 1 F'!C183*100,"-")) -> - | F185: =IF(OR('Tabel 1 F'!E183<5,'Tabel 2 F'!F185<0.5),"-",IFERROR('Tabel 2 F'!F185/'Tabel 1 F'!E183*100,"-")) -> - | G185: =IF(OR('Tabel 1 F'!E183<5,'Tabel 2 F'!G185<0.5),"-",IFERROR('Tabel 2 F'!G185/'Tabel 1 F'!E183*100,"-")) -> - | I185: =IF(OR('Tabel 1 F'!G183<5,'Tabel 2 F'!I185<0.5),"-",IFERROR('Tabel 2 F'!I185/'Tabel 1 F'!G183*100,"-")) -> - | J185: =IF(OR('Tabel 1 F'!G183<5,'Tabel 2 F'!J185<0.5),"-",IFERROR('Tabel 2 F'!J185/'Tabel 1 F'!G183*100,"-")) -> -
A186: Dyrlæge | C186: =IF(OR('Tabel 1 F'!C184<5,'Tabel 2 F'!C186<0.5),"-",IFERROR('Tabel 2 F'!C186/'Tabel 1 F'!C184*100,"-")) -> - | D186: =IF(OR('Tabel 1 F'!C184<5,'Tabel 2 F'!D186<0.5),"-",IFERROR('Tabel 2 F'!D186/'Tabel 1 F'!C184*100,"-")) -> - | F186: =IF(OR('Tabel 1 F'!E184<5,'Tabel 2 F'!F186<0.5),"-",IFERROR('Tabel 2 F'!F186/'Tabel 1 F'!E184*100,"-")) -> - | G186: =IF(OR('Tabel 1 F'!E184<5,'Tabel 2 F'!G186<0.5),"-",IFERROR('Tabel 2 F'!G186/'Tabel 1 F'!E184*100,"-")) -> - | I186: =IF(OR('Tabel 1 F'!G184<5,'Tabel 2 F'!I186<0.5),"-",IFERROR('Tabel 2 F'!I186/'Tabel 1 F'!G184*100,"-")) -> - | J186: =IF(OR('Tabel 1 F'!G184<5,'Tabel 2 F'!J186<0.5),"-",IFERROR('Tabel 2 F'!J186/'Tabel 1 F'!G184*100,"-")) -> -
A187: Farmaceut | C187: =IF(OR('Tabel 1 F'!C185<5,'Tabel 2 F'!C187<0.5),"-",IFERROR('Tabel 2 F'!C187/'Tabel 1 F'!C185*100,"-")) -> - | D187: =IF(OR('Tabel 1 F'!C185<5,'Tabel 2 F'!D187<0.5),"-",IFERROR('Tabel 2 F'!D187/'Tabel 1 F'!C185*100,"-")) -> - | F187: =IF(OR('Tabel 1 F'!E185<5,'Tabel 2 F'!F187<0.5),"-",IFERROR('Tabel 2 F'!F187/'Tabel 1 F'!E185*100,"-")) -> - | G187: =IF(OR('Tabel 1 F'!E185<5,'Tabel 2 F'!G187<0.5),"-",IFERROR('Tabel 2 F'!G187/'Tabel 1 F'!E185*100,"-")) -> - | I187: =IF(OR('Tabel 1 F'!G185<5,'Tabel 2 F'!I187<0.5),"-",IFERROR('Tabel 2 F'!I187/'Tabel 1 F'!G185*100,"-")) -> - | J187: =IF(OR('Tabel 1 F'!G185<5,'Tabel 2 F'!J187<0.5),"-",IFERROR('Tabel 2 F'!J187/'Tabel 1 F'!G185*100,"-")) -> -
A188: Læge | C188: =IF(OR('Tabel 1 F'!C186<5,'Tabel 2 F'!C188<0.5),"-",IFERROR('Tabel 2 F'!C188/'Tabel 1 F'!C186*100,"-")) -> - | D188: =IF(OR('Tabel 1 F'!C186<5,'Tabel 2 F'!D188<0.5),"-",IFERROR('Tabel 2 F'!D188/'Tabel 1 F'!C186*100,"-")) -> - | F188: =IF(OR('Tabel 1 F'!E186<5,'Tabel 2 F'!F188<0.5),"-",IFERROR('Tabel 2 F'!F188/'Tabel 1 F'!E186*100,"-")) -> - | G188: =IF(OR('Tabel 1 F'!E186<5,'Tabel 2 F'!G188<0.5),"-",IFERROR('Tabel 2 F'!G188/'Tabel 1 F'!E186*100,"-")) -> - | I188: =IF(OR('Tabel 1 F'!G186<5,'Tabel 2 F'!I188<0.5),"-",IFERROR('Tabel 2 F'!I188/'Tabel 1 F'!G186*100,"-")) -> - | J188: =IF(OR('Tabel 1 F'!G186<5,'Tabel 2 F'!J188<0.5),"-",IFERROR('Tabel 2 F'!J188/'Tabel 1 F'!G186*100,"-")) -> -
A189: Tandlæge | C189: =IF(OR('Tabel 1 F'!C187<5,'Tabel 2 F'!C189<0.5),"-",IFERROR('Tabel 2 F'!C189/'Tabel 1 F'!C187*100,"-")) -> - | D189: =IF(OR('Tabel 1 F'!C187<5,'Tabel 2 F'!D189<0.5),"-",IFERROR('Tabel 2 F'!D189/'Tabel 1 F'!C187*100,"-")) -> - | F189: =IF(OR('Tabel 1 F'!E187<5,'Tabel 2 F'!F189<0.5),"-",IFERROR('Tabel 2 F'!F189/'Tabel 1 F'!E187*100,"-")) -> - | G189: =IF(OR('Tabel 1 F'!E187<5,'Tabel 2 F'!G189<0.5),"-",IFERROR('Tabel 2 F'!G189/'Tabel 1 F'!E187*100,"-")) -> - | I189: =IF(OR('Tabel 1 F'!G187<5,'Tabel 2 F'!I189<0.5),"-",IFERROR('Tabel 2 F'!I189/'Tabel 1 F'!G187*100,"-")) -> - | J189: =IF(OR('Tabel 1 F'!G187<5,'Tabel 2 F'!J189<0.5),"-",IFERROR('Tabel 2 F'!J189/'Tabel 1 F'!G187*100,"-")) -> -
A190: Arkitekt | C190: =IF(OR('Tabel 1 F'!C188<5,'Tabel 2 F'!C190<0.5),"-",IFERROR('Tabel 2 F'!C190/'Tabel 1 F'!C188*100,"-")) -> 14.28571429 | D190: =IF(OR('Tabel 1 F'!C188<5,'Tabel 2 F'!D190<0.5),"-",IFERROR('Tabel 2 F'!D190/'Tabel 1 F'!C188*100,"-")) -> 14.28304123 | F190: =IF(OR('Tabel 1 F'!E188<5,'Tabel 2 F'!F190<0.5),"-",IFERROR('Tabel 2 F'!F190/'Tabel 1 F'!E188*100,"-")) -> - | G190: =IF(OR('Tabel 1 F'!E188<5,'Tabel 2 F'!G190<0.5),"-",IFERROR('Tabel 2 F'!G190/'Tabel 1 F'!E188*100,"-")) -> - | I190: =IF(OR('Tabel 1 F'!G188<5,'Tabel 2 F'!I190<0.5),"-",IFERROR('Tabel 2 F'!I190/'Tabel 1 F'!G188*100,"-")) -> 8.333333333 | J190: =IF(OR('Tabel 1 F'!G188<5,'Tabel 2 F'!J190<0.5),"-",IFERROR('Tabel 2 F'!J190/'Tabel 1 F'!G188*100,"-")) -> 8.331774049
A191: Landinspek. | C191: =IF(OR('Tabel 1 F'!C189<5,'Tabel 2 F'!C191<0.5),"-",IFERROR('Tabel 2 F'!C191/'Tabel 1 F'!C189*100,"-")) -> - | D191: =IF(OR('Tabel 1 F'!C189<5,'Tabel 2 F'!D191<0.5),"-",IFERROR('Tabel 2 F'!D191/'Tabel 1 F'!C189*100,"-")) -> - | F191: =IF(OR('Tabel 1 F'!E189<5,'Tabel 2 F'!F191<0.5),"-",IFERROR('Tabel 2 F'!F191/'Tabel 1 F'!E189*100,"-")) -> - | G191: =IF(OR('Tabel 1 F'!E189<5,'Tabel 2 F'!G191<0.5),"-",IFERROR('Tabel 2 F'!G191/'Tabel 1 F'!E189*100,"-")) -> - | I191: =IF(OR('Tabel 1 F'!G189<5,'Tabel 2 F'!I191<0.5),"-",IFERROR('Tabel 2 F'!I191/'Tabel 1 F'!G189*100,"-")) -> - | J191: =IF(OR('Tabel 1 F'!G189<5,'Tabel 2 F'!J191<0.5),"-",IFERROR('Tabel 2 F'!J191/'Tabel 1 F'!G189*100,"-")) -> -
A192: Bibliotekar | C192: =IF(OR('Tabel 1 F'!C190<5,'Tabel 2 F'!C192<0.5),"-",IFERROR('Tabel 2 F'!C192/'Tabel 1 F'!C190*100,"-")) -> - | D192: =IF(OR('Tabel 1 F'!C190<5,'Tabel 2 F'!D192<0.5),"-",IFERROR('Tabel 2 F'!D192/'Tabel 1 F'!C190*100,"-")) -> - | F192: =IF(OR('Tabel 1 F'!E190<5,'Tabel 2 F'!F192<0.5),"-",IFERROR('Tabel 2 F'!F192/'Tabel 1 F'!E190*100,"-")) -> - | G192: =IF(OR('Tabel 1 F'!E190<5,'Tabel 2 F'!G192<0.5),"-",IFERROR('Tabel 2 F'!G192/'Tabel 1 F'!E190*100,"-")) -> - | I192: =IF(OR('Tabel 1 F'!G190<5,'Tabel 2 F'!I192<0.5),"-",IFERROR('Tabel 2 F'!I192/'Tabel 1 F'!G190*100,"-")) -> - | J192: =IF(OR('Tabel 1 F'!G190<5,'Tabel 2 F'!J192<0.5),"-",IFERROR('Tabel 2 F'!J192/'Tabel 1 F'!G190*100,"-")) -> -
A193: Musikudd. | C193: =IF(OR('Tabel 1 F'!C191<5,'Tabel 2 F'!C193<0.5),"-",IFERROR('Tabel 2 F'!C193/'Tabel 1 F'!C191*100,"-")) -> - | D193: =IF(OR('Tabel 1 F'!C191<5,'Tabel 2 F'!D193<0.5),"-",IFERROR('Tabel 2 F'!D193/'Tabel 1 F'!C191*100,"-")) -> - | F193: =IF(OR('Tabel 1 F'!E191<5,'Tabel 2 F'!F193<0.5),"-",IFERROR('Tabel 2 F'!F193/'Tabel 1 F'!E191*100,"-")) -> - | G193: =IF(OR('Tabel 1 F'!E191<5,'Tabel 2 F'!G193<0.5),"-",IFERROR('Tabel 2 F'!G193/'Tabel 1 F'!E191*100,"-")) -> - | I193: =IF(OR('Tabel 1 F'!G191<5,'Tabel 2 F'!I193<0.5),"-",IFERROR('Tabel 2 F'!I193/'Tabel 1 F'!G191*100,"-")) -> 12.5 | J193: =IF(OR('Tabel 1 F'!G191<5,'Tabel 2 F'!J193<0.5),"-",IFERROR('Tabel 2 F'!J193/'Tabel 1 F'!G191*100,"-")) -> -
A194: Teolog | C194: =IF(OR('Tabel 1 F'!C192<5,'Tabel 2 F'!C194<0.5),"-",IFERROR('Tabel 2 F'!C194/'Tabel 1 F'!C192*100,"-")) -> - | D194: =IF(OR('Tabel 1 F'!C192<5,'Tabel 2 F'!D194<0.5),"-",IFERROR('Tabel 2 F'!D194/'Tabel 1 F'!C192*100,"-")) -> - | F194: =IF(OR('Tabel 1 F'!E192<5,'Tabel 2 F'!F194<0.5),"-",IFERROR('Tabel 2 F'!F194/'Tabel 1 F'!E192*100,"-")) -> - | G194: =IF(OR('Tabel 1 F'!E192<5,'Tabel 2 F'!G194<0.5),"-",IFERROR('Tabel 2 F'!G194/'Tabel 1 F'!E192*100,"-")) -> - | I194: =IF(OR('Tabel 1 F'!G192<5,'Tabel 2 F'!I194<0.5),"-",IFERROR('Tabel 2 F'!I194/'Tabel 1 F'!G192*100,"-")) -> - | J194: =IF(OR('Tabel 1 F'!G192<5,'Tabel 2 F'!J194<0.5),"-",IFERROR('Tabel 2 F'!J194/'Tabel 1 F'!G192*100,"-")) -> -
A195: Psykolog | C195: =IF(OR('Tabel 1 F'!C193<5,'Tabel 2 F'!C195<0.5),"-",IFERROR('Tabel 2 F'!C195/'Tabel 1 F'!C193*100,"-")) -> - | D195: =IF(OR('Tabel 1 F'!C193<5,'Tabel 2 F'!D195<0.5),"-",IFERROR('Tabel 2 F'!D195/'Tabel 1 F'!C193*100,"-")) -> - | F195: =IF(OR('Tabel 1 F'!E193<5,'Tabel 2 F'!F195<0.5),"-",IFERROR('Tabel 2 F'!F195/'Tabel 1 F'!E193*100,"-")) -> 10 | G195: =IF(OR('Tabel 1 F'!E193<5,'Tabel 2 F'!G195<0.5),"-",IFERROR('Tabel 2 F'!G195/'Tabel 1 F'!E193*100,"-")) -> 3.074908002 | I195: =IF(OR('Tabel 1 F'!G193<5,'Tabel 2 F'!I195<0.5),"-",IFERROR('Tabel 2 F'!I195/'Tabel 1 F'!G193*100,"-")) -> 9.090909091 | J195: =IF(OR('Tabel 1 F'!G193<5,'Tabel 2 F'!J195<0.5),"-",IFERROR('Tabel 2 F'!J195/'Tabel 1 F'!G193*100,"-")) -> 2.795370911
A196: Jurist | C196: =IF(OR('Tabel 1 F'!C194<5,'Tabel 2 F'!C196<0.5),"-",IFERROR('Tabel 2 F'!C196/'Tabel 1 F'!C194*100,"-")) -> - | D196: =IF(OR('Tabel 1 F'!C194<5,'Tabel 2 F'!D196<0.5),"-",IFERROR('Tabel 2 F'!D196/'Tabel 1 F'!C194*100,"-")) -> - | F196: =IF(OR('Tabel 1 F'!E194<5,'Tabel 2 F'!F196<0.5),"-",IFERROR('Tabel 2 F'!F196/'Tabel 1 F'!E194*100,"-")) -> 4.166666667 | G196: =IF(OR('Tabel 1 F'!E194<5,'Tabel 2 F'!G196<0.5),"-",IFERROR('Tabel 2 F'!G196/'Tabel 1 F'!E194*100,"-")) -> 4.165887025 | I196: =IF(OR('Tabel 1 F'!G194<5,'Tabel 2 F'!I196<0.5),"-",IFERROR('Tabel 2 F'!I196/'Tabel 1 F'!G194*100,"-")) -> 3.125 | J196: =IF(OR('Tabel 1 F'!G194<5,'Tabel 2 F'!J196<0.5),"-",IFERROR('Tabel 2 F'!J196/'Tabel 1 F'!G194*100,"-")) -> 3.124415269
A197: Økonom | C197: =IF(OR('Tabel 1 F'!C195<5,'Tabel 2 F'!C197<0.5),"-",IFERROR('Tabel 2 F'!C197/'Tabel 1 F'!C195*100,"-")) -> - | D197: =IF(OR('Tabel 1 F'!C195<5,'Tabel 2 F'!D197<0.5),"-",IFERROR('Tabel 2 F'!D197/'Tabel 1 F'!C195*100,"-")) -> - | F197: =IF(OR('Tabel 1 F'!E195<5,'Tabel 2 F'!F197<0.5),"-",IFERROR('Tabel 2 F'!F197/'Tabel 1 F'!E195*100,"-")) -> - | G197: =IF(OR('Tabel 1 F'!E195<5,'Tabel 2 F'!G197<0.5),"-",IFERROR('Tabel 2 F'!G197/'Tabel 1 F'!E195*100,"-")) -> - | I197: =IF(OR('Tabel 1 F'!G195<5,'Tabel 2 F'!I197<0.5),"-",IFERROR('Tabel 2 F'!I197/'Tabel 1 F'!G195*100,"-")) -> - | J197: =IF(OR('Tabel 1 F'!G195<5,'Tabel 2 F'!J197<0.5),"-",IFERROR('Tabel 2 F'!J197/'Tabel 1 F'!G195*100,"-")) -> -
A198: Samf. Adm. | C198: =IF(OR('Tabel 1 F'!C196<5,'Tabel 2 F'!C198<0.5),"-",IFERROR('Tabel 2 F'!C198/'Tabel 1 F'!C196*100,"-")) -> 10.34482759 | D198: =IF(OR('Tabel 1 F'!C196<5,'Tabel 2 F'!D198<0.5),"-",IFERROR('Tabel 2 F'!D198/'Tabel 1 F'!C196*100,"-")) -> 9.674012866 | F198: =IF(OR('Tabel 1 F'!E196<5,'Tabel 2 F'!F198<0.5),"-",IFERROR('Tabel 2 F'!F198/'Tabel 1 F'!E196*100,"-")) -> 9.836065574 | G198: =IF(OR('Tabel 1 F'!E196<5,'Tabel 2 F'!G198<0.5),"-",IFERROR('Tabel 2 F'!G198/'Tabel 1 F'!E196*100,"-")) -> 9.07145406 | I198: =IF(OR('Tabel 1 F'!G196<5,'Tabel 2 F'!I198<0.5),"-",IFERROR('Tabel 2 F'!I198/'Tabel 1 F'!G196*100,"-")) -> 10 | J198: =IF(OR('Tabel 1 F'!G196<5,'Tabel 2 F'!J198<0.5),"-",IFERROR('Tabel 2 F'!J198/'Tabel 1 F'!G196*100,"-")) -> 9.265611898
A199: Cand. Merc. | C199: =IF(OR('Tabel 1 F'!C197<5,'Tabel 2 F'!C199<0.5),"-",IFERROR('Tabel 2 F'!C199/'Tabel 1 F'!C197*100,"-")) -> 2.941176471 | D199: =IF(OR('Tabel 1 F'!C197<5,'Tabel 2 F'!D199<0.5),"-",IFERROR('Tabel 2 F'!D199/'Tabel 1 F'!C197*100,"-")) -> 2.940626135 | F199: =IF(OR('Tabel 1 F'!E197<5,'Tabel 2 F'!F199<0.5),"-",IFERROR('Tabel 2 F'!F199/'Tabel 1 F'!E197*100,"-")) -> 9.090909091 | G199: =IF(OR('Tabel 1 F'!E197<5,'Tabel 2 F'!G199<0.5),"-",IFERROR('Tabel 2 F'!G199/'Tabel 1 F'!E197*100,"-")) -> 6.83249888 | I199: =IF(OR('Tabel 1 F'!G197<5,'Tabel 2 F'!I199<0.5),"-",IFERROR('Tabel 2 F'!I199/'Tabel 1 F'!G197*100,"-")) -> 6.41025641 | J199: =IF(OR('Tabel 1 F'!G197<5,'Tabel 2 F'!J199<0.5),"-",IFERROR('Tabel 2 F'!J199/'Tabel 1 F'!G197*100,"-")) -> 5.13604153
A200: HA | C200: =IF(OR('Tabel 1 F'!C198<5,'Tabel 2 F'!C200<0.5),"-",IFERROR('Tabel 2 F'!C200/'Tabel 1 F'!C198*100,"-")) -> 14.28571429 | D200: =IF(OR('Tabel 1 F'!C198<5,'Tabel 2 F'!D200<0.5),"-",IFERROR('Tabel 2 F'!D200/'Tabel 1 F'!C198*100,"-")) -> 10.71896357 | F200: =IF(OR('Tabel 1 F'!E198<5,'Tabel 2 F'!F200<0.5),"-",IFERROR('Tabel 2 F'!F200/'Tabel 1 F'!E198*100,"-")) -> 8.333333333 | G200: =IF(OR('Tabel 1 F'!E198<5,'Tabel 2 F'!G200<0.5),"-",IFERROR('Tabel 2 F'!G200/'Tabel 1 F'!E198*100,"-")) -> 7.562527287 | I200: =IF(OR('Tabel 1 F'!G198<5,'Tabel 2 F'!I200<0.5),"-",IFERROR('Tabel 2 F'!I200/'Tabel 1 F'!G198*100,"-")) -> 11.53846154 | J200: =IF(OR('Tabel 1 F'!G198<5,'Tabel 2 F'!J200<0.5),"-",IFERROR('Tabel 2 F'!J200/'Tabel 1 F'!G198*100,"-")) -> 9.262146822
A201: HD | C201: =IF(OR('Tabel 1 F'!C199<5,'Tabel 2 F'!C201<0.5),"-",IFERROR('Tabel 2 F'!C201/'Tabel 1 F'!C199*100,"-")) -> 8.333333333 | D201: =IF(OR('Tabel 1 F'!C199<5,'Tabel 2 F'!D201<0.5),"-",IFERROR('Tabel 2 F'!D201/'Tabel 1 F'!C199*100,"-")) -> 8.331774049 | F201: =IF(OR('Tabel 1 F'!E199<5,'Tabel 2 F'!F201<0.5),"-",IFERROR('Tabel 2 F'!F201/'Tabel 1 F'!E199*100,"-")) -> - | G201: =IF(OR('Tabel 1 F'!E199<5,'Tabel 2 F'!G201<0.5),"-",IFERROR('Tabel 2 F'!G201/'Tabel 1 F'!E199*100,"-")) -> - | I201: =IF(OR('Tabel 1 F'!G199<5,'Tabel 2 F'!I201<0.5),"-",IFERROR('Tabel 2 F'!I201/'Tabel 1 F'!G199*100,"-")) -> 4.166666667 | J201: =IF(OR('Tabel 1 F'!G199<5,'Tabel 2 F'!J201<0.5),"-",IFERROR('Tabel 2 F'!J201/'Tabel 1 F'!G199*100,"-")) -> 4.165887025
A202: Komm. og Sprog | C202: =IF(OR('Tabel 1 F'!C200<5,'Tabel 2 F'!C202<0.5),"-",IFERROR('Tabel 2 F'!C202/'Tabel 1 F'!C200*100,"-")) -> - | D202: =IF(OR('Tabel 1 F'!C200<5,'Tabel 2 F'!D202<0.5),"-",IFERROR('Tabel 2 F'!D202/'Tabel 1 F'!C200*100,"-")) -> - | F202: =IF(OR('Tabel 1 F'!E200<5,'Tabel 2 F'!F202<0.5),"-",IFERROR('Tabel 2 F'!F202/'Tabel 1 F'!E200*100,"-")) -> 25 | G202: =IF(OR('Tabel 1 F'!E200<5,'Tabel 2 F'!G202<0.5),"-",IFERROR('Tabel 2 F'!G202/'Tabel 1 F'!E200*100,"-")) -> 24.99532215 | I202: =IF(OR('Tabel 1 F'!G200<5,'Tabel 2 F'!I202<0.5),"-",IFERROR('Tabel 2 F'!I202/'Tabel 1 F'!G200*100,"-")) -> 18.75 | J202: =IF(OR('Tabel 1 F'!G200<5,'Tabel 2 F'!J202<0.5),"-",IFERROR('Tabel 2 F'!J202/'Tabel 1 F'!G200*100,"-")) -> 18.74649161
A203: Bygningskonst. | C203: =IF(OR('Tabel 1 F'!C201<5,'Tabel 2 F'!C203<0.5),"-",IFERROR('Tabel 2 F'!C203/'Tabel 1 F'!C201*100,"-")) -> 6.557377049 | D203: =IF(OR('Tabel 1 F'!C201<5,'Tabel 2 F'!D203<0.5),"-",IFERROR('Tabel 2 F'!D203/'Tabel 1 F'!C201*100,"-")) -> 4.629897558 | F203: =IF(OR('Tabel 1 F'!E201<5,'Tabel 2 F'!F203<0.5),"-",IFERROR('Tabel 2 F'!F203/'Tabel 1 F'!E201*100,"-")) -> 12.5 | G203: =IF(OR('Tabel 1 F'!E201<5,'Tabel 2 F'!G203<0.5),"-",IFERROR('Tabel 2 F'!G203/'Tabel 1 F'!E201*100,"-")) -> 12.5 | I203: =IF(OR('Tabel 1 F'!G201<5,'Tabel 2 F'!I203<0.5),"-",IFERROR('Tabel 2 F'!I203/'Tabel 1 F'!G201*100,"-")) -> 7.246376812 | J203: =IF(OR('Tabel 1 F'!G201<5,'Tabel 2 F'!J203<0.5),"-",IFERROR('Tabel 2 F'!J203/'Tabel 1 F'!G201*100,"-")) -> 5.542373203
A204: Cand. IT. | C204: =IF(OR('Tabel 1 F'!C202<5,'Tabel 2 F'!C204<0.5),"-",IFERROR('Tabel 2 F'!C204/'Tabel 1 F'!C202*100,"-")) -> 20 | D204: =IF(OR('Tabel 1 F'!C202<5,'Tabel 2 F'!D204<0.5),"-",IFERROR('Tabel 2 F'!D204/'Tabel 1 F'!C202*100,"-")) -> 19.99625772 | F204: =IF(OR('Tabel 1 F'!E202<5,'Tabel 2 F'!F204<0.5),"-",IFERROR('Tabel 2 F'!F204/'Tabel 1 F'!E202*100,"-")) -> 20 | G204: =IF(OR('Tabel 1 F'!E202<5,'Tabel 2 F'!G204<0.5),"-",IFERROR('Tabel 2 F'!G204/'Tabel 1 F'!E202*100,"-")) -> 19.99625772 | I204: =IF(OR('Tabel 1 F'!G202<5,'Tabel 2 F'!I204<0.5),"-",IFERROR('Tabel 2 F'!I204/'Tabel 1 F'!G202*100,"-")) -> 20 | J204: =IF(OR('Tabel 1 F'!G202<5,'Tabel 2 F'!J204<0.5),"-",IFERROR('Tabel 2 F'!J204/'Tabel 1 F'!G202*100,"-")) -> 19.99625772
A205: Bac. Samf. | C205: =IF(OR('Tabel 1 F'!C203<5,'Tabel 2 F'!C205<0.5),"-",IFERROR('Tabel 2 F'!C205/'Tabel 1 F'!C203*100,"-")) -> - | D205: =IF(OR('Tabel 1 F'!C203<5,'Tabel 2 F'!D205<0.5),"-",IFERROR('Tabel 2 F'!D205/'Tabel 1 F'!C203*100,"-")) -> - | F205: =IF(OR('Tabel 1 F'!E203<5,'Tabel 2 F'!F205<0.5),"-",IFERROR('Tabel 2 F'!F205/'Tabel 1 F'!E203*100,"-")) -> - | G205: =IF(OR('Tabel 1 F'!E203<5,'Tabel 2 F'!G205<0.5),"-",IFERROR('Tabel 2 F'!G205/'Tabel 1 F'!E203*100,"-")) -> - | I205: =IF(OR('Tabel 1 F'!G203<5,'Tabel 2 F'!I205<0.5),"-",IFERROR('Tabel 2 F'!I205/'Tabel 1 F'!G203*100,"-")) -> - | J205: =IF(OR('Tabel 1 F'!G203<5,'Tabel 2 F'!J205<0.5),"-",IFERROR('Tabel 2 F'!J205/'Tabel 1 F'!G203*100,"-")) -> -
A206: Bac. Hum. | C206: =IF(OR('Tabel 1 F'!C204<5,'Tabel 2 F'!C206<0.5),"-",IFERROR('Tabel 2 F'!C206/'Tabel 1 F'!C204*100,"-")) -> - | D206: =IF(OR('Tabel 1 F'!C204<5,'Tabel 2 F'!D206<0.5),"-",IFERROR('Tabel 2 F'!D206/'Tabel 1 F'!C204*100,"-")) -> - | F206: =IF(OR('Tabel 1 F'!E204<5,'Tabel 2 F'!F206<0.5),"-",IFERROR('Tabel 2 F'!F206/'Tabel 1 F'!E204*100,"-")) -> 13.33333333 | G206: =IF(OR('Tabel 1 F'!E204<5,'Tabel 2 F'!G206<0.5),"-",IFERROR('Tabel 2 F'!G206/'Tabel 1 F'!E204*100,"-")) -> 13.33083848 | I206: =IF(OR('Tabel 1 F'!G204<5,'Tabel 2 F'!I206<0.5),"-",IFERROR('Tabel 2 F'!I206/'Tabel 1 F'!G204*100,"-")) -> 11.11111111 | J206: =IF(OR('Tabel 1 F'!G204<5,'Tabel 2 F'!J206<0.5),"-",IFERROR('Tabel 2 F'!J206/'Tabel 1 F'!G204*100,"-")) -> 11.10903207
A207: Bac. Nat. | C207: =IF(OR('Tabel 1 F'!C205<5,'Tabel 2 F'!C207<0.5),"-",IFERROR('Tabel 2 F'!C207/'Tabel 1 F'!C205*100,"-")) -> 42.85714286 | D207: =IF(OR('Tabel 1 F'!C205<5,'Tabel 2 F'!D207<0.5),"-",IFERROR('Tabel 2 F'!D207/'Tabel 1 F'!C205*100,"-")) -> 26.65039071 | F207: =IF(OR('Tabel 1 F'!E205<5,'Tabel 2 F'!F207<0.5),"-",IFERROR('Tabel 2 F'!F207/'Tabel 1 F'!E205*100,"-")) -> - | G207: =IF(OR('Tabel 1 F'!E205<5,'Tabel 2 F'!G207<0.5),"-",IFERROR('Tabel 2 F'!G207/'Tabel 1 F'!E205*100,"-")) -> - | I207: =IF(OR('Tabel 1 F'!G205<5,'Tabel 2 F'!I207<0.5),"-",IFERROR('Tabel 2 F'!I207/'Tabel 1 F'!G205*100,"-")) -> 50 | J207: =IF(OR('Tabel 1 F'!G205<5,'Tabel 2 F'!J207<0.5),"-",IFERROR('Tabel 2 F'!J207/'Tabel 1 F'!G205*100,"-")) -> 35.84482006
A208: Andre | C208: =IF(OR('Tabel 1 F'!C206<5,'Tabel 2 F'!C208<0.5),"-",IFERROR('Tabel 2 F'!C208/'Tabel 1 F'!C206*100,"-")) -> 7.01754386 | D208: =IF(OR('Tabel 1 F'!C206<5,'Tabel 2 F'!D208<0.5),"-",IFERROR('Tabel 2 F'!D208/'Tabel 1 F'!C206*100,"-")) -> 4.251100526 | F208: =IF(OR('Tabel 1 F'!E206<5,'Tabel 2 F'!F208<0.5),"-",IFERROR('Tabel 2 F'!F208/'Tabel 1 F'!E206*100,"-")) -> 10.25641026 | G208: =IF(OR('Tabel 1 F'!E206<5,'Tabel 2 F'!G208<0.5),"-",IFERROR('Tabel 2 F'!G208/'Tabel 1 F'!E206*100,"-")) -> 6.755297967 | I208: =IF(OR('Tabel 1 F'!G206<5,'Tabel 2 F'!I208<0.5),"-",IFERROR('Tabel 2 F'!I208/'Tabel 1 F'!G206*100,"-")) -> 8.333333333 | J208: =IF(OR('Tabel 1 F'!G206<5,'Tabel 2 F'!J208<0.5),"-",IFERROR('Tabel 2 F'!J208/'Tabel 1 F'!G206*100,"-")) -> 5.268430737
A210: Total | C210: =IF(OR('Tabel 1 F'!C208<5,'Tabel 2 F'!C210<0.5),"-",IFERROR('Tabel 2 F'!C210/'Tabel 1 F'!C208*100,"-")) -> 5.635648755 | D210: =IF(OR('Tabel 1 F'!C208<5,'Tabel 2 F'!D210<0.5),"-",IFERROR('Tabel 2 F'!D210/'Tabel 1 F'!C208*100,"-")) -> 4.674345074 | F210: =IF(OR('Tabel 1 F'!E208<5,'Tabel 2 F'!F210<0.5),"-",IFERROR('Tabel 2 F'!F210/'Tabel 1 F'!E208*100,"-")) -> 7.544378698 | G210: =IF(OR('Tabel 1 F'!E208<5,'Tabel 2 F'!G210<0.5),"-",IFERROR('Tabel 2 F'!G210/'Tabel 1 F'!E208*100,"-")) -> 6.484711451 | I210: =IF(OR('Tabel 1 F'!G208<5,'Tabel 2 F'!I210<0.5),"-",IFERROR('Tabel 2 F'!I210/'Tabel 1 F'!G208*100,"-")) -> 6.532314107 | J210: =IF(OR('Tabel 1 F'!G208<5,'Tabel 2 F'!J210<0.5),"-",IFERROR('Tabel 2 F'!J210/'Tabel 1 F'!G208*100,"-")) -> 5.524802107
A212: Ingeniører i alt | C212: =IF(OR('Tabel 1 F'!C210<5,'Tabel 2 F'!C212<0.5),"-",IFERROR('Tabel 2 F'!C212/'Tabel 1 F'!C210*100,"-")) -> 2.903225806 | D212: =IF(OR('Tabel 1 F'!C210<5,'Tabel 2 F'!D212<0.5),"-",IFERROR('Tabel 2 F'!D212/'Tabel 1 F'!C210*100,"-")) -> 2.618591091 | F212: =IF(OR('Tabel 1 F'!E210<5,'Tabel 2 F'!F212<0.5),"-",IFERROR('Tabel 2 F'!F212/'Tabel 1 F'!E210*100,"-")) -> 5.172413793 | G212: =IF(OR('Tabel 1 F'!E210<5,'Tabel 2 F'!G212<0.5),"-",IFERROR('Tabel 2 F'!G212/'Tabel 1 F'!E210*100,"-")) -> 3.73905544 | I212: =IF(OR('Tabel 1 F'!G210<5,'Tabel 2 F'!I212<0.5),"-",IFERROR('Tabel 2 F'!I212/'Tabel 1 F'!G210*100,"-")) -> 3.260869565 | J212: =IF(OR('Tabel 1 F'!G210<5,'Tabel 2 F'!J212<0.5),"-",IFERROR('Tabel 2 F'!J212/'Tabel 1 F'!G210*100,"-")) -> 2.795186016
A213: Magistre i alt | C213: =IF(OR('Tabel 1 F'!C211<5,'Tabel 2 F'!C213<0.5),"-",IFERROR('Tabel 2 F'!C213/'Tabel 1 F'!C211*100,"-")) -> 8.695652174 | D213: =IF(OR('Tabel 1 F'!C211<5,'Tabel 2 F'!D213<0.5),"-",IFERROR('Tabel 2 F'!D213/'Tabel 1 F'!C211*100,"-")) -> 7.975940926 | F213: =IF(OR('Tabel 1 F'!E211<5,'Tabel 2 F'!F213<0.5),"-",IFERROR('Tabel 2 F'!F213/'Tabel 1 F'!E211*100,"-")) -> 8.287292818 | G213: =IF(OR('Tabel 1 F'!E211<5,'Tabel 2 F'!G213<0.5),"-",IFERROR('Tabel 2 F'!G213/'Tabel 1 F'!E211*100,"-")) -> 7.564164105 | I213: =IF(OR('Tabel 1 F'!G211<5,'Tabel 2 F'!I213<0.5),"-",IFERROR('Tabel 2 F'!I213/'Tabel 1 F'!G211*100,"-")) -> 8.445945946 | J213: =IF(OR('Tabel 1 F'!G211<5,'Tabel 2 F'!J213<0.5),"-",IFERROR('Tabel 2 F'!J213/'Tabel 1 F'!G211*100,"-")) -> 7.724144965
A214: DJØF'ere i alt | C214: =IF(OR('Tabel 1 F'!C212<5,'Tabel 2 F'!C214<0.5),"-",IFERROR('Tabel 2 F'!C214/'Tabel 1 F'!C212*100,"-")) -> 6.25 | D214: =IF(OR('Tabel 1 F'!C212<5,'Tabel 2 F'!D214<0.5),"-",IFERROR('Tabel 2 F'!D214/'Tabel 1 F'!C212*100,"-")) -> 5.527011996 | F214: =IF(OR('Tabel 1 F'!E212<5,'Tabel 2 F'!F214<0.5),"-",IFERROR('Tabel 2 F'!F214/'Tabel 1 F'!E212*100,"-")) -> 7.692307692 | G214: =IF(OR('Tabel 1 F'!E212<5,'Tabel 2 F'!G214<0.5),"-",IFERROR('Tabel 2 F'!G214/'Tabel 1 F'!E212*100,"-")) -> 6.696924772 | I214: =IF(OR('Tabel 1 F'!G212<5,'Tabel 2 F'!I214<0.5),"-",IFERROR('Tabel 2 F'!I214/'Tabel 1 F'!G212*100,"-")) -> 7.142857143 | J214: =IF(OR('Tabel 1 F'!G212<5,'Tabel 2 F'!J214<0.5),"-",IFERROR('Tabel 2 F'!J214/'Tabel 1 F'!G212*100,"-")) -> 6.251243715
A219: Kerteminde
C221: Mænd | F221: Kvinder | I221: I alt
C222: Ledigheds- berørte | D222: Gns. brutto- ledighed | F222: Ledigheds- berørte | G222: Gns. brutto- ledighed | I222: Ledigheds- berørte | J222: Gns. brutto- ledighed
A225: Civ. ing. | C225: =IF(OR('Tabel 1 F'!C223<5,'Tabel 2 F'!C225<0.5),"-",IFERROR('Tabel 2 F'!C225/'Tabel 1 F'!C223*100,"-")) -> 4.761904762 | D225: =IF(OR('Tabel 1 F'!C223<5,'Tabel 2 F'!D225<0.5),"-",IFERROR('Tabel 2 F'!D225/'Tabel 1 F'!C223*100,"-")) -> 4.761013742 | F225: =IF(OR('Tabel 1 F'!E223<5,'Tabel 2 F'!F225<0.5),"-",IFERROR('Tabel 2 F'!F225/'Tabel 1 F'!E223*100,"-")) -> - | G225: =IF(OR('Tabel 1 F'!E223<5,'Tabel 2 F'!G225<0.5),"-",IFERROR('Tabel 2 F'!G225/'Tabel 1 F'!E223*100,"-")) -> - | I225: =IF(OR('Tabel 1 F'!G223<5,'Tabel 2 F'!I225<0.5),"-",IFERROR('Tabel 2 F'!I225/'Tabel 1 F'!G223*100,"-")) -> 3.225806452 | J225: =IF(OR('Tabel 1 F'!G223<5,'Tabel 2 F'!J225<0.5),"-",IFERROR('Tabel 2 F'!J225/'Tabel 1 F'!G223*100,"-")) -> 3.225202858
A226: Diplom ing. | C226: =IF(OR('Tabel 1 F'!C224<5,'Tabel 2 F'!C226<0.5),"-",IFERROR('Tabel 2 F'!C226/'Tabel 1 F'!C224*100,"-")) -> 4.098360656 | D226: =IF(OR('Tabel 1 F'!C224<5,'Tabel 2 F'!D226<0.5),"-",IFERROR('Tabel 2 F'!D226/'Tabel 1 F'!C224*100,"-")) -> 3.489217423 | F226: =IF(OR('Tabel 1 F'!E224<5,'Tabel 2 F'!F226<0.5),"-",IFERROR('Tabel 2 F'!F226/'Tabel 1 F'!E224*100,"-")) -> 11.11111111 | G226: =IF(OR('Tabel 1 F'!E224<5,'Tabel 2 F'!G226<0.5),"-",IFERROR('Tabel 2 F'!G226/'Tabel 1 F'!E224*100,"-")) -> 11.10903207 | I226: =IF(OR('Tabel 1 F'!G224<5,'Tabel 2 F'!I226<0.5),"-",IFERROR('Tabel 2 F'!I226/'Tabel 1 F'!G224*100,"-")) -> 5.369127517 | J226: =IF(OR('Tabel 1 F'!G224<5,'Tabel 2 F'!J226<0.5),"-",IFERROR('Tabel 2 F'!J226/'Tabel 1 F'!G224*100,"-")) -> 4.869989204
A227: Cand. Scient. Tek. | C227: =IF(OR('Tabel 1 F'!C225<5,'Tabel 2 F'!C227<0.5),"-",IFERROR('Tabel 2 F'!C227/'Tabel 1 F'!C225*100,"-")) -> 10 | D227: =IF(OR('Tabel 1 F'!C225<5,'Tabel 2 F'!D227<0.5),"-",IFERROR('Tabel 2 F'!D227/'Tabel 1 F'!C225*100,"-")) -> 9.998128859 | F227: =IF(OR('Tabel 1 F'!E225<5,'Tabel 2 F'!F227<0.5),"-",IFERROR('Tabel 2 F'!F227/'Tabel 1 F'!E225*100,"-")) -> - | G227: =IF(OR('Tabel 1 F'!E225<5,'Tabel 2 F'!G227<0.5),"-",IFERROR('Tabel 2 F'!G227/'Tabel 1 F'!E225*100,"-")) -> - | I227: =IF(OR('Tabel 1 F'!G225<5,'Tabel 2 F'!I227<0.5),"-",IFERROR('Tabel 2 F'!I227/'Tabel 1 F'!G225*100,"-")) -> 5.714285714 | J227: =IF(OR('Tabel 1 F'!G225<5,'Tabel 2 F'!J227<0.5),"-",IFERROR('Tabel 2 F'!J227/'Tabel 1 F'!G225*100,"-")) -> 5.713216491
A228: MA. Hum. | C228: =IF(OR('Tabel 1 F'!C226<5,'Tabel 2 F'!C228<0.5),"-",IFERROR('Tabel 2 F'!C228/'Tabel 1 F'!C226*100,"-")) -> 8 | D228: =IF(OR('Tabel 1 F'!C226<5,'Tabel 2 F'!D228<0.5),"-",IFERROR('Tabel 2 F'!D228/'Tabel 1 F'!C226*100,"-")) -> 5.034616104 | F228: =IF(OR('Tabel 1 F'!E226<5,'Tabel 2 F'!F228<0.5),"-",IFERROR('Tabel 2 F'!F228/'Tabel 1 F'!E226*100,"-")) -> 6.944444444 | G228: =IF(OR('Tabel 1 F'!E226<5,'Tabel 2 F'!G228<0.5),"-",IFERROR('Tabel 2 F'!G228/'Tabel 1 F'!E226*100,"-")) -> 5.914883885 | I228: =IF(OR('Tabel 1 F'!G226<5,'Tabel 2 F'!I228<0.5),"-",IFERROR('Tabel 2 F'!I228/'Tabel 1 F'!G226*100,"-")) -> 7.216494845 | J228: =IF(OR('Tabel 1 F'!G226<5,'Tabel 2 F'!J228<0.5),"-",IFERROR('Tabel 2 F'!J228/'Tabel 1 F'!G226*100,"-")) -> 5.688010746
A229: MA. Nat. | C229: =IF(OR('Tabel 1 F'!C227<5,'Tabel 2 F'!C229<0.5),"-",IFERROR('Tabel 2 F'!C229/'Tabel 1 F'!C227*100,"-")) -> 7.142857143 | D229: =IF(OR('Tabel 1 F'!C227<5,'Tabel 2 F'!D229<0.5),"-",IFERROR('Tabel 2 F'!D229/'Tabel 1 F'!C227*100,"-")) -> 7.141520614 | F229: =IF(OR('Tabel 1 F'!E227<5,'Tabel 2 F'!F229<0.5),"-",IFERROR('Tabel 2 F'!F229/'Tabel 1 F'!E227*100,"-")) -> 7.142857143 | G229: =IF(OR('Tabel 1 F'!E227<5,'Tabel 2 F'!G229<0.5),"-",IFERROR('Tabel 2 F'!G229/'Tabel 1 F'!E227*100,"-")) -> - | I229: =IF(OR('Tabel 1 F'!G227<5,'Tabel 2 F'!I229<0.5),"-",IFERROR('Tabel 2 F'!I229/'Tabel 1 F'!G227*100,"-")) -> 7.142857143 | J229: =IF(OR('Tabel 1 F'!G227<5,'Tabel 2 F'!J229<0.5),"-",IFERROR('Tabel 2 F'!J229/'Tabel 1 F'!G227*100,"-")) -> 4.99861892
A230: MA. Ph.d. | C230: =IF(OR('Tabel 1 F'!C228<5,'Tabel 2 F'!C230<0.5),"-",IFERROR('Tabel 2 F'!C230/'Tabel 1 F'!C228*100,"-")) -> - | D230: =IF(OR('Tabel 1 F'!C228<5,'Tabel 2 F'!D230<0.5),"-",IFERROR('Tabel 2 F'!D230/'Tabel 1 F'!C228*100,"-")) -> - | F230: =IF(OR('Tabel 1 F'!E228<5,'Tabel 2 F'!F230<0.5),"-",IFERROR('Tabel 2 F'!F230/'Tabel 1 F'!E228*100,"-")) -> - | G230: =IF(OR('Tabel 1 F'!E228<5,'Tabel 2 F'!G230<0.5),"-",IFERROR('Tabel 2 F'!G230/'Tabel 1 F'!E228*100,"-")) -> - | I230: =IF(OR('Tabel 1 F'!G228<5,'Tabel 2 F'!I230<0.5),"-",IFERROR('Tabel 2 F'!I230/'Tabel 1 F'!G228*100,"-")) -> - | J230: =IF(OR('Tabel 1 F'!G228<5,'Tabel 2 F'!J230<0.5),"-",IFERROR('Tabel 2 F'!J230/'Tabel 1 F'!G228*100,"-")) -> -
A231: MA. Samf. | C231: =IF(OR('Tabel 1 F'!C229<5,'Tabel 2 F'!C231<0.5),"-",IFERROR('Tabel 2 F'!C231/'Tabel 1 F'!C229*100,"-")) -> - | D231: =IF(OR('Tabel 1 F'!C229<5,'Tabel 2 F'!D231<0.5),"-",IFERROR('Tabel 2 F'!D231/'Tabel 1 F'!C229*100,"-")) -> - | F231: =IF(OR('Tabel 1 F'!E229<5,'Tabel 2 F'!F231<0.5),"-",IFERROR('Tabel 2 F'!F231/'Tabel 1 F'!E229*100,"-")) -> - | G231: =IF(OR('Tabel 1 F'!E229<5,'Tabel 2 F'!G231<0.5),"-",IFERROR('Tabel 2 F'!G231/'Tabel 1 F'!E229*100,"-")) -> - | I231: =IF(OR('Tabel 1 F'!G229<5,'Tabel 2 F'!I231<0.5),"-",IFERROR('Tabel 2 F'!I231/'Tabel 1 F'!G229*100,"-")) -> - | J231: =IF(OR('Tabel 1 F'!G229<5,'Tabel 2 F'!J231<0.5),"-",IFERROR('Tabel 2 F'!J231/'Tabel 1 F'!G229*100,"-")) -> -
A232: Øvrige Mag. | C232: =IF(OR('Tabel 1 F'!C230<5,'Tabel 2 F'!C232<0.5),"-",IFERROR('Tabel 2 F'!C232/'Tabel 1 F'!C230*100,"-")) -> - | D232: =IF(OR('Tabel 1 F'!C230<5,'Tabel 2 F'!D232<0.5),"-",IFERROR('Tabel 2 F'!D232/'Tabel 1 F'!C230*100,"-")) -> - | F232: =IF(OR('Tabel 1 F'!E230<5,'Tabel 2 F'!F232<0.5),"-",IFERROR('Tabel 2 F'!F232/'Tabel 1 F'!E230*100,"-")) -> 33.33333333 | G232: =IF(OR('Tabel 1 F'!E230<5,'Tabel 2 F'!G232<0.5),"-",IFERROR('Tabel 2 F'!G232/'Tabel 1 F'!E230*100,"-")) -> 21.79879 | I232: =IF(OR('Tabel 1 F'!G230<5,'Tabel 2 F'!I232<0.5),"-",IFERROR('Tabel 2 F'!I232/'Tabel 1 F'!G230*100,"-")) -> 37.5 | J232: =IF(OR('Tabel 1 F'!G230<5,'Tabel 2 F'!J232<0.5),"-",IFERROR('Tabel 2 F'!J232/'Tabel 1 F'!G230*100,"-")) -> 28.84675357
A233: Agronom | C233: =IF(OR('Tabel 1 F'!C231<5,'Tabel 2 F'!C233<0.5),"-",IFERROR('Tabel 2 F'!C233/'Tabel 1 F'!C231*100,"-")) -> - | D233: =IF(OR('Tabel 1 F'!C231<5,'Tabel 2 F'!D233<0.5),"-",IFERROR('Tabel 2 F'!D233/'Tabel 1 F'!C231*100,"-")) -> - | F233: =IF(OR('Tabel 1 F'!E231<5,'Tabel 2 F'!F233<0.5),"-",IFERROR('Tabel 2 F'!F233/'Tabel 1 F'!E231*100,"-")) -> - | G233: =IF(OR('Tabel 1 F'!E231<5,'Tabel 2 F'!G233<0.5),"-",IFERROR('Tabel 2 F'!G233/'Tabel 1 F'!E231*100,"-")) -> - | I233: =IF(OR('Tabel 1 F'!G231<5,'Tabel 2 F'!I233<0.5),"-",IFERROR('Tabel 2 F'!I233/'Tabel 1 F'!G231*100,"-")) -> - | J233: =IF(OR('Tabel 1 F'!G231<5,'Tabel 2 F'!J233<0.5),"-",IFERROR('Tabel 2 F'!J233/'Tabel 1 F'!G231*100,"-")) -> -
A234: Landsk. Arkt. | C234: =IF(OR('Tabel 1 F'!C232<5,'Tabel 2 F'!C234<0.5),"-",IFERROR('Tabel 2 F'!C234/'Tabel 1 F'!C232*100,"-")) -> - | D234: =IF(OR('Tabel 1 F'!C232<5,'Tabel 2 F'!D234<0.5),"-",IFERROR('Tabel 2 F'!D234/'Tabel 1 F'!C232*100,"-")) -> - | F234: =IF(OR('Tabel 1 F'!E232<5,'Tabel 2 F'!F234<0.5),"-",IFERROR('Tabel 2 F'!F234/'Tabel 1 F'!E232*100,"-")) -> - | G234: =IF(OR('Tabel 1 F'!E232<5,'Tabel 2 F'!G234<0.5),"-",IFERROR('Tabel 2 F'!G234/'Tabel 1 F'!E232*100,"-")) -> - | I234: =IF(OR('Tabel 1 F'!G232<5,'Tabel 2 F'!I234<0.5),"-",IFERROR('Tabel 2 F'!I234/'Tabel 1 F'!G232*100,"-")) -> - | J234: =IF(OR('Tabel 1 F'!G232<5,'Tabel 2 F'!J234<0.5),"-",IFERROR('Tabel 2 F'!J234/'Tabel 1 F'!G232*100,"-")) -> -
A235: Hortonom | C235: =IF(OR('Tabel 1 F'!C233<5,'Tabel 2 F'!C235<0.5),"-",IFERROR('Tabel 2 F'!C235/'Tabel 1 F'!C233*100,"-")) -> - | D235: =IF(OR('Tabel 1 F'!C233<5,'Tabel 2 F'!D235<0.5),"-",IFERROR('Tabel 2 F'!D235/'Tabel 1 F'!C233*100,"-")) -> - | F235: =IF(OR('Tabel 1 F'!E233<5,'Tabel 2 F'!F235<0.5),"-",IFERROR('Tabel 2 F'!F235/'Tabel 1 F'!E233*100,"-")) -> - | G235: =IF(OR('Tabel 1 F'!E233<5,'Tabel 2 F'!G235<0.5),"-",IFERROR('Tabel 2 F'!G235/'Tabel 1 F'!E233*100,"-")) -> - | I235: =IF(OR('Tabel 1 F'!G233<5,'Tabel 2 F'!I235<0.5),"-",IFERROR('Tabel 2 F'!I235/'Tabel 1 F'!G233*100,"-")) -> - | J235: =IF(OR('Tabel 1 F'!G233<5,'Tabel 2 F'!J235<0.5),"-",IFERROR('Tabel 2 F'!J235/'Tabel 1 F'!G233*100,"-")) -> -
A236: Forstkand. | C236: =IF(OR('Tabel 1 F'!C234<5,'Tabel 2 F'!C236<0.5),"-",IFERROR('Tabel 2 F'!C236/'Tabel 1 F'!C234*100,"-")) -> - | D236: =IF(OR('Tabel 1 F'!C234<5,'Tabel 2 F'!D236<0.5),"-",IFERROR('Tabel 2 F'!D236/'Tabel 1 F'!C234*100,"-")) -> - | F236: =IF(OR('Tabel 1 F'!E234<5,'Tabel 2 F'!F236<0.5),"-",IFERROR('Tabel 2 F'!F236/'Tabel 1 F'!E234*100,"-")) -> - | G236: =IF(OR('Tabel 1 F'!E234<5,'Tabel 2 F'!G236<0.5),"-",IFERROR('Tabel 2 F'!G236/'Tabel 1 F'!E234*100,"-")) -> - | I236: =IF(OR('Tabel 1 F'!G234<5,'Tabel 2 F'!I236<0.5),"-",IFERROR('Tabel 2 F'!I236/'Tabel 1 F'!G234*100,"-")) -> - | J236: =IF(OR('Tabel 1 F'!G234<5,'Tabel 2 F'!J236<0.5),"-",IFERROR('Tabel 2 F'!J236/'Tabel 1 F'!G234*100,"-")) -> -
A237: Jordbrugsakad. | C237: =IF(OR('Tabel 1 F'!C235<5,'Tabel 2 F'!C237<0.5),"-",IFERROR('Tabel 2 F'!C237/'Tabel 1 F'!C235*100,"-")) -> - | D237: =IF(OR('Tabel 1 F'!C235<5,'Tabel 2 F'!D237<0.5),"-",IFERROR('Tabel 2 F'!D237/'Tabel 1 F'!C235*100,"-")) -> - | F237: =IF(OR('Tabel 1 F'!E235<5,'Tabel 2 F'!F237<0.5),"-",IFERROR('Tabel 2 F'!F237/'Tabel 1 F'!E235*100,"-")) -> - | G237: =IF(OR('Tabel 1 F'!E235<5,'Tabel 2 F'!G237<0.5),"-",IFERROR('Tabel 2 F'!G237/'Tabel 1 F'!E235*100,"-")) -> - | I237: =IF(OR('Tabel 1 F'!G235<5,'Tabel 2 F'!I237<0.5),"-",IFERROR('Tabel 2 F'!I237/'Tabel 1 F'!G235*100,"-")) -> - | J237: =IF(OR('Tabel 1 F'!G235<5,'Tabel 2 F'!J237<0.5),"-",IFERROR('Tabel 2 F'!J237/'Tabel 1 F'!G235*100,"-")) -> -
A238: Mejeriing. | C238: =IF(OR('Tabel 1 F'!C236<5,'Tabel 2 F'!C238<0.5),"-",IFERROR('Tabel 2 F'!C238/'Tabel 1 F'!C236*100,"-")) -> - | D238: =IF(OR('Tabel 1 F'!C236<5,'Tabel 2 F'!D238<0.5),"-",IFERROR('Tabel 2 F'!D238/'Tabel 1 F'!C236*100,"-")) -> - | F238: =IF(OR('Tabel 1 F'!E236<5,'Tabel 2 F'!F238<0.5),"-",IFERROR('Tabel 2 F'!F238/'Tabel 1 F'!E236*100,"-")) -> - | G238: =IF(OR('Tabel 1 F'!E236<5,'Tabel 2 F'!G238<0.5),"-",IFERROR('Tabel 2 F'!G238/'Tabel 1 F'!E236*100,"-")) -> - | I238: =IF(OR('Tabel 1 F'!G236<5,'Tabel 2 F'!I238<0.5),"-",IFERROR('Tabel 2 F'!I238/'Tabel 1 F'!G236*100,"-")) -> - | J238: =IF(OR('Tabel 1 F'!G236<5,'Tabel 2 F'!J238<0.5),"-",IFERROR('Tabel 2 F'!J238/'Tabel 1 F'!G236*100,"-")) -> -
A239: Levn.m.kand. | C239: =IF(OR('Tabel 1 F'!C237<5,'Tabel 2 F'!C239<0.5),"-",IFERROR('Tabel 2 F'!C239/'Tabel 1 F'!C237*100,"-")) -> - | D239: =IF(OR('Tabel 1 F'!C237<5,'Tabel 2 F'!D239<0.5),"-",IFERROR('Tabel 2 F'!D239/'Tabel 1 F'!C237*100,"-")) -> - | F239: =IF(OR('Tabel 1 F'!E237<5,'Tabel 2 F'!F239<0.5),"-",IFERROR('Tabel 2 F'!F239/'Tabel 1 F'!E237*100,"-")) -> - | G239: =IF(OR('Tabel 1 F'!E237<5,'Tabel 2 F'!G239<0.5),"-",IFERROR('Tabel 2 F'!G239/'Tabel 1 F'!E237*100,"-")) -> - | I239: =IF(OR('Tabel 1 F'!G237<5,'Tabel 2 F'!I239<0.5),"-",IFERROR('Tabel 2 F'!I239/'Tabel 1 F'!G237*100,"-")) -> - | J239: =IF(OR('Tabel 1 F'!G237<5,'Tabel 2 F'!J239<0.5),"-",IFERROR('Tabel 2 F'!J239/'Tabel 1 F'!G237*100,"-")) -> -
A240: Dyrlæge | C240: =IF(OR('Tabel 1 F'!C238<5,'Tabel 2 F'!C240<0.5),"-",IFERROR('Tabel 2 F'!C240/'Tabel 1 F'!C238*100,"-")) -> - | D240: =IF(OR('Tabel 1 F'!C238<5,'Tabel 2 F'!D240<0.5),"-",IFERROR('Tabel 2 F'!D240/'Tabel 1 F'!C238*100,"-")) -> - | F240: =IF(OR('Tabel 1 F'!E238<5,'Tabel 2 F'!F240<0.5),"-",IFERROR('Tabel 2 F'!F240/'Tabel 1 F'!E238*100,"-")) -> - | G240: =IF(OR('Tabel 1 F'!E238<5,'Tabel 2 F'!G240<0.5),"-",IFERROR('Tabel 2 F'!G240/'Tabel 1 F'!E238*100,"-")) -> - | I240: =IF(OR('Tabel 1 F'!G238<5,'Tabel 2 F'!I240<0.5),"-",IFERROR('Tabel 2 F'!I240/'Tabel 1 F'!G238*100,"-")) -> - | J240: =IF(OR('Tabel 1 F'!G238<5,'Tabel 2 F'!J240<0.5),"-",IFERROR('Tabel 2 F'!J240/'Tabel 1 F'!G238*100,"-")) -> -
... 296 more rows

Sheet Tabel 4F F
A1: ='[1]Tabel 4F F DATA'!L1 -> Tabel 4. Antal forsikrede - aldersfordelt
A3: ='[1]Tabel 4F F DATA'!L3 -> Fyn
C5: ='[1]Tabel 4F F DATA'!N5 -> Under 30 år | D5: ='[1]Tabel 4F F DATA'!O5 -> 30 - 39 år | E5: ='[1]Tabel 4F F DATA'!P5 -> 40 - 49 år | F5: ='[1]Tabel 4F F DATA'!Q5 -> 50 - 59 år | G5: ='[1]Tabel 4F F DATA'!R5 -> Over 60 år | I5: ='[1]Tabel 4F F DATA'!T5 -> I alt
A7: ='[1]Tabel 4F F DATA'!L7 -> Civ. ing. | C7: ='[1]Tabel 4F F DATA'!N7 -> 472 | D7: ='[1]Tabel 4F F DATA'!O7 -> 524 | E7: ='[1]Tabel 4F F DATA'!P7 -> 312 | F7: ='[1]Tabel 4F F DATA'!Q7 -> 156 | G7: ='[1]Tabel 4F F DATA'!R7 -> 50 | I7: ='[1]Tabel 4F F DATA'!T7 -> 1514
A8: ='[1]Tabel 4F F DATA'!L8 -> Diplom ing. | C8: ='[1]Tabel 4F F DATA'!N8 -> 459 | D8: ='[1]Tabel 4F F DATA'!O8 -> 654 | E8: ='[1]Tabel 4F F DATA'!P8 -> 795 | F8: ='[1]Tabel 4F F DATA'!Q8 -> 1006 | G8: ='[1]Tabel 4F F DATA'!R8 -> 363 | I8: ='[1]Tabel 4F F DATA'!T8 -> 3277
A9: ='[1]Tabel 4F F DATA'!L9 -> Cand. Scient. Tek. | C9: ='[1]Tabel 4F F DATA'!N9 -> 494 | D9: ='[1]Tabel 4F F DATA'!O9 -> 598 | E9: ='[1]Tabel 4F F DATA'!P9 -> 143 | F9: ='[1]Tabel 4F F DATA'!Q9 -> 52 | G9: ='[1]Tabel 4F F DATA'!R9 -> 6 | I9: ='[1]Tabel 4F F DATA'!T9 -> 1293
A10: ='[1]Tabel 4F F DATA'!L10 -> MA. Hum. | C10: ='[1]Tabel 4F F DATA'!N10 -> 507 | D10: ='[1]Tabel 4F F DATA'!O10 -> 1090 | E10: ='[1]Tabel 4F F DATA'!P10 -> 1108 | F10: ='[1]Tabel 4F F DATA'!Q10 -> 483 | G10: ='[1]Tabel 4F F DATA'!R10 -> 178 | I10: ='[1]Tabel 4F F DATA'!T10 -> 3366
A11: ='[1]Tabel 4F F DATA'!L11 -> MA. Nat. | C11: ='[1]Tabel 4F F DATA'!N11 -> 136 | D11: ='[1]Tabel 4F F DATA'!O11 -> 278 | E11: ='[1]Tabel 4F F DATA'!P11 -> 390 | F11: ='[1]Tabel 4F F DATA'!Q11 -> 272 | G11: ='[1]Tabel 4F F DATA'!R11 -> 119 | I11: ='[1]Tabel 4F F DATA'!T11 -> 1195
A12: ='[1]Tabel 4F F DATA'!L12 -> MA. Ph.d. | C12: ='[1]Tabel 4F F DATA'!N12 -> 2 | D12: ='[1]Tabel 4F F DATA'!O12 -> 39 | E12: ='[1]Tabel 4F F DATA'!P12 -> 68 | F12: ='[1]Tabel 4F F DATA'!Q12 -> 41 | G12: ='[1]Tabel 4F F DATA'!R12 -> 7 | I12: ='[1]Tabel 4F F DATA'!T12 -> 157
A13: ='[1]Tabel 4F F DATA'!L13 -> MA. Samf. | C13: ='[1]Tabel 4F F DATA'!N13 -> 48 | D13: ='[1]Tabel 4F F DATA'!O13 -> 116 | E13: ='[1]Tabel 4F F DATA'!P13 -> 26 | F13: ='[1]Tabel 4F F DATA'!Q13 -> 11 | G13: ='[1]Tabel 4F F DATA'!R13 -> 1 | I13: ='[1]Tabel 4F F DATA'!T13 -> 202
A14: ='[1]Tabel 4F F DATA'!L14 -> Øvrige Mag. | C14: ='[1]Tabel 4F F DATA'!N14 -> 23 | D14: ='[1]Tabel 4F F DATA'!O14 -> 46 | E14: ='[1]Tabel 4F F DATA'!P14 -> 60 | F14: ='[1]Tabel 4F F DATA'!Q14 -> 64 | G14: ='[1]Tabel 4F F DATA'!R14 -> 31 | I14: ='[1]Tabel 4F F DATA'!T14 -> 224
A15: ='[1]Tabel 4F F DATA'!L15 -> Agronom | C15: ='[1]Tabel 4F F DATA'!N15 -> 4 | D15: ='[1]Tabel 4F F DATA'!O15 -> 16 | E15: ='[1]Tabel 4F F DATA'!P15 -> 34 | F15: ='[1]Tabel 4F F DATA'!Q15 -> 58 | G15: ='[1]Tabel 4F F DATA'!R15 -> 31 | I15: ='[1]Tabel 4F F DATA'!T15 -> 143
A16: ='[1]Tabel 4F F DATA'!L16 -> Landsk. Arkt. | C16: ='[1]Tabel 4F F DATA'!N16 -> 3 | D16: ='[1]Tabel 4F F DATA'!O16 -> 9 | E16: ='[1]Tabel 4F F DATA'!P16 -> 11 | F16: ='[1]Tabel 4F F DATA'!Q16 -> 8 | G16: ='[1]Tabel 4F F DATA'!R16 -> 1 | I16: ='[1]Tabel 4F F DATA'!T16 -> 32
A17: ='[1]Tabel 4F F DATA'!L17 -> Hortonom | C17: ='[1]Tabel 4F F DATA'!N17 -> 0 | D17: ='[1]Tabel 4F F DATA'!O17 -> 1 | E17: ='[1]Tabel 4F F DATA'!P17 -> 7 | F17: ='[1]Tabel 4F F DATA'!Q17 -> 18 | G17: ='[1]Tabel 4F F DATA'!R17 -> 10 | I17: ='[1]Tabel 4F F DATA'!T17 -> 36
A18: ='[1]Tabel 4F F DATA'!L18 -> Forstkand. | C18: ='[1]Tabel 4F F DATA'!N18 -> 3 | D18: ='[1]Tabel 4F F DATA'!O18 -> 6 | E18: ='[1]Tabel 4F F DATA'!P18 -> 10 | F18: ='[1]Tabel 4F F DATA'!Q18 -> 4 | G18: ='[1]Tabel 4F F DATA'!R18 -> 4 | I18: ='[1]Tabel 4F F DATA'!T18 -> 27
A19: ='[1]Tabel 4F F DATA'!L19 -> Jordbrugsakad. | C19: ='[1]Tabel 4F F DATA'!N19 -> 10 | D19: ='[1]Tabel 4F F DATA'!O19 -> 32 | E19: ='[1]Tabel 4F F DATA'!P19 -> 62 | F19: ='[1]Tabel 4F F DATA'!Q19 -> 88 | G19: ='[1]Tabel 4F F DATA'!R19 -> 46 | I19: ='[1]Tabel 4F F DATA'!T19 -> 238
A20: ='[1]Tabel 4F F DATA'!L20 -> Mejeriing. | C20: ='[1]Tabel 4F F DATA'!N20 -> 0 | D20: ='[1]Tabel 4F F DATA'!O20 -> 1 | E20: ='[1]Tabel 4F F DATA'!P20 -> 4 | F20: ='[1]Tabel 4F F DATA'!Q20 -> 10 | G20: ='[1]Tabel 4F F DATA'!R20 -> 0 | I20: ='[1]Tabel 4F F DATA'!T20 -> 15
A21: ='[1]Tabel 4F F DATA'!L21 -> Levn.m.kand. | C21: ='[1]Tabel 4F F DATA'!N21 -> 2 | D21: ='[1]Tabel 4F F DATA'!O21 -> 11 | E21: ='[1]Tabel 4F F DATA'!P21 -> 1 | F21: ='[1]Tabel 4F F DATA'!Q21 -> 0 | G21: ='[1]Tabel 4F F DATA'!R21 -> 0 | I21: ='[1]Tabel 4F F DATA'!T21 -> 14
A22: ='[1]Tabel 4F F DATA'!L22 -> Dyrlæge | C22: ='[1]Tabel 4F F DATA'!N22 -> 17 | D22: ='[1]Tabel 4F F DATA'!O22 -> 50 | E22: ='[1]Tabel 4F F DATA'!P22 -> 37 | F22: ='[1]Tabel 4F F DATA'!Q22 -> 33 | G22: ='[1]Tabel 4F F DATA'!R22 -> 5 | I22: ='[1]Tabel 4F F DATA'!T22 -> 142
A23: ='[1]Tabel 4F F DATA'!L23 -> Farmaceut | C23: ='[1]Tabel 4F F DATA'!N23 -> 96 | D23: ='[1]Tabel 4F F DATA'!O23 -> 109 | E23: ='[1]Tabel 4F F DATA'!P23 -> 54 | F23: ='[1]Tabel 4F F DATA'!Q23 -> 22 | G23: ='[1]Tabel 4F F DATA'!R23 -> 9 | I23: ='[1]Tabel 4F F DATA'!T23 -> 290
A24: ='[1]Tabel 4F F DATA'!L24 -> Læge | C24: ='[1]Tabel 4F F DATA'!N24 -> 219 | D24: ='[1]Tabel 4F F DATA'!O24 -> 568 | E24: ='[1]Tabel 4F F DATA'!P24 -> 285 | F24: ='[1]Tabel 4F F DATA'!Q24 -> 171 | G24: ='[1]Tabel 4F F DATA'!R24 -> 67 | I24: ='[1]Tabel 4F F DATA'!T24 -> 1310
A25: ='[1]Tabel 4F F DATA'!L25 -> Tandlæge | C25: ='[1]Tabel 4F F DATA'!N25 -> 21 | D25: ='[1]Tabel 4F F DATA'!O25 -> 31 | E25: ='[1]Tabel 4F F DATA'!P25 -> 27 | F25: ='[1]Tabel 4F F DATA'!Q25 -> 18 | G25: ='[1]Tabel 4F F DATA'!R25 -> 14 | I25: ='[1]Tabel 4F F DATA'!T25 -> 111
A26: ='[1]Tabel 4F F DATA'!L26 -> Arkitekt | C26: ='[1]Tabel 4F F DATA'!N26 -> 7 | D26: ='[1]Tabel 4F F DATA'!O26 -> 29 | E26: ='[1]Tabel 4F F DATA'!P26 -> 47 | F26: ='[1]Tabel 4F F DATA'!Q26 -> 34 | G26: ='[1]Tabel 4F F DATA'!R26 -> 27 | I26: ='[1]Tabel 4F F DATA'!T26 -> 144
A27: ='[1]Tabel 4F F DATA'!L27 -> Landinspek. | C27: ='[1]Tabel 4F F DATA'!N27 -> 5 | D27: ='[1]Tabel 4F F DATA'!O27 -> 13 | E27: ='[1]Tabel 4F F DATA'!P27 -> 13 | F27: ='[1]Tabel 4F F DATA'!Q27 -> 23 | G27: ='[1]Tabel 4F F DATA'!R27 -> 10 | I27: ='[1]Tabel 4F F DATA'!T27 -> 64
A28: ='[1]Tabel 4F F DATA'!L28 -> Bibliotekar | C28: ='[1]Tabel 4F F DATA'!N28 -> 5 | D28: ='[1]Tabel 4F F DATA'!O28 -> 39 | E28: ='[1]Tabel 4F F DATA'!P28 -> 65 | F28: ='[1]Tabel 4F F DATA'!Q28 -> 55 | G28: ='[1]Tabel 4F F DATA'!R28 -> 38 | I28: ='[1]Tabel 4F F DATA'!T28 -> 202
A29: ='[1]Tabel 4F F DATA'!L29 -> Musikudd. | C29: ='[1]Tabel 4F F DATA'!N29 -> 0 | D29: ='[1]Tabel 4F F DATA'!O29 -> 18 | E29: ='[1]Tabel 4F F DATA'!P29 -> 16 | F29: ='[1]Tabel 4F F DATA'!Q29 -> 35 | G29: ='[1]Tabel 4F F DATA'!R29 -> 22 | I29: ='[1]Tabel 4F F DATA'!T29 -> 91
A30: ='[1]Tabel 4F F DATA'!L30 -> Teolog | C30: ='[1]Tabel 4F F DATA'!N30 -> 3 | D30: ='[1]Tabel 4F F DATA'!O30 -> 14 | E30: ='[1]Tabel 4F F DATA'!P30 -> 37 | F30: ='[1]Tabel 4F F DATA'!Q30 -> 43 | G30: ='[1]Tabel 4F F DATA'!R30 -> 21 | I30: ='[1]Tabel 4F F DATA'!T30 -> 118
A31: ='[1]Tabel 4F F DATA'!L31 -> Psykolog | C31: ='[1]Tabel 4F F DATA'!N31 -> 139 | D31: ='[1]Tabel 4F F DATA'!O31 -> 211 | E31: ='[1]Tabel 4F F DATA'!P31 -> 123 | F31: ='[1]Tabel 4F F DATA'!Q31 -> 65 | G31: ='[1]Tabel 4F F DATA'!R31 -> 32 | I31: ='[1]Tabel 4F F DATA'!T31 -> 570
A32: ='[1]Tabel 4F F DATA'!L32 -> Jurist | C32: ='[1]Tabel 4F F DATA'!N32 -> 89 | D32: ='[1]Tabel 4F F DATA'!O32 -> 264 | E32: ='[1]Tabel 4F F DATA'!P32 -> 163 | F32: ='[1]Tabel 4F F DATA'!Q32 -> 78 | G32: ='[1]Tabel 4F F DATA'!R32 -> 37 | I32: ='[1]Tabel 4F F DATA'!T32 -> 631
A33: ='[1]Tabel 4F F DATA'!L33 -> Økonom | C33: ='[1]Tabel 4F F DATA'!N33 -> 141 | D33: ='[1]Tabel 4F F DATA'!O33 -> 170 | E33: ='[1]Tabel 4F F DATA'!P33 -> 147 | F33: ='[1]Tabel 4F F DATA'!Q33 -> 115 | G33: ='[1]Tabel 4F F DATA'!R33 -> 22 | I33: ='[1]Tabel 4F F DATA'!T33 -> 595
A34: ='[1]Tabel 4F F DATA'!L34 -> Samf. Adm. | C34: ='[1]Tabel 4F F DATA'!N34 -> 275 | D34: ='[1]Tabel 4F F DATA'!O34 -> 593 | E34: ='[1]Tabel 4F F DATA'!P34 -> 376 | F34: ='[1]Tabel 4F F DATA'!Q34 -> 220 | G34: ='[1]Tabel 4F F DATA'!R34 -> 51 | I34: ='[1]Tabel 4F F DATA'!T34 -> 1515
A35: ='[1]Tabel 4F F DATA'!L35 -> Cand. Merc. | C35: ='[1]Tabel 4F F DATA'!N35 -> 411 | D35: ='[1]Tabel 4F F DATA'!O35 -> 743 | E35: ='[1]Tabel 4F F DATA'!P35 -> 344 | F35: ='[1]Tabel 4F F DATA'!Q35 -> 279 | G35: ='[1]Tabel 4F F DATA'!R35 -> 49 | I35: ='[1]Tabel 4F F DATA'!T35 -> 1826
A36: ='[1]Tabel 4F F DATA'!L36 -> HA | C36: ='[1]Tabel 4F F DATA'!N36 -> 110 | D36: ='[1]Tabel 4F F DATA'!O36 -> 90 | E36: ='[1]Tabel 4F F DATA'!P36 -> 56 | F36: ='[1]Tabel 4F F DATA'!Q36 -> 113 | G36: ='[1]Tabel 4F F DATA'!R36 -> 42 | I36: ='[1]Tabel 4F F DATA'!T36 -> 411
A37: ='[1]Tabel 4F F DATA'!L37 -> HD | C37: ='[1]Tabel 4F F DATA'!N37 -> 32 | D37: ='[1]Tabel 4F F DATA'!O37 -> 57 | E37: ='[1]Tabel 4F F DATA'!P37 -> 50 | F37: ='[1]Tabel 4F F DATA'!Q37 -> 108 | G37: ='[1]Tabel 4F F DATA'!R37 -> 45 | I37: ='[1]Tabel 4F F DATA'!T37 -> 292
A38: ='[1]Tabel 4F F DATA'!L38 -> Komm. og Sprog | C38: ='[1]Tabel 4F F DATA'!N38 -> 77 | D38: ='[1]Tabel 4F F DATA'!O38 -> 125 | E38: ='[1]Tabel 4F F DATA'!P38 -> 112 | F38: ='[1]Tabel 4F F DATA'!Q38 -> 81 | G38: ='[1]Tabel 4F F DATA'!R38 -> 45 | I38: ='[1]Tabel 4F F DATA'!T38 -> 440
A39: ='[1]Tabel 4F F DATA'!L39 -> Bygninskonst. | C39: ='[1]Tabel 4F F DATA'!N39 -> 172 | D39: ='[1]Tabel 4F F DATA'!O39 -> 365 | E39: ='[1]Tabel 4F F DATA'!P39 -> 223 | F39: ='[1]Tabel 4F F DATA'!Q39 -> 106 | G39: ='[1]Tabel 4F F DATA'!R39 -> 29 | I39: ='[1]Tabel 4F F DATA'!T39 -> 895
A40: ='[1]Tabel 4F F DATA'!L40 -> Cand. IT. | C40: ='[1]Tabel 4F F DATA'!N40 -> 40 | D40: ='[1]Tabel 4F F DATA'!O40 -> 88 | E40: ='[1]Tabel 4F F DATA'!P40 -> 55 | F40: ='[1]Tabel 4F F DATA'!Q40 -> 5 | G40: ='[1]Tabel 4F F DATA'!R40 -> 1 | I40: ='[1]Tabel 4F F DATA'!T40 -> 189
A41: ='[1]Tabel 4F F DATA'!L41 -> Bac. Samf. | C41: ='[1]Tabel 4F F DATA'!N41 -> 24 | D41: ='[1]Tabel 4F F DATA'!O41 -> 19 | E41: ='[1]Tabel 4F F DATA'!P41 -> 15 | F41: ='[1]Tabel 4F F DATA'!Q41 -> 12 | G41: ='[1]Tabel 4F F DATA'!R41 -> 2 | I41: ='[1]Tabel 4F F DATA'!T41 -> 72
A42: ='[1]Tabel 4F F DATA'!L42 -> Bac. Hum. | C42: ='[1]Tabel 4F F DATA'!N42 -> 114 | D42: ='[1]Tabel 4F F DATA'!O42 -> 80 | E42: ='[1]Tabel 4F F DATA'!P42 -> 77 | F42: ='[1]Tabel 4F F DATA'!Q42 -> 50 | G42: ='[1]Tabel 4F F DATA'!R42 -> 15 | I42: ='[1]Tabel 4F F DATA'!T42 -> 336
A43: ='[1]Tabel 4F F DATA'!L43 -> Bac. Nat. | C43: ='[1]Tabel 4F F DATA'!N43 -> 125 | D43: ='[1]Tabel 4F F DATA'!O43 -> 70 | E43: ='[1]Tabel 4F F DATA'!P43 -> 26 | F43: ='[1]Tabel 4F F DATA'!Q43 -> 14 | G43: ='[1]Tabel 4F F DATA'!R43 -> 3 | I43: ='[1]Tabel 4F F DATA'!T43 -> 238
A44: ='[1]Tabel 4F F DATA'!L44 -> Andre | C44: ='[1]Tabel 4F F DATA'!N44 -> 243 | D44: ='[1]Tabel 4F F DATA'!O44 -> 385 | E44: ='[1]Tabel 4F F DATA'!P44 -> 317 | F44: ='[1]Tabel 4F F DATA'!Q44 -> 238 | G44: ='[1]Tabel 4F F DATA'!R44 -> 139 | I44: ='[1]Tabel 4F F DATA'!T44 -> 1322
A46: ='[1]Tabel 4F F DATA'!L46 -> Total | C46: ='[1]Tabel 4F F DATA'!N46 -> 4518 | D46: ='[1]Tabel 4F F DATA'!O46 -> 7520 | E46: ='[1]Tabel 4F F DATA'!P46 -> 5634 | F46: ='[1]Tabel 4F F DATA'!Q46 -> 4101 | G46: ='[1]Tabel 4F F DATA'!R46 -> 1526 | I46: ='[1]Tabel 4F F DATA'!T46 -> 23299
A48: ='[1]Tabel 4F F DATA'!L48 -> Ingeniører i alt | C48: ='[1]Tabel 4F F DATA'!N48 -> 931 | D48: ='[1]Tabel 4F F DATA'!O48 -> 1178 | E48: ='[1]Tabel 4F F DATA'!P48 -> 1107 | F48: ='[1]Tabel 4F F DATA'!Q48 -> 1162 | G48: ='[1]Tabel 4F F DATA'!R48 -> 413 | I48: ='[1]Tabel 4F F DATA'!T48 -> 4791
A49: ='[1]Tabel 4F F DATA'!L49 -> Magistre i alt | C49: ='[1]Tabel 4F F DATA'!N49 -> 716 | D49: ='[1]Tabel 4F F DATA'!O49 -> 1569 | E49: ='[1]Tabel 4F F DATA'!P49 -> 1652 | F49: ='[1]Tabel 4F F DATA'!Q49 -> 871 | G49: ='[1]Tabel 4F F DATA'!R49 -> 336 | I49: ='[1]Tabel 4F F DATA'!T49 -> 5144
A50: ='[1]Tabel 4F F DATA'!L50 -> DJØF'ere i alt | C50: ='[1]Tabel 4F F DATA'!N50 -> 1026 | D50: ='[1]Tabel 4F F DATA'!O50 -> 1860 | E50: ='[1]Tabel 4F F DATA'!P50 -> 1086 | F50: ='[1]Tabel 4F F DATA'!Q50 -> 805 | G50: ='[1]Tabel 4F F DATA'!R50 -> 201 | I50: ='[1]Tabel 4F F DATA'!T50 -> 4978
A57: ='[1]Tabel 4F F DATA'!L55 -> Middelfart
C59: ='[1]Tabel 4F F DATA'!N57 -> Under 30 år | D59: ='[1]Tabel 4F F DATA'!O57 -> 30 - 39 år | E59: ='[1]Tabel 4F F DATA'!P57 -> 40 - 49 år | F59: ='[1]Tabel 4F F DATA'!Q57 -> 50 - 59 år | G59: ='[1]Tabel 4F F DATA'!R57 -> Over 60 år | I59: ='[1]Tabel 4F F DATA'!T57 -> I alt
A61: ='[1]Tabel 4F F DATA'!L59 -> Civ. ing. | C61: ='[1]Tabel 4F F DATA'!N59 -> 9 | D61: ='[1]Tabel 4F F DATA'!O59 -> 31 | E61: ='[1]Tabel 4F F DATA'!P59 -> 39 | F61: ='[1]Tabel 4F F DATA'!Q59 -> 21 | G61: ='[1]Tabel 4F F DATA'!R59 -> 7 | I61: ='[1]Tabel 4F F DATA'!T59 -> 107
A62: ='[1]Tabel 4F F DATA'!L60 -> Diplom ing. | C62: ='[1]Tabel 4F F DATA'!N60 -> 22 | D62: ='[1]Tabel 4F F DATA'!O60 -> 58 | E62: ='[1]Tabel 4F F DATA'!P60 -> 68 | F62: ='[1]Tabel 4F F DATA'!Q60 -> 113 | G62: ='[1]Tabel 4F F DATA'!R60 -> 37 | I62: ='[1]Tabel 4F F DATA'!T60 -> 298
A63: ='[1]Tabel 4F F DATA'!L61 -> Cand. Scient. Tek. | C63: ='[1]Tabel 4F F DATA'!N61 -> 12 | D63: ='[1]Tabel 4F F DATA'!O61 -> 28 | E63: ='[1]Tabel 4F F DATA'!P61 -> 19 | F63: ='[1]Tabel 4F F DATA'!Q61 -> 5 | G63: ='[1]Tabel 4F F DATA'!R61 -> 0 | I63: ='[1]Tabel 4F F DATA'!T61 -> 64
A64: ='[1]Tabel 4F F DATA'!L62 -> MA. Hum. | C64: ='[1]Tabel 4F F DATA'!N62 -> 16 | D64: ='[1]Tabel 4F F DATA'!O62 -> 56 | E64: ='[1]Tabel 4F F DATA'!P62 -> 70 | F64: ='[1]Tabel 4F F DATA'!Q62 -> 26 | G64: ='[1]Tabel 4F F DATA'!R62 -> 10 | I64: ='[1]Tabel 4F F DATA'!T62 -> 178
A65: ='[1]Tabel 4F F DATA'!L63 -> MA. Nat. | C65: ='[1]Tabel 4F F DATA'!N63 -> 10 | D65: ='[1]Tabel 4F F DATA'!O63 -> 12 | E65: ='[1]Tabel 4F F DATA'!P63 -> 29 | F65: ='[1]Tabel 4F F DATA'!Q63 -> 16 | G65: ='[1]Tabel 4F F DATA'!R63 -> 6 | I65: ='[1]Tabel 4F F DATA'!T63 -> 73
A66: ='[1]Tabel 4F F DATA'!L64 -> MA. Ph.d. | C66: ='[1]Tabel 4F F DATA'!N64 -> 0 | D66: ='[1]Tabel 4F F DATA'!O64 -> 1 | E66: ='[1]Tabel 4F F DATA'!P64 -> 3 | F66: ='[1]Tabel 4F F DATA'!Q64 -> 2 | G66: ='[1]Tabel 4F F DATA'!R64 -> 0 | I66: ='[1]Tabel 4F F DATA'!T64 -> 6
A67: ='[1]Tabel 4F F DATA'!L65 -> MA. Samf. | C67: ='[1]Tabel 4F F DATA'!N65 -> 3 | D67: ='[1]Tabel 4F F DATA'!O65 -> 14 | E67: ='[1]Tabel 4F F DATA'!P65 -> 2 | F67: ='[1]Tabel 4F F DATA'!Q65 -> 2 | G67: ='[1]Tabel 4F F DATA'!R65 -> 0 | I67: ='[1]Tabel 4F F DATA'!T65 -> 21
A68: ='[1]Tabel 4F F DATA'!L66 -> Øvrige Mag. | C68: ='[1]Tabel 4F F DATA'!N66 -> 0 | D68: ='[1]Tabel 4F F DATA'!O66 -> 3 | E68: ='[1]Tabel 4F F DATA'!P66 -> 4 | F68: ='[1]Tabel 4F F DATA'!Q66 -> 2 | G68: ='[1]Tabel 4F F DATA'!R66 -> 3 | I68: ='[1]Tabel 4F F DATA'!T66 -> 12
A69: ='[1]Tabel 4F F DATA'!L67 -> Agronom | C69: ='[1]Tabel 4F F DATA'!N67 -> 2 | D69: ='[1]Tabel 4F F DATA'!O67 -> 0 | E69: ='[1]Tabel 4F F DATA'!P67 -> 8 | F69: ='[1]Tabel 4F F DATA'!Q67 -> 13 | G69: ='[1]Tabel 4F F DATA'!R67 -> 7 | I69: ='[1]Tabel 4F F DATA'!T67 -> 30
A70: ='[1]Tabel 4F F DATA'!L68 -> Landsk. Arkt. | C70: ='[1]Tabel 4F F DATA'!N68 -> 0 | D70: ='[1]Tabel 4F F DATA'!O68 -> 0 | E70: ='[1]Tabel 4F F DATA'!P68 -> 1 | F70: ='[1]Tabel 4F F DATA'!Q68 -> 0 | G70: ='[1]Tabel 4F F DATA'!R68 -> 1 | I70: ='[1]Tabel 4F F DATA'!T68 -> 2
A71: ='[1]Tabel 4F F DATA'!L69 -> Hortonom | C71: ='[1]Tabel 4F F DATA'!N69 -> 0 | D71: ='[1]Tabel 4F F DATA'!O69 -> 0 | E71: ='[1]Tabel 4F F DATA'!P69 -> 1 | F71: ='[1]Tabel 4F F DATA'!Q69 -> 2 | G71: ='[1]Tabel 4F F DATA'!R69 -> 1 | I71: ='[1]Tabel 4F F DATA'!T69 -> 4
A72: ='[1]Tabel 4F F DATA'!L70 -> Forstkand. | C72: ='[1]Tabel 4F F DATA'!N70 -> 1 | D72: ='[1]Tabel 4F F DATA'!O70 -> 0 | E72: ='[1]Tabel 4F F DATA'!P70 -> 1 | F72: ='[1]Tabel 4F F DATA'!Q70 -> 0 | G72: ='[1]Tabel 4F F DATA'!R70 -> 0 | I72: ='[1]Tabel 4F F DATA'!T70 -> 2
A73: ='[1]Tabel 4F F DATA'!L71 -> Jordbrugsakad. | C73: ='[1]Tabel 4F F DATA'!N71 -> 3 | D73: ='[1]Tabel 4F F DATA'!O71 -> 0 | E73: ='[1]Tabel 4F F DATA'!P71 -> 11 | F73: ='[1]Tabel 4F F DATA'!Q71 -> 15 | G73: ='[1]Tabel 4F F DATA'!R71 -> 9 | I73: ='[1]Tabel 4F F DATA'!T71 -> 38
A74: ='[1]Tabel 4F F DATA'!L72 -> Mejeriing. | C74: ='[1]Tabel 4F F DATA'!N72 -> 0 | D74: ='[1]Tabel 4F F DATA'!O72 -> 0 | E74: ='[1]Tabel 4F F DATA'!P72 -> 1 | F74: ='[1]Tabel 4F F DATA'!Q72 -> 3 | G74: ='[1]Tabel 4F F DATA'!R72 -> 0 | I74: ='[1]Tabel 4F F DATA'!T72 -> 4
A75: ='[1]Tabel 4F F DATA'!L73 -> Levn.m.kand. | C75: ='[1]Tabel 4F F DATA'!N73 -> 0 | D75: ='[1]Tabel 4F F DATA'!O73 -> 2 | E75: ='[1]Tabel 4F F DATA'!P73 -> 0 | F75: ='[1]Tabel 4F F DATA'!Q73 -> 0 | G75: ='[1]Tabel 4F F DATA'!R73 -> 0 | I75: ='[1]Tabel 4F F DATA'!T73 -> 2
A76: ='[1]Tabel 4F F DATA'!L74 -> Dyrlæge | C76: ='[1]Tabel 4F F DATA'!N74 -> 3 | D76: ='[1]Tabel 4F F DATA'!O74 -> 7 | E76: ='[1]Tabel 4F F DATA'!P74 -> 6 | F76: ='[1]Tabel 4F F DATA'!Q74 -> 2 | G76: ='[1]Tabel 4F F DATA'!R74 -> 0 | I76: ='[1]Tabel 4F F DATA'!T74 -> 18
A77: ='[1]Tabel 4F F DATA'!L75 -> Farmaceut | C77: ='[1]Tabel 4F F DATA'!N75 -> 2 | D77: ='[1]Tabel 4F F DATA'!O75 -> 5 | E77: ='[1]Tabel 4F F DATA'!P75 -> 3 | F77: ='[1]Tabel 4F F DATA'!Q75 -> 1 | G77: ='[1]Tabel 4F F DATA'!R75 -> 1 | I77: ='[1]Tabel 4F F DATA'!T75 -> 12
A78: ='[1]Tabel 4F F DATA'!L76 -> Læge | C78: ='[1]Tabel 4F F DATA'!N76 -> 8 | D78: ='[1]Tabel 4F F DATA'!O76 -> 53 | E78: ='[1]Tabel 4F F DATA'!P76 -> 28 | F78: ='[1]Tabel 4F F DATA'!Q76 -> 15 | G78: ='[1]Tabel 4F F DATA'!R76 -> 5 | I78: ='[1]Tabel 4F F DATA'!T76 -> 109
A79: ='[1]Tabel 4F F DATA'!L77 -> Tandlæge | C79: ='[1]Tabel 4F F DATA'!N77 -> 0 | D79: ='[1]Tabel 4F F DATA'!O77 -> 2 | E79: ='[1]Tabel 4F F DATA'!P77 -> 4 | F79: ='[1]Tabel 4F F DATA'!Q77 -> 3 | G79: ='[1]Tabel 4F F DATA'!R77 -> 2 | I79: ='[1]Tabel 4F F DATA'!T77 -> 11
A80: ='[1]Tabel 4F F DATA'!L78 -> Arkitekt | C80: ='[1]Tabel 4F F DATA'!N78 -> 1 | D80: ='[1]Tabel 4F F DATA'!O78 -> 0 | E80: ='[1]Tabel 4F F DATA'!P78 -> 7 | F80: ='[1]Tabel 4F F DATA'!Q78 -> 4 | G80: ='[1]Tabel 4F F DATA'!R78 -> 2 | I80: ='[1]Tabel 4F F DATA'!T78 -> 14
A81: ='[1]Tabel 4F F DATA'!L79 -> Landinspek. | C81: ='[1]Tabel 4F F DATA'!N79 -> 0 | D81: ='[1]Tabel 4F F DATA'!O79 -> 2 | E81: ='[1]Tabel 4F F DATA'!P79 -> 2 | F81: ='[1]Tabel 4F F DATA'!Q79 -> 8 | G81: ='[1]Tabel 4F F DATA'!R79 -> 1 | I81: ='[1]Tabel 4F F DATA'!T79 -> 13
A82: ='[1]Tabel 4F F DATA'!L80 -> Bibliotekar | C82: ='[1]Tabel 4F F DATA'!N80 -> 0 | D82: ='[1]Tabel 4F F DATA'!O80 -> 4 | E82: ='[1]Tabel 4F F DATA'!P80 -> 8 | F82: ='[1]Tabel 4F F DATA'!Q80 -> 2 | G82: ='[1]Tabel 4F F DATA'!R80 -> 5 | I82: ='[1]Tabel 4F F DATA'!T80 -> 19
A83: ='[1]Tabel 4F F DATA'!L81 -> Musikudd. | C83: ='[1]Tabel 4F F DATA'!N81 -> 0 | D83: ='[1]Tabel 4F F DATA'!O81 -> 1 | E83: ='[1]Tabel 4F F DATA'!P81 -> 0 | F83: ='[1]Tabel 4F F DATA'!Q81 -> 2 | G83: ='[1]Tabel 4F F DATA'!R81 -> 3 | I83: ='[1]Tabel 4F F DATA'!T81 -> 6
A84: ='[1]Tabel 4F F DATA'!L82 -> Teolog | C84: ='[1]Tabel 4F F DATA'!N82 -> 0 | D84: ='[1]Tabel 4F F DATA'!O82 -> 1 | E84: ='[1]Tabel 4F F DATA'!P82 -> 6 | F84: ='[1]Tabel 4F F DATA'!Q82 -> 5 | G84: ='[1]Tabel 4F F DATA'!R82 -> 1 | I84: ='[1]Tabel 4F F DATA'!T82 -> 13
A85: ='[1]Tabel 4F F DATA'!L83 -> Psykolog | C85: ='[1]Tabel 4F F DATA'!N83 -> 4 | D85: ='[1]Tabel 4F F DATA'!O83 -> 15 | E85: ='[1]Tabel 4F F DATA'!P83 -> 16 | F85: ='[1]Tabel 4F F DATA'!Q83 -> 8 | G85: ='[1]Tabel 4F F DATA'!R83 -> 5 | I85: ='[1]Tabel 4F F DATA'!T83 -> 48
A86: ='[1]Tabel 4F F DATA'!L84 -> Jurist | C86: ='[1]Tabel 4F F DATA'!N84 -> 5 | D86: ='[1]Tabel 4F F DATA'!O84 -> 19 | E86: ='[1]Tabel 4F F DATA'!P84 -> 13 | F86: ='[1]Tabel 4F F DATA'!Q84 -> 3 | G86: ='[1]Tabel 4F F DATA'!R84 -> 3 | I86: ='[1]Tabel 4F F DATA'!T84 -> 43
A87: ='[1]Tabel 4F F DATA'!L85 -> Økonom | C87: ='[1]Tabel 4F F DATA'!N85 -> 8 | D87: ='[1]Tabel 4F F DATA'!O85 -> 11 | E87: ='[1]Tabel 4F F DATA'!P85 -> 15 | F87: ='[1]Tabel 4F F DATA'!Q85 -> 14 | G87: ='[1]Tabel 4F F DATA'!R85 -> 1 | I87: ='[1]Tabel 4F F DATA'!T85 -> 49
A88: ='[1]Tabel 4F F DATA'!L86 -> Samf. Adm. | C88: ='[1]Tabel 4F F DATA'!N86 -> 4 | D88: ='[1]Tabel 4F F DATA'!O86 -> 38 | E88: ='[1]Tabel 4F F DATA'!P86 -> 34 | F88: ='[1]Tabel 4F F DATA'!Q86 -> 16 | G88: ='[1]Tabel 4F F DATA'!R86 -> 3 | I88: ='[1]Tabel 4F F DATA'!T86 -> 95
A89: ='[1]Tabel 4F F DATA'!L87 -> Cand. Merc. | C89: ='[1]Tabel 4F F DATA'!N87 -> 13 | D89: ='[1]Tabel 4F F DATA'!O87 -> 58 | E89: ='[1]Tabel 4F F DATA'!P87 -> 43 | F89: ='[1]Tabel 4F F DATA'!Q87 -> 29 | G89: ='[1]Tabel 4F F DATA'!R87 -> 6 | I89: ='[1]Tabel 4F F DATA'!T87 -> 149
A90: ='[1]Tabel 4F F DATA'!L88 -> HA | C90: ='[1]Tabel 4F F DATA'!N88 -> 5 | D90: ='[1]Tabel 4F F DATA'!O88 -> 5 | E90: ='[1]Tabel 4F F DATA'!P88 -> 7 | F90: ='[1]Tabel 4F F DATA'!Q88 -> 15 | G90: ='[1]Tabel 4F F DATA'!R88 -> 3 | I90: ='[1]Tabel 4F F DATA'!T88 -> 35
A91: ='[1]Tabel 4F F DATA'!L89 -> HD | C91: ='[1]Tabel 4F F DATA'!N89 -> 3 | D91: ='[1]Tabel 4F F DATA'!O89 -> 5 | E91: ='[1]Tabel 4F F DATA'!P89 -> 5 | F91: ='[1]Tabel 4F F DATA'!Q89 -> 7 | G91: ='[1]Tabel 4F F DATA'!R89 -> 2 | I91: ='[1]Tabel 4F F DATA'!T89 -> 22
A92: ='[1]Tabel 4F F DATA'!L90 -> Komm. og Sprog | C92: ='[1]Tabel 4F F DATA'!N90 -> 3 | D92: ='[1]Tabel 4F F DATA'!O90 -> 5 | E92: ='[1]Tabel 4F F DATA'!P90 -> 13 | F92: ='[1]Tabel 4F F DATA'!Q90 -> 6 | G92: ='[1]Tabel 4F F DATA'!R90 -> 7 | I92: ='[1]Tabel 4F F DATA'!T90 -> 34
A93: ='[1]Tabel 4F F DATA'!L91 -> Bygningskonst. | C93: ='[1]Tabel 4F F DATA'!N91 -> 9 | D93: ='[1]Tabel 4F F DATA'!O91 -> 36 | E93: ='[1]Tabel 4F F DATA'!P91 -> 18 | F93: ='[1]Tabel 4F F DATA'!Q91 -> 12 | G93: ='[1]Tabel 4F F DATA'!R91 -> 1 | I93: ='[1]Tabel 4F F DATA'!T91 -> 76
A94: ='[1]Tabel 4F F DATA'!L92 -> Cand. IT. | C94: ='[1]Tabel 4F F DATA'!N92 -> 3 | D94: ='[1]Tabel 4F F DATA'!O92 -> 7 | E94: ='[1]Tabel 4F F DATA'!P92 -> 2 | F94: ='[1]Tabel 4F F DATA'!Q92 -> 0 | G94: ='[1]Tabel 4F F DATA'!R92 -> 0 | I94: ='[1]Tabel 4F F DATA'!T92 -> 12
A95: ='[1]Tabel 4F F DATA'!L93 -> Bac. Samf. | C95: ='[1]Tabel 4F F DATA'!N93 -> 1 | D95: ='[1]Tabel 4F F DATA'!O93 -> 1 | E95: ='[1]Tabel 4F F DATA'!P93 -> 1 | F95: ='[1]Tabel 4F F DATA'!Q93 -> 1 | G95: ='[1]Tabel 4F F DATA'!R93 -> 1 | I95: ='[1]Tabel 4F F DATA'!T93 -> 5
A96: ='[1]Tabel 4F F DATA'!L94 -> Bac. Hum. | C96: ='[1]Tabel 4F F DATA'!N94 -> 6 | D96: ='[1]Tabel 4F F DATA'!O94 -> 3 | E96: ='[1]Tabel 4F F DATA'!P94 -> 2 | F96: ='[1]Tabel 4F F DATA'!Q94 -> 4 | G96: ='[1]Tabel 4F F DATA'!R94 -> 0 | I96: ='[1]Tabel 4F F DATA'!T94 -> 15
A97: ='[1]Tabel 4F F DATA'!L95 -> Bac. Nat. | C97: ='[1]Tabel 4F F DATA'!N95 -> 2 | D97: ='[1]Tabel 4F F DATA'!O95 -> 7 | E97: ='[1]Tabel 4F F DATA'!P95 -> 1 | F97: ='[1]Tabel 4F F DATA'!Q95 -> 1 | G97: ='[1]Tabel 4F F DATA'!R95 -> 0 | I97: ='[1]Tabel 4F F DATA'!T95 -> 11
A98: ='[1]Tabel 4F F DATA'!L96 -> Andre | C98: ='[1]Tabel 4F F DATA'!N96 -> 12 | D98: ='[1]Tabel 4F F DATA'!O96 -> 18 | E98: ='[1]Tabel 4F F DATA'!P96 -> 21 | F98: ='[1]Tabel 4F F DATA'!Q96 -> 20 | G98: ='[1]Tabel 4F F DATA'!R96 -> 11 | I98: ='[1]Tabel 4F F DATA'!T96 -> 82
A100: ='[1]Tabel 4F F DATA'!L98 -> Total | C100: ='[1]Tabel 4F F DATA'!N98 -> 167 | D100: ='[1]Tabel 4F F DATA'!O98 -> 508 | E100: ='[1]Tabel 4F F DATA'!P98 -> 501 | F100: ='[1]Tabel 4F F DATA'!Q98 -> 383 | G100: ='[1]Tabel 4F F DATA'!R98 -> 135 | I100: ='[1]Tabel 4F F DATA'!T98 -> 1694
A102: ='[1]Tabel 4F F DATA'!L100 -> Ingeniører i alt | C102: ='[1]Tabel 4F F DATA'!N100 -> 31 | D102: ='[1]Tabel 4F F DATA'!O100 -> 89 | E102: ='[1]Tabel 4F F DATA'!P100 -> 107 | F102: ='[1]Tabel 4F F DATA'!Q100 -> 134 | G102: ='[1]Tabel 4F F DATA'!R100 -> 44 | I102: ='[1]Tabel 4F F DATA'!T100 -> 405
A103: ='[1]Tabel 4F F DATA'!L101 -> Magistre i alt | C103: ='[1]Tabel 4F F DATA'!N101 -> 29 | D103: ='[1]Tabel 4F F DATA'!O101 -> 86 | E103: ='[1]Tabel 4F F DATA'!P101 -> 108 | F103: ='[1]Tabel 4F F DATA'!Q101 -> 48 | G103: ='[1]Tabel 4F F DATA'!R101 -> 19 | I103: ='[1]Tabel 4F F DATA'!T101 -> 290
A104: ='[1]Tabel 4F F DATA'!L102 -> DJØF'ere i alt | C104: ='[1]Tabel 4F F DATA'!N102 -> 35 | D104: ='[1]Tabel 4F F DATA'!O102 -> 131 | E104: ='[1]Tabel 4F F DATA'!P102 -> 112 | F104: ='[1]Tabel 4F F DATA'!Q102 -> 77 | G104: ='[1]Tabel 4F F DATA'!R102 -> 16 | I104: ='[1]Tabel 4F F DATA'!T102 -> 371
A111: ='[1]Tabel 4F F DATA'!L107 -> Assens
C113: ='[1]Tabel 4F F DATA'!N109 -> Under 30 år | D113: ='[1]Tabel 4F F DATA'!O109 -> 30 - 39 år | E113: ='[1]Tabel 4F F DATA'!P109 -> 40 - 49 år | F113: ='[1]Tabel 4F F DATA'!Q109 -> 50 - 59 år | G113: ='[1]Tabel 4F F DATA'!R109 -> Over 60 år | I113: ='[1]Tabel 4F F DATA'!T109 -> I alt
A115: ='[1]Tabel 4F F DATA'!L111 -> Civ. ing. | C115: ='[1]Tabel 4F F DATA'!N111 -> 7 | D115: ='[1]Tabel 4F F DATA'!O111 -> 28 | E115: ='[1]Tabel 4F F DATA'!P111 -> 16 | F115: ='[1]Tabel 4F F DATA'!Q111 -> 20 | G115: ='[1]Tabel 4F F DATA'!R111 -> 3 | I115: ='[1]Tabel 4F F DATA'!T111 -> 74
A116: ='[1]Tabel 4F F DATA'!L112 -> Diplom ing. | C116: ='[1]Tabel 4F F DATA'!N112 -> 8 | D116: ='[1]Tabel 4F F DATA'!O112 -> 41 | E116: ='[1]Tabel 4F F DATA'!P112 -> 70 | F116: ='[1]Tabel 4F F DATA'!Q112 -> 93 | G116: ='[1]Tabel 4F F DATA'!R112 -> 34 | I116: ='[1]Tabel 4F F DATA'!T112 -> 246
A117: ='[1]Tabel 4F F DATA'!L113 -> Cand. Scient. Tek. | C117: ='[1]Tabel 4F F DATA'!N113 -> 8 | D117: ='[1]Tabel 4F F DATA'!O113 -> 22 | E117: ='[1]Tabel 4F F DATA'!P113 -> 9 | F117: ='[1]Tabel 4F F DATA'!Q113 -> 2 | G117: ='[1]Tabel 4F F DATA'!R113 -> 1 | I117: ='[1]Tabel 4F F DATA'!T113 -> 42
A118: ='[1]Tabel 4F F DATA'!L114 -> MA. Hum. | C118: ='[1]Tabel 4F F DATA'!N114 -> 11 | D118: ='[1]Tabel 4F F DATA'!O114 -> 46 | E118: ='[1]Tabel 4F F DATA'!P114 -> 66 | F118: ='[1]Tabel 4F F DATA'!Q114 -> 29 | G118: ='[1]Tabel 4F F DATA'!R114 -> 7 | I118: ='[1]Tabel 4F F DATA'!T114 -> 159
A119: ='[1]Tabel 4F F DATA'!L115 -> MA. Nat. | C119: ='[1]Tabel 4F F DATA'!N115 -> 0 | D119: ='[1]Tabel 4F F DATA'!O115 -> 14 | E119: ='[1]Tabel 4F F DATA'!P115 -> 24 | F119: ='[1]Tabel 4F F DATA'!Q115 -> 15 | G119: ='[1]Tabel 4F F DATA'!R115 -> 6 | I119: ='[1]Tabel 4F F DATA'!T115 -> 59
A120: ='[1]Tabel 4F F DATA'!L116 -> MA. Ph.d. | C120: ='[1]Tabel 4F F DATA'!N116 -> 0 | D120: ='[1]Tabel 4F F DATA'!O116 -> 0 | E120: ='[1]Tabel 4F F DATA'!P116 -> 3 | F120: ='[1]Tabel 4F F DATA'!Q116 -> 1 | G120: ='[1]Tabel 4F F DATA'!R116 -> 0 | I120: ='[1]Tabel 4F F DATA'!T116 -> 4
A121: ='[1]Tabel 4F F DATA'!L117 -> MA. Samf. | C121: ='[1]Tabel 4F F DATA'!N117 -> 0 | D121: ='[1]Tabel 4F F DATA'!O117 -> 3 | E121: ='[1]Tabel 4F F DATA'!P117 -> 1 | F121: ='[1]Tabel 4F F DATA'!Q117 -> 1 | G121: ='[1]Tabel 4F F DATA'!R117 -> 0 | I121: ='[1]Tabel 4F F DATA'!T117 -> 5
A122: ='[1]Tabel 4F F DATA'!L118 -> Øvrige Mag. | C122: ='[1]Tabel 4F F DATA'!N118 -> 0 | D122: ='[1]Tabel 4F F DATA'!O118 -> 0 | E122: ='[1]Tabel 4F F DATA'!P118 -> 3 | F122: ='[1]Tabel 4F F DATA'!Q118 -> 1 | G122: ='[1]Tabel 4F F DATA'!R118 -> 0 | I122: ='[1]Tabel 4F F DATA'!T118 -> 4
A123: ='[1]Tabel 4F F DATA'!L119 -> Agronom | C123: ='[1]Tabel 4F F DATA'!N119 -> 0 | D123: ='[1]Tabel 4F F DATA'!O119 -> 1 | E123: ='[1]Tabel 4F F DATA'!P119 -> 6 | F123: ='[1]Tabel 4F F DATA'!Q119 -> 7 | G123: ='[1]Tabel 4F F DATA'!R119 -> 3 | I123: ='[1]Tabel 4F F DATA'!T119 -> 17
A124: ='[1]Tabel 4F F DATA'!L120 -> Landsk. Arkt. | C124: ='[1]Tabel 4F F DATA'!N120 -> 0 | D124: ='[1]Tabel 4F F DATA'!O120 -> 3 | E124: ='[1]Tabel 4F F DATA'!P120 -> 1 | F124: ='[1]Tabel 4F F DATA'!Q120 -> 3 | G124: ='[1]Tabel 4F F DATA'!R120 -> 0 | I124: ='[1]Tabel 4F F DATA'!T120 -> 7
A125: ='[1]Tabel 4F F DATA'!L121 -> Hortonom | C125: ='[1]Tabel 4F F DATA'!N121 -> 0 | D125: ='[1]Tabel 4F F DATA'!O121 -> 0 | E125: ='[1]Tabel 4F F DATA'!P121 -> 0 | F125: ='[1]Tabel 4F F DATA'!Q121 -> 2 | G125: ='[1]Tabel 4F F DATA'!R121 -> 1 | I125: ='[1]Tabel 4F F DATA'!T121 -> 3
A126: ='[1]Tabel 4F F DATA'!L122 -> Forstkand. | C126: ='[1]Tabel 4F F DATA'!N122 -> 1 | D126: ='[1]Tabel 4F F DATA'!O122 -> 2 | E126: ='[1]Tabel 4F F DATA'!P122 -> 2 | F126: ='[1]Tabel 4F F DATA'!Q122 -> 1 | G126: ='[1]Tabel 4F F DATA'!R122 -> 0 | I126: ='[1]Tabel 4F F DATA'!T122 -> 6
A127: ='[1]Tabel 4F F DATA'!L123 -> Jordbrugsakad. | C127: ='[1]Tabel 4F F DATA'!N123 -> 1 | D127: ='[1]Tabel 4F F DATA'!O123 -> 6 | E127: ='[1]Tabel 4F F DATA'!P123 -> 9 | F127: ='[1]Tabel 4F F DATA'!Q123 -> 13 | G127: ='[1]Tabel 4F F DATA'!R123 -> 4 | I127: ='[1]Tabel 4F F DATA'!T123 -> 33
A128: ='[1]Tabel 4F F DATA'!L124 -> Mejeriing. | C128: ='[1]Tabel 4F F DATA'!N124 -> 0 | D128: ='[1]Tabel 4F F DATA'!O124 -> 0 | E128: ='[1]Tabel 4F F DATA'!P124 -> 0 | F128: ='[1]Tabel 4F F DATA'!Q124 -> 1 | G128: ='[1]Tabel 4F F DATA'!R124 -> 0 | I128: ='[1]Tabel 4F F DATA'!T124 -> 1
A129: ='[1]Tabel 4F F DATA'!L125 -> Levn.m.kand. | C129: ='[1]Tabel 4F F DATA'!N125 -> 0 | D129: ='[1]Tabel 4F F DATA'!O125 -> 2 | E129: ='[1]Tabel 4F F DATA'!P125 -> 0 | F129: ='[1]Tabel 4F F DATA'!Q125 -> 0 | G129: ='[1]Tabel 4F F DATA'!R125 -> 0 | I129: ='[1]Tabel 4F F DATA'!T125 -> 2
A130: ='[1]Tabel 4F F DATA'!L126 -> Dyrlæge | C130: ='[1]Tabel 4F F DATA'!N126 -> 0 | D130: ='[1]Tabel 4F F DATA'!O126 -> 6 | E130: ='[1]Tabel 4F F DATA'!P126 -> 7 | F130: ='[1]Tabel 4F F DATA'!Q126 -> 5 | G130: ='[1]Tabel 4F F DATA'!R126 -> 0 | I130: ='[1]Tabel 4F F DATA'!T126 -> 18
A131: ='[1]Tabel 4F F DATA'!L127 -> Farmaceut | C131: ='[1]Tabel 4F F DATA'!N127 -> 1 | D131: ='[1]Tabel 4F F DATA'!O127 -> 7 | E131: ='[1]Tabel 4F F DATA'!P127 -> 4 | F131: ='[1]Tabel 4F F DATA'!Q127 -> 1 | G131: ='[1]Tabel 4F F DATA'!R127 -> 0 | I131: ='[1]Tabel 4F F DATA'!T127 -> 13
A132: ='[1]Tabel 4F F DATA'!L128 -> Læge | C132: ='[1]Tabel 4F F DATA'!N128 -> 2 | D132: ='[1]Tabel 4F F DATA'!O128 -> 20 | E132: ='[1]Tabel 4F F DATA'!P128 -> 10 | F132: ='[1]Tabel 4F F DATA'!Q128 -> 5 | G132: ='[1]Tabel 4F F DATA'!R128 -> 0 | I132: ='[1]Tabel 4F F DATA'!T128 -> 37
A133: ='[1]Tabel 4F F DATA'!L129 -> Tandlæge | C133: ='[1]Tabel 4F F DATA'!N129 -> 1 | D133: ='[1]Tabel 4F F DATA'!O129 -> 1 | E133: ='[1]Tabel 4F F DATA'!P129 -> 1 | F133: ='[1]Tabel 4F F DATA'!Q129 -> 2 | G133: ='[1]Tabel 4F F DATA'!R129 -> 0 | I133: ='[1]Tabel 4F F DATA'!T129 -> 5
A134: ='[1]Tabel 4F F DATA'!L130 -> Arkitekt | C134: ='[1]Tabel 4F F DATA'!N130 -> 0 | D134: ='[1]Tabel 4F F DATA'!O130 -> 0 | E134: ='[1]Tabel 4F F DATA'!P130 -> 2 | F134: ='[1]Tabel 4F F DATA'!Q130 -> 1 | G134: ='[1]Tabel 4F F DATA'!R130 -> 1 | I134: ='[1]Tabel 4F F DATA'!T130 -> 4
A135: ='[1]Tabel 4F F DATA'!L131 -> Landinspek. | C135: ='[1]Tabel 4F F DATA'!N131 -> 0 | D135: ='[1]Tabel 4F F DATA'!O131 -> 1 | E135: ='[1]Tabel 4F F DATA'!P131 -> 0 | F135: ='[1]Tabel 4F F DATA'!Q131 -> 2 | G135: ='[1]Tabel 4F F DATA'!R131 -> 0 | I135: ='[1]Tabel 4F F DATA'!T131 -> 3
A136: ='[1]Tabel 4F F DATA'!L132 -> Bibliotekar | C136: ='[1]Tabel 4F F DATA'!N132 -> 1 | D136: ='[1]Tabel 4F F DATA'!O132 -> 1 | E136: ='[1]Tabel 4F F DATA'!P132 -> 5 | F136: ='[1]Tabel 4F F DATA'!Q132 -> 7 | G136: ='[1]Tabel 4F F DATA'!R132 -> 2 | I136: ='[1]Tabel 4F F DATA'!T132 -> 16
A137: ='[1]Tabel 4F F DATA'!L133 -> Musikudd. | C137: ='[1]Tabel 4F F DATA'!N133 -> 0 | D137: ='[1]Tabel 4F F DATA'!O133 -> 1 | E137: ='[1]Tabel 4F F DATA'!P133 -> 1 | F137: ='[1]Tabel 4F F DATA'!Q133 -> 7 | G137: ='[1]Tabel 4F F DATA'!R133 -> 2 | I137: ='[1]Tabel 4F F DATA'!T133 -> 11
A138: ='[1]Tabel 4F F DATA'!L134 -> Teolog | C138: ='[1]Tabel 4F F DATA'!N134 -> 0 | D138: ='[1]Tabel 4F F DATA'!O134 -> 2 | E138: ='[1]Tabel 4F F DATA'!P134 -> 4 | F138: ='[1]Tabel 4F F DATA'!Q134 -> 2 | G138: ='[1]Tabel 4F F DATA'!R134 -> 4 | I138: ='[1]Tabel 4F F DATA'!T134 -> 12
A139: ='[1]Tabel 4F F DATA'!L135 -> Psykolog | C139: ='[1]Tabel 4F F DATA'!N135 -> 3 | D139: ='[1]Tabel 4F F DATA'!O135 -> 7 | E139: ='[1]Tabel 4F F DATA'!P135 -> 10 | F139: ='[1]Tabel 4F F DATA'!Q135 -> 1 | G139: ='[1]Tabel 4F F DATA'!R135 -> 4 | I139: ='[1]Tabel 4F F DATA'!T135 -> 25
A140: ='[1]Tabel 4F F DATA'!L136 -> Jurist | C140: ='[1]Tabel 4F F DATA'!N136 -> 0 | D140: ='[1]Tabel 4F F DATA'!O136 -> 10 | E140: ='[1]Tabel 4F F DATA'!P136 -> 8 | F140: ='[1]Tabel 4F F DATA'!Q136 -> 5 | G140: ='[1]Tabel 4F F DATA'!R136 -> 3 | I140: ='[1]Tabel 4F F DATA'!T136 -> 26
A141: ='[1]Tabel 4F F DATA'!L137 -> Økonom | C141: ='[1]Tabel 4F F DATA'!N137 -> 2 | D141: ='[1]Tabel 4F F DATA'!O137 -> 5 | E141: ='[1]Tabel 4F F DATA'!P137 -> 6 | F141: ='[1]Tabel 4F F DATA'!Q137 -> 8 | G141: ='[1]Tabel 4F F DATA'!R137 -> 0 | I141: ='[1]Tabel 4F F DATA'!T137 -> 21
A142: ='[1]Tabel 4F F DATA'!L138 -> Samf. Adm. | C142: ='[1]Tabel 4F F DATA'!N138 -> 0 | D142: ='[1]Tabel 4F F DATA'!O138 -> 18 | E142: ='[1]Tabel 4F F DATA'!P138 -> 17 | F142: ='[1]Tabel 4F F DATA'!Q138 -> 17 | G142: ='[1]Tabel 4F F DATA'!R138 -> 5 | I142: ='[1]Tabel 4F F DATA'!T138 -> 57
A143: ='[1]Tabel 4F F DATA'!L139 -> Cand. Merc. | C143: ='[1]Tabel 4F F DATA'!N139 -> 8 | D143: ='[1]Tabel 4F F DATA'!O139 -> 16 | E143: ='[1]Tabel 4F F DATA'!P139 -> 16 | F143: ='[1]Tabel 4F F DATA'!Q139 -> 17 | G143: ='[1]Tabel 4F F DATA'!R139 -> 4 | I143: ='[1]Tabel 4F F DATA'!T139 -> 61
A144: ='[1]Tabel 4F F DATA'!L140 -> HA | C144: ='[1]Tabel 4F F DATA'!N140 -> 2 | D144: ='[1]Tabel 4F F DATA'!O140 -> 3 | E144: ='[1]Tabel 4F F DATA'!P140 -> 1 | F144: ='[1]Tabel 4F F DATA'!Q140 -> 12 | G144: ='[1]Tabel 4F F DATA'!R140 -> 3 | I144: ='[1]Tabel 4F F DATA'!T140 -> 21
A145: ='[1]Tabel 4F F DATA'!L141 -> HD | C145: ='[1]Tabel 4F F DATA'!N141 -> 2 | D145: ='[1]Tabel 4F F DATA'!O141 -> 2 | E145: ='[1]Tabel 4F F DATA'!P141 -> 5 | F145: ='[1]Tabel 4F F DATA'!Q141 -> 8 | G145: ='[1]Tabel 4F F DATA'!R141 -> 2 | I145: ='[1]Tabel 4F F DATA'!T141 -> 19
A146: ='[1]Tabel 4F F DATA'!L142 -> Komm. og Sprog | C146: ='[1]Tabel 4F F DATA'!N142 -> 3 | D146: ='[1]Tabel 4F F DATA'!O142 -> 3 | E146: ='[1]Tabel 4F F DATA'!P142 -> 6 | F146: ='[1]Tabel 4F F DATA'!Q142 -> 5 | G146: ='[1]Tabel 4F F DATA'!R142 -> 4 | I146: ='[1]Tabel 4F F DATA'!T142 -> 21
A147: ='[1]Tabel 4F F DATA'!L143 -> Bygningskonst. | C147: ='[1]Tabel 4F F DATA'!N143 -> 6 | D147: ='[1]Tabel 4F F DATA'!O143 -> 22 | E147: ='[1]Tabel 4F F DATA'!P143 -> 15 | F147: ='[1]Tabel 4F F DATA'!Q143 -> 12 | G147: ='[1]Tabel 4F F DATA'!R143 -> 3 | I147: ='[1]Tabel 4F F DATA'!T143 -> 58
A148: ='[1]Tabel 4F F DATA'!L144 -> Cand. IT. | C148: ='[1]Tabel 4F F DATA'!N144 -> 2 | D148: ='[1]Tabel 4F F DATA'!O144 -> 4 | E148: ='[1]Tabel 4F F DATA'!P144 -> 1 | F148: ='[1]Tabel 4F F DATA'!Q144 -> 0 | G148: ='[1]Tabel 4F F DATA'!R144 -> 0 | I148: ='[1]Tabel 4F F DATA'!T144 -> 7
A149: ='[1]Tabel 4F F DATA'!L145 -> Bac. Samf. | C149: ='[1]Tabel 4F F DATA'!N145 -> 0 | D149: ='[1]Tabel 4F F DATA'!O145 -> 1 | E149: ='[1]Tabel 4F F DATA'!P145 -> 1 | F149: ='[1]Tabel 4F F DATA'!Q145 -> 1 | G149: ='[1]Tabel 4F F DATA'!R145 -> 0 | I149: ='[1]Tabel 4F F DATA'!T145 -> 3
A150: ='[1]Tabel 4F F DATA'!L146 -> Bac. Hum. | C150: ='[1]Tabel 4F F DATA'!N146 -> 2 | D150: ='[1]Tabel 4F F DATA'!O146 -> 5 | E150: ='[1]Tabel 4F F DATA'!P146 -> 4 | F150: ='[1]Tabel 4F F DATA'!Q146 -> 4 | G150: ='[1]Tabel 4F F DATA'!R146 -> 0 | I150: ='[1]Tabel 4F F DATA'!T146 -> 15
A151: ='[1]Tabel 4F F DATA'!L147 -> Bac. Nat. | C151: ='[1]Tabel 4F F DATA'!N147 -> 2 | D151: ='[1]Tabel 4F F DATA'!O147 -> 4 | E151: ='[1]Tabel 4F F DATA'!P147 -> 1 | F151: ='[1]Tabel 4F F DATA'!Q147 -> 0 | G151: ='[1]Tabel 4F F DATA'!R147 -> 0 | I151: ='[1]Tabel 4F F DATA'!T147 -> 7
A152: ='[1]Tabel 4F F DATA'!L148 -> Andre | C152: ='[1]Tabel 4F F DATA'!N148 -> 5 | D152: ='[1]Tabel 4F F DATA'!O148 -> 25 | E152: ='[1]Tabel 4F F DATA'!P148 -> 17 | F152: ='[1]Tabel 4F F DATA'!Q148 -> 16 | G152: ='[1]Tabel 4F F DATA'!R148 -> 11 | I152: ='[1]Tabel 4F F DATA'!T148 -> 74
A154: ='[1]Tabel 4F F DATA'!L150 -> Total | C154: ='[1]Tabel 4F F DATA'!N150 -> 77 | D154: ='[1]Tabel 4F F DATA'!O150 -> 326 | E154: ='[1]Tabel 4F F DATA'!P150 -> 343 | F154: ='[1]Tabel 4F F DATA'!Q150 -> 314 | G154: ='[1]Tabel 4F F DATA'!R150 -> 103 | I154: ='[1]Tabel 4F F DATA'!T150 -> 1163
A156: ='[1]Tabel 4F F DATA'!L152 -> Ingeniører i alt | C156: ='[1]Tabel 4F F DATA'!N152 -> 15 | D156: ='[1]Tabel 4F F DATA'!O152 -> 69 | E156: ='[1]Tabel 4F F DATA'!P152 -> 86 | F156: ='[1]Tabel 4F F DATA'!Q152 -> 113 | G156: ='[1]Tabel 4F F DATA'!R152 -> 37 | I156: ='[1]Tabel 4F F DATA'!T152 -> 320
A157: ='[1]Tabel 4F F DATA'!L153 -> Magistre i alt | C157: ='[1]Tabel 4F F DATA'!N153 -> 11 | D157: ='[1]Tabel 4F F DATA'!O153 -> 63 | E157: ='[1]Tabel 4F F DATA'!P153 -> 97 | F157: ='[1]Tabel 4F F DATA'!Q153 -> 47 | G157: ='[1]Tabel 4F F DATA'!R153 -> 13 | I157: ='[1]Tabel 4F F DATA'!T153 -> 231
A158: ='[1]Tabel 4F F DATA'!L154 -> DJØF'ere i alt | C158: ='[1]Tabel 4F F DATA'!N154 -> 12 | D158: ='[1]Tabel 4F F DATA'!O154 -> 52 | E158: ='[1]Tabel 4F F DATA'!P154 -> 48 | F158: ='[1]Tabel 4F F DATA'!Q154 -> 59 | G158: ='[1]Tabel 4F F DATA'!R154 -> 15 | I158: ='[1]Tabel 4F F DATA'!T154 -> 186
A165: ='[1]Tabel 4F F DATA'!L159 -> Faaborg-Midtfyn
C167: ='[1]Tabel 4F F DATA'!N161 -> Under 30 år | D167: ='[1]Tabel 4F F DATA'!O161 -> 30 - 39 år | E167: ='[1]Tabel 4F F DATA'!P161 -> 40 - 49 år | F167: ='[1]Tabel 4F F DATA'!Q161 -> 50 - 59 år | G167: ='[1]Tabel 4F F DATA'!R161 -> Over 60 år | I167: ='[1]Tabel 4F F DATA'!T161 -> I alt
A169: ='[1]Tabel 4F F DATA'!L163 -> Civ. ing. | C169: ='[1]Tabel 4F F DATA'!N163 -> 12 | D169: ='[1]Tabel 4F F DATA'!O163 -> 39 | E169: ='[1]Tabel 4F F DATA'!P163 -> 25 | F169: ='[1]Tabel 4F F DATA'!Q163 -> 5 | G169: ='[1]Tabel 4F F DATA'!R163 -> 5 | I169: ='[1]Tabel 4F F DATA'!T163 -> 86
A170: ='[1]Tabel 4F F DATA'!L164 -> Diplom ing. | C170: ='[1]Tabel 4F F DATA'!N164 -> 18 | D170: ='[1]Tabel 4F F DATA'!O164 -> 57 | E170: ='[1]Tabel 4F F DATA'!P164 -> 75 | F170: ='[1]Tabel 4F F DATA'!Q164 -> 97 | G170: ='[1]Tabel 4F F DATA'!R164 -> 35 | I170: ='[1]Tabel 4F F DATA'!T164 -> 282
A171: ='[1]Tabel 4F F DATA'!L165 -> Cand. Scient. Tek. | C171: ='[1]Tabel 4F F DATA'!N165 -> 13 | D171: ='[1]Tabel 4F F DATA'!O165 -> 43 | E171: ='[1]Tabel 4F F DATA'!P165 -> 3 | F171: ='[1]Tabel 4F F DATA'!Q165 -> 8 | G171: ='[1]Tabel 4F F DATA'!R165 -> 1 | I171: ='[1]Tabel 4F F DATA'!T165 -> 68
A172: ='[1]Tabel 4F F DATA'!L166 -> MA. Hum. | C172: ='[1]Tabel 4F F DATA'!N166 -> 8 | D172: ='[1]Tabel 4F F DATA'!O166 -> 69 | E172: ='[1]Tabel 4F F DATA'!P166 -> 72 | F172: ='[1]Tabel 4F F DATA'!Q166 -> 22 | G172: ='[1]Tabel 4F F DATA'!R166 -> 16 | I172: ='[1]Tabel 4F F DATA'!T166 -> 187
A173: ='[1]Tabel 4F F DATA'!L167 -> MA. Nat. | C173: ='[1]Tabel 4F F DATA'!N167 -> 5 | D173: ='[1]Tabel 4F F DATA'!O167 -> 14 | E173: ='[1]Tabel 4F F DATA'!P167 -> 33 | F173: ='[1]Tabel 4F F DATA'!Q167 -> 19 | G173: ='[1]Tabel 4F F DATA'!R167 -> 7 | I173: ='[1]Tabel 4F F DATA'!T167 -> 78
A174: ='[1]Tabel 4F F DATA'!L168 -> MA. Ph.d. | C174: ='[1]Tabel 4F F DATA'!N168 -> 0 | D174: ='[1]Tabel 4F F DATA'!O168 -> 2 | E174: ='[1]Tabel 4F F DATA'!P168 -> 4 | F174: ='[1]Tabel 4F F DATA'!Q168 -> 2 | G174: ='[1]Tabel 4F F DATA'!R168 -> 0 | I174: ='[1]Tabel 4F F DATA'!T168 -> 8
A175: ='[1]Tabel 4F F DATA'!L169 -> MA. Samf. | C175: ='[1]Tabel 4F F DATA'!N169 -> 1 | D175: ='[1]Tabel 4F F DATA'!O169 -> 5 | E175: ='[1]Tabel 4F F DATA'!P169 -> 1 | F175: ='[1]Tabel 4F F DATA'!Q169 -> 0 | G175: ='[1]Tabel 4F F DATA'!R169 -> 0 | I175: ='[1]Tabel 4F F DATA'!T169 -> 7
A176: ='[1]Tabel 4F F DATA'!L170 -> Øvrige Mag. | C176: ='[1]Tabel 4F F DATA'!N170 -> 2 | D176: ='[1]Tabel 4F F DATA'!O170 -> 2 | E176: ='[1]Tabel 4F F DATA'!P170 -> 3 | F176: ='[1]Tabel 4F F DATA'!Q170 -> 7 | G176: ='[1]Tabel 4F F DATA'!R170 -> 2 | I176: ='[1]Tabel 4F F DATA'!T170 -> 16
A177: ='[1]Tabel 4F F DATA'!L171 -> Agronom | C177: ='[1]Tabel 4F F DATA'!N171 -> 1 | D177: ='[1]Tabel 4F F DATA'!O171 -> 3 | E177: ='[1]Tabel 4F F DATA'!P171 -> 2 | F177: ='[1]Tabel 4F F DATA'!Q171 -> 12 | G177: ='[1]Tabel 4F F DATA'!R171 -> 6 | I177: ='[1]Tabel 4F F DATA'!T171 -> 24
A178: ='[1]Tabel 4F F DATA'!L172 -> Landsk. Arkt. | C178: ='[1]Tabel 4F F DATA'!N172 -> 1 | D178: ='[1]Tabel 4F F DATA'!O172 -> 0 | E178: ='[1]Tabel 4F F DATA'!P172 -> 3 | F178: ='[1]Tabel 4F F DATA'!Q172 -> 2 | G178: ='[1]Tabel 4F F DATA'!R172 -> 0 | I178: ='[1]Tabel 4F F DATA'!T172 -> 6
A179: ='[1]Tabel 4F F DATA'!L173 -> Hortonom | C179: ='[1]Tabel 4F F DATA'!N173 -> 0 | D179: ='[1]Tabel 4F F DATA'!O173 -> 0 | E179: ='[1]Tabel 4F F DATA'!P173 -> 0 | F179: ='[1]Tabel 4F F DATA'!Q173 -> 0 | G179: ='[1]Tabel 4F F DATA'!R173 -> 3 | I179: ='[1]Tabel 4F F DATA'!T173 -> 3
A180: ='[1]Tabel 4F F DATA'!L174 -> Forstkand. | C180: ='[1]Tabel 4F F DATA'!N174 -> 0 | D180: ='[1]Tabel 4F F DATA'!O174 -> 1 | E180: ='[1]Tabel 4F F DATA'!P174 -> 1 | F180: ='[1]Tabel 4F F DATA'!Q174 -> 2 | G180: ='[1]Tabel 4F F DATA'!R174 -> 2 | I180: ='[1]Tabel 4F F DATA'!T174 -> 6
A181: ='[1]Tabel 4F F DATA'!L175 -> Jordbrugsakad. | C181: ='[1]Tabel 4F F DATA'!N175 -> 2 | D181: ='[1]Tabel 4F F DATA'!O175 -> 4 | E181: ='[1]Tabel 4F F DATA'!P175 -> 6 | F181: ='[1]Tabel 4F F DATA'!Q175 -> 16 | G181: ='[1]Tabel 4F F DATA'!R175 -> 11 | I181: ='[1]Tabel 4F F DATA'!T175 -> 39
A182: ='[1]Tabel 4F F DATA'!L176 -> Mejeriing. | C182: ='[1]Tabel 4F F DATA'!N176 -> 0 | D182: ='[1]Tabel 4F F DATA'!O176 -> 0 | E182: ='[1]Tabel 4F F DATA'!P176 -> 1 | F182: ='[1]Tabel 4F F DATA'!Q176 -> 2 | G182: ='[1]Tabel 4F F DATA'!R176 -> 0 | I182: ='[1]Tabel 4F F DATA'!T176 -> 3
A183: ='[1]Tabel 4F F DATA'!L177 -> Levn.m.kand. | C183: ='[1]Tabel 4F F DATA'!N177 -> 1 | D183: ='[1]Tabel 4F F DATA'!O177 -> 3 | E183: ='[1]Tabel 4F F DATA'!P177 -> 0 | F183: ='[1]Tabel 4F F DATA'!Q177 -> 0 | G183: ='[1]Tabel 4F F DATA'!R177 -> 0 | I183: ='[1]Tabel 4F F DATA'!T177 -> 4
A184: ='[1]Tabel 4F F DATA'!L178 -> Dyrlæge | C184: ='[1]Tabel 4F F DATA'!N178 -> 3 | D184: ='[1]Tabel 4F F DATA'!O178 -> 7 | E184: ='[1]Tabel 4F F DATA'!P178 -> 2 | F184: ='[1]Tabel 4F F DATA'!Q178 -> 3 | G184: ='[1]Tabel 4F F DATA'!R178 -> 1 | I184: ='[1]Tabel 4F F DATA'!T178 -> 16
A185: ='[1]Tabel 4F F DATA'!L179 -> Farmaceut | C185: ='[1]Tabel 4F F DATA'!N179 -> 3 | D185: ='[1]Tabel 4F F DATA'!O179 -> 7 | E185: ='[1]Tabel 4F F DATA'!P179 -> 6 | F185: ='[1]Tabel 4F F DATA'!Q179 -> 1 | G185: ='[1]Tabel 4F F DATA'!R179 -> 1 | I185: ='[1]Tabel 4F F DATA'!T179 -> 18
A186: ='[1]Tabel 4F F DATA'!L180 -> Læge | C186: ='[1]Tabel 4F F DATA'!N180 -> 3 | D186: ='[1]Tabel 4F F DATA'!O180 -> 17 | E186: ='[1]Tabel 4F F DATA'!P180 -> 17 | F186: ='[1]Tabel 4F F DATA'!Q180 -> 7 | G186: ='[1]Tabel 4F F DATA'!R180 -> 3 | I186: ='[1]Tabel 4F F DATA'!T180 -> 47
A187: ='[1]Tabel 4F F DATA'!L181 -> Tandlæge | C187: ='[1]Tabel 4F F DATA'!N181 -> 0 | D187: ='[1]Tabel 4F F DATA'!O181 -> 1 | E187: ='[1]Tabel 4F F DATA'!P181 -> 1 | F187: ='[1]Tabel 4F F DATA'!Q181 -> 0 | G187: ='[1]Tabel 4F F DATA'!R181 -> 0 | I187: ='[1]Tabel 4F F DATA'!T181 -> 2
A188: ='[1]Tabel 4F F DATA'!L182 -> Arkitekt | C188: ='[1]Tabel 4F F DATA'!N182 -> 0 | D188: ='[1]Tabel 4F F DATA'!O182 -> 3 | E188: ='[1]Tabel 4F F DATA'!P182 -> 2 | F188: ='[1]Tabel 4F F DATA'!Q182 -> 3 | G188: ='[1]Tabel 4F F DATA'!R182 -> 4 | I188: ='[1]Tabel 4F F DATA'!T182 -> 12
A189: ='[1]Tabel 4F F DATA'!L183 -> Landinspek. | C189: ='[1]Tabel 4F F DATA'!N183 -> 1 | D189: ='[1]Tabel 4F F DATA'!O183 -> 1 | E189: ='[1]Tabel 4F F DATA'!P183 -> 0 | F189: ='[1]Tabel 4F F DATA'!Q183 -> 1 | G189: ='[1]Tabel 4F F DATA'!R183 -> 1 | I189: ='[1]Tabel 4F F DATA'!T183 -> 4
A190: ='[1]Tabel 4F F DATA'!L184 -> Bibliotekar | C190: ='[1]Tabel 4F F DATA'!N184 -> 0 | D190: ='[1]Tabel 4F F DATA'!O184 -> 1 | E190: ='[1]Tabel 4F F DATA'!P184 -> 5 | F190: ='[1]Tabel 4F F DATA'!Q184 -> 4 | G190: ='[1]Tabel 4F F DATA'!R184 -> 2 | I190: ='[1]Tabel 4F F DATA'!T184 -> 12
A191: ='[1]Tabel 4F F DATA'!L185 -> Musikudd. | C191: ='[1]Tabel 4F F DATA'!N185 -> 0 | D191: ='[1]Tabel 4F F DATA'!O185 -> 2 | E191: ='[1]Tabel 4F F DATA'!P185 -> 2 | F191: ='[1]Tabel 4F F DATA'!Q185 -> 1 | G191: ='[1]Tabel 4F F DATA'!R185 -> 3 | I191: ='[1]Tabel 4F F DATA'!T185 -> 8
A192: ='[1]Tabel 4F F DATA'!L186 -> Teolog | C192: ='[1]Tabel 4F F DATA'!N186 -> 1 | D192: ='[1]Tabel 4F F DATA'!O186 -> 1 | E192: ='[1]Tabel 4F F DATA'!P186 -> 6 | F192: ='[1]Tabel 4F F DATA'!Q186 -> 4 | G192: ='[1]Tabel 4F F DATA'!R186 -> 3 | I192: ='[1]Tabel 4F F DATA'!T186 -> 15
A193: ='[1]Tabel 4F F DATA'!L187 -> Psykolog | C193: ='[1]Tabel 4F F DATA'!N187 -> 1 | D193: ='[1]Tabel 4F F DATA'!O187 -> 12 | E193: ='[1]Tabel 4F F DATA'!P187 -> 5 | F193: ='[1]Tabel 4F F DATA'!Q187 -> 2 | G193: ='[1]Tabel 4F F DATA'!R187 -> 2 | I193: ='[1]Tabel 4F F DATA'!T187 -> 22
A194: ='[1]Tabel 4F F DATA'!L188 -> Jurist | C194: ='[1]Tabel 4F F DATA'!N188 -> 2 | D194: ='[1]Tabel 4F F DATA'!O188 -> 11 | E194: ='[1]Tabel 4F F DATA'!P188 -> 8 | F194: ='[1]Tabel 4F F DATA'!Q188 -> 6 | G194: ='[1]Tabel 4F F DATA'!R188 -> 5 | I194: ='[1]Tabel 4F F DATA'!T188 -> 32
A195: ='[1]Tabel 4F F DATA'!L189 -> Økonom | C195: ='[1]Tabel 4F F DATA'!N189 -> 5 | D195: ='[1]Tabel 4F F DATA'!O189 -> 8 | E195: ='[1]Tabel 4F F DATA'!P189 -> 7 | F195: ='[1]Tabel 4F F DATA'!Q189 -> 4 | G195: ='[1]Tabel 4F F DATA'!R189 -> 2 | I195: ='[1]Tabel 4F F DATA'!T189 -> 26
A196: ='[1]Tabel 4F F DATA'!L190 -> Samf. Adm. | C196: ='[1]Tabel 4F F DATA'!N190 -> 8 | D196: ='[1]Tabel 4F F DATA'!O190 -> 33 | E196: ='[1]Tabel 4F F DATA'!P190 -> 29 | F196: ='[1]Tabel 4F F DATA'!Q190 -> 19 | G196: ='[1]Tabel 4F F DATA'!R190 -> 1 | I196: ='[1]Tabel 4F F DATA'!T190 -> 90
A197: ='[1]Tabel 4F F DATA'!L191 -> Cand. Merc. | C197: ='[1]Tabel 4F F DATA'!N191 -> 4 | D197: ='[1]Tabel 4F F DATA'!O191 -> 36 | E197: ='[1]Tabel 4F F DATA'!P191 -> 15 | F197: ='[1]Tabel 4F F DATA'!Q191 -> 20 | G197: ='[1]Tabel 4F F DATA'!R191 -> 3 | I197: ='[1]Tabel 4F F DATA'!T191 -> 78
A198: ='[1]Tabel 4F F DATA'!L192 -> HA | C198: ='[1]Tabel 4F F DATA'!N192 -> 2 | D198: ='[1]Tabel 4F F DATA'!O192 -> 6 | E198: ='[1]Tabel 4F F DATA'!P192 -> 3 | F198: ='[1]Tabel 4F F DATA'!Q192 -> 13 | G198: ='[1]Tabel 4F F DATA'!R192 -> 2 | I198: ='[1]Tabel 4F F DATA'!T192 -> 26
A199: ='[1]Tabel 4F F DATA'!L193 -> HD | C199: ='[1]Tabel 4F F DATA'!N193 -> 0 | D199: ='[1]Tabel 4F F DATA'!O193 -> 2 | E199: ='[1]Tabel 4F F DATA'!P193 -> 2 | F199: ='[1]Tabel 4F F DATA'!Q193 -> 15 | G199: ='[1]Tabel 4F F DATA'!R193 -> 5 | I199: ='[1]Tabel 4F F DATA'!T193 -> 24
A200: ='[1]Tabel 4F F DATA'!L194 -> Komm. og Sprog | C200: ='[1]Tabel 4F F DATA'!N194 -> 1 | D200: ='[1]Tabel 4F F DATA'!O194 -> 3 | E200: ='[1]Tabel 4F F DATA'!P194 -> 7 | F200: ='[1]Tabel 4F F DATA'!Q194 -> 2 | G200: ='[1]Tabel 4F F DATA'!R194 -> 3 | I200: ='[1]Tabel 4F F DATA'!T194 -> 16
A201: ='[1]Tabel 4F F DATA'!L195 -> Bygningskonst. | C201: ='[1]Tabel 4F F DATA'!N195 -> 9 | D201: ='[1]Tabel 4F F DATA'!O195 -> 21 | E201: ='[1]Tabel 4F F DATA'!P195 -> 23 | F201: ='[1]Tabel 4F F DATA'!Q195 -> 9 | G201: ='[1]Tabel 4F F DATA'!R195 -> 7 | I201: ='[1]Tabel 4F F DATA'!T195 -> 69
A202: ='[1]Tabel 4F F DATA'!L196 -> Cand. IT. | C202: ='[1]Tabel 4F F DATA'!N196 -> 2 | D202: ='[1]Tabel 4F F DATA'!O196 -> 0 | E202: ='[1]Tabel 4F F DATA'!P196 -> 6 | F202: ='[1]Tabel 4F F DATA'!Q196 -> 2 | G202: ='[1]Tabel 4F F DATA'!R196 -> 0 | I202: ='[1]Tabel 4F F DATA'!T196 -> 10
A203: ='[1]Tabel 4F F DATA'!L197 -> Bac. Samf. | C203: ='[1]Tabel 4F F DATA'!N197 -> 2 | D203: ='[1]Tabel 4F F DATA'!O197 -> 4 | E203: ='[1]Tabel 4F F DATA'!P197 -> 2 | F203: ='[1]Tabel 4F F DATA'!Q197 -> 2 | G203: ='[1]Tabel 4F F DATA'!R197 -> 0 | I203: ='[1]Tabel 4F F DATA'!T197 -> 10
A204: ='[1]Tabel 4F F DATA'!L198 -> Bac. Hum. | C204: ='[1]Tabel 4F F DATA'!N198 -> 2 | D204: ='[1]Tabel 4F F DATA'!O198 -> 5 | E204: ='[1]Tabel 4F F DATA'!P198 -> 7 | F204: ='[1]Tabel 4F F DATA'!Q198 -> 2 | G204: ='[1]Tabel 4F F DATA'!R198 -> 2 | I204: ='[1]Tabel 4F F DATA'!T198 -> 18
A205: ='[1]Tabel 4F F DATA'!L199 -> Bac. Nat. | C205: ='[1]Tabel 4F F DATA'!N199 -> 5 | D205: ='[1]Tabel 4F F DATA'!O199 -> 2 | E205: ='[1]Tabel 4F F DATA'!P199 -> 1 | F205: ='[1]Tabel 4F F DATA'!Q199 -> 2 | G205: ='[1]Tabel 4F F DATA'!R199 -> 0 | I205: ='[1]Tabel 4F F DATA'!T199 -> 10
A206: ='[1]Tabel 4F F DATA'!L200 -> Andre | C206: ='[1]Tabel 4F F DATA'!N200 -> 14 | D206: ='[1]Tabel 4F F DATA'!O200 -> 21 | E206: ='[1]Tabel 4F F DATA'!P200 -> 26 | F206: ='[1]Tabel 4F F DATA'!Q200 -> 24 | G206: ='[1]Tabel 4F F DATA'!R200 -> 11 | I206: ='[1]Tabel 4F F DATA'!T200 -> 96
A208: ='[1]Tabel 4F F DATA'!L202 -> Total | C208: ='[1]Tabel 4F F DATA'!N202 -> 130 | D208: ='[1]Tabel 4F F DATA'!O202 -> 442 | E208: ='[1]Tabel 4F F DATA'!P202 -> 405 | F208: ='[1]Tabel 4F F DATA'!Q202 -> 324 | G208: ='[1]Tabel 4F F DATA'!R202 -> 138 | I208: ='[1]Tabel 4F F DATA'!T202 -> 1439
A210: ='[1]Tabel 4F F DATA'!L204 -> Ingeniører i alt | C210: ='[1]Tabel 4F F DATA'!N204 -> 30 | D210: ='[1]Tabel 4F F DATA'!O204 -> 96 | E210: ='[1]Tabel 4F F DATA'!P204 -> 100 | F210: ='[1]Tabel 4F F DATA'!Q204 -> 102 | G210: ='[1]Tabel 4F F DATA'!R204 -> 40 | I210: ='[1]Tabel 4F F DATA'!T204 -> 368
A211: ='[1]Tabel 4F F DATA'!L205 -> Magistre i alt | C211: ='[1]Tabel 4F F DATA'!N205 -> 16 | D211: ='[1]Tabel 4F F DATA'!O205 -> 92 | E211: ='[1]Tabel 4F F DATA'!P205 -> 113 | F211: ='[1]Tabel 4F F DATA'!Q205 -> 50 | G211: ='[1]Tabel 4F F DATA'!R205 -> 25 | I211: ='[1]Tabel 4F F DATA'!T205 -> 296
A212: ='[1]Tabel 4F F DATA'!L206 -> DJØF'ere i alt | C212: ='[1]Tabel 4F F DATA'!N206 -> 21 | D212: ='[1]Tabel 4F F DATA'!O206 -> 94 | E212: ='[1]Tabel 4F F DATA'!P206 -> 62 | F212: ='[1]Tabel 4F F DATA'!Q206 -> 62 | G212: ='[1]Tabel 4F F DATA'!R206 -> 13 | I212: ='[1]Tabel 4F F DATA'!T206 -> 252
A219: ='[1]Tabel 4F F DATA'!L211 -> Kerteminde
C221: ='[1]Tabel 4F F DATA'!N213 -> Under 30 år | D221: ='[1]Tabel 4F F DATA'!O213 -> 30 - 39 år | E221: ='[1]Tabel 4F F DATA'!P213 -> 40 - 49 år | F221: ='[1]Tabel 4F F DATA'!Q213 -> 50 - 59 år | G221: ='[1]Tabel 4F F DATA'!R213 -> Over 60 år | I221: ='[1]Tabel 4F F DATA'!T213 -> I alt
A223: ='[1]Tabel 4F F DATA'!L215 -> Civ. ing. | C223: ='[1]Tabel 4F F DATA'!N215 -> 2 | D223: ='[1]Tabel 4F F DATA'!O215 -> 6 | E223: ='[1]Tabel 4F F DATA'!P215 -> 15 | F223: ='[1]Tabel 4F F DATA'!Q215 -> 6 | G223: ='[1]Tabel 4F F DATA'!R215 -> 2 | I223: ='[1]Tabel 4F F DATA'!T215 -> 31
A224: ='[1]Tabel 4F F DATA'!L216 -> Diplom ing. | C224: ='[1]Tabel 4F F DATA'!N216 -> 9 | D224: ='[1]Tabel 4F F DATA'!O216 -> 24 | E224: ='[1]Tabel 4F F DATA'!P216 -> 30 | F224: ='[1]Tabel 4F F DATA'!Q216 -> 62 | G224: ='[1]Tabel 4F F DATA'!R216 -> 24 | I224: ='[1]Tabel 4F F DATA'!T216 -> 149
A225: ='[1]Tabel 4F F DATA'!L217 -> Cand. Scient. Tek. | C225: ='[1]Tabel 4F F DATA'!N217 -> 9 | D225: ='[1]Tabel 4F F DATA'!O217 -> 19 | E225: ='[1]Tabel 4F F DATA'!P217 -> 2 | F225: ='[1]Tabel 4F F DATA'!Q217 -> 4 | G225: ='[1]Tabel 4F F DATA'!R217 -> 1 | I225: ='[1]Tabel 4F F DATA'!T217 -> 35
A226: ='[1]Tabel 4F F DATA'!L218 -> MA. Hum. | C226: ='[1]Tabel 4F F DATA'!N218 -> 5 | D226: ='[1]Tabel 4F F DATA'!O218 -> 31 | E226: ='[1]Tabel 4F F DATA'!P218 -> 38 | F226: ='[1]Tabel 4F F DATA'!Q218 -> 16 | G226: ='[1]Tabel 4F F DATA'!R218 -> 7 | I226: ='[1]Tabel 4F F DATA'!T218 -> 97
A227: ='[1]Tabel 4F F DATA'!L219 -> MA. Nat. | C227: ='[1]Tabel 4F F DATA'!N219 -> 0 | D227: ='[1]Tabel 4F F DATA'!O219 -> 4 | E227: ='[1]Tabel 4F F DATA'!P219 -> 9 | F227: ='[1]Tabel 4F F DATA'!Q219 -> 11 | G227: ='[1]Tabel 4F F DATA'!R219 -> 4 | I227: ='[1]Tabel 4F F DATA'!T219 -> 28
A228: ='[1]Tabel 4F F DATA'!L220 -> MA. Ph.d. | C228: ='[1]Tabel 4F F DATA'!N220 -> 0 | D228: ='[1]Tabel 4F F DATA'!O220 -> 4 | E228: ='[1]Tabel 4F F DATA'!P220 -> 1 | F228: ='[1]Tabel 4F F DATA'!Q220 -> 2 | G228: ='[1]Tabel 4F F DATA'!R220 -> 0 | I228: ='[1]Tabel 4F F DATA'!T220 -> 7
A229: ='[1]Tabel 4F F DATA'!L221 -> MA. Samf. | C229: ='[1]Tabel 4F F DATA'!N221 -> 0 | D229: ='[1]Tabel 4F F DATA'!O221 -> 3 | E229: ='[1]Tabel 4F F DATA'!P221 -> 0 | F229: ='[1]Tabel 4F F DATA'!Q221 -> 0 | G229: ='[1]Tabel 4F F DATA'!R221 -> 0 | I229: ='[1]Tabel 4F F DATA'!T221 -> 3
A230: ='[1]Tabel 4F F DATA'!L222 -> Øvrige Mag. | C230: ='[1]Tabel 4F F DATA'!N222 -> 2 | D230: ='[1]Tabel 4F F DATA'!O222 -> 1 | E230: ='[1]Tabel 4F F DATA'!P222 -> 0 | F230: ='[1]Tabel 4F F DATA'!Q222 -> 2 | G230: ='[1]Tabel 4F F DATA'!R222 -> 3 | I230: ='[1]Tabel 4F F DATA'!T222 -> 8
A231: ='[1]Tabel 4F F DATA'!L223 -> Agronom | C231: ='[1]Tabel 4F F DATA'!N223 -> 0 | D231: ='[1]Tabel 4F F DATA'!O223 -> 0 | E231: ='[1]Tabel 4F F DATA'!P223 -> 1 | F231: ='[1]Tabel 4F F DATA'!Q223 -> 2 | G231: ='[1]Tabel 4F F DATA'!R223 -> 0 | I231: ='[1]Tabel 4F F DATA'!T223 -> 3
A232: ='[1]Tabel 4F F DATA'!L224 -> Landsk. Arkt. | C232: ='[1]Tabel 4F F DATA'!N224 -> 0 | D232: ='[1]Tabel 4F F DATA'!O224 -> 0 | E232: ='[1]Tabel 4F F DATA'!P224 -> 0 | F232: ='[1]Tabel 4F F DATA'!Q224 -> 2 | G232: ='[1]Tabel 4F F DATA'!R224 -> 0 | I232: ='[1]Tabel 4F F DATA'!T224 -> 2
A233: ='[1]Tabel 4F F DATA'!L225 -> Hortonom | C233: ='[1]Tabel 4F F DATA'!N225 -> 0 | D233: ='[1]Tabel 4F F DATA'!O225 -> 0 | E233: ='[1]Tabel 4F F DATA'!P225 -> 1 | F233: ='[1]Tabel 4F F DATA'!Q225 -> 2 | G233: ='[1]Tabel 4F F DATA'!R225 -> 0 | I233: ='[1]Tabel 4F F DATA'!T225 -> 3
A234: ='[1]Tabel 4F F DATA'!L226 -> Forstkand. | C234: ='[1]Tabel 4F F DATA'!N226 -> 0 | D234: ='[1]Tabel 4F F DATA'!O226 -> 0 | E234: ='[1]Tabel 4F F DATA'!P226 -> 1 | F234: ='[1]Tabel 4F F DATA'!Q226 -> 0 | G234: ='[1]Tabel 4F F DATA'!R226 -> 0 | I234: ='[1]Tabel 4F F DATA'!T226 -> 1
A235: ='[1]Tabel 4F F DATA'!L227 -> Jordbrugsakad. | C235: ='[1]Tabel 4F F DATA'!N227 -> 0 | D235: ='[1]Tabel 4F F DATA'!O227 -> 0 | E235: ='[1]Tabel 4F F DATA'!P227 -> 3 | F235: ='[1]Tabel 4F F DATA'!Q227 -> 6 | G235: ='[1]Tabel 4F F DATA'!R227 -> 0 | I235: ='[1]Tabel 4F F DATA'!T227 -> 9
A236: ='[1]Tabel 4F F DATA'!L228 -> Mejeriing. | C236: ='[1]Tabel 4F F DATA'!N228 -> 0 | D236: ='[1]Tabel 4F F DATA'!O228 -> 0 | E236: ='[1]Tabel 4F F DATA'!P228 -> 0 | F236: ='[1]Tabel 4F F DATA'!Q228 -> 0 | G236: ='[1]Tabel 4F F DATA'!R228 -> 0 | I236: ='[1]Tabel 4F F DATA'!T228 -> 0
A237: ='[1]Tabel 4F F DATA'!L229 -> Levn.m.kand. | C237: ='[1]Tabel 4F F DATA'!N229 -> 0 | D237: ='[1]Tabel 4F F DATA'!O229 -> 0 | E237: ='[1]Tabel 4F F DATA'!P229 -> 0 | F237: ='[1]Tabel 4F F DATA'!Q229 -> 0 | G237: ='[1]Tabel 4F F DATA'!R229 -> 0 | I237: ='[1]Tabel 4F F DATA'!T229 -> 0
A238: ='[1]Tabel 4F F DATA'!L230 -> Dyrlæge | C238: ='[1]Tabel 4F F DATA'!N230 -> 0 | D238: ='[1]Tabel 4F F DATA'!O230 -> 0 | E238: ='[1]Tabel 4F F DATA'!P230 -> 2 | F238: ='[1]Tabel 4F F DATA'!Q230 -> 0 | G238: ='[1]Tabel 4F F DATA'!R230 -> 0 | I238: ='[1]Tabel 4F F DATA'!T230 -> 2
A239: ='[1]Tabel 4F F DATA'!L231 -> Farmaceut | C239: ='[1]Tabel 4F F DATA'!N231 -> 1 | D239: ='[1]Tabel 4F F DATA'!O231 -> 2 | E239: ='[1]Tabel 4F F DATA'!P231 -> 0 | F239: ='[1]Tabel 4F F DATA'!Q231 -> 1 | G239: ='[1]Tabel 4F F DATA'!R231 -> 1 | I239: ='[1]Tabel 4F F DATA'!T231 -> 5
A240: ='[1]Tabel 4F F DATA'!L232 -> Læge | C240: ='[1]Tabel 4F F DATA'!N232 -> 0 | D240: ='[1]Tabel 4F F DATA'!O232 -> 6 | E240: ='[1]Tabel 4F F DATA'!P232 -> 8 | F240: ='[1]Tabel 4F F DATA'!Q232 -> 3 | G240: ='[1]Tabel 4F F DATA'!R232 -> 1 | I240: ='[1]Tabel 4F F DATA'!T232 -> 18
A241: ='[1]Tabel 4F F DATA'!L233 -> Tandlæge | C241: ='[1]Tabel 4F F DATA'!N233 -> 0 | D241: ='[1]Tabel 4F F DATA'!O233 -> 0 | E241: ='[1]Tabel 4F F DATA'!P233 -> 1 | F241: ='[1]Tabel 4F F DATA'!Q233 -> 0 | G241: ='[1]Tabel 4F F DATA'!R233 -> 1 | I241: ='[1]Tabel 4F F DATA'!T233 -> 2
A242: ='[1]Tabel 4F F DATA'!L234 -> Arkitekt | C242: ='[1]Tabel 4F F DATA'!N234 -> 1 | D242: ='[1]Tabel 4F F DATA'!O234 -> 0 | E242: ='[1]Tabel 4F F DATA'!P234 -> 0 | F242: ='[1]Tabel 4F F DATA'!Q234 -> 2 | G242: ='[1]Tabel 4F F DATA'!R234 -> 1 | I242: ='[1]Tabel 4F F DATA'!T234 -> 4
A243: ='[1]Tabel 4F F DATA'!L235 -> Landinspek. | C243: ='[1]Tabel 4F F DATA'!N235 -> 0 | D243: ='[1]Tabel 4F F DATA'!O235 -> 1 | E243: ='[1]Tabel 4F F DATA'!P235 -> 1 | F243: ='[1]Tabel 4F F DATA'!Q235 -> 2 | G243: ='[1]Tabel 4F F DATA'!R235 -> 1 | I243: ='[1]Tabel 4F F DATA'!T235 -> 5
... 285 more rows

Sheet Tabel 4 F
A1: ='[1]Tabel 4 F DATA'!I1 -> Tabel 4. Ledighedsberørte - aldersfordelt
A3: ='[1]Tabel 4 F DATA'!I2 -> Fyn
C5: ='[1]Tabel 4 F DATA'!K4 -> Under 30 år | D5: ='[1]Tabel 4 F DATA'!L4 -> 30 - 39 år | E5: ='[1]Tabel 4 F DATA'!M4 -> 40 - 49 år | F5: ='[1]Tabel 4 F DATA'!N4 -> 50 - 59 år | G5: ='[1]Tabel 4 F DATA'!O4 -> Over 60 år | I5: ='[1]Tabel 4 F DATA'!Q4 -> I alt
A7: ='[1]Tabel 4 F DATA'!I6 -> Civ. ing. | C7: ='[1]Tabel 4 F DATA'!K6 -> 76 | D7: ='[1]Tabel 4 F DATA'!L6 -> 32 | E7: ='[1]Tabel 4 F DATA'!M6 -> 9 | F7: ='[1]Tabel 4 F DATA'!N6 -> 6 | G7: ='[1]Tabel 4 F DATA'!O6 -> 0 | I7: ='[1]Tabel 4 F DATA'!Q6 -> 123
A8: ='[1]Tabel 4 F DATA'!I7 -> Diplom ing. | C8: ='[1]Tabel 4 F DATA'!K7 -> 88 | D8: ='[1]Tabel 4 F DATA'!L7 -> 21 | E8: ='[1]Tabel 4 F DATA'!M7 -> 14 | F8: ='[1]Tabel 4 F DATA'!N7 -> 35 | G8: ='[1]Tabel 4 F DATA'!O7 -> 13 | I8: ='[1]Tabel 4 F DATA'!Q7 -> 171
A9: ='[1]Tabel 4 F DATA'!I8 -> Cand. Scient. Tek | C9: ='[1]Tabel 4 F DATA'!K8 -> 96 | D9: ='[1]Tabel 4 F DATA'!L8 -> 49 | E9: ='[1]Tabel 4 F DATA'!M8 -> 5 | F9: ='[1]Tabel 4 F DATA'!N8 -> 1 | G9: ='[1]Tabel 4 F DATA'!O8 -> 1 | I9: ='[1]Tabel 4 F DATA'!Q8 -> 152
A10: ='[1]Tabel 4 F DATA'!I9 -> MA. Hum. | C10: ='[1]Tabel 4 F DATA'!K9 -> 181 | D10: ='[1]Tabel 4 F DATA'!L9 -> 146 | E10: ='[1]Tabel 4 F DATA'!M9 -> 68 | F10: ='[1]Tabel 4 F DATA'!N9 -> 39 | G10: ='[1]Tabel 4 F DATA'!O9 -> 18 | I10: ='[1]Tabel 4 F DATA'!Q9 -> 452
A11: ='[1]Tabel 4 F DATA'!I10 -> MA. Nat. | C11: ='[1]Tabel 4 F DATA'!K10 -> 25 | D11: ='[1]Tabel 4 F DATA'!L10 -> 21 | E11: ='[1]Tabel 4 F DATA'!M10 -> 11 | F11: ='[1]Tabel 4 F DATA'!N10 -> 7 | G11: ='[1]Tabel 4 F DATA'!O10 -> 9 | I11: ='[1]Tabel 4 F DATA'!Q10 -> 73
A12: ='[1]Tabel 4 F DATA'!I11 -> MA. Ph.d. | C12: ='[1]Tabel 4 F DATA'!K11 -> 0 | D12: ='[1]Tabel 4 F DATA'!L11 -> 2 | E12: ='[1]Tabel 4 F DATA'!M11 -> 5 | F12: ='[1]Tabel 4 F DATA'!N11 -> 2 | G12: ='[1]Tabel 4 F DATA'!O11 -> 0 | I12: ='[1]Tabel 4 F DATA'!Q11 -> 9
A13: ='[1]Tabel 4 F DATA'!I12 -> MA. Samf. | C13: ='[1]Tabel 4 F DATA'!K12 -> 12 | D13: ='[1]Tabel 4 F DATA'!L12 -> 13 | E13: ='[1]Tabel 4 F DATA'!M12 -> 1 | F13: ='[1]Tabel 4 F DATA'!N12 -> 1 | G13: ='[1]Tabel 4 F DATA'!O12 -> 0 | I13: ='[1]Tabel 4 F DATA'!Q12 -> 27
A14: ='[1]Tabel 4 F DATA'!I13 -> Øvrige Mag. | C14: ='[1]Tabel 4 F DATA'!K13 -> 8 | D14: ='[1]Tabel 4 F DATA'!L13 -> 7 | E14: ='[1]Tabel 4 F DATA'!M13 -> 4 | F14: ='[1]Tabel 4 F DATA'!N13 -> 4 | G14: ='[1]Tabel 4 F DATA'!O13 -> 2 | I14: ='[1]Tabel 4 F DATA'!Q13 -> 25
A15: ='[1]Tabel 4 F DATA'!I14 -> Agronom | C15: ='[1]Tabel 4 F DATA'!K14 -> 0 | D15: ='[1]Tabel 4 F DATA'!L14 -> 0 | E15: ='[1]Tabel 4 F DATA'!M14 -> 0 | F15: ='[1]Tabel 4 F DATA'!N14 -> 1 | G15: ='[1]Tabel 4 F DATA'!O14 -> 2 | I15: ='[1]Tabel 4 F DATA'!Q14 -> 3
A16: ='[1]Tabel 4 F DATA'!I15 -> Landsk. Arkt. | C16: ='[1]Tabel 4 F DATA'!K15 -> 0 | D16: ='[1]Tabel 4 F DATA'!L15 -> 0 | E16: ='[1]Tabel 4 F DATA'!M15 -> 0 | F16: ='[1]Tabel 4 F DATA'!N15 -> 0 | G16: ='[1]Tabel 4 F DATA'!O15 -> 0 | I16: ='[1]Tabel 4 F DATA'!Q15 -> 0
A17: ='[1]Tabel 4 F DATA'!I16 -> Hortonom | C17: ='[1]Tabel 4 F DATA'!K16 -> 0 | D17: ='[1]Tabel 4 F DATA'!L16 -> 0 | E17: ='[1]Tabel 4 F DATA'!M16 -> 0 | F17: ='[1]Tabel 4 F DATA'!N16 -> 0 | G17: ='[1]Tabel 4 F DATA'!O16 -> 3 | I17: ='[1]Tabel 4 F DATA'!Q16 -> 3
A18: ='[1]Tabel 4 F DATA'!I17 -> Forstkand. | C18: ='[1]Tabel 4 F DATA'!K17 -> 1 | D18: ='[1]Tabel 4 F DATA'!L17 -> 1 | E18: ='[1]Tabel 4 F DATA'!M17 -> 3 | F18: ='[1]Tabel 4 F DATA'!N17 -> 0 | G18: ='[1]Tabel 4 F DATA'!O17 -> 0 | I18: ='[1]Tabel 4 F DATA'!Q17 -> 5
A19: ='[1]Tabel 4 F DATA'!I18 -> Jordbrugsakad. | C19: ='[1]Tabel 4 F DATA'!K18 -> 1 | D19: ='[1]Tabel 4 F DATA'!L18 -> 1 | E19: ='[1]Tabel 4 F DATA'!M18 -> 3 | F19: ='[1]Tabel 4 F DATA'!N18 -> 1 | G19: ='[1]Tabel 4 F DATA'!O18 -> 5 | I19: ='[1]Tabel 4 F DATA'!Q18 -> 11
A20: ='[1]Tabel 4 F DATA'!I19 -> Mejeriing. | C20: ='[1]Tabel 4 F DATA'!K19 -> 0 | D20: ='[1]Tabel 4 F DATA'!L19 -> 0 | E20: ='[1]Tabel 4 F DATA'!M19 -> 0 | F20: ='[1]Tabel 4 F DATA'!N19 -> 0 | G20: ='[1]Tabel 4 F DATA'!O19 -> 0 | I20: ='[1]Tabel 4 F DATA'!Q19 -> 0
A21: ='[1]Tabel 4 F DATA'!I20 -> Levn.m.kand. | C21: ='[1]Tabel 4 F DATA'!K20 -> 0 | D21: ='[1]Tabel 4 F DATA'!L20 -> 0 | E21: ='[1]Tabel 4 F DATA'!M20 -> 0 | F21: ='[1]Tabel 4 F DATA'!N20 -> 0 | G21: ='[1]Tabel 4 F DATA'!O20 -> 0 | I21: ='[1]Tabel 4 F DATA'!Q20 -> 0
A22: ='[1]Tabel 4 F DATA'!I21 -> Dyrlæge | C22: ='[1]Tabel 4 F DATA'!K21 -> 2 | D22: ='[1]Tabel 4 F DATA'!L21 -> 2 | E22: ='[1]Tabel 4 F DATA'!M21 -> 0 | F22: ='[1]Tabel 4 F DATA'!N21 -> 1 | G22: ='[1]Tabel 4 F DATA'!O21 -> 1 | I22: ='[1]Tabel 4 F DATA'!Q21 -> 6
A23: ='[1]Tabel 4 F DATA'!I22 -> Farmaceut | C23: ='[1]Tabel 4 F DATA'!K22 -> 15 | D23: ='[1]Tabel 4 F DATA'!L22 -> 7 | E23: ='[1]Tabel 4 F DATA'!M22 -> 0 | F23: ='[1]Tabel 4 F DATA'!N22 -> 0 | G23: ='[1]Tabel 4 F DATA'!O22 -> 1 | I23: ='[1]Tabel 4 F DATA'!Q22 -> 23
A24: ='[1]Tabel 4 F DATA'!I23 -> Læge | C24: ='[1]Tabel 4 F DATA'!K23 -> 5 | D24: ='[1]Tabel 4 F DATA'!L23 -> 9 | E24: ='[1]Tabel 4 F DATA'!M23 -> 0 | F24: ='[1]Tabel 4 F DATA'!N23 -> 0 | G24: ='[1]Tabel 4 F DATA'!O23 -> 0 | I24: ='[1]Tabel 4 F DATA'!Q23 -> 14
A25: ='[1]Tabel 4 F DATA'!I24 -> Tandlæge | C25: ='[1]Tabel 4 F DATA'!K24 -> 0 | D25: ='[1]Tabel 4 F DATA'!L24 -> 0 | E25: ='[1]Tabel 4 F DATA'!M24 -> 0 | F25: ='[1]Tabel 4 F DATA'!N24 -> 0 | G25: ='[1]Tabel 4 F DATA'!O24 -> 0 | I25: ='[1]Tabel 4 F DATA'!Q24 -> 0
A26: ='[1]Tabel 4 F DATA'!I25 -> Arkitekt | C26: ='[1]Tabel 4 F DATA'!K25 -> 1 | D26: ='[1]Tabel 4 F DATA'!L25 -> 2 | E26: ='[1]Tabel 4 F DATA'!M25 -> 1 | F26: ='[1]Tabel 4 F DATA'!N25 -> 2 | G26: ='[1]Tabel 4 F DATA'!O25 -> 1 | I26: ='[1]Tabel 4 F DATA'!Q25 -> 7
A27: ='[1]Tabel 4 F DATA'!I26 -> Landinspek. | C27: ='[1]Tabel 4 F DATA'!K26 -> 0 | D27: ='[1]Tabel 4 F DATA'!L26 -> 0 | E27: ='[1]Tabel 4 F DATA'!M26 -> 0 | F27: ='[1]Tabel 4 F DATA'!N26 -> 0 | G27: ='[1]Tabel 4 F DATA'!O26 -> 0 | I27: ='[1]Tabel 4 F DATA'!Q26 -> 0
A28: ='[1]Tabel 4 F DATA'!I27 -> Bibliotekar | C28: ='[1]Tabel 4 F DATA'!K27 -> 0 | D28: ='[1]Tabel 4 F DATA'!L27 -> 5 | E28: ='[1]Tabel 4 F DATA'!M27 -> 3 | F28: ='[1]Tabel 4 F DATA'!N27 -> 2 | G28: ='[1]Tabel 4 F DATA'!O27 -> 1 | I28: ='[1]Tabel 4 F DATA'!Q27 -> 11
A29: ='[1]Tabel 4 F DATA'!I28 -> Musikudd. | C29: ='[1]Tabel 4 F DATA'!K28 -> 0 | D29: ='[1]Tabel 4 F DATA'!L28 -> 1 | E29: ='[1]Tabel 4 F DATA'!M28 -> 0 | F29: ='[1]Tabel 4 F DATA'!N28 -> 0 | G29: ='[1]Tabel 4 F DATA'!O28 -> 3 | I29: ='[1]Tabel 4 F DATA'!Q28 -> 4
A30: ='[1]Tabel 4 F DATA'!I29 -> Teolog | C30: ='[1]Tabel 4 F DATA'!K29 -> 0 | D30: ='[1]Tabel 4 F DATA'!L29 -> 1 | E30: ='[1]Tabel 4 F DATA'!M29 -> 0 | F30: ='[1]Tabel 4 F DATA'!N29 -> 1 | G30: ='[1]Tabel 4 F DATA'!O29 -> 0 | I30: ='[1]Tabel 4 F DATA'!Q29 -> 2
A31: ='[1]Tabel 4 F DATA'!I30 -> Psykolog | C31: ='[1]Tabel 4 F DATA'!K30 -> 16 | D31: ='[1]Tabel 4 F DATA'!L30 -> 8 | E31: ='[1]Tabel 4 F DATA'!M30 -> 1 | F31: ='[1]Tabel 4 F DATA'!N30 -> 2 | G31: ='[1]Tabel 4 F DATA'!O30 -> 1 | I31: ='[1]Tabel 4 F DATA'!Q30 -> 28
A32: ='[1]Tabel 4 F DATA'!I31 -> Jurist | C32: ='[1]Tabel 4 F DATA'!K31 -> 5 | D32: ='[1]Tabel 4 F DATA'!L31 -> 5 | E32: ='[1]Tabel 4 F DATA'!M31 -> 2 | F32: ='[1]Tabel 4 F DATA'!N31 -> 1 | G32: ='[1]Tabel 4 F DATA'!O31 -> 5 | I32: ='[1]Tabel 4 F DATA'!Q31 -> 18
A33: ='[1]Tabel 4 F DATA'!I32 -> Økonom | C33: ='[1]Tabel 4 F DATA'!K32 -> 9 | D33: ='[1]Tabel 4 F DATA'!L32 -> 4 | E33: ='[1]Tabel 4 F DATA'!M32 -> 1 | F33: ='[1]Tabel 4 F DATA'!N32 -> 1 | G33: ='[1]Tabel 4 F DATA'!O32 -> 0 | I33: ='[1]Tabel 4 F DATA'!Q32 -> 15
A34: ='[1]Tabel 4 F DATA'!I33 -> Samf. Adm. | C34: ='[1]Tabel 4 F DATA'!K33 -> 66 | D34: ='[1]Tabel 4 F DATA'!L33 -> 42 | E34: ='[1]Tabel 4 F DATA'!M33 -> 22 | F34: ='[1]Tabel 4 F DATA'!N33 -> 8 | G34: ='[1]Tabel 4 F DATA'!O33 -> 4 | I34: ='[1]Tabel 4 F DATA'!Q33 -> 142
A35: ='[1]Tabel 4 F DATA'!I34 -> Cand. Merc. | C35: ='[1]Tabel 4 F DATA'!K34 -> 71 | D35: ='[1]Tabel 4 F DATA'!L34 -> 42 | E35: ='[1]Tabel 4 F DATA'!M34 -> 12 | F35: ='[1]Tabel 4 F DATA'!N34 -> 9 | G35: ='[1]Tabel 4 F DATA'!O34 -> 2 | I35: ='[1]Tabel 4 F DATA'!Q34 -> 136
A36: ='[1]Tabel 4 F DATA'!I35 -> HA | C36: ='[1]Tabel 4 F DATA'!K35 -> 20 | D36: ='[1]Tabel 4 F DATA'!L35 -> 14 | E36: ='[1]Tabel 4 F DATA'!M35 -> 6 | F36: ='[1]Tabel 4 F DATA'!N35 -> 9 | G36: ='[1]Tabel 4 F DATA'!O35 -> 4 | I36: ='[1]Tabel 4 F DATA'!Q35 -> 53
A37: ='[1]Tabel 4 F DATA'!I36 -> HD | C37: ='[1]Tabel 4 F DATA'!K36 -> 7 | D37: ='[1]Tabel 4 F DATA'!L36 -> 6 | E37: ='[1]Tabel 4 F DATA'!M36 -> 1 | F37: ='[1]Tabel 4 F DATA'!N36 -> 1 | G37: ='[1]Tabel 4 F DATA'!O36 -> 5 | I37: ='[1]Tabel 4 F DATA'!Q36 -> 20
A38: ='[1]Tabel 4 F DATA'!I37 -> Komm. og Sprog | C38: ='[1]Tabel 4 F DATA'!K37 -> 23 | D38: ='[1]Tabel 4 F DATA'!L37 -> 14 | E38: ='[1]Tabel 4 F DATA'!M37 -> 5 | F38: ='[1]Tabel 4 F DATA'!N37 -> 6 | G38: ='[1]Tabel 4 F DATA'!O37 -> 4 | I38: ='[1]Tabel 4 F DATA'!Q37 -> 52
A39: ='[1]Tabel 4 F DATA'!I38 -> Bygningskonst. | C39: ='[1]Tabel 4 F DATA'!K38 -> 33 | D39: ='[1]Tabel 4 F DATA'!L38 -> 16 | E39: ='[1]Tabel 4 F DATA'!M38 -> 11 | F39: ='[1]Tabel 4 F DATA'!N38 -> 4 | G39: ='[1]Tabel 4 F DATA'!O38 -> 0 | I39: ='[1]Tabel 4 F DATA'!Q38 -> 64
A40: ='[1]Tabel 4 F DATA'!I39 -> Cand. IT. | C40: ='[1]Tabel 4 F DATA'!K39 -> 8 | D40: ='[1]Tabel 4 F DATA'!L39 -> 18 | E40: ='[1]Tabel 4 F DATA'!M39 -> 3 | F40: ='[1]Tabel 4 F DATA'!N39 -> 1 | G40: ='[1]Tabel 4 F DATA'!O39 -> 1 | I40: ='[1]Tabel 4 F DATA'!Q39 -> 31
A41: ='[1]Tabel 4 F DATA'!I40 -> Bac. Samf. | C41: ='[1]Tabel 4 F DATA'!K40 -> 8 | D41: ='[1]Tabel 4 F DATA'!L40 -> 1 | E41: ='[1]Tabel 4 F DATA'!M40 -> 1 | F41: ='[1]Tabel 4 F DATA'!N40 -> 0 | G41: ='[1]Tabel 4 F DATA'!O40 -> 0 | I41: ='[1]Tabel 4 F DATA'!Q40 -> 10
A42: ='[1]Tabel 4 F DATA'!I41 -> Bac. Hum. | C42: ='[1]Tabel 4 F DATA'!K41 -> 39 | D42: ='[1]Tabel 4 F DATA'!L41 -> 19 | E42: ='[1]Tabel 4 F DATA'!M41 -> 5 | F42: ='[1]Tabel 4 F DATA'!N41 -> 6 | G42: ='[1]Tabel 4 F DATA'!O41 -> 3 | I42: ='[1]Tabel 4 F DATA'!Q41 -> 72
A43: ='[1]Tabel 4 F DATA'!I42 -> Bac. Nat. | C43: ='[1]Tabel 4 F DATA'!K42 -> 47 | D43: ='[1]Tabel 4 F DATA'!L42 -> 7 | E43: ='[1]Tabel 4 F DATA'!M42 -> 3 | F43: ='[1]Tabel 4 F DATA'!N42 -> 2 | G43: ='[1]Tabel 4 F DATA'!O42 -> 1 | I43: ='[1]Tabel 4 F DATA'!Q42 -> 60
A44: ='[1]Tabel 4 F DATA'!I43 -> Andre | C44: ='[1]Tabel 4 F DATA'!K43 -> 41 | D44: ='[1]Tabel 4 F DATA'!L43 -> 26 | E44: ='[1]Tabel 4 F DATA'!M43 -> 21 | F44: ='[1]Tabel 4 F DATA'!N43 -> 16 | G44: ='[1]Tabel 4 F DATA'!O43 -> 18 | I44: ='[1]Tabel 4 F DATA'!Q43 -> 122
A46: ='[1]Tabel 4 F DATA'!I45 -> Total | C46: ='[1]Tabel 4 F DATA'!K45 -> 903 | D46: ='[1]Tabel 4 F DATA'!L45 -> 541 | E46: ='[1]Tabel 4 F DATA'!M45 -> 218 | F46: ='[1]Tabel 4 F DATA'!N45 -> 168 | G46: ='[1]Tabel 4 F DATA'!O45 -> 103 | I46: ='[1]Tabel 4 F DATA'!Q45 -> 1933
A48: ='[1]Tabel 4 F DATA'!I47 -> Ingeniører i alt | C48: ='[1]Tabel 4 F DATA'!K47 -> 164 | D48: ='[1]Tabel 4 F DATA'!L47 -> 53 | E48: ='[1]Tabel 4 F DATA'!M47 -> 23 | F48: ='[1]Tabel 4 F DATA'!N47 -> 41 | G48: ='[1]Tabel 4 F DATA'!O47 -> 13 | I48: ='[1]Tabel 4 F DATA'!Q47 -> 294
A49: ='[1]Tabel 4 F DATA'!I48 -> Magistre i alt | C49: ='[1]Tabel 4 F DATA'!K48 -> 226 | D49: ='[1]Tabel 4 F DATA'!L48 -> 189 | E49: ='[1]Tabel 4 F DATA'!M48 -> 89 | F49: ='[1]Tabel 4 F DATA'!N48 -> 53 | G49: ='[1]Tabel 4 F DATA'!O48 -> 29 | I49: ='[1]Tabel 4 F DATA'!Q48 -> 586
A50: ='[1]Tabel 4 F DATA'!I49 -> DJØF'ere i alt | C50: ='[1]Tabel 4 F DATA'!K49 -> 171 | D50: ='[1]Tabel 4 F DATA'!L49 -> 107 | E50: ='[1]Tabel 4 F DATA'!M49 -> 43 | F50: ='[1]Tabel 4 F DATA'!N49 -> 28 | G50: ='[1]Tabel 4 F DATA'!O49 -> 15 | I50: ='[1]Tabel 4 F DATA'!Q49 -> 364
A57: ='[1]Tabel 4 F DATA'!I54 -> Middelfart
C59: ='[1]Tabel 4 F DATA'!K56 -> Under 30 år | D59: ='[1]Tabel 4 F DATA'!L56 -> 30 - 39 år | E59: ='[1]Tabel 4 F DATA'!M56 -> 40 - 49 år | F59: ='[1]Tabel 4 F DATA'!N56 -> 50 - 59 år | G59: ='[1]Tabel 4 F DATA'!O56 -> Over 60 år | I59: ='[1]Tabel 4 F DATA'!Q56 -> I alt
A61: ='[1]Tabel 4 F DATA'!I58 -> Civ. ing. | C61: ='[1]Tabel 4 F DATA'!K58 -> 1 | D61: ='[1]Tabel 4 F DATA'!L58 -> 2 | E61: ='[1]Tabel 4 F DATA'!M58 -> 0 | F61: ='[1]Tabel 4 F DATA'!N58 -> 0 | G61: ='[1]Tabel 4 F DATA'!O58 -> 0 | I61: ='[1]Tabel 4 F DATA'!Q58 -> 3
A62: ='[1]Tabel 4 F DATA'!I59 -> Diplom ing. | C62: ='[1]Tabel 4 F DATA'!K59 -> 4 | D62: ='[1]Tabel 4 F DATA'!L59 -> 1 | E62: ='[1]Tabel 4 F DATA'!M59 -> 0 | F62: ='[1]Tabel 4 F DATA'!N59 -> 2 | G62: ='[1]Tabel 4 F DATA'!O59 -> 2 | I62: ='[1]Tabel 4 F DATA'!Q59 -> 9
A63: ='[1]Tabel 4 F DATA'!I60 -> Cand. Scient. Tek | C63: ='[1]Tabel 4 F DATA'!K60 -> 2 | D63: ='[1]Tabel 4 F DATA'!L60 -> 0 | E63: ='[1]Tabel 4 F DATA'!M60 -> 0 | F63: ='[1]Tabel 4 F DATA'!N60 -> 0 | G63: ='[1]Tabel 4 F DATA'!O60 -> 0 | I63: ='[1]Tabel 4 F DATA'!Q60 -> 2
A64: ='[1]Tabel 4 F DATA'!I61 -> MA. Hum. | C64: ='[1]Tabel 4 F DATA'!K61 -> 4 | D64: ='[1]Tabel 4 F DATA'!L61 -> 5 | E64: ='[1]Tabel 4 F DATA'!M61 -> 4 | F64: ='[1]Tabel 4 F DATA'!N61 -> 0 | G64: ='[1]Tabel 4 F DATA'!O61 -> 1 | I64: ='[1]Tabel 4 F DATA'!Q61 -> 14
A65: ='[1]Tabel 4 F DATA'!I62 -> MA. Nat. | C65: ='[1]Tabel 4 F DATA'!K62 -> 0 | D65: ='[1]Tabel 4 F DATA'!L62 -> 0 | E65: ='[1]Tabel 4 F DATA'!M62 -> 1 | F65: ='[1]Tabel 4 F DATA'!N62 -> 1 | G65: ='[1]Tabel 4 F DATA'!O62 -> 0 | I65: ='[1]Tabel 4 F DATA'!Q62 -> 2
A66: ='[1]Tabel 4 F DATA'!I63 -> MA. Ph.d. | C66: ='[1]Tabel 4 F DATA'!K63 -> 0 | D66: ='[1]Tabel 4 F DATA'!L63 -> 0 | E66: ='[1]Tabel 4 F DATA'!M63 -> 2 | F66: ='[1]Tabel 4 F DATA'!N63 -> 0 | G66: ='[1]Tabel 4 F DATA'!O63 -> 0 | I66: ='[1]Tabel 4 F DATA'!Q63 -> 2
A67: ='[1]Tabel 4 F DATA'!I64 -> MA. Samf. | C67: ='[1]Tabel 4 F DATA'!K64 -> 0 | D67: ='[1]Tabel 4 F DATA'!L64 -> 1 | E67: ='[1]Tabel 4 F DATA'!M64 -> 0 | F67: ='[1]Tabel 4 F DATA'!N64 -> 1 | G67: ='[1]Tabel 4 F DATA'!O64 -> 0 | I67: ='[1]Tabel 4 F DATA'!Q64 -> 2
A68: ='[1]Tabel 4 F DATA'!I65 -> Øvrige Mag. | C68: ='[1]Tabel 4 F DATA'!K65 -> 0 | D68: ='[1]Tabel 4 F DATA'!L65 -> 0 | E68: ='[1]Tabel 4 F DATA'!M65 -> 0 | F68: ='[1]Tabel 4 F DATA'!N65 -> 0 | G68: ='[1]Tabel 4 F DATA'!O65 -> 0 | I68: ='[1]Tabel 4 F DATA'!Q65 -> 0
A69: ='[1]Tabel 4 F DATA'!I66 -> Agronom | C69: ='[1]Tabel 4 F DATA'!K66 -> 0 | D69: ='[1]Tabel 4 F DATA'!L66 -> 0 | E69: ='[1]Tabel 4 F DATA'!M66 -> 0 | F69: ='[1]Tabel 4 F DATA'!N66 -> 0 | G69: ='[1]Tabel 4 F DATA'!O66 -> 0 | I69: ='[1]Tabel 4 F DATA'!Q66 -> 0
A70: ='[1]Tabel 4 F DATA'!I67 -> Landsk. Arkt. | C70: ='[1]Tabel 4 F DATA'!K67 -> 0 | D70: ='[1]Tabel 4 F DATA'!L67 -> 0 | E70: ='[1]Tabel 4 F DATA'!M67 -> 0 | F70: ='[1]Tabel 4 F DATA'!N67 -> 0 | G70: ='[1]Tabel 4 F DATA'!O67 -> 0 | I70: ='[1]Tabel 4 F DATA'!Q67 -> 0
A71: ='[1]Tabel 4 F DATA'!I68 -> Hortonom | C71: ='[1]Tabel 4 F DATA'!K68 -> 0 | D71: ='[1]Tabel 4 F DATA'!L68 -> 0 | E71: ='[1]Tabel 4 F DATA'!M68 -> 0 | F71: ='[1]Tabel 4 F DATA'!N68 -> 0 | G71: ='[1]Tabel 4 F DATA'!O68 -> 0 | I71: ='[1]Tabel 4 F DATA'!Q68 -> 0
A72: ='[1]Tabel 4 F DATA'!I69 -> Forstkand. | C72: ='[1]Tabel 4 F DATA'!K69 -> 0 | D72: ='[1]Tabel 4 F DATA'!L69 -> 0 | E72: ='[1]Tabel 4 F DATA'!M69 -> 1 | F72: ='[1]Tabel 4 F DATA'!N69 -> 0 | G72: ='[1]Tabel 4 F DATA'!O69 -> 0 | I72: ='[1]Tabel 4 F DATA'!Q69 -> 1
A73: ='[1]Tabel 4 F DATA'!I70 -> Jordbrugsakad. | C73: ='[1]Tabel 4 F DATA'!K70 -> 0 | D73: ='[1]Tabel 4 F DATA'!L70 -> 0 | E73: ='[1]Tabel 4 F DATA'!M70 -> 1 | F73: ='[1]Tabel 4 F DATA'!N70 -> 0 | G73: ='[1]Tabel 4 F DATA'!O70 -> 0 | I73: ='[1]Tabel 4 F DATA'!Q70 -> 1
A74: ='[1]Tabel 4 F DATA'!I71 -> Mejeriing. | C74: ='[1]Tabel 4 F DATA'!K71 -> 0 | D74: ='[1]Tabel 4 F DATA'!L71 -> 0 | E74: ='[1]Tabel 4 F DATA'!M71 -> 0 | F74: ='[1]Tabel 4 F DATA'!N71 -> 0 | G74: ='[1]Tabel 4 F DATA'!O71 -> 0 | I74: ='[1]Tabel 4 F DATA'!Q71 -> 0
A75: ='[1]Tabel 4 F DATA'!I72 -> Levn.m.kand. | C75: ='[1]Tabel 4 F DATA'!K72 -> 0 | D75: ='[1]Tabel 4 F DATA'!L72 -> 0 | E75: ='[1]Tabel 4 F DATA'!M72 -> 0 | F75: ='[1]Tabel 4 F DATA'!N72 -> 0 | G75: ='[1]Tabel 4 F DATA'!O72 -> 0 | I75: ='[1]Tabel 4 F DATA'!Q72 -> 0
A76: ='[1]Tabel 4 F DATA'!I73 -> Dyrlæge | C76: ='[1]Tabel 4 F DATA'!K73 -> 0 | D76: ='[1]Tabel 4 F DATA'!L73 -> 1 | E76: ='[1]Tabel 4 F DATA'!M73 -> 0 | F76: ='[1]Tabel 4 F DATA'!N73 -> 0 | G76: ='[1]Tabel 4 F DATA'!O73 -> 0 | I76: ='[1]Tabel 4 F DATA'!Q73 -> 1
A77: ='[1]Tabel 4 F DATA'!I74 -> Farmaceut | C77: ='[1]Tabel 4 F DATA'!K74 -> 0 | D77: ='[1]Tabel 4 F DATA'!L74 -> 0 | E77: ='[1]Tabel 4 F DATA'!M74 -> 0 | F77: ='[1]Tabel 4 F DATA'!N74 -> 0 | G77: ='[1]Tabel 4 F DATA'!O74 -> 0 | I77: ='[1]Tabel 4 F DATA'!Q74 -> 0
A78: ='[1]Tabel 4 F DATA'!I75 -> Læge | C78: ='[1]Tabel 4 F DATA'!K75 -> 0 | D78: ='[1]Tabel 4 F DATA'!L75 -> 1 | E78: ='[1]Tabel 4 F DATA'!M75 -> 0 | F78: ='[1]Tabel 4 F DATA'!N75 -> 0 | G78: ='[1]Tabel 4 F DATA'!O75 -> 0 | I78: ='[1]Tabel 4 F DATA'!Q75 -> 1
A79: ='[1]Tabel 4 F DATA'!I76 -> Tandlæge | C79: ='[1]Tabel 4 F DATA'!K76 -> 0 | D79: ='[1]Tabel 4 F DATA'!L76 -> 0 | E79: ='[1]Tabel 4 F DATA'!M76 -> 0 | F79: ='[1]Tabel 4 F DATA'!N76 -> 0 | G79: ='[1]Tabel 4 F DATA'!O76 -> 0 | I79: ='[1]Tabel 4 F DATA'!Q76 -> 0
A80: ='[1]Tabel 4 F DATA'!I77 -> Arkitekt | C80: ='[1]Tabel 4 F DATA'!K77 -> 0 | D80: ='[1]Tabel 4 F DATA'!L77 -> 0 | E80: ='[1]Tabel 4 F DATA'!M77 -> 0 | F80: ='[1]Tabel 4 F DATA'!N77 -> 0 | G80: ='[1]Tabel 4 F DATA'!O77 -> 0 | I80: ='[1]Tabel 4 F DATA'!Q77 -> 0
A81: ='[1]Tabel 4 F DATA'!I78 -> Landinspek. | C81: ='[1]Tabel 4 F DATA'!K78 -> 0 | D81: ='[1]Tabel 4 F DATA'!L78 -> 0 | E81: ='[1]Tabel 4 F DATA'!M78 -> 0 | F81: ='[1]Tabel 4 F DATA'!N78 -> 0 | G81: ='[1]Tabel 4 F DATA'!O78 -> 0 | I81: ='[1]Tabel 4 F DATA'!Q78 -> 0
A82: ='[1]Tabel 4 F DATA'!I79 -> Bibliotekar | C82: ='[1]Tabel 4 F DATA'!K79 -> 0 | D82: ='[1]Tabel 4 F DATA'!L79 -> 1 | E82: ='[1]Tabel 4 F DATA'!M79 -> 1 | F82: ='[1]Tabel 4 F DATA'!N79 -> 0 | G82: ='[1]Tabel 4 F DATA'!O79 -> 0 | I82: ='[1]Tabel 4 F DATA'!Q79 -> 2
A83: ='[1]Tabel 4 F DATA'!I80 -> Musikudd. | C83: ='[1]Tabel 4 F DATA'!K80 -> 0 | D83: ='[1]Tabel 4 F DATA'!L80 -> 0 | E83: ='[1]Tabel 4 F DATA'!M80 -> 0 | F83: ='[1]Tabel 4 F DATA'!N80 -> 0 | G83: ='[1]Tabel 4 F DATA'!O80 -> 0 | I83: ='[1]Tabel 4 F DATA'!Q80 -> 0
A84: ='[1]Tabel 4 F DATA'!I81 -> Teolog | C84: ='[1]Tabel 4 F DATA'!K81 -> 0 | D84: ='[1]Tabel 4 F DATA'!L81 -> 0 | E84: ='[1]Tabel 4 F DATA'!M81 -> 0 | F84: ='[1]Tabel 4 F DATA'!N81 -> 0 | G84: ='[1]Tabel 4 F DATA'!O81 -> 0 | I84: ='[1]Tabel 4 F DATA'!Q81 -> 0
A85: ='[1]Tabel 4 F DATA'!I82 -> Psykolog | C85: ='[1]Tabel 4 F DATA'!K82 -> 0 | D85: ='[1]Tabel 4 F DATA'!L82 -> 0 | E85: ='[1]Tabel 4 F DATA'!M82 -> 0 | F85: ='[1]Tabel 4 F DATA'!N82 -> 0 | G85: ='[1]Tabel 4 F DATA'!O82 -> 0 | I85: ='[1]Tabel 4 F DATA'!Q82 -> 0
A86: ='[1]Tabel 4 F DATA'!I83 -> Jurist | C86: ='[1]Tabel 4 F DATA'!K83 -> 0 | D86: ='[1]Tabel 4 F DATA'!L83 -> 1 | E86: ='[1]Tabel 4 F DATA'!M83 -> 0 | F86: ='[1]Tabel 4 F DATA'!N83 -> 0 | G86: ='[1]Tabel 4 F DATA'!O83 -> 0 | I86: ='[1]Tabel 4 F DATA'!Q83 -> 1
A87: ='[1]Tabel 4 F DATA'!I84 -> Økonom | C87: ='[1]Tabel 4 F DATA'!K84 -> 0 | D87: ='[1]Tabel 4 F DATA'!L84 -> 0 | E87: ='[1]Tabel 4 F DATA'!M84 -> 0 | F87: ='[1]Tabel 4 F DATA'!N84 -> 0 | G87: ='[1]Tabel 4 F DATA'!O84 -> 0 | I87: ='[1]Tabel 4 F DATA'!Q84 -> 0
A88: ='[1]Tabel 4 F DATA'!I85 -> Samf. Adm. | C88: ='[1]Tabel 4 F DATA'!K85 -> 0 | D88: ='[1]Tabel 4 F DATA'!L85 -> 2 | E88: ='[1]Tabel 4 F DATA'!M85 -> 0 | F88: ='[1]Tabel 4 F DATA'!N85 -> 1 | G88: ='[1]Tabel 4 F DATA'!O85 -> 0 | I88: ='[1]Tabel 4 F DATA'!Q85 -> 3
A89: ='[1]Tabel 4 F DATA'!I86 -> Cand. Merc. | C89: ='[1]Tabel 4 F DATA'!K86 -> 0 | D89: ='[1]Tabel 4 F DATA'!L86 -> 2 | E89: ='[1]Tabel 4 F DATA'!M86 -> 1 | F89: ='[1]Tabel 4 F DATA'!N86 -> 0 | G89: ='[1]Tabel 4 F DATA'!O86 -> 0 | I89: ='[1]Tabel 4 F DATA'!Q86 -> 3
A90: ='[1]Tabel 4 F DATA'!I87 -> HA | C90: ='[1]Tabel 4 F DATA'!K87 -> 0 | D90: ='[1]Tabel 4 F DATA'!L87 -> 1 | E90: ='[1]Tabel 4 F DATA'!M87 -> 0 | F90: ='[1]Tabel 4 F DATA'!N87 -> 1 | G90: ='[1]Tabel 4 F DATA'!O87 -> 0 | I90: ='[1]Tabel 4 F DATA'!Q87 -> 2
A91: ='[1]Tabel 4 F DATA'!I88 -> HD | C91: ='[1]Tabel 4 F DATA'!K88 -> 0 | D91: ='[1]Tabel 4 F DATA'!L88 -> 0 | E91: ='[1]Tabel 4 F DATA'!M88 -> 0 | F91: ='[1]Tabel 4 F DATA'!N88 -> 0 | G91: ='[1]Tabel 4 F DATA'!O88 -> 0 | I91: ='[1]Tabel 4 F DATA'!Q88 -> 0
A92: ='[1]Tabel 4 F DATA'!I89 -> Komm. og Sprog | C92: ='[1]Tabel 4 F DATA'!K89 -> 0 | D92: ='[1]Tabel 4 F DATA'!L89 -> 0 | E92: ='[1]Tabel 4 F DATA'!M89 -> 0 | F92: ='[1]Tabel 4 F DATA'!N89 -> 0 | G92: ='[1]Tabel 4 F DATA'!O89 -> 0 | I92: ='[1]Tabel 4 F DATA'!Q89 -> 0
